Workbook

Sheet Cover
A1: is
B2: Error checking | C2: Status | E2: Cell legend
B3: Input sheets | E3: Input
B4: Dx_Inputs | C4: =Dx_Inputs!C1 -> OK | E4: Calculation
B5: Tx_Inputs | C5: =Tx_Inputs!C1 -> OK | E5: Calculation - Different calc
B6: WACC_Inputs | C6: n/a | E6: Negative value | F6: Red text
B7: Adjustment_Inputs | C7: n/a | E7: Historical input or N/A
B8: Calculations
B9: Dx_Asset | C9: =Dx_Asset!C1 -> OK
B10: Dx_Tax_Asset | C10: =Dx_Tax_Asset!C1 -> OK
B11: Tx_Asset | C11: =Tx_Asset!C1 -> OK
B12: Tx_Tax_Asset | C12: =Tx_Tax_Asset!C1 -> OK | E12: MODEL DISCLAIMER
B13: Tax_Analysis | C13: =Tax_Analysis!C1 -> OK | E13: This model is to show the calculation of Western Power's revenue cap as submitted to the ERA in November 2018 for its Access Arrangement Four (AA4) submission.
B14: Dx_CoS | C14: =Dx_CoS!C1 -> OK
B15: Dx_CoS smoothing | C15: =Dx_CoS!C89 -> OK | E15: This model is not to be used for any other purpose as correct use of the model relies on an understanding of the of the relationships amongst the data in the model
B16: Tx_CoS | C16: =Tx_CoS!C1 -> OK | E16: which may change if one or more elements of the model are changed.
B17: Tx_CoS smoothing | C17: =Tx_CoS!C85 -> OK
B18: Dx_Adjustments | C18: =Dx_Adjustments!C1 -> OK
B19: Tx_Adjustments | C19: =Tx_Adjustments!C1 -> OK
B20: GSM | C20: n/a
B21: Flags
B22: Tx revenue deferral | C22: =IF(Tx_CoS!S96="","OFF","ON") -> OFF
B24: Index of tabs contained in this model
B25: Tab | C25: Description
B26: Cover | C26: Cover page with error checking and solve model macro
B27: Output_Summary | C27: Output summary of key measures and graphs
B28: Public output summary | C28: High level output summary sized for A4 page printing
B29: INPUTS
B30: Dx_Inputs | C30: Distribution network inputs - primarily expenditure related
B31: Tx_Inputs | C31: Transmission network inputs - primarily expenditure related
B32: WACC_Inputs | C32: Weighted Average Cost of Capital inputs as well as values over AA1, 2 and 3
B33: Adjustment_Inputs | C33: Inputs required to calculate service standard and expenditure adjustment mechanisms
B34: Incentive_Rate_Inputs | C34: Metrics related to the calculation of service standard incentive rates
B35: Incentive_rates | C35: Incentive rates related to network performance
B36: CALCULATIONS
B37: Dx_Asset | C37: Roll forward calculation of distribution Regulated Asset Base (RAB)
B38: Dx_Tax_Asset | C38: Roll forward calculation of distribution Tax Asset Base (TAB)
B39: Tx_Asset | C39: Roll forward calculation of transnmission RAB
B40: Tx_Tax_Asset | C40: Roll forward calculation of transmission TAB
B41: Dx_CoS | C41: Calculation of Distribution cost of service (building blocks)
B42: Tx_CoS | C42: Calculation of Transmission cost of service (building blocks)
B43: Tax_Analysis | C43: Tax and equity raising cost calculations
B44: Dx_Adjustments | C44: Distribution expenditure adjustment calculations
B45: Tx_Adjustments | C45: Transmission expenditure adjustment calculations
B46: GSM | C46: Gain Sharing Mechanism calculations

Sheet Output_Summary
B2: WACC return | D2: 2018 | E2: 2019 | F2: 2020 | G2: 2021 | H2: 2022 | I2: 2023 | J2: 2024 | K2: 2025 | L2: 2026 | M2: 2027
B3: Nominal post tax | D3: =WACC_Inputs!H$30 -> 0.0586633 | E3: =WACC_Inputs!I$30 -> 0.0586633 | F3: =WACC_Inputs!J$30 -> 0.0586633 | G3: =WACC_Inputs!K$30 -> 0.0586633 | H3: =WACC_Inputs!L$30 -> 0.0586633 | I3: =WACC_Inputs!$N$30 -> 0.0586633 | J3: =WACC_Inputs!$N$30 -> 0.0586633 | K3: =WACC_Inputs!$N$30 -> 0.0586633 | L3: =WACC_Inputs!$N$30 -> 0.0586633 | M3: =WACC_Inputs!$N$30 -> 0.0586633
B4: Real post tax | D4: =WACC_Inputs!H$31 -> 0.03953584053 | E4: =WACC_Inputs!I$31 -> 0.03953584053 | F4: =WACC_Inputs!J$31 -> 0.03953584053 | G4: =WACC_Inputs!K$31 -> 0.03953584053 | H4: =WACC_Inputs!L$31 -> 0.03953584053 | I4: =WACC_Inputs!$N$31 -> 0.03953584053 | J4: =WACC_Inputs!$N$31 -> 0.03953584053 | K4: =WACC_Inputs!$N$31 -> 0.03953584053 | L4: =WACC_Inputs!$N$31 -> 0.03953584053 | M4: =WACC_Inputs!$N$31 -> 0.03953584053
B6: Price path | D6: 2018 | E6: 2019 | F6: 2020 | G6: 2021 | H6: 2022 | I6: 2023 | J6: 2024 | K6: 2025 | L6: 2026 | M6: 2027
B7: Distribution | D7: 0 | E7: 0 | F7: =R95 -> -0.01467875387 | G7: -0.01467875387 | H7: -0.01467875387 | I7: 0.02414210308 | J7: 0.02414210308 | K7: 0.02414210308 | L7: 0.02414210308 | M7: 0.02414210308
B8: Transmission | D8: 0 | E8: 0 | F8: 0.2299083981 | G8: 0.2299083981 | H8: 0.2299083981 | I8: -0.07099968087 | J8: -0.07099968087 | K8: -0.07099968087 | L8: -0.07099968087 | M8: -0.07099968087
B9: Bundled (average tariff $/MWh) | D9: 0 | E9: 0 | F9: 0.02350891327 | G9: 0.03120978888 | H9: 0.04005182056 | I9: -0.00103382244 | J9: 0.0007294557176 | K9: 0.002407600566 | L9: 0.003999239278 | M9: 0.005503914755
B11: Revenue cap [$M nominal] | D11: 2018 | E11: 2019 | F11: 2020 | G11: 2021 | H11: 2022 | I11: 2023 | J11: 2024 | K11: 2025 | L11: 2026 | M11: 2027 | O11: Net CoS [$M real as at 30 June 2017] | Q11: 2018 | R11: 2019 | S11: 2020 | T11: 2021 | U11: 2022
B12: Distribution | D12: =Dx_CoS!R88 -> 1214.430483 | E12: =Dx_CoS!S88 -> 1222.523848 | F12: =Dx_CoS!T88 -> 1191.2592 | G12: =Dx_CoS!U88 -> 1153.869703 | H12: =Dx_CoS!V88 -> 1120.404167 | I12: =Dx_CoS!W88 -> 1147.45308 | J12: =Dx_CoS!X88 -> 1175.15501 | K12: =Dx_CoS!Y88 -> 1203.525723 | L12: =Dx_CoS!Z88 -> 1232.581366 | M12: =Dx_CoS!AA88 -> 1262.338472 | O12: Distribution | Q12: =Dx_CoS!R83/Dx_Inputs!P$32 -> 1352.151734 | R12: =Dx_CoS!S83/Dx_Inputs!Q$32 -> 1084.562067 | S12: =Dx_CoS!T83/Dx_Inputs!R$32 -> 1053.894998 | T12: =Dx_CoS!U83/Dx_Inputs!S$32 -> 1033.311004 | U12: =Dx_CoS!V83/Dx_Inputs!T$32 -> 1063.011207 | V12: =SUM(Q12:U12) -> 5586.93101
B13: Transmission | D13: =IF(Tx_CoS!$S96="",Tx_CoS!R84,Tx_CoS!R93) -> 287.1362506 | E13: =IF(Tx_CoS!$S96="",Tx_CoS!S84,Tx_CoS!S93) -> 292.5585669 | F13: =IF(Tx_CoS!$S96="",Tx_CoS!T84,Tx_CoS!T93) -> 359.1072389 | G13: =IF(Tx_CoS!$S96="",Tx_CoS!U84,Tx_CoS!U93) -> 438.5120828 | H13: =IF(Tx_CoS!$S96="",Tx_CoS!V84,Tx_CoS!V93) -> 533.382337 | I13: =Tx_CoS!W84 -> 495.5123612 | J13: =Tx_CoS!X84 -> 460.3311417 | K13: =Tx_CoS!Y84 -> 427.6477776 | L13: =Tx_CoS!Z84 -> 397.2849218 | M13: =Tx_CoS!AA84 -> 369.0778192 | O13: Transmission | Q13: =Tx_CoS!R79/Dx_Inputs!P$32 -> 324.9561559 | R13: =Tx_CoS!S79/Dx_Inputs!Q$32 -> 350.237435 | S13: =Tx_CoS!T79/Dx_Inputs!R$32 -> 359.2575741 | T13: =Tx_CoS!U79/Dx_Inputs!S$32 -> 367.438924 | U13: =Tx_CoS!V79/Dx_Inputs!T$32 -> 381.1244602 | V13: 1783.014549
B14: Total | D14: =SUM(D12:D13) -> 1501.566733 | E14: =SUM(E12:E13) -> 1515.082415 | F14: 1550.366438 | G14: 1592.381785 | H14: 1653.786504 | I14: 1642.965441 | J14: 1635.486152 | K14: 1631.173501 | L14: 1629.866287 | M14: 1631.416291 | O14: Total | Q14: =SUM(Q12:Q13) -> 1677.10789 | R14: =SUM(R12:R13) -> 1434.799502 | S14: 1413.152572 | T14: 1400.749928 | U14: 1444.135667 | V14: =SUM(Q14:U14) -> 7369.945559
B16: Energy (GWh) | D16: 2018 | E16: 2019 | F16: 2020 | G16: 2021 | H16: 2022 | I16: 2023 | J16: 2024 | K16: 2025 | L16: 2026 | M16: 2027
B17: Distribution | D17: =Dx_CoS!R90 -> 13691 | E17: =Dx_CoS!S90 -> 13656 | F17: =Dx_CoS!T90 -> 13505 | G17: =Dx_CoS!U90 -> 13276 | H17: =Dx_CoS!V90 -> 13083 | I17: =Dx_CoS!W90 -> 13083 | J17: =Dx_CoS!X90 -> 13083 | K17: =Dx_CoS!Y90 -> 13083 | L17: =Dx_CoS!Z90 -> 13083 | M17: =Dx_CoS!AA90 -> 13083
B18: Transmission | D18: =Tx_CoS!R86 -> 17698 | E18: =Tx_CoS!S86 -> 17663 | F18: =Tx_CoS!T86 -> 17628 | G18: =Tx_CoS!U86 -> 17502 | H18: =Tx_CoS!V86 -> 17309 | I18: =Tx_CoS!W86 -> 17309 | J18: =Tx_CoS!X86 -> 17309 | K18: =Tx_CoS!Y86 -> 17309 | L18: =Tx_CoS!Z86 -> 17309 | M18: =Tx_CoS!AA86 -> 17309
B20: Bill impact* | C20: 2017 | D20: 2018 | E20: 2019 | F20: 2020 | G20: 2021 | H20: 2022 | J20: Indicative impact on the average customers' bill analysis analyses the
B21: Customers | C21: 1380822 | D21: 1407560 | E21: 1436169 | F21: 1464982 | G21: 1493622 | H21: 1522289 | J21: flow on impact from the revenue model
B22: Customer change | D22: =D21/C21-1 -> 0.01936382821 | E22: =E21/D21-1 -> 0.02032524368 | F22: =F21/E21-1 -> 0.02006240213 | G22: =G21/F21-1 -> 0.01954972826 | H22: =H21/G21-1 -> 0.01919294172
B23: Indicative average bill | C23: =SUM(Adjustments_Inputs!M282:M283)/C21*10^6 -> 1094.739945 | D23: =D14/D21*10^6 -> 1066.787017 | E23: =E14/E21*10^6 -> 1054.947165 | F23: =F14/F21*10^6 -> 1058.283609 | G23: =G14/G21*10^6 -> 1066.121003 | H23: =H14/H21*10^6 -> 1086.381432 | J23: ** Customer numbers include all customers (residential and commercial)
B24: Annual change | D24: =D23/C23-1 -> -0.0255338522 | E24: =E23/D23-1 -> -0.01109860906 | F24: =F23/E23-1 -> 0.003162665033 | G24: =G23/F23-1 -> 0.007405759777 | H24: =H23/G23-1 -> 0.01900387327 | J24: but exclude ~50 generator customers
B25: 5 year CAGR bill change | H25: =(H23/C23)^0.2-1 -> -0.001531716805
B67: Output Summary data for graphing
B68: Year ending 30 June | D68: 2006 | E68: 2007 | F68: 2008 | G68: 2009 | H68: 2010 | I68: 2011 | J68: 2012 | K68: 2013 | L68: 2014 | M68: 2015 | N68: 2016 | O68: 2017 | P68: 2018 | Q68: 2019 | R68: 2020 | S68: 2021 | T68: 2022 | U68: 2023 | V68: 2024 | W68: 2025 | X68: 2026 | Y68: 2027 | Z68: 2028 | AA68: 2029 | AB68: 2030 | AC68: 2031 | AD68: 2032
B69: Revenue path [$M nominal]
B70: Distribution | E70: =Dx_CoS!G88 -> 327.5635847 | F70: =Dx_CoS!H88 -> 427.5369699 | G70: =Dx_CoS!I88 -> 461.9704548 | H70: =Dx_CoS!J88 -> 513.899676 | I70: =Dx_CoS!K88 -> 711.271 | J70: =Dx_CoS!L88 -> 804.783 | K70: =Dx_CoS!M88 -> 835.207 | L70: =Dx_CoS!N88 -> 968.278 | M70: =Dx_CoS!O88 -> 1043.275 | N70: =Dx_CoS!P88 -> 1173.615 | O70: =Dx_CoS!Q88 -> 1217.994 | P70: =Dx_CoS!R88 -> 1214.430483 | Q70: =Dx_CoS!S88 -> 1222.523848 | R70: =Dx_CoS!T88 -> 1191.2592 | S70: =Dx_CoS!U88 -> 1153.869703 | T70: =Dx_CoS!V88 -> 1120.404167 | U70: =Dx_CoS!W88 -> 1147.45308 | V70: =Dx_CoS!X88 -> 1175.15501 | W70: =Dx_CoS!Y88 -> 1203.525723 | X70: =Dx_CoS!Z88 -> 1232.581366 | Y70: =Dx_CoS!AA88 -> 1262.338472 | Z70: =Dx_CoS!AB88 -> 1319.108427 | AA70: =Dx_CoS!AC88 -> 1378.431445 | AB70: =Dx_CoS!AD88 -> 1440.42234 | AC70: =Dx_CoS!AE88 -> 1505.201093 | AD70: =Dx_CoS!AF88 -> 1572.89308
B71: Transmission | E71: =Tx_CoS!G84 -> 200.4046813 | F71: =Tx_CoS!H84 -> 215.3356458 | G71: =Tx_CoS!I84 -> 227.2674179 | H71: =Tx_CoS!J84 -> 270.3259342 | I71: =Tx_CoS!K84 -> 345.421 | J71: =Tx_CoS!L84 -> 387.876 | K71: =Tx_CoS!M84 -> 387.303 | L71: =Tx_CoS!N84 -> 363.667 | M71: =Tx_CoS!O84 -> 350.264 | N71: =Tx_CoS!P84 -> 324.252 | O71: =Tx_CoS!Q84 -> 293.647 | P71: =IF(Tx_CoS!$S96="",Tx_CoS!R84,Tx_CoS!R93) -> 287.1362506 | Q71: =IF(Tx_CoS!$S96="",Tx_CoS!S84,Tx_CoS!S93) -> 292.5585669 | R71: =IF(Tx_CoS!$S96="",Tx_CoS!T84,Tx_CoS!T93) -> 359.1072389 | S71: =IF(Tx_CoS!$S96="",Tx_CoS!U84,Tx_CoS!U93) -> 438.5120828 | T71: =IF(Tx_CoS!$S96="",Tx_CoS!V84,Tx_CoS!V93) -> 533.382337 | U71: =Tx_CoS!W84 -> 495.5123612 | V71: =Tx_CoS!X84 -> 460.3311417 | W71: =Tx_CoS!Y84 -> 427.6477776 | X71: =Tx_CoS!Z84 -> 397.2849218 | Y71: =Tx_CoS!AA84 -> 369.0778192 | Z71: =Tx_CoS!AB84 -> 400.9667634 | AA71: =Tx_CoS!AC84 -> 435.610966 | AB71: =Tx_CoS!AD84 -> 473.2484859 | AC71: =Tx_CoS!AE84 -> 514.1379509 | AD71: =Tx_CoS!AF84 -> 558.5603344
B72: Total | E72: =SUM(E70:E71) -> 527.9682659 | F72: =SUM(F70:F71) -> 642.8726156 | G72: 689.2378727 | H72: 784.2256102 | I72: 1056.692 | J72: 1192.659 | K72: =SUM(K70:K71)/Dx_Inputs!K32 -> 1316.457753 | L72: =SUM(L70:L71)/Dx_Inputs!L32 -> 1392.316445 | M72: =SUM(M70:M71)/Dx_Inputs!M32 -> 1435.021091 | N72: =SUM(N70:N71)/Dx_Inputs!N32 -> 1526.831279 | O72: =SUM(O70:O71)/Dx_Inputs!O32 -> 1511.641 | P72: =SUM(P70:P71)/Dx_Inputs!P32 -> 1474.437091 | Q72: =SUM(Q70:Q71)/Dx_Inputs!Q32 -> 1460.829317 | R72: =SUM(R70:R71)/Dx_Inputs!R32 -> 1467.841582 | S72: =SUM(S70:S71)/Dx_Inputs!S32 -> 1480.381464 | T72: =SUM(T70:T71)/Dx_Inputs!T32 -> 1509.688998 | U72: 1642.965441 | V72: 1635.486152 | W72: 1631.173501 | X72: 1629.866287 | Y72: 1631.416291 | Z72: 1720.075191 | AA72: 1814.042411 | AB72: 1913.670826 | AC72: 2019.339044 | AD72: 2131.453414
B74: Opex [$M real as at 30 June 2017]
B75: Distribution | E75: =Dx_Inputs!E693 -> 299.0784132 | F75: =Dx_Inputs!F693 -> 304.545851 | G75: =Dx_Inputs!G693 -> 338.3150965 | H75: =Dx_Inputs!H693 -> 325.3892153 | I75: =Dx_Inputs!I693 -> 362.7953016 | J75: =Dx_Inputs!J693 -> 414.9133028 | K75: =Dx_Inputs!K693 -> 403.068607 | L75: =Dx_Inputs!L693 -> 388.239221 | M75: =Dx_Inputs!M693 -> 361.4143898 | N75: =Dx_Inputs!N693 -> 385.3399724 | O75: =Dx_Inputs!O693 -> 351.128 | P75: =Dx_Inputs!P693 -> 273.6969155 | Q75: =Dx_Inputs!Q693 -> 270.6954231 | R75: =Dx_Inputs!R693 -> 270.6124913 | S75: =Dx_Inputs!S693 -> 275.8922829 | T75: =Dx_Inputs!T693 -> 272.2862436 | U75: =Dx_Inputs!U693 -> 276.9434951 | V75: =Dx_Inputs!V693 -> 279.1274295 | W75: =Dx_Inputs!W693 -> 281.3289124 | X75: =Dx_Inputs!X693 -> 283.5480877 | Y75: =Dx_Inputs!Y693 -> 285.7851007 | Z75: =Dx_Inputs!Z693 -> 288.0400977 | AA75: =Dx_Inputs!AA693 -> 288.0400977 | AB75: =Dx_Inputs!AB693 -> 288.0400977 | AC75: =Dx_Inputs!AC693 -> 288.0400977 | AD75: =Dx_Inputs!AD693 -> 288.0400977
B76: Transmission | E76: =Tx_Inputs!E635 -> 88.281983 | F76: =Tx_Inputs!F635 -> 88.68518724 | G76: =Tx_Inputs!G635 -> 87.0322184 | H76: =Tx_Inputs!H635 -> 100.3346783 | I76: =Tx_Inputs!I635 -> 111.7159952 | J76: =Tx_Inputs!J635 -> 136.9890448 | K76: =Tx_Inputs!K635 -> 127.7788132 | L76: =Tx_Inputs!L635 -> 122.3240227 | M76: =Tx_Inputs!M635 -> 120.4951479 | N76: =Tx_Inputs!N635 -> 126.5252072 | O76: =Tx_Inputs!O635 -> 105.647 | P76: =Tx_Inputs!P635 -> 87.07503587 | Q76: =Tx_Inputs!Q635 -> 85.47319245 | R76: =Tx_Inputs!R635 -> 85.16299424 | S76: =Tx_Inputs!S635 -> 86.52176298 | T76: =Tx_Inputs!T635 -> 84.58655541 | U76: =Tx_Inputs!U635 -> 84.54500585 | V76: =Tx_Inputs!V635 -> 84.54313505 | W76: =Tx_Inputs!W635 -> 84.54431934 | X76: =Tx_Inputs!X635 -> 84.5485775 | Y76: =Tx_Inputs!Y635 -> 84.55592855 | Z76: =Tx_Inputs!Z635 -> 84.56639172 | AA76: =Tx_Inputs!AA635 -> 84.56639172 | AB76: =Tx_Inputs!AB635 -> 84.56639172 | AC76: =Tx_Inputs!AC635 -> 84.56639172 | AD76: =Tx_Inputs!AD635 -> 84.56639172
B77: Total | E77: =SUM(E75:E76) -> 387.3603962 | F77: =SUM(F75:F76) -> 393.2310383 | G77: 425.3473149 | H77: 425.7238936 | I77: 474.5112968 | J77: 551.9023476 | K77: 530.8474202 | L77: 510.5632436 | M77: 481.9095377 | N77: 511.8651796 | O77: 456.775 | P77: 360.7719514 | Q77: 356.1686156 | R77: 355.7754856 | S77: 362.4140459 | T77: 356.872799 | U77: 361.4885009 | V77: 363.6705645 | W77: 365.8732317 | X77: 368.0966652 | Y77: 370.3410292 | Z77: 372.6064894 | AA77: 372.6064894 | AB77: 372.6064894 | AC77: 372.6064894 | AD77: 372.6064894
B79: Capex [$M real as at 30 June 2017]
B80: Distribution | E80: =Dx_Inputs!E257 -> 442.4556787 | F80: =Dx_Inputs!F257 -> 483.6890568 | G80: =Dx_Inputs!G257 -> 605.1211526 | H80: =Dx_Inputs!H257 -> 563.2717883 | I80: =Dx_Inputs!I257 -> 575.1578845 | J80: =Dx_Inputs!J257 -> 672.0910709 | K80: =Dx_Inputs!K257 -> 775.5249686 | L80: =Dx_Inputs!L257 -> 778.6586896 | M80: =Dx_Inputs!M257 -> 697.7595493 | N80: =Dx_Inputs!N257 -> 590.6138391 | O80: =Dx_Inputs!O257 -> 450.869 | P80: =Dx_Inputs!P257 -> 558.3269183 | Q80: =Dx_Inputs!Q257 -> 581.9291067 | R80: =Dx_Inputs!R257 -> 593.0814527 | S80: =Dx_Inputs!S257 -> 472.4989011 | T80: =Dx_Inputs!T257 -> 477.857592 | U80: =Dx_Inputs!U257 -> 540.1323941 | V80: =Dx_Inputs!V257 -> 549.1715036 | W80: =Dx_Inputs!W257 -> 545.0543564 | X80: =Dx_Inputs!X257 -> 540.3382152 | Y80: =Dx_Inputs!Y257 -> 563.8288222 | Z80: =Dx_Inputs!Z257 -> 561.5010295 | AA80: =Dx_Inputs!AA257 -> 561.5010295 | AB80: =Dx_Inputs!AB257 -> 561.5010295 | AC80: =Dx_Inputs!AC257 -> 561.5010295 | AD80: =Dx_Inputs!AD257 -> 561.5010295
B81: Transmission | E81: =Tx_Inputs!E215 -> 316.6450241 | F81: =Tx_Inputs!F215 -> 327.3836507 | G81: =Tx_Inputs!G215 -> 334.2641093 | H81: =Tx_Inputs!H215 -> 254.888337 | I81: =Tx_Inputs!I215 -> 188.5630294 | J81: =Tx_Inputs!J215 -> 177.6876293 | K81: =Tx_Inputs!K215 -> 228.4863556 | L81: =Tx_Inputs!L215 -> 343.4565612 | M81: =Tx_Inputs!M215 -> 164.2150885 | N81: =Tx_Inputs!N215 -> 125.3676124 | O81: =Tx_Inputs!O215 -> 119.3878426 | P81: =Tx_Inputs!P215 -> 137.1523639 | Q81: =Tx_Inputs!Q215 -> 189.4124873 | R81: =Tx_Inputs!R215 -> 185.6344723 | S81: =Tx_Inputs!S215 -> 133.9576966 | T81: =Tx_Inputs!T215 -> 133.8828701 | U81: =Tx_Inputs!U215 -> 188.0895482 | V81: =Tx_Inputs!V215 -> 218.6737652 | W81: =Tx_Inputs!W215 -> 166.6424296 | X81: =Tx_Inputs!X215 -> 149.2024697 | Y81: =Tx_Inputs!Y215 -> 191.9592184 | Z81: =Tx_Inputs!Z215 -> 150.3677494 | AA81: =Tx_Inputs!AA215 -> 150.3677494 | AB81: =Tx_Inputs!AB215 -> 150.3677494 | AC81: =Tx_Inputs!AC215 -> 150.3677494 | AD81: =Tx_Inputs!AD215 -> 150.3677494
B82: Total | E82: =SUM(E80:E81) -> 759.1007028 | F82: =SUM(F80:F81) -> 811.0727075 | G82: 939.3852619 | H82: 818.1601253 | I82: 763.7209139 | J82: 849.7787002 | K82: 1004.011324 | L82: 1122.115251 | M82: 861.9746378 | N82: 715.9814516 | O82: 570.2568426 | P82: 695.4792822 | Q82: 771.3415939 | R82: 778.715925 | S82: 606.4565977 | T82: 611.7404621 | U82: 728.2219423 | V82: 767.8452688 | W82: 711.696786 | X82: 689.5406849 | Y82: 755.7880407 | Z82: 711.8687789 | AA82: 711.8687789 | AB82: 711.8687789 | AC82: 711.8687789 | AD82: 711.8687789
B84: RAB closing value [$M real as at 30 June 2017]
B85: Distribution | E85: =Dx_Asset!G10 -> 2395.19139 | F85: =Dx_Asset!H10 -> 2767.373838 | G85: =Dx_Asset!I10 -> 3311.092276 | H85: =Dx_Asset!J10 -> 3612.597808 | I85: =Dx_Asset!K10 -> 3901.03306 | J85: =Dx_Asset!L10 -> 4248.701724 | K85: =Dx_Asset!M10 -> 4708.477962 | L85: =Dx_Asset!N10 -> 5142.926352 | M85: =Dx_Asset!O10 -> 5494.335995 | N85: =Dx_Asset!P10 -> 5723.088102 | O85: =Dx_Asset!Q10 -> 5798.40633 | P85: =Dx_Asset!R10 -> 6008.629124 | Q85: =Dx_Asset!S10 -> 6205.559063 | R85: =Dx_Asset!T10 -> 6433.220684 | S85: =Dx_Asset!U10 -> 6565.644737 | T85: =Dx_Asset!V10 -> 6705.220143 | U85: =Dx_Asset!W10 -> 6906.631961 | V85: =Dx_Asset!X10 -> 7119.158675 | W85: =Dx_Asset!Y10 -> 7313.768112 | X85: =Dx_Asset!Z10 -> 7490.818911 | Y85: =Dx_Asset!AA10 -> 7679.57632 | Z85: =Dx_Asset!AB10 -> 7850.977652 | AA85: =Dx_Asset!AC10 -> 8009.477218 | AB85: =Dx_Asset!AD10 -> 8156.507205 | AC85: =Dx_Asset!AE10 -> 8291.921254 | AD85: =Dx_Asset!AF10 -> 8417.427071
B86: Transmission | E86: =Tx_Asset!G10 -> 2040.96473 | F86: =Tx_Asset!H10 -> 2297.760264 | G86: =Tx_Asset!I10 -> 2557.700066 | H86: =Tx_Asset!J10 -> 2684.897516 | I86: =Tx_Asset!K10 -> 2761.839741 | J86: =Tx_Asset!L10 -> 2816.740397 | K86: =Tx_Asset!M10 -> 2927.652118 | L86: =Tx_Asset!N10 -> 3161.624193 | M86: =Tx_Asset!O10 -> 3197.469957 | N86: =Tx_Asset!P10 -> 3135.456177 | O86: =Tx_Asset!Q10 -> 3108.629579 | P86: =Tx_Asset!R10 -> 3122.751267 | Q86: =Tx_Asset!S10 -> 3183.414658 | R86: =Tx_Asset!T10 -> 3233.515265 | S86: =Tx_Asset!U10 -> 3224.72725 | T86: =Tx_Asset!V10 -> 3212.509589 | U86: =Tx_Asset!W10 -> 3249.407421 | V86: =Tx_Asset!X10 -> 3312.517663 | W86: =Tx_Asset!Y10 -> 3319.122676 | X86: =Tx_Asset!Z10 -> 3305.762781 | Y86: =Tx_Asset!AA10 -> 3334.762879 | Z86: =Tx_Asset!AB10 -> 3329.227376 | AA86: =Tx_Asset!AC10 -> 3322.011072 | AB86: =Tx_Asset!AD10 -> 3317.55202 | AC86: =Tx_Asset!AE10 -> 3311.751174 | AD86: =Tx_Asset!AF10 -> 3307.935138
B87: Total | E87: =SUM(E85:E86) -> 4436.15612 | F87: =SUM(F85:F86) -> 5065.134103 | G87: 5868.792342 | H87: 6297.495324 | I87: 6662.8728 | J87: 7065.442121 | K87: 7636.130079 | L87: 8304.550544 | M87: 8691.805952 | N87: 8858.544279 | O87: 8907.035909 | P87: 9131.380391 | Q87: 9388.973722 | R87: 9666.735949 | S87: 9790.371986 | T87: 9917.729732 | U87: 10156.03938 | V87: 10431.67634 | W87: 10632.89079 | X87: 10796.58169 | Y87: 11014.3392 | Z87: 11180.20503 | AA87: 11331.48829 | AB87: 11474.05923 | AC87: 11603.67243 | AD87: 11725.36221
B89: Average price [$/MWh nominal]
B90: Distribution | E90: =Dx_CoS!G91 -> 25.48855695 | F90: =Dx_CoS!H91 -> 31.86347719 | G90: =Dx_CoS!I91 -> 34.10708927 | H90: =Dx_CoS!J91 -> 37.44433803 | I90: =Dx_CoS!K91 -> 50.4257228 | J90: =Dx_CoS!L91 -> 57.77030299 | K90: =Dx_CoS!M91 -> 61.23667424 | L90: =Dx_CoS!N91 -> 70.85825101 | M90: =Dx_CoS!O91 -> 77.53232759 | N90: =Dx_CoS!P91 -> 84.67640693 | O90: =Dx_CoS!Q91 -> 88.45914736 | P90: =Dx_CoS!R91 -> 88.70283272 | Q90: =Dx_CoS!S91 -> 89.52283596 | R90: =Dx_CoS!T91 -> 88.20875228 | S90: =Dx_CoS!U91 -> 86.91395772 | T90: =Dx_CoS!V91 -> 85.63816912 | U90: =Dx_CoS!W91 -> 87.70565463 | V90: =Dx_CoS!X91 -> 89.82305358 | W90: =Dx_CoS!Y91 -> 91.991571 | X90: =Dx_CoS!Z91 -> 94.21244099 | Y90: =Dx_CoS!AA91 -> 96.48692745 | Z90: =Dx_CoS!AB91 -> 100.8261429 | AA90: =Dx_CoS!AC91 -> 105.3605018 | AB90: =Dx_CoS!AD91 -> 110.0987801 | AC90: =Dx_CoS!AE91 -> 115.0501485 | AD90: =Dx_CoS!AF91 -> 120.2241901
B91: Transmission | E91: =Tx_CoS!G87 -> 13.52276931 | F91: =Tx_CoS!H87 -> 13.76816323 | G91: =Tx_CoS!I87 -> 14.16830732 | H91: =Tx_CoS!J87 -> 16.12021587 | I91: =Tx_CoS!K87 -> 19.847857 | J91: =Tx_CoS!L87 -> 22.19975055 | K91: =Tx_CoS!M87 -> 22.86862305 | L91: =Tx_CoS!N87 -> 20.77028957 | M91: =Tx_CoS!O87 -> 19.91607437 | N91: =Tx_CoS!P87 -> 18.13997203 | O91: =Tx_CoS!Q87 -> 16.53045485 | P91: =IF(Tx_CoS!$S96="",Tx_CoS!R87,Tx_CoS!R95) -> 16.22422028 | Q91: =IF(Tx_CoS!$S96="",Tx_CoS!S87,Tx_CoS!S95) -> 16.56335656 | R91: =IF(Tx_CoS!$S96="",Tx_CoS!T87,Tx_CoS!T95) -> 20.37141133 | S91: =IF(Tx_CoS!$S96="",Tx_CoS!U87,Tx_CoS!U95) -> 25.05496988 | T91: =IF(Tx_CoS!$S96="",Tx_CoS!V87,Tx_CoS!V95) -> 30.81531787 | U91: =Tx_CoS!W87 -> 28.62744013 | V91: =Tx_CoS!X87 -> 26.59490102 | W91: =Tx_CoS!Y87 -> 24.70667153 | X91: =Tx_CoS!Z87 -> 22.95250574 | Y91: =Tx_CoS!AA87 -> 21.32288516 | Z91: =Tx_CoS!AB87 -> 23.16521829 | AA91: =Tx_CoS!AC87 -> 25.1667321 | AB91: =Tx_CoS!AD87 -> 27.34118008 | AC91: =Tx_CoS!AE87 -> 29.70350401 | AD91: =Tx_CoS!AF87 -> 32.26993671
B92: Total | E92: =SUM(E90:E91) -> 39.01132626 | F92: =SUM(F90:F91) -> 45.63164042 | G92: 48.27539659 | H92: 53.5645539 | I92: 70.2735798 | J92: 79.97005354 | K92: 84.10529729 | L92: 91.62854057 | M92: 97.44840196 | N92: 102.816379 | O92: 104.9896022 | P92: 104.927053 | Q92: 106.0861925 | R92: 108.5801636 | S92: 111.9689276 | T92: 116.453487 | U92: 116.3330948 | V92: 116.4179546 | W92: 116.6982425 | X92: 117.1649467 | Y92: 117.8098126 | Z92: 123.9913612 | AA92: 130.5272339 | AB92: 137.4399601 | AC92: 144.7536525 | AD92: 152.4941268
B94: Price path
B95: Distribution | F95: =F90/E90-1 -> 0.250109108 | G95: =G90/F90-1 -> 0.07041328415 | H95: 0.09784619093 | I95: 0.3466848514 | J95: 0.1456514609 | K95: =K90/J90-1 -> 0.06000264963 | L95: 0.1571211514 | M95: 0.09418912385 | N95: 0.09214323319 | O95: 0.04467289734 | P95: 0.002754778574 | Q95: 0.009244386085 | R95: -0.01467875387 | S95: -0.01467875387 | T95: -0.01467875387 | U95: 0.02414210308 | V95: 0.02414210308 | W95: 0.02414210308 | X95: 0.02414210308 | Y95: 0.02414210308 | Z95: 0.04497205528 | AA95: 0.04497205528 | AB95: 0.04497205528 | AC95: 0.04497205528 | AD95: 0.04497205528
B96: Transmission | F96: =F91/E91-1 -> 0.01814672116 | G96: 0.02906299748 | H96: 0.1377658248 | I96: 0.2312401498 | J96: 0.1184960951 | K96: 0.03012973058 | L96: -0.09175600478 | M96: -0.04112678302 | N96: -0.08917933885 | O96: -0.08872765476 | P96: -0.01852547753 | Q96: 0.02090308611 | R96: 0.2299083981 | S96: 0.2299083981 | T96: 0.2299083981 | U96: -0.07099968087 | V96: -0.07099968087 | W96: -0.07099968087 | X96: -0.07099968087 | Y96: -0.07099968087 | Z96: 0.08640168156 | AA96: 0.08640168156 | AB96: 0.08640168156 | AC96: 0.08640168156 | AD96: 0.08640168156
B97: Total | F97: 0.1697023609 | G97: 0.05793690831 | H97: 0.1095621722 | I97: 0.3119418474 | J97: 0.1379817816 | K97: 0.05170990351 | L97: 0.08945029052 | M97: 0.06351581452 | N97: 0.05508532605 | O97: 0.02113693635 | P97: -0.0005957657222 | Q97: 0.01104709866 | R97: 0.02350891327 | S97: 0.03120978888 | T97: 0.04005182056 | U97: -0.00103382244 | V97: 0.0007294557176 | W97: 0.002407600566 | X97: 0.003999239278 | Y97: 0.005503914755 | Z97: 0.05247057466 | AA97: 0.05271232305 | AB97: 0.05296003047 | AC97: 0.05321372584 | AD97: 0.0534734302
B99: TEC [$M nominal]
B100: Distribution | E100: =Dx_Inputs!E709 -> 69.7 | F100: =Dx_Inputs!F709 -> 71.6 | G100: =Dx_Inputs!G709 -> 72 | H100: =Dx_Inputs!H709 -> 122.1 | I100: =Dx_Inputs!I709 -> 175.7 | J100: =Dx_Inputs!J709 -> 181.2 | K100: =Dx_Inputs!K709 -> 154 | L100: =Dx_Inputs!L709 -> 209 | M100: =Dx_Inputs!M709 -> 136 | N100: =Dx_Inputs!N709 -> 141 | O100: =Dx_Inputs!O709 -> 150 | P100: =Dx_Inputs!P709 -> 167 | Q100: =Dx_Inputs!Q709 -> 198 | R100: =Dx_Inputs!R709 -> 162 | S100: =Dx_Inputs!S709 -> 157 | T100: =Dx_Inputs!T709 -> 161 | U100: =Dx_Inputs!U709 -> 161 | V100: =Dx_Inputs!V709 -> 161 | W100: =Dx_Inputs!W709 -> 161 | X100: =Dx_Inputs!X709 -> 161 | Y100: =Dx_Inputs!Y709 -> 161 | Z100: =Dx_Inputs!Z709 -> 161 | AA100: =Dx_Inputs!AA709 -> 161 | AB100: =Dx_Inputs!AB709 -> 161 | AC100: =Dx_Inputs!AC709 -> 161 | AD100: =Dx_Inputs!AD709 -> 161
B101: Total | E101: =SUM(E100:E100) -> 69.7 | F101: 71.6 | G101: 72 | H101: 122.1 | I101: 175.7 | J101: 181.2 | K101: 154 | L101: 209 | M101: 136 | N101: 141 | O101: 150 | P101: 167 | Q101: 198 | R101: 162 | S101: 157 | T101: 161 | U101: 161 | V101: 161 | W101: 161 | X101: 161 | Y101: 161 | Z101: 161 | AA101: 161 | AB101: 161 | AC101: 161 | AD101: 161
B103: Net Cost of Service [$M nominal]
B104: Distribution | J104: =Dx_CoS!L83 -> 804.783 | K104: =Dx_CoS!M83 -> 1007.006227 | L104: =Dx_CoS!N83 -> 1019.391963 | M104: =Dx_CoS!O83 -> 1102.964674 | N104: =Dx_CoS!P83 -> 1104.10138 | O104: =Dx_CoS!Q83 -> 1166.90879 | P104: =Dx_CoS!R83 -> 1377.031326 | Q104: =Dx_CoS!S83 -> 1124.841141 | R104: =Dx_CoS!T83 -> 1113.146988 | S104: =Dx_CoS!U83 -> 1111.487587 | T104: =Dx_CoS!V83 -> 1164.474 | U104: =Dx_CoS!W83 -> 1130.96738 | V104: =Dx_CoS!X83 -> 1155.505899 | W104: =Dx_CoS!Y83 -> 1201.034339 | X104: =Dx_CoS!Z83 -> 1247.006523 | Y104: =Dx_CoS!AA83 -> 1293.881305 | Z104: =Dx_CoS!AB83 -> 1344.957295 | AA104: =Dx_CoS!AC83 -> 1394.198583 | AB104: =Dx_CoS!AD83 -> 1440.991654 | AC104: =Dx_CoS!AE83 -> 1490.336058 | AD104: =Dx_CoS!AF83 -> 1536.814827
B105: Transmission | J105: =Tx_CoS!L79 -> 387.876 | K105: =Tx_CoS!M79 -> 315.1339252 | L105: =Tx_CoS!N79 -> 329.5052332 | M105: =Tx_CoS!O79 -> 349.4067617 | N105: =Tx_CoS!P79 -> 362.833709 | O105: =Tx_CoS!Q79 -> 386.6583495 | P105: =Tx_CoS!R79 -> 330.9353492 | Q105: =Tx_CoS!S79 -> 363.244749 | R105: =Tx_CoS!T79 -> 379.4557209 | S105: =Tx_CoS!U79 -> 395.2380275 | T105: =Tx_CoS!V79 -> 417.5022069 | U105: =Tx_CoS!W79 -> 408.5155154 | V105: =Tx_CoS!X79 -> 422.5796515 | W105: =Tx_CoS!Y79 -> 438.2890193 | X105: =Tx_CoS!Z79 -> 448.787299 | Y105: =Tx_CoS!AA79 -> 456.6990776 | Z105: =Tx_CoS!AB79 -> 455.0331827 | AA105: =Tx_CoS!AC79 -> 466.7638217 | AB105: =Tx_CoS!AD79 -> 472.0637166 | AC105: =Tx_CoS!AE79 -> 482.7128113 | AD105: =Tx_CoS!AF79 -> 488.280088
B106: Total | J106: =SUM(J104:J105) -> 1192.659 | K106: =SUM(K104:K105) -> 1322.140152 | L106: 1348.897196 | M106: 1452.371436 | N106: 1466.935089 | O106: 1553.567139 | P106: 1707.966675 | Q106: 1488.08589 | R106: 1492.602708 | S106: 1506.725614 | T106: 1581.976207 | U106: 1539.482895 | V106: 1578.08555 | W106: 1639.323358 | X106: 1695.793822 | Y106: 1750.580382 | Z106: 1799.990477 | AA106: 1860.962404 | AB106: 1913.055371 | AC106: 1973.048869 | AD106: 2025.094915
B108: Total Raw building block
B109: Operating expenditure | P109: =Dx_CoS!R54+Tx_CoS!R53 -> 367.4101553 | Q109: =Dx_CoS!S54+Tx_CoS!S53 -> 369.3962051 | R109: =Dx_CoS!T54+Tx_CoS!T53 -> 375.7778627 | S109: =Dx_CoS!U54+Tx_CoS!U53 -> 389.8329853 | T109: =Dx_CoS!V54+Tx_CoS!V53 -> 390.9357617 | U109: =Dx_CoS!W54+Tx_CoS!W53 -> 403.2782786 | V109: =Dx_CoS!X54+Tx_CoS!X53 -> 413.1777109 | W109: =Dx_CoS!Y54+Tx_CoS!Y53 -> 423.3287475 | X109: =Dx_CoS!Z54+Tx_CoS!Z53 -> 433.7379263 | Y109: =Dx_CoS!AA54+Tx_CoS!AA53 -> 444.4119575 | Z109: =Dx_CoS!AB54+Tx_CoS!AB53 -> 455.357728 | AA109: =Dx_CoS!AC54+Tx_CoS!AC53 -> 463.7363102 | AB109: =Dx_CoS!AD54+Tx_CoS!AD53 -> 472.2690583 | AC109: =Dx_CoS!AE54+Tx_CoS!AE53 -> 480.9588089 | AD109: =Dx_CoS!AF54+Tx_CoS!AF53 -> 489.808451
B110: Depreciation | P110: =Dx_CoS!R55+Tx_CoS!R54 -> 374.4194617 | Q110: =Dx_CoS!S55+Tx_CoS!S54 -> 406.0296102 | R110: =Dx_CoS!T55+Tx_CoS!T54 -> 424.4734837 | S110: =Dx_CoS!U55+Tx_CoS!U54 -> 428.5904268 | T110: =Dx_CoS!V55+Tx_CoS!V54 -> 432.2178347 | U110: =Dx_CoS!W55+Tx_CoS!W54 -> 449.4219199 | V110: =Dx_CoS!X55+Tx_CoS!X54 -> 460.0044181 | W110: =Dx_CoS!Y55+Tx_CoS!Y54 -> 487.7348281 | X110: =Dx_CoS!Z55+Tx_CoS!Z54 -> 513.4544298 | Y110: =Dx_CoS!AA55+Tx_CoS!AA54 -> 537.3722703 | Z110: =Dx_CoS!AB55+Tx_CoS!AB54 -> 554.9490212 | AA110: =Dx_CoS!AC55+Tx_CoS!AC54 -> 583.3091637 | AB110: =Dx_CoS!AD55+Tx_CoS!AD54 -> 605.0847022 | AC110: =Dx_CoS!AE55+Tx_CoS!AE54 -> 632.944043 | AD110: =Dx_CoS!AF55+Tx_CoS!AF54 -> 655.0059185
B111: Redundant Assets/Accelerated Depreciation | P111: =Dx_CoS!R57+Tx_CoS!R56 -> 4.449838071 | Q111: =Dx_CoS!S57+Tx_CoS!S56 -> 7.155196936 | R111: =Dx_CoS!T57+Tx_CoS!T56 -> 4.613248883 | S111: =Dx_CoS!U57+Tx_CoS!U56 -> 0 | T111: =Dx_CoS!V57+Tx_CoS!V56 -> 0 | U111: =Dx_CoS!W57+Tx_CoS!W56 -> 0 | V111: =Dx_CoS!X57+Tx_CoS!X56 -> 0 | W111: =Dx_CoS!Y57+Tx_CoS!Y56 -> 0 | X111: =Dx_CoS!Z57+Tx_CoS!Z56 -> 0 | Y111: =Dx_CoS!AA57+Tx_CoS!AA56 -> 0 | Z111: =Dx_CoS!AB57+Tx_CoS!AB56 -> 0 | AA111: =Dx_CoS!AC57+Tx_CoS!AC56 -> 0 | AB111: =Dx_CoS!AD57+Tx_CoS!AD56 -> 0 | AC111: =Dx_CoS!AE57+Tx_CoS!AE56 -> 0 | AD111: =Dx_CoS!AF57+Tx_CoS!AF56 -> 0
B112: Deferred Revenue Recovery | P112: =Dx_CoS!R58+Tx_CoS!R57 -> 40.73445058 | Q112: =Dx_CoS!S58+Tx_CoS!S57 -> 41.48396447 | R112: =Dx_CoS!T58+Tx_CoS!T57 -> 42.24726941 | S112: =Dx_CoS!U58+Tx_CoS!U57 -> 43.02461917 | T112: =Dx_CoS!V58+Tx_CoS!V57 -> 43.81627216 | U112: =Dx_CoS!W58+Tx_CoS!W57 -> 44.62249157 | V112: =Dx_CoS!X58+Tx_CoS!X57 -> 45.44354542 | W112: =Dx_CoS!Y58+Tx_CoS!Y57 -> 46.27970665 | X112: =Dx_CoS!Z58+Tx_CoS!Z57 -> 47.13125326 | Y112: =Dx_CoS!AA58+Tx_CoS!AA57 -> 47.99846832 | Z112: =Dx_CoS!AB58+Tx_CoS!AB57 -> 48.88164013 | AA112: =Dx_CoS!AC58+Tx_CoS!AC57 -> 49.78106231 | AB112: =Dx_CoS!AD58+Tx_CoS!AD57 -> 50.69703386 | AC112: =Dx_CoS!AE58+Tx_CoS!AE57 -> 51.62985928 | AD112: =Dx_CoS!AF58+Tx_CoS!AF57 -> 52.57984869
B113: Tax costs due to capital contributions and gifted assets | P113: =Dx_CoS!R59+Tx_CoS!R58 -> 0 | Q113: =Dx_CoS!S59+Tx_CoS!S58 -> 0 | R113: =Dx_CoS!T59+Tx_CoS!T58 -> 0 | S113: =Dx_CoS!U59+Tx_CoS!U58 -> 0 | T113: =Dx_CoS!V59+Tx_CoS!V58 -> 0 | U113: =Dx_CoS!W59+Tx_CoS!W58 -> 0 | V113: =Dx_CoS!X59+Tx_CoS!X58 -> 0 | W113: =Dx_CoS!Y59+Tx_CoS!Y58 -> 0 | X113: =Dx_CoS!Z59+Tx_CoS!Z58 -> 0 | Y113: =Dx_CoS!AA59+Tx_CoS!AA58 -> 0 | Z113: =Dx_CoS!AB59+Tx_CoS!AB58 -> 0 | AA113: =Dx_CoS!AC59+Tx_CoS!AC58 -> 0 | AB113: =Dx_CoS!AD59+Tx_CoS!AD58 -> 0 | AC113: =Dx_CoS!AE59+Tx_CoS!AE58 -> 0 | AD113: =Dx_CoS!AF59+Tx_CoS!AF58 -> 0
B114: Tax Payable | P114: =SUM(Dx_CoS!R60:R61)+SUM(Tx_CoS!R59:R60) -> 88.41163381 | Q114: =SUM(Dx_CoS!S60:S61)+SUM(Tx_CoS!S59:S60) -> 43.4051859 | R114: =SUM(Dx_CoS!T60:T61)+SUM(Tx_CoS!T59:T60) -> 42.53847488 | S114: =SUM(Dx_CoS!U60:U61)+SUM(Tx_CoS!U59:U60) -> 37.01764734 | T114: =SUM(Dx_CoS!V60:V61)+SUM(Tx_CoS!V59:V60) -> 45.220499 | U114: =SUM(Dx_CoS!W60:W61)+SUM(Tx_CoS!W59:W60) -> 34.45928709 | V114: =SUM(Dx_CoS!X60:X61)+SUM(Tx_CoS!X59:X60) -> 33.40088605 | W114: =SUM(Dx_CoS!Y60:Y61)+SUM(Tx_CoS!Y59:Y60) -> 35.13959319 | X114: =SUM(Dx_CoS!Z60:Z61)+SUM(Tx_CoS!Z59:Z60) -> 36.43347982 | Y114: =SUM(Dx_CoS!AA60:AA61)+SUM(Tx_CoS!AA59:AA60) -> 38.90742535 | Z114: =SUM(Dx_CoS!AB60:AB61)+SUM(Tx_CoS!AB59:AB60) -> 39.16973611 | AA114: =SUM(Dx_CoS!AC60:AC61)+SUM(Tx_CoS!AC59:AC60) -> 43.89908092 | AB114: =SUM(Dx_CoS!AD60:AD61)+SUM(Tx_CoS!AD59:AD60) -> 46.42575553 | AC114: =SUM(Dx_CoS!AE60:AE61)+SUM(Tx_CoS!AE59:AE60) -> 50.55495813 | AD114: =SUM(Dx_CoS!AF60:AF61)+SUM(Tx_CoS!AF59:AF60) -> 52.5280178
B115: Tariff Equalisation | P115: =Dx_CoS!R62 -> 167 | Q115: =Dx_CoS!S62 -> 198 | R115: =Dx_CoS!T62 -> 162 | S115: =Dx_CoS!U62 -> 157 | T115: =Dx_CoS!V62 -> 161 | U115: =Dx_CoS!W62 -> 161 | V115: =Dx_CoS!X62 -> 161 | W115: =Dx_CoS!Y62 -> 161 | X115: =Dx_CoS!Z62 -> 161 | Y115: =Dx_CoS!AA62 -> 161 | Z115: =Dx_CoS!AB62 -> 161 | AA115: =Dx_CoS!AC62 -> 161 | AB115: =Dx_CoS!AD62 -> 161 | AC115: =Dx_CoS!AE62 -> 161 | AD115: =Dx_CoS!AF62 -> 161
B116: Return on Assets | P116: =Dx_CoS!R63+Dx_CoS!R56+Tx_CoS!R61+Tx_CoS!R55 -> 358.6266589 | Q116: =Dx_CoS!S63+Dx_CoS!S56+Tx_CoS!S61+Tx_CoS!S55 -> 374.424443 | R116: =Dx_CoS!T63+Dx_CoS!T56+Tx_CoS!T61+Tx_CoS!T55 -> 392.0705951 | S116: =Dx_CoS!U63+Dx_CoS!U56+Tx_CoS!U61+Tx_CoS!U55 -> 411.0970826 | T116: =Dx_CoS!V63+Dx_CoS!V56+Tx_CoS!V61+Tx_CoS!V55 -> 424.0158809 | U116: =Dx_CoS!W63+Dx_CoS!W56+Tx_CoS!W61+Tx_CoS!W55 -> 437.435061 | V116: =Dx_CoS!X63+Dx_CoS!X56+Tx_CoS!X61+Tx_CoS!X55 -> 456.1882417 | W116: =Dx_CoS!Y63+Dx_CoS!Y56+Tx_CoS!Y61+Tx_CoS!Y55 -> 477.1909574 | X116: =Dx_CoS!Z63+Dx_CoS!Z56+Tx_CoS!Z61+Tx_CoS!Z55 -> 495.3450704 | Y116: =Dx_CoS!AA63+Dx_CoS!AA56+Tx_CoS!AA61+Tx_CoS!AA55 -> 512.2254563 | Z116: =Dx_CoS!AB63+Dx_CoS!AB56+Tx_CoS!AB61+Tx_CoS!AB55 -> 532.1716321 | AA116: =Dx_CoS!AC63+Dx_CoS!AC56+Tx_CoS!AC61+Tx_CoS!AC55 -> 550.1250639 | AB116: =Dx_CoS!AD63+Dx_CoS!AD56+Tx_CoS!AD61+Tx_CoS!AD55 -> 567.828268 | AC116: =Dx_CoS!AE63+Dx_CoS!AE56+Tx_CoS!AE61+Tx_CoS!AE55 -> 585.5520862 | AD116: =Dx_CoS!AF63+Dx_CoS!AF56+Tx_CoS!AF61+Tx_CoS!AF55 -> 603.0624618
B117: Return on Working Capital | P117: =Dx_CoS!R66+Tx_CoS!R64 -> 8.045996347 | Q117: =Dx_CoS!S66+Tx_CoS!S64 -> 8.197821 | R117: =Dx_CoS!T66+Tx_CoS!T64 -> 8.152430783 | S117: =Dx_CoS!U66+Tx_CoS!U64 -> 8.285023918 | T117: =Dx_CoS!V66+Tx_CoS!V64 -> 8.845120562 | U117: =Dx_CoS!W66+Tx_CoS!W64 -> 9.265857243 | V117: =Dx_CoS!X66+Tx_CoS!X64 -> 8.870748008 | W117: =Dx_CoS!Y66+Tx_CoS!Y64 -> 8.649525099 | X117: =Dx_CoS!Z66+Tx_CoS!Z64 -> 8.691662494 | Y117: =Dx_CoS!AA66+Tx_CoS!AA64 -> 8.664804577 | Z117: =Dx_CoS!AB66+Tx_CoS!AB64 -> 8.460719884 | AA117: =Dx_CoS!AC66+Tx_CoS!AC64 -> 9.111723191 | AB117: =Dx_CoS!AD66+Tx_CoS!AD64 -> 9.750552758 | AC117: =Dx_CoS!AE66+Tx_CoS!AE64 -> 10.40911376 | AD117: =Dx_CoS!AF66+Tx_CoS!AF64 -> 11.11021666
B118: Total | P118: =SUM(P109:P117) -> 1409.098195 | Q118: =SUM(Q109:Q117) -> 1448.092427 | R118: 1451.873365 | S118: 1474.847785 | T118: 1506.051369 | U118: 1539.482895 | V118: 1578.08555 | W118: 1639.323358 | X118: 1695.793822 | Y118: 1750.580382 | Z118: 1799.990477 | AA118: 1860.962404 | AB118: 1913.055371 | AC118: 1973.048869 | AD118: 2025.094915
B120: Building block percentage breakdown | P120: AA4 | U120: AA5 | Z120: AA6
B121: Operating expenditure | P121: =SUM(P109:T109)/SUM(P118:T118) -> 0.2597205135 | U121: =SUM(U109:Y109)/SUM(U118:Y118) -> 0.2581818776 | Z121: =SUM(Z109:AD109)/SUM(Z118:AD118) -> 0.2467710863
B122: Depreciation | P122: =SUM(P110:T111)/SUM(P118:T118) -> 0.2855911698 | U122: =SUM(U110:Y111)/SUM(U118:Y118) -> 0.2984162483 | Z122: =SUM(Z110:AD110)/SUM(Z118:AD118) -> 0.3166783015
B123: Deferred Revenue Recovery | P123: =SUM(P112:T112)/SUM(P118:T118) -> 0.02898595942 | U123: =SUM(U112:Y112)/SUM(U118:Y118) -> 0.02821747643 | Z123: =SUM(Z112:AD112)/SUM(Z118:AD118) -> 0.0264903277
B124: Tax | P124: =SUM(P113:T114)/SUM(P118:T118) -> 0.03519818084 | U124: =SUM(U113:Y114)/SUM(U118:Y118) -> 0.02174020339 | Z124: =SUM(Z113:AD114)/SUM(Z118:AD118) -> 0.02429731032
B125: Tariff Equalisation | P125: =SUM(P115:T115)/SUM(P118:T118) -> 0.1159127946 | U125: =SUM(U115:Y115)/SUM(U118:Y118) -> 0.09813164649 | Z125: =SUM(Z115:AD115)/SUM(Z118:AD118) -> 0.08409812098
B126: Return on Assets | P126: =SUM(P116:T116)/SUM(P118:T118) -> 0.268895003 | U126: =SUM(U116:Y116)/SUM(U118:Y118) -> 0.2899314474 | Z126: =SUM(Z116:AD116)/SUM(Z118:AD118) -> 0.2965623092
B127: Return on Working Capital | P127: =SUM(P117:T117)/SUM(P118:T118) -> 0.005696378954 | U127: =SUM(U117:Y117)/SUM(U118:Y118) -> 0.00538110033 | Z127: =SUM(Z117:AD117)/SUM(Z118:AD118) -> 0.005102543928
B128: Total | P128: =SUM(P121:P127) -> 1 | U128: =SUM(U121:U127) -> 1 | Z128: =SUM(Z121:Z127) -> 1
B130: Summary for Exec summary [$M nominal] | K130: AA3 - real as at 30 June 2012 [from AA3 model] | P130: AA4 | U130: AA5 | Z130: AA6
B131: Operating costs | K131: 452.3542711 | L131: 455.0458134 | M131: 451.3757453 | N131: 448.9798898 | O131: 460.4900327 | P131: =P109 -> 367.4101553 | Q131: 369.3962051 | R131: 375.7778627 | S131: 389.8329853 | T131: 390.9357617
B132: Depreciation | K132: 279.3585701 | L132: 308.0042228 | M132: 341.0100794 | N132: 351.7305378 | O132: 372.7658477 | P132: 374.4194617 | Q132: 406.0296102 | R132: 424.4734837 | S132: 428.5904268 | T132: 432.2178347
B133: Redundant assets | K133: 3.445294017 | L133: 0.46210429 | M133: 0 | N133: 0 | O133: 0
B134: Deferred revenue | K134: 34.47442462 | L134: 34.47442462 | M134: 34.47442462 | N134: 34.47442462 | O134: 34.47442462 | P134: =P112 -> 40.73445058 | Q134: =Q112 -> 41.48396447 | R134: =R112 -> 42.24726941 | S134: =S112 -> 43.02461917 | T134: =T112 -> 43.81627216
B135: Accelerated deferred revenue recovery | K135: 0 | L135: 0 | M135: 0 | N135: 0 | O135: 0 | P135: =Dx_CoS!R70 -> 0 | Q135: =Dx_CoS!S70 -> 0 | R135: =Dx_CoS!T70 -> 0 | S135: =Dx_CoS!U70 -> 0 | T135: =Dx_CoS!V70 -> 0 | U135: Functionality disabled as part of ERA Draft Decision
B136: Tariff equalisation contribution (TEC) | K136: 150.8325171 | L136: 200.490963 | M136: 208.5814817 | N136: 168.4023398 | O136: 164.9386286 | P136: =P115 -> 167 | Q136: 198 | R136: 162 | S136: 157 | T136: 161
B137: Return on assets | K137: 230.9531596 | L137: 252.5782484 | M137: 279.0904171 | N137: 299.0943503 | O137: 318.3950808 | P137: 358.6266589 | Q137: 374.424443 | R137: 392.0705951 | S137: 411.0970826 | T137: 424.0158809
B138: Return on working capital | K138: 2.557561852 | L138: 3.856115031 | M138: 3.25668832 | N138: 4.029076031 | O138: 4.274698425 | P138: 8.045996347 | Q138: 8.197821 | R138: 8.152430783 | S138: 8.285023918 | T138: 8.845120562
B139: Tax | K139: 76.74196957 | L139: 23.92926531 | M139: 38.65853251 | N139: 49.46141635 | O139: 53.67791554 | P139: =P114 -> 88.41163381 | Q139: =Q114 -> 43.4051859 | R139: =R114 -> 42.53847488 | S139: =S114 -> 37.01764734 | T139: =T114 -> 45.220499
B140: Service standard adjustment mechanism | K140: =24.5194088238535+6.13168062563669 -> 30.65108945 | P140: =Dx_CoS!R77+Tx_CoS!R73 -> 258.7378874
B141: Investment adjustment mechanism | K141: =1.92663175788133-47.6166345371062 -> -45.69000278 | P141: =Dx_CoS!R76+Tx_CoS!R72 -> -43.74520956
B142: Gain share mechanism revenue adjustment | K142: =0+0 -> 0 | L142: =0+0 -> 0 | M142: 0 | N142: 0 | O142: 0 | P142: =Dx_CoS!R81+Tx_CoS!R77 -> 36.65009122 | Q142: =Dx_CoS!S81+Tx_CoS!S77 -> 39.99346322 | R142: =Dx_CoS!T81+Tx_CoS!T77 -> 40.72934295 | S142: =Dx_CoS!U81+Tx_CoS!U77 -> 31.87782902 | T142: =Dx_CoS!V81+Tx_CoS!V77 -> 75.924838
B143: Uncollected revenue from 2016/17 (k-factor) | K143: =49.107799994588+26.4864121893986 -> 75.59421218 | P143: =Dx_CoS!R82+Tx_CoS!R78 -> 38.32460988
B144: Other adjustments | K144: =0+0 -> 0 | L144: 0 | M144: 0 | N144: 0 | O144: 0 | P144: =SUM(Dx_CoS!R78:R80)+SUM(Tx_CoS!R74:R76) -> 8.901101156
B145: Total costs | K145: =SUM(K131:K144) -> 1291.273067 | L145: 1278.841157 | M145: 1356.447369 | N145: 1356.172035 | O145: 1409.016628 | P145: 1703.516837 | Q145: 1480.930693 | R145: 1487.98946 | S145: 1506.725614 | T145: 1581.976207
B146: Less TEC | K146: =K136 -> 150.8325171 | L146: 200.490963 | M146: 208.5814817 | N146: 168.4023398 | O146: 164.9386286 | P146: 167 | Q146: 198 | R146: 162 | S146: 157 | T146: 161
B147: Annual revenue cap | K147: =K145-K146 -> 1140.44055 | L147: 1078.350194 | M147: 1147.865887 | N147: 1187.769695 | O147: 1244.078 | P147: 1536.516837 | Q147: 1282.930693 | R147: 1325.98946 | S147: 1349.725614 | T147: 1420.976207
B149: Summary for Exec summary [$M real as at 30 June 2017] | P149: AA4 | U149: AA3 | V149: AA4 | W149: % | Z149: AA6
B150: Operating costs | K150: =K131/Dx_Inputs!$J$32 -> 498.7611335 | L150: =L131/Dx_Inputs!$J$32 -> 501.7288003 | M150: =M131/Dx_Inputs!$J$32 -> 497.6822212 | N150: =N131/Dx_Inputs!$J$32 -> 495.0405757 | O150: =O131/Dx_Inputs!$J$32 -> 507.7315401 | P150: =P131/Dx_Inputs!P$32 -> 360.7719514 | Q150: =Q131/Dx_Inputs!Q$32 -> 356.1686156 | R150: =R131/Dx_Inputs!R$32 -> 355.7754856 | S150: =S131/Dx_Inputs!S$32 -> 362.4140459 | T150: =T131/Dx_Inputs!T$32 -> 356.872799 | U150: =SUM(K150:O150) -> 2500.944271 | V150: =SUM(P150:T150) -> 1792.002897 | W150: =V150/U150-1 -> -0.2834694806 | X150: =V150/$V$165 -> 0.2436670512
B151: Depreciation | K151: =K132/Dx_Inputs!$J$32 -> 308.0178656 | L151: =L132/Dx_Inputs!$J$32 -> 339.6022656 | M151: =M132/Dx_Inputs!$J$32 -> 375.9941812 | N151: =N132/Dx_Inputs!$J$32 -> 387.8144475 | O151: =O132/Dx_Inputs!$J$32 -> 411.0077624 | P151: =P132/Dx_Inputs!P$32 -> 367.6546168 | Q151: =Q132/Dx_Inputs!Q$32 -> 391.4902269 | R151: =R132/Dx_Inputs!R$32 -> 401.8790748 | S151: =S132/Dx_Inputs!S$32 -> 398.4454792 | T151: =T132/Dx_Inputs!T$32 -> 394.5578879 | U151: =SUM(K151:O152) -> 1826.744779 | V151: =SUM(P151:T151) -> 1954.027286 | W151: =V151/U151-1 -> 0.06967722464 | X151: =V151/$V$165 -> 0.2656982683
B152: Redundant assets | K152: =K133/Dx_Inputs!$J$32 -> 3.798745495 | L152: =L133/Dx_Inputs!$J$32 -> 0.5095114034 | M152: =M133/Dx_Inputs!$J$32 -> 0 | N152: =N133/Dx_Inputs!$J$32 -> 0 | O152: =O133/Dx_Inputs!$J$32 -> 0 | X152: 0
B153: Deferred revenue | K153: =K134/Dx_Inputs!$J$32 -> 38.01114348 | L153: =L134/Dx_Inputs!$J$32 -> 38.01114348 | M153: =M134/Dx_Inputs!$J$32 -> 38.01114348 | N153: =N134/Dx_Inputs!$J$32 -> 38.01114348 | O153: =O134/Dx_Inputs!$J$32 -> 38.01114348 | P153: =P134/Dx_Inputs!P$32 -> 39.99847857 | Q153: =Q134/Dx_Inputs!Q$32 -> 39.99847857 | R153: =R134/Dx_Inputs!R$32 -> 39.99847857 | S153: =S134/Dx_Inputs!S$32 -> 39.99847857 | T153: =T134/Dx_Inputs!T$32 -> 39.99847857 | U153: =SUM(K153:O153) -> 190.0557174 | V153: =SUM(P153:T153) -> 199.9923929 | W153: 0.05228296007 | X153: 0.02719390504
B154: Accelerated deferred revenue recovery | K154: =K135/Dx_Inputs!$J$32 -> 0 | L154: =L135/Dx_Inputs!$J$32 -> 0 | M154: =M135/Dx_Inputs!$J$32 -> 0 | N154: =N135/Dx_Inputs!$J$32 -> 0 | O154: =O135/Dx_Inputs!$J$32 -> 0 | P154: =P135/Dx_Inputs!P$32 -> 0 | Q154: =Q135/Dx_Inputs!Q$32 -> 0 | R154: =R135/Dx_Inputs!R$32 -> 0 | S154: =S135/Dx_Inputs!S$32 -> 0 | T154: =T135/Dx_Inputs!T$32 -> 0 | U154: 0 | V154: =SUM(P154:T154) -> 0 | X154: 0
B155: Total deferred revenue | K155: =K153+K154 -> 38.01114348 | L155: 38.01114348 | M155: 38.01114348 | N155: 38.01114348 | O155: 38.01114348 | P155: 39.99847857 | Q155: 39.99847857 | R155: 39.99847857 | S155: 39.99847857 | T155: 39.99847857 | U155: 190.0557174 | V155: =V153+V154 -> 199.9923929 | W155: 0.05228296007 | X155: 0.02719390504
B156: Tariff equalisation contribution (TEC) | K156: =K136/Dx_Inputs!$J$32 -> 166.306371 | L156: =L136/Dx_Inputs!$J$32 -> 221.059259 | M156: =M136/Dx_Inputs!$J$32 -> 229.9797811 | N156: =N136/Dx_Inputs!$J$32 -> 185.6786755 | O156: =O136/Dx_Inputs!$J$32 -> 181.8596234 | P156: =P136/Dx_Inputs!P$32 -> 163.982718 | Q156: =Q136/Dx_Inputs!Q$32 -> 190.9098819 | R156: =R136/Dx_Inputs!R$32 -> 153.3768601 | S156: =S136/Dx_Inputs!S$32 -> 145.9573904 | T156: =T136/Dx_Inputs!T$32 -> 146.9717694 | U156: 984.88371 | V156: =SUM(P156:T156) -> 801.1986197 | W156: -0.186504344 | X156: 0.1089427396
B157: Return on assets | K157: =K137/Dx_Inputs!$J$32 -> 254.6465614 | L157: =L137/Dx_Inputs!$J$32 -> 278.4901603 | M157: =M137/Dx_Inputs!$J$32 -> 307.7222029 | N157: =N137/Dx_Inputs!$J$32 -> 329.7783324 | O157: =O137/Dx_Inputs!$J$32 -> 351.059118 | P157: =P137/Dx_Inputs!P$32 -> 352.1471513 | Q157: =Q137/Dx_Inputs!Q$32 -> 361.016799 | R157: =R137/Dx_Inputs!R$32 -> 371.2009678 | S157: =S137/Dx_Inputs!S$32 -> 382.182531 | T157: =T137/Dx_Inputs!T$32 -> 387.0705856 | U157: 1521.696375 | V157: 1853.618035 | W157: 0.2181260764 | X157: 0.2520451508
B158: Return on working capital | K158: =K138/Dx_Inputs!$J$32 -> 2.819941205 | L158: =L138/Dx_Inputs!$J$32 -> 4.251712489 | M158: =M138/Dx_Inputs!$J$32 -> 3.590790807 | N158: =N138/Dx_Inputs!$J$32 -> 4.442417496 | O158: =O138/Dx_Inputs!$J$32 -> 4.713238204 | P158: =P138/Dx_Inputs!P$32 -> 7.900624849 | Q158: =Q138/Dx_Inputs!Q$32 -> 7.904267874 | R158: =R138/Dx_Inputs!R$32 -> 7.718482934 | S158: =S138/Dx_Inputs!S$32 -> 7.702295989 | T158: =T138/Dx_Inputs!T$32 -> 8.074428695 | U158: 19.8181002 | V158: 39.30010034 | W158: 0.9830407528 | X158: 0.00534381924
B159: Tax | K159: =K139/Dx_Inputs!$J$32 -> 84.61490071 | L159: =L139/Dx_Inputs!$J$32 -> 26.38416005 | M159: =M139/Dx_Inputs!$J$32 -> 42.62449749 | N159: =N139/Dx_Inputs!$J$32 -> 54.53564532 | O159: =O139/Dx_Inputs!$J$32 -> 59.18471364 | P159: =P139/Dx_Inputs!P$32 -> 86.81425158 | Q159: =Q139/Dx_Inputs!Q$32 -> 41.85090361 | R159: =R139/Dx_Inputs!R$32 -> 40.27418339 | S159: =S139/Dx_Inputs!S$32 -> 34.41400766 | T159: =T139/Dx_Inputs!T$32 -> 41.2803525 | U159: 267.3439172 | V159: 244.6336987 | W159: -0.0849475788 | X159: 0.03326399309
B160: Service standard adjustment mechanism | K160: =K140/Dx_Inputs!$J$32 -> 33.79557373 | L160: =L140/Dx_Inputs!$J$32 -> 0 | M160: =M140/Dx_Inputs!$J$32 -> 0 | N160: =N140/Dx_Inputs!$J$32 -> 0 | O160: =O140/Dx_Inputs!$J$32 -> 0 | P160: =P140/Dx_Inputs!P$32 -> 254.0631259 | Q160: =Q140/Dx_Inputs!Q$32 -> 0 | R160: =R140/Dx_Inputs!R$32 -> 0 | S160: =S140/Dx_Inputs!S$32 -> 0 | T160: =T140/Dx_Inputs!T$32 -> 0 | U160: 33.79557373 | V160: 254.0631259 | W160: 6.517645002 | X160: 0.03454615659
B161: Investment adjustment mechanism | K161: =K141/Dx_Inputs!$J$32 -> -50.37732378 | L161: =L141/Dx_Inputs!$J$32 -> 0 | M161: =M141/Dx_Inputs!$J$32 -> 0 | N161: =N141/Dx_Inputs!$J$32 -> 0 | O161: =O141/Dx_Inputs!$J$32 -> 0 | P161: =P141/Dx_Inputs!P$32 -> -42.95484049 | Q161: =Q141/Dx_Inputs!Q$32 -> 0 | R161: =R141/Dx_Inputs!R$32 -> 0 | S161: =S141/Dx_Inputs!S$32 -> 0 | T161: =T141/Dx_Inputs!T$32 -> 0 | U161: -50.37732378 | V161: -42.95484049 | W161: -0.1473377848 | X161: -0.005840771425
B162: Gain share mechanism revenue adjustment | K162: =K142/Dx_Inputs!$J$32 -> 0 | L162: =L142/Dx_Inputs!$J$32 -> 0 | M162: =M142/Dx_Inputs!$J$32 -> 0 | N162: =N142/Dx_Inputs!$J$32 -> 0 | O162: =O142/Dx_Inputs!$J$32 -> 0 | P162: =P142/Dx_Inputs!P$32 -> 35.98791361 | Q162: =Q142/Dx_Inputs!Q$32 -> 38.56135021 | R162: =R142/Dx_Inputs!R$32 -> 38.56135021 | S162: =S142/Dx_Inputs!S$32 -> 29.63569894 | T162: =T142/Dx_Inputs!T$32 -> 69.30936512 | U162: 0 | V162: =SUM(P162:T162) -> 212.0556781 | X162: 0.0288342066
B163: Uncollected revenue from 2016/17 (k-factor) | K163: =K143/Dx_Inputs!$J$32 -> 83.34939531 | L163: =L143/Dx_Inputs!$J$32 -> 0 | M163: =M143/Dx_Inputs!$J$32 -> 0 | N163: =N143/Dx_Inputs!$J$32 -> 0 | O163: =O143/Dx_Inputs!$J$32 -> 0 | P163: =P143/Dx_Inputs!P$32 -> 37.63217781 | Q163: =Q143/Dx_Inputs!Q$32 -> 0 | R163: =R143/Dx_Inputs!R$32 -> 0 | S163: =S143/Dx_Inputs!S$32 -> 0 | T163: =T143/Dx_Inputs!T$32 -> 0 | U163: 83.34939531 | V163: 37.63217781 | W163: -0.5485008899 | X163: 0.005117023979
B164: Other adjustments | K164: =K144/Dx_Inputs!$J$32 -> 0 | L164: =L144/Dx_Inputs!$J$32 -> 0 | M164: =M144/Dx_Inputs!$J$32 -> 0 | N164: =N144/Dx_Inputs!$J$32 -> 0 | O164: =O144/Dx_Inputs!$J$32 -> 0 | P164: =P144/Dx_Inputs!P$32 -> 8.740280004 | Q164: =Q144/Dx_Inputs!Q$32 -> 0 | R164: =R144/Dx_Inputs!R$32 -> 0 | S164: =S144/Dx_Inputs!S$32 -> 0 | T164: =T144/Dx_Inputs!T$32 -> 0 | U164: 0 | V164: 8.740280004 | X164: 0.001188456926
B165: Total costs | K165: =K145/Dx_Inputs!$J$32 -> 1423.744308 | L165: =L145/Dx_Inputs!$J$32 -> 1410.037013 | M165: =M145/Dx_Inputs!$J$32 -> 1495.604818 | N165: =N145/Dx_Inputs!$J$32 -> 1495.301237 | O165: =O145/Dx_Inputs!$J$32 -> 1553.567139 | P165: =P145/Dx_Inputs!P$32 -> 1672.738449 | Q165: =Q145/Dx_Inputs!Q$32 -> 1427.900524 | R165: =R145/Dx_Inputs!R$32 -> 1408.784883 | S165: =S145/Dx_Inputs!S$32 -> 1400.749928 | T165: =T145/Dx_Inputs!T$32 -> 1444.135667 | U165: 7378.254515 | V165: =SUM(P165:T165) -> 7354.309451 | W165: -0.003245356243 | X165: 1
B166: Less TEC | K166: =K146/Dx_Inputs!$J$32 -> 166.306371 | L166: =L146/Dx_Inputs!$J$32 -> 221.059259 | M166: =M146/Dx_Inputs!$J$32 -> 229.9797811 | N166: =N146/Dx_Inputs!$J$32 -> 185.6786755 | O166: =O146/Dx_Inputs!$J$32 -> 181.8596234 | P166: =P146/Dx_Inputs!P$32 -> 163.982718 | Q166: =Q146/Dx_Inputs!Q$32 -> 190.9098819 | R166: =R146/Dx_Inputs!R$32 -> 153.3768601 | S166: =S146/Dx_Inputs!S$32 -> 145.9573904 | T166: =T146/Dx_Inputs!T$32 -> 146.9717694 | U166: 984.88371 | V166: 801.1986197 | W166: -0.186504344
B167: Annual revenue cap | K167: =K147/Dx_Inputs!$J$32 -> 1257.437937 | L167: =L147/Dx_Inputs!$J$32 -> 1188.977754 | M167: =M147/Dx_Inputs!$J$32 -> 1265.625037 | N167: =N147/Dx_Inputs!$J$32 -> 1309.622562 | O167: =O147/Dx_Inputs!$J$32 -> 1371.707516 | P167: =P147/Dx_Inputs!P$32 -> 1508.755731 | Q167: =Q147/Dx_Inputs!Q$32 -> 1236.990642 | R167: =R147/Dx_Inputs!R$32 -> 1255.408023 | S167: =S147/Dx_Inputs!S$32 -> 1254.792537 | T167: =T147/Dx_Inputs!T$32 -> 1297.163897 | U167: 6393.370805 | V167: 6553.110831 | W167: 0.02498525907

Sheet Public output summary
A1: Key metrics
A2: WACC return
A3: Nominal post tax | C3: =WACC_Inputs!H30 -> 0.0586633
A5: Price path | C5: 2018 | D5: 2019 | E5: 2020 | F5: 2021 | G5: 2022
A6: =Output_Summary!B7 -> Distribution | C6: 0 | D6: =Output_Summary!E7 -> 0 | E6: =Output_Summary!F7 -> -0.01467875387 | F6: =Output_Summary!G7 -> -0.01467875387 | G6: =Output_Summary!H7 -> -0.01467875387
A7: =Output_Summary!B8 -> Transmission | C7: 0 | D7: =Output_Summary!E8 -> 0 | E7: =Output_Summary!F8 -> 0.2299083981 | F7: =Output_Summary!G8 -> 0.2299083981 | G7: =Output_Summary!H8 -> 0.2299083981
A8: Bundled | C8: 0 | D8: =Output_Summary!E9 -> 0 | E8: =Output_Summary!F9 -> 0.02350891327 | F8: =Output_Summary!G9 -> 0.03120978888 | G8: =Output_Summary!H9 -> 0.04005182056
A10: =Output_Summary!B11 -> Revenue cap [$M nominal] | C10: 2018 | D10: 2019 | E10: 2020 | F10: 2021 | G10: 2022
A11: =Output_Summary!B12 -> Distribution | C11: =Output_Summary!D12 -> 1214.430483 | D11: =Output_Summary!E12 -> 1222.523848 | E11: =Output_Summary!F12 -> 1191.2592 | F11: =Output_Summary!G12 -> 1153.869703 | G11: =Output_Summary!H12 -> 1120.404167
A12: =Output_Summary!B13 -> Transmission | C12: =Output_Summary!D13 -> 287.1362506 | D12: =Output_Summary!E13 -> 292.5585669 | E12: =Output_Summary!F13 -> 359.1072389 | F12: =Output_Summary!G13 -> 438.5120828 | G12: =Output_Summary!H13 -> 533.382337
A13: Total | C13: =Output_Summary!D14 -> 1501.566733 | D13: =Output_Summary!E14 -> 1515.082415 | E13: =Output_Summary!F14 -> 1550.366438 | F13: =Output_Summary!G14 -> 1592.381785 | G13: =Output_Summary!H14 -> 1653.786504
A15: =Output_Summary!B16 -> Energy (GWh) | C15: 2018 | D15: 2019 | E15: 2020 | F15: 2021 | G15: 2022
A16: =Output_Summary!B17 -> Distribution | C16: =Output_Summary!D17 -> 13691 | D16: =Output_Summary!E17 -> 13656 | E16: =Output_Summary!F17 -> 13505 | F16: =Output_Summary!G17 -> 13276 | G16: =Output_Summary!H17 -> 13083
A17: =Output_Summary!B18 -> Transmission | C17: =Output_Summary!D18 -> 17698 | D17: =Output_Summary!E18 -> 17663 | E17: =Output_Summary!F18 -> 17628 | F17: =Output_Summary!G18 -> 17502 | G17: =Output_Summary!H18 -> 17309

Sheet Graphs (hidden)
B2: Inflation
B3: Year ending 30 June | D3: 2006 | E3: 2007 | F3: 2008 | G3: 2009 | H3: 2010 | I3: 2011 | J3: 2012 | K3: 2013 | L3: 2014 | M3: 2015 | N3: 2016 | O3: 2017 | P3: 2018 | Q3: 2019 | R3: 2020 | S3: 2021 | T3: 2022 | U3: 2023 | V3: 2024 | W3: 2025 | X3: 2026 | Y3: 2027 | Z3: 2028 | AA3: 2029 | AB3: 2030 | AC3: 2031 | AD3: 2032
B4: Actual and Forecast Inflation
B5: June CPI | C5: =Dx_Inputs!C29 -> 148.4 | D5: =Dx_Inputs!D29 -> 154.3 | E5: =Dx_Inputs!E29 -> 157.5 | F5: =Dx_Inputs!F29 -> 164.6 | G5: =Dx_Inputs!G29 -> 167 | H5: =Dx_Inputs!H29 -> 172.1 | I5: =Dx_Inputs!I29 -> 178.3 | J5: =Dx_Inputs!J29 -> 180.4
B6: June CPI (rebased) | J6: =Dx_Inputs!J30 -> 100.4 | K6: =Dx_Inputs!K30 -> 102.8 | L6: =Dx_Inputs!L30 -> 105.9 | M6: =Dx_Inputs!M30 -> 107.5 | N6: =Dx_Inputs!N30 -> 108.6 | O6: =Dx_Inputs!O30 -> 110.7 | P6: =Dx_Inputs!P30 -> 113 | Q6: =Dx_Inputs!Q30 -> 0 | R6: =Dx_Inputs!R30 -> 0 | S6: =Dx_Inputs!S30 -> 0 | T6: =Dx_Inputs!T30 -> 0 | U6: =Dx_Inputs!U30 -> 0 | V6: =Dx_Inputs!V30 -> 0 | W6: =Dx_Inputs!W30 -> 0 | X6: =Dx_Inputs!X30 -> 0 | Y6: =Dx_Inputs!Y30 -> 0 | Z6: =Dx_Inputs!Z30 -> 0 | AA6: =Dx_Inputs!AA30 -> 0 | AB6: =Dx_Inputs!AB30 -> 0 | AC6: =Dx_Inputs!AC30 -> 0 | AD6: =Dx_Inputs!AD30 -> 0
B7: Actual & Forecast Inflation | D7: =Dx_Inputs!D31 -> 0.0397574124 | E7: =Dx_Inputs!E31 -> 0.02073882048 | F7: =Dx_Inputs!F31 -> 0.04507936508 | G7: =Dx_Inputs!G31 -> 0.01458080194 | H7: =Dx_Inputs!H31 -> 0.03053892216 | I7: =Dx_Inputs!I31 -> 0.03602556653 | J7: =Dx_Inputs!J31 -> 0.01177790241 | K7: =Dx_Inputs!K31 -> 0.02390438247 | L7: =Dx_Inputs!L31 -> 0.03015564202 | M7: =Dx_Inputs!M31 -> 0.01510859301 | N7: =Dx_Inputs!N31 -> 0.01023255814 | O7: =Dx_Inputs!O31 -> 0.01933701657 | P7: =Dx_Inputs!P31 -> 0.0184 | Q7: =Dx_Inputs!Q31 -> 0.0184 | R7: =Dx_Inputs!R31 -> 0.0184 | S7: =Dx_Inputs!S31 -> 0.0184 | T7: =Dx_Inputs!T31 -> 0.0184 | U7: =Dx_Inputs!U31 -> 0.0184 | V7: =Dx_Inputs!V31 -> 0.0184 | W7: =Dx_Inputs!W31 -> 0.0184 | X7: =Dx_Inputs!X31 -> 0.0184 | Y7: =Dx_Inputs!Y31 -> 0.0184 | Z7: =Dx_Inputs!Z31 -> 0.0184 | AA7: =Dx_Inputs!AA31 -> 0.0184 | AB7: =Dx_Inputs!AB31 -> 0.0184 | AC7: =Dx_Inputs!AC31 -> 0.0184 | AD7: =Dx_Inputs!AD31 -> 0.0184
B8: End of year Inflation factor | D8: =Dx_Inputs!D32 -> 0.7757387478 | E8: =Dx_Inputs!E32 -> 0.7918266544 | F8: =Dx_Inputs!F32 -> 0.8275216972 | G8: =Dx_Inputs!G32 -> 0.8395876272 | H8: =Dx_Inputs!H32 -> 0.8652277284 | I8: =Dx_Inputs!I32 -> 0.8963980475 | J8: =Dx_Inputs!J32 -> 0.9069557362 | K8: =Dx_Inputs!K32 -> 0.928635953 | L8: =Dx_Inputs!L32 -> 0.9566395664 | M8: =Dx_Inputs!M32 -> 0.9710930443 | N8: =Dx_Inputs!N32 -> 0.9810298103 | O8: =Dx_Inputs!O32 -> 1 | P8: =Dx_Inputs!P32 -> 1.0184 | Q8: =Dx_Inputs!Q32 -> 1.03713856 | R8: =Dx_Inputs!R32 -> 1.05622191 | S8: =Dx_Inputs!S32 -> 1.075656393 | T8: =Dx_Inputs!T32 -> 1.09544847 | U8: =Dx_Inputs!U32 -> 1.115604722 | V8: =Dx_Inputs!V32 -> 1.136131849 | W8: =Dx_Inputs!W32 -> 1.157036675 | X8: =Dx_Inputs!X32 -> 1.17832615 | Y8: =Dx_Inputs!Y32 -> 1.200007351 | Z8: =Dx_Inputs!Z32 -> 1.222087486 | AA8: =Dx_Inputs!AA32 -> 1.244573896 | AB8: =Dx_Inputs!AB32 -> 1.267474056 | AC8: =Dx_Inputs!AC32 -> 1.290795578 | AD8: =Dx_Inputs!AD32 -> 1.314546217
C11: 2013 | D11: 2014 | E11: 2015 | F11: 2016 | G11: 2017 | H11: 2018 | I11: 2019 | J11: 2020 | K11: 2021 | L11: 2022
B12: Total Raw building block | C12: [$M real as at 30 June 2012] | H12: [$M nominal]
B13: Operating expenditure | C13: 452.3542711 | D13: 455.0458134 | E13: 451.3757453 | F13: 448.9798898 | G13: 460.4900327 | H13: =Output_Summary!P109 -> 367.4101553 | I13: =Output_Summary!Q109 -> 369.3962051 | J13: =Output_Summary!R109 -> 375.7778627 | K13: =Output_Summary!S109 -> 389.8329853 | L13: =Output_Summary!T109 -> 390.9357617
B14: Depreciation | C14: 279.3585701 | D14: 308.0042228 | E14: 341.0100794 | F14: 351.7305378 | G14: 372.7658477 | H14: =Output_Summary!P110 -> 374.4194617 | I14: =Output_Summary!Q110 -> 406.0296102 | J14: =Output_Summary!R110 -> 424.4734837 | K14: =Output_Summary!S110 -> 428.5904268 | L14: =Output_Summary!T110 -> 432.2178347
B15: Redundant Assets/Accelerated Depreciation | C15: 3.445294017 | D15: 0.46210429 | E15: 0 | F15: 0 | G15: 0 | H15: =Output_Summary!P111 -> 4.449838071 | I15: =Output_Summary!Q111 -> 7.155196936 | J15: =Output_Summary!R111 -> 4.613248883 | K15: =Output_Summary!S111 -> 0 | L15: =Output_Summary!T111 -> 0
B16: Deferred Revenue Recovery | C16: 34.47442462 | D16: 34.47442462 | E16: 34.47442462 | F16: 34.47442462 | G16: 34.47442462 | H16: =Output_Summary!P112 -> 40.73445058 | I16: =Output_Summary!Q112 -> 41.48396447 | J16: =Output_Summary!R112 -> 42.24726941 | K16: =Output_Summary!S112 -> 43.02461917 | L16: =Output_Summary!T112 -> 43.81627216
B17: Tax costs due to capital contributions and gifted assets | C17: 0 | D17: 0 | E17: 0 | F17: 0 | G17: 0 | H17: =Output_Summary!P113 -> 0 | I17: =Output_Summary!Q113 -> 0 | J17: =Output_Summary!R113 -> 0 | K17: =Output_Summary!S113 -> 0 | L17: =Output_Summary!T113 -> 0
B18: Tax Payable | C18: 76.74196957 | D18: 23.92926531 | E18: 38.65853251 | F18: 49.46141635 | G18: 53.67791554 | H18: =Output_Summary!P114 -> 88.41163381 | I18: =Output_Summary!Q114 -> 43.4051859 | J18: =Output_Summary!R114 -> 42.53847488 | K18: =Output_Summary!S114 -> 37.01764734 | L18: =Output_Summary!T114 -> 45.220499
B19: Tariff Equalisation | C19: 154 | D19: 209 | E19: 136 | F19: 141 | G19: 150 | H19: =Output_Summary!P115 -> 167 | I19: =Output_Summary!Q115 -> 198 | J19: =Output_Summary!R115 -> 162 | K19: =Output_Summary!S115 -> 157 | L19: =Output_Summary!T115 -> 161
B20: Return on Assets | C20: 230.9531596 | D20: 252.5782484 | E20: 279.0904171 | F20: 299.0943503 | G20: 318.3950808 | H20: =Output_Summary!P116 -> 358.6266589 | I20: =Output_Summary!Q116 -> 374.424443 | J20: =Output_Summary!R116 -> 392.0705951 | K20: =Output_Summary!S116 -> 411.0970826 | L20: =Output_Summary!T116 -> 424.0158809
B21: Return on Working Capital | C21: 2.557561852 | D21: 3.856115031 | E21: 3.25668832 | F21: 4.029076031 | G21: 4.274698425 | H21: =Output_Summary!P117 -> 8.045996347 | I21: =Output_Summary!Q117 -> 8.197821 | J21: =Output_Summary!R117 -> 8.152430783 | K21: =Output_Summary!S117 -> 8.285023918 | L21: =Output_Summary!T117 -> 8.845120562
B22: Total | C22: =SUM(C13:C21) -> 1233.885251 | D22: 1287.350194 | E22: 1283.865887 | F22: 1328.769695 | G22: 1394.078 | H22: 1409.098195 | I22: 1448.092427 | J22: 1451.873365 | K22: 1474.847785 | L22: 1506.051369
I23: `
B24: Total Raw building block | C24: [$M real as at 30 June 2017]
B25: Operating expenditure | C25: =C13/$J$8 -> 498.7611335 | D25: 501.7288003 | E25: 497.6822212 | F25: 495.0405757 | G25: 507.7315401 | H25: =H13/P$8 -> 360.7719514 | I25: =I13/Q$8 -> 356.1686156 | J25: =J13/R$8 -> 355.7754856 | K25: =K13/S$8 -> 362.4140459 | L25: =L13/T$8 -> 356.872799
B26: Depreciation | C26: 308.0178656 | D26: 339.6022656 | E26: 375.9941812 | F26: 387.8144475 | G26: 411.0077624 | H26: 367.6546168 | I26: 391.4902269 | J26: 401.8790748 | K26: 398.4454792 | L26: 394.5578879
B27: Redundant Assets/Accelerated Depreciation | C27: 3.798745495 | D27: 0.5095114034 | E27: 0 | F27: 0 | G27: 0 | H27: 4.369440368 | I27: 6.898978798 | J27: 4.367689064 | K27: 0 | L27: 0
B28: Deferred Revenue Recovery | C28: 38.01114348 | D28: 38.01114348 | E28: 38.01114348 | F28: 38.01114348 | G28: 38.01114348 | H28: 39.99847857 | I28: 39.99847857 | J28: 39.99847857 | K28: 39.99847857 | L28: 39.99847857
B29: Tax costs due to capital contributions and gifted assets | C29: 0 | D29: 0 | E29: 0 | F29: 0 | G29: 0 | H29: 0 | I29: 0 | J29: 0 | K29: 0 | L29: 0
B30: Tax Payable | C30: 84.61490071 | D30: 26.38416005 | E30: 42.62449749 | F30: 54.53564532 | G30: 59.18471364 | H30: 86.81425158 | I30: 41.85090361 | J30: 40.27418339 | K30: 34.41400766 | L30: 41.2803525
B31: Tariff Equalisation | C31: =C19/K$8 -> 165.8346304 | D31: =D19/L$8 -> 218.4730878 | E31: =E19/M$8 -> 140.0483721 | F31: =F19/N$8 -> 143.7265193 | G31: =G19/O$8 -> 150 | H31: 163.982718 | I31: 190.9098819 | J31: 153.3768601 | K31: 145.9573904 | L31: 146.9717694
B32: Return on Assets | C32: =C20/$J$8 -> 254.6465614 | D32: 278.4901603 | E32: 307.7222029 | F32: 329.7783324 | G32: 351.059118 | H32: 352.1471513 | I32: 361.016799 | J32: 371.2009678 | K32: 382.182531 | L32: 387.0705856
B33: Return on Working Capital | C33: 2.819941205 | D33: 4.251712489 | E33: 3.590790807 | F33: 4.442417496 | G33: 4.713238204 | H33: 7.900624849 | I33: 7.904267874 | J33: 7.718482934 | K33: 7.702295989 | L33: 8.074428695
B34: Total | C34: =SUM(C25:C33) -> 1356.504922 | D34: 1407.450841 | E34: 1405.673409 | F34: 1453.349081 | G34: 1521.707516 | H34: 1383.639233 | I34: 1396.238152 | J34: 1374.591222 | K34: 1371.114229 | L34: 1374.826302
B36: Totals | C36: AA3 | D36: AA4 | E36: Delta
B37: Operating expenditure | C37: =SUM(C25:G25) -> 2500.944271 | D37: =SUM(H25:L25) -> 1792.002897 | E37: =D37-C37 -> -708.9413734
B38: Depreciation | C38: =SUM(C26:G26) -> 1822.436522 | D38: =SUM(H26:L26) -> 1954.027286 | E38: =D38-C38 -> 131.5907632
B39: Redundant Assets/Accelerated Depreciation | C39: 4.308256898 | D39: 15.63610823 | E39: 11.32785133
B40: Deferred Revenue Recovery | C40: 190.0557174 | D40: 199.9923929 | E40: 9.936675483
B41: Tax costs due to capital contributions and gifted assets | C41: 0 | D41: 0 | E41: 0
B42: Tax Payable | C42: 267.3439172 | D42: 244.6336987 | E42: -22.71021847
B43: Tariff Equalisation | C43: 818.0826096 | D43: 801.1986197 | E43: -16.88398986
B44: Return on Assets | C44: 1521.696375 | D44: 1853.618035 | E44: 331.9216597
B45: Return on Working Capital | C45: 19.8181002 | D45: 39.30010034 | E45: 19.48200014
B46: Total | C46: =SUM(C37:C45) -> 7144.685769 | D46: =SUM(D37:D45) -> 6900.409138 | E46: =SUM(E37:E45) -> -244.2766318

Sheet AAI Revised proposal (hidden)
B2: Table 1.1 - Esimated annual change in average electricity bills resulting from the revised AA4 proposal
B3: Bill movement
B4: Customer type | C4: 2018 | D4: 2019 | E4: 2020 | F4: 2021 | G4: 2022 | H4: CAGR
B5: Residential | C5: 0 | D5: 0.01495540487 | E5: 0.0150794546 | F5: 0.007363574521 | G5: 0.009654649363 | H5: 0.002732883029
B6: Small business | C6: 0 | D6: 0.03485600415 | E6: 0.02485173102 | F6: 0.02227647922 | G6: 0.0256493232 | H6: 0.01796138693
B7: All distribution customers | C7: 0 | D7: 0.02145396122 | E7: 0.01570794132 | F7: 0.01181886229 | G7: 0.01497802117 | H7: 0.006331043479
B8: All transmission customers | C8: 0 | D8: 0.1277652842 | E8: 0.127760856 | F8: 0.1219230769 | G8: 0.1175391384 | H8: 0.09392372936
B9: All customers | C9: 0 | D9: 0.02580162774 | E9: 0.02072849823 | F9: 0.01717992346 | G9: 0.02031453996 | H9: 0.01025171574
B11: Table 1.2 - AA4 average reference tariffs
B12: Price path options
C13: 2018 | D13: 2019 | E13: 2020 | F13: 2021 | G13: 2022 | H13: AA4 average
B14: Transmission | C14: =C62 -> 0 | D14: =D62 -> 0.13 | E14: 0.13 | F14: 0.13 | G14: 0.13 | H14: =AVERAGE(C14:G14) -> 0.104
B16: Table 1.3 - AA4 target revenue
B17: Target revenue
C18: WP Initial | D18: ERA DD | E18: WP Revised
B19: Transmission tariff revenue | C19: 1687.4 | D19: 1816.016438 | E19: =IF(ISBLANK(Tx_CoS!S96),(Tx_CoS!R84/Tx_CoS!R7)+(Tx_CoS!S84/Tx_CoS!S7)+(Tx_CoS!T84/Tx_CoS!T7)+(Tx_CoS!U84/Tx_CoS!U7)+(Tx_CoS!V84/Tx_CoS!V7),(Tx_CoS!R93/Tx_CoS!R7)+(Tx_CoS!S93/Tx_CoS!S7)+(Tx_CoS!T93/Tx_CoS!T7)+(Tx_CoS!U93/Tx_CoS!U7)+(Tx_CoS!V93/Tx_CoS!V7)) -> 1798.600091
B20: Distribution tariff revenue | C20: 6200.3 | D20: 5614.397126 | E20: =(Dx_CoS!R88/Dx_CoS!R7)+(Dx_CoS!S88/Dx_CoS!S7)+(Dx_CoS!T88/Dx_CoS!T7)+(Dx_CoS!U88/Dx_CoS!U7)+(Dx_CoS!V88/Dx_CoS!V7) -> 5594.578361
B21: Total | C21: =SUM(C19:C20) -> 7887.7 | D21: =SUM(D19:D20) -> 7430.413563 | E21: =SUM(E19:E20) -> 7393.178452
B23: Table 3.2 - Revised proposal forecast transmission change in average charges
B24: TRANSMISSION Revised proposal forecast change in average charges
C25: 2018 | D25: 2019 | E25: 2020 | F25: 2021 | G25: 2022
B26: Unsmoothed revenue [$M real as at 30 June 2017] | C26: =Tx_CoS!R79/Dx_Inputs!P$32 -> 324.9561559 | D26: =Tx_CoS!S79/Dx_Inputs!Q$32 -> 350.237435 | E26: =Tx_CoS!T79/Dx_Inputs!R$32 -> 359.2575741 | F26: =Tx_CoS!U79/Dx_Inputs!S$32 -> 367.438924 | G26: =Tx_CoS!V79/Dx_Inputs!T$32 -> 381.1244602
B27: Smoothed revenue [$M real as at 30 June 2017] | C27: =Tx_CoS!R93/Dx_Inputs!P$32 -> 0 | D27: =Tx_CoS!S93/Dx_Inputs!Q$32 -> 0 | E27: =Tx_CoS!T93/Dx_Inputs!R$32 -> 0 | F27: =Tx_CoS!U93/Dx_Inputs!S$32 -> 0 | G27: =Tx_CoS!V93/Dx_Inputs!T$32 -> 0
B28: Energy transported [GWh] | C28: =Tx_CoS!R86 -> 17698 | D28: =Tx_CoS!S86 -> 17663 | E28: =Tx_CoS!T86 -> 17628 | F28: =Tx_CoS!U86 -> 17502 | G28: =Tx_CoS!V86 -> 17309
B29: Average charge [$'000/MWh) | C29: =Tx_CoS!R95 -> 0 | D29: =Tx_CoS!S95 -> 0 | E29: =Tx_CoS!T95 -> 0 | F29: =Tx_CoS!U95 -> 0 | G29: =Tx_CoS!V95 -> 0
B30: Annual % change | C30: 0 | D30: =Tx_CoS!S96 -> 0 | E30: =Tx_CoS!T96 -> 0 | F30: =Tx_CoS!U96 -> 0 | G30: =Tx_CoS!V96 -> 0
B32: Table 3.3 - Revised proposal forecast distribution change in average charges
B33: DISTRIBUTION Revised proposal forecast change in average charges
C34: 2018 | D34: 2019 | E34: 2020 | F34: 2021 | G34: 2022
B35: Unsmoothed revenue [$M real as at 30 June 2017] | C35: =Dx_CoS!R83/Dx_Inputs!P$32 -> 1352.151734 | D35: =Dx_CoS!S83/Dx_Inputs!Q$32 -> 1084.562067 | E35: =Dx_CoS!T83/Dx_Inputs!R$32 -> 1053.894998 | F35: =Dx_CoS!U83/Dx_Inputs!S$32 -> 1033.311004 | G35: =Dx_CoS!V83/Dx_Inputs!T$32 -> 1063.011207
B36: Smoothed revenue [$M real as at 30 June 2017] | C36: =Dx_CoS!R88/Dx_Inputs!P$32 -> 1192.488691 | D36: =Dx_CoS!S88/Dx_Inputs!Q$32 -> 1178.746886 | E36: =Dx_CoS!T88/Dx_Inputs!R$32 -> 1127.849355 | F36: =Dx_CoS!U88/Dx_Inputs!S$32 -> 1072.71217 | G36: =Dx_CoS!V88/Dx_Inputs!T$32 -> 1022.78126
B37: Energy transported [MWh] | C37: =Dx_CoS!R90 -> 13691 | D37: =Dx_CoS!S90 -> 13656 | E37: =Dx_CoS!T90 -> 13505 | F37: =Dx_CoS!U90 -> 13276 | G37: =Dx_CoS!V90 -> 13083
B38: Average charge [$'000/MWh) | C38: =Dx_CoS!R91 -> 88.70283272 | D38: =Dx_CoS!S91 -> 89.52283596 | E38: =Dx_CoS!T91 -> 88.20875228 | F38: =Dx_CoS!U91 -> 86.91395772 | G38: =Dx_CoS!V91 -> 85.63816912
B39: Annual % change | C39: 0 | D39: =Dx_CoS!S92 -> 0.009244386085 | E39: =Dx_CoS!T92 -> -0.01467875387 | F39: =Dx_CoS!U92 -> -0.01467875387 | G39: =Dx_CoS!V92 -> -0.01467875387
B41: Table 3.4 - Transmission tariff path option 1
B42: Price path options
C43: 2018 | D43: 2019 | E43: 2020 | F43: 2021 | G43: 2022
B44: Option 1 - Equal price increase
B45: Distribution | C45: 0 | D45: 0.02996383916 | E45: 0.02996383916 | F45: 0.02996383916 | G45: 0.02996383916
B46: Transmission | C46: 0 | D46: 0.1812580816 | E46: 0.1812580816 | F46: 0.1812580816 | G46: 0.1812580816
B47: Bundled (average tariff $/MWh) | C47: 0 | D47: 0.05350344901 | E47: 0.05635801413 | F47: 0.05947876883 | G47: 0.06287129349
B49: Table 3.5 - Transmission tariff path option 2
B50: Price path options
C51: 2018 | D51: 2019 | E51: 2020 | F51: 2021 | G51: 2022
B52: Option 2 - Step change then 2.50% annual increases
B53: Distribution | C53: 0 | D53: 0.0300500984 | E53: 0.0300500984 | F53: 0.0300500984 | G53: 0.0300500984
B54: Transmission | C54: 0 | D54: 0.4966452793 | E54: 0.025 | F54: 0.025 | G54: 0.025
B55: Bundled (average tariff $/MWh) | C55: 0 | D55: 0.1026468367 | E55: 0.02898360261 | F55: 0.02898773144 | G55: 0.02899184853
B57: Table 3.6 - Transmission tariff path option 3
B58: Price path options
C59: 2018 | D59: 2019 | E59: 2020 | F59: 2021 | G59: 2022
B60: Option 3 - 13% transmission price cap and deferred revenue
B61: Distribution | C61: 0 | D61: 0.02996430973 | E61: 0.02996430973 | F61: 0.02996430973 | G61: 0.02996430973
B62: Transmission | C62: 0 | D62: 0.13 | E62: 0.13 | F62: 0.13 | G62: 0.13
B63: Bundled (average tariff $/MWh) | C63: 0 | D63: 0.04552868999 | E63: 0.04678618163 | F63: 0.04812342912 | G63: 0.04954197047
B65: Table 3.7 - Forecast TEC for the AA4 period
B66: TEC [$M nominal]
C67: 2018 | D67: 2019 | E67: 2020 | F67: 2021 | G67: 2022
B68: TEC | C68: =Dx_Inputs!P709 -> 167 | D68: =Dx_Inputs!Q709 -> 198 | E68: =Dx_Inputs!R709 -> 162 | F68: =Dx_Inputs!S709 -> 157 | G68: =Dx_Inputs!T709 -> 161
B70: Table 3.9 - AA4 transmission target revenue
B71: AA4 transmission target revenue
B72: [$M nominal] | C72: 2018 | D72: 2019 | E72: 2020 | F72: 2021 | G72: 2022 | H72: Total
B73: =Tx_CoS!B53 -> Operating expenditure | C73: =Tx_CoS!R53 -> 88.67721653 | D73: =Tx_CoS!S53 -> 88.64754374 | E73: =Tx_CoS!T53 -> 89.9510204 | F73: =Tx_CoS!U53 -> 93.06768745 | G73: =Tx_CoS!V53 -> 92.66021273 | H73: =SUM(C73:G73) -> 453.0036809
B74: =Tx_CoS!B54 -> Depreciation | C74: =Tx_CoS!R54+Tx_CoS!R55 -> 54.81374322 | D74: =Tx_CoS!S54+Tx_CoS!S55 -> 61.67385162 | E74: =Tx_CoS!T54+Tx_CoS!T55 -> 68.81068299 | F74: =Tx_CoS!U54+Tx_CoS!U55 -> 76.29426656 | G74: =Tx_CoS!V54+Tx_CoS!V55 -> 81.54154727 | H74: =SUM(C74:G74) -> 343.1340917
B75: =Tx_CoS!B56 -> Redundant Assets/Accelerated Depreciation | C75: =Tx_CoS!R56 -> 0 | D75: =Tx_CoS!S56 -> 0 | E75: =Tx_CoS!T56 -> 0 | F75: =Tx_CoS!U56 -> 0 | G75: =Tx_CoS!V56 -> 0 | H75: 0
B76: =Tx_CoS!B57 -> Deferred Revenue Recovery | C76: =Tx_CoS!R57 -> 4.527916115 | D76: =Tx_CoS!S57 -> 4.611229771 | E76: =Tx_CoS!T57 -> 4.696076399 | F76: =Tx_CoS!U57 -> 4.782484205 | G76: =Tx_CoS!V57 -> 4.870481914 | H76: 23.4881884
B77: =Tx_CoS!B59 -> Tax Payable | C77: =Tx_CoS!R59 -> 24.62212203 | D77: =Tx_CoS!S59 -> 21.36127495 | E77: =Tx_CoS!T59 -> 22.26323613 | F77: =Tx_CoS!U59 -> 22.42097082 | G77: =Tx_CoS!V59 -> 28.3618402 | H77: 119.0294441
B78: =Tx_CoS!B60 -> Less Value of Imputation Credits | C78: =Tx_CoS!R60 -> -12.31106101 | D78: =Tx_CoS!S60 -> -10.68063747 | E78: =Tx_CoS!T60 -> -11.13161806 | F78: =Tx_CoS!U60 -> -11.21048541 | G78: =Tx_CoS!V60 -> -14.1809201 | H78: -59.51472206
B79: =Tx_CoS!B61 -> Return on Assets | C79: =Tx_CoS!R61 -> 182.3624696 | D79: =Tx_CoS!S61 -> 186.5616069 | E79: =Tx_CoS!T61 -> 193.6852207 | F79: =Tx_CoS!U61 -> 200.3533356 | G79: =Tx_CoS!V61 -> 203.4852996 | H79: 966.4479323
B80: =Tx_CoS!B64 -> Return on Working Capital | C80: =Tx_CoS!R64 -> 1.073325589 | D80: =Tx_CoS!S64 -> 1.47144834 | E80: =Tx_CoS!T64 -> 1.406060058 | F80: =Tx_CoS!U64 -> 1.879089297 | G80: =Tx_CoS!V64 -> 2.541784224 | H80: 8.371707508
B81: =Tx_CoS!B72 -> IAM Revenue Adjustment | C81: =Tx_CoS!R72 -> -36.46720513 | D81: =Tx_CoS!S72 -> 0 | E81: =Tx_CoS!T72 -> 0 | F81: =Tx_CoS!U72 -> 0 | G81: =Tx_CoS!V72 -> 0 | H81: -36.46720513
B82: =Tx_CoS!B73 -> SSAM Revenue Adjustment | C82: =Tx_CoS!R73 -> 13.59273635 | D82: =Tx_CoS!S73 -> 0 | E82: =Tx_CoS!T73 -> 0 | F82: =Tx_CoS!U73 -> 0 | G82: =Tx_CoS!V73 -> 0 | H82: 13.59273635
B83: =Tx_CoS!B74 -> Unforeseen Events Revenue Adjustment | C83: =Tx_CoS!R74 -> 0 | D83: =Tx_CoS!S74 -> 0 | E83: =Tx_CoS!T74 -> 0 | F83: =Tx_CoS!U74 -> 0 | G83: =Tx_CoS!V74 -> 0 | H83: 0
B84: =Tx_CoS!B75 -> Technical Rule Change Revenue Adjustment | C84: =Tx_CoS!R75 -> 0 | D84: =Tx_CoS!S75 -> 0 | E84: =Tx_CoS!T75 -> 0 | F84: =Tx_CoS!U75 -> 0 | G84: =Tx_CoS!V75 -> 0 | H84: 0
B85: =Tx_CoS!B76 -> D-Factor Revenue Adjustment | C85: =Tx_CoS!R76 -> 0 | D85: =Tx_CoS!S76 -> 0 | E85: =Tx_CoS!T76 -> 0 | F85: =Tx_CoS!U76 -> 0 | G85: =Tx_CoS!V76 -> 0 | H85: 0
B86: =Tx_CoS!B77 -> GSM Revenue Adjustment | C86: =Tx_CoS!R77 -> 8.796021893 | D86: =Tx_CoS!S77 -> 9.598431174 | E86: =Tx_CoS!T77 -> 9.775042308 | F86: =Tx_CoS!U77 -> 7.650678965 | G86: =Tx_CoS!V77 -> 18.22196112 | H86: 54.04213546
B87: =Tx_CoS!B78 -> k-factor adjustment | C87: =Tx_CoS!R78 -> 1.248064057 | D87: =Tx_CoS!S78 -> 0 | E87: =Tx_CoS!T78 -> 0 | F87: =Tx_CoS!U78 -> 0 | G87: =Tx_CoS!V78 -> 0 | H87: 1.248064057
B88: Transmission target revenue for revenue cap services (unsmoothed) | C88: =Tx_CoS!R79 -> 330.9353492 | D88: =Tx_CoS!S79 -> 363.244749 | E88: =Tx_CoS!T79 -> 379.4557209 | F88: =Tx_CoS!U79 -> 395.2380275 | G88: =Tx_CoS!V79 -> 417.5022069 | H88: 1886.376054
B90: Table 3.10 - AA4 distribution target revenue
B91: AA4 distribution target revenue
B92: [$M nominal] | C92: 2018 | D92: 2019 | E92: 2020 | F92: 2021 | G92: 2022 | H92: Total
B93: =Dx_CoS!B54 -> Operating expenditure | C93: =Dx_CoS!R54 -> 278.7329387 | D93: =Dx_CoS!S54 -> 280.7486614 | E93: =Dx_CoS!T54 -> 285.8268423 | F93: =Dx_CoS!U54 -> 296.7652978 | G93: =Dx_CoS!V54 -> 298.275549 | H93: =SUM(C93:G93) -> 1440.349289
B94: =Dx_CoS!B55 -> Depreciation | C94: =Dx_CoS!R55+Dx_CoS!R56 -> 155.7162578 | D94: =Dx_CoS!S55+Dx_CoS!S56 -> 173.2468393 | E94: =Dx_CoS!T55+Dx_CoS!T56 -> 176.4897337 | F94: =Dx_CoS!U55+Dx_CoS!U56 -> 164.4281435 | G94: =Dx_CoS!V55+Dx_CoS!V56 -> 156.9044851 | H94: 826.7854593
B95: =Dx_CoS!B57 -> Redundant Assets/Accelerated Depreciation | C95: =Dx_CoS!R57 -> 4.449838071 | D95: =Dx_CoS!S57 -> 7.155196936 | E95: =Dx_CoS!T57 -> 4.613248883 | F95: =Dx_CoS!U57 -> 0 | G95: =Dx_CoS!V57 -> 0 | H95: 16.21828389
B96: =Dx_CoS!B58 -> Deferred Revenue Recovery | C96: =Dx_CoS!R58+Dx_CoS!R70 -> 36.20653446 | D96: =Dx_CoS!S58+Dx_CoS!S70 -> 36.8727347 | E96: =Dx_CoS!T58+Dx_CoS!T70 -> 37.55119302 | F96: =Dx_CoS!U58+Dx_CoS!U70 -> 38.24213497 | G96: =Dx_CoS!V58+Dx_CoS!V70 -> 38.94579025 | H96: 187.8183874
B97: =Dx_CoS!B60 -> Tax Payable | C97: =Dx_CoS!R60 -> 152.2011456 | D97: =Dx_CoS!S60 -> 65.44909685 | E97: =Dx_CoS!T60 -> 62.81371363 | F97: =Dx_CoS!U60 -> 51.61432387 | G97: =Dx_CoS!V60 -> 62.0791578 | H97: 394.1574377
B98: =Dx_CoS!B61 -> Less Value of Imputation Credits | C98: =Dx_CoS!R61 -> -76.10057279 | D98: =Dx_CoS!S61 -> -32.72454843 | E98: =Dx_CoS!T61 -> -31.40685682 | F98: =Dx_CoS!U61 -> -25.80716193 | G98: =Dx_CoS!V61 -> -31.0395789 | H98: -197.0787189
B99: =Dx_CoS!B62 -> Tariff Equalisation | C99: =Dx_CoS!R62 -> 167 | D99: =Dx_CoS!S62 -> 198 | E99: =Dx_CoS!T62 -> 162 | F99: =Dx_CoS!U62 -> 157 | G99: =Dx_CoS!V62 -> 161 | H99: 845
B100: =Dx_CoS!B63 -> Return on Assets | C100: =Dx_CoS!R63 -> 340.1536501 | D100: =Dx_CoS!S63 -> 358.9717555 | E100: =Dx_CoS!T63 -> 377.5584414 | F100: =Dx_CoS!U63 -> 398.6117637 | G100: =Dx_CoS!V63 -> 414.3023837 | H100: 1889.597994
B101: =Dx_CoS!B66 -> Return on Working Capital | C101: =Dx_CoS!R66 -> 6.972670757 | D101: =Dx_CoS!S66 -> 6.72637266 | E101: =Dx_CoS!T66 -> 6.746370725 | F101: =Dx_CoS!U66 -> 6.405934621 | G101: =Dx_CoS!V66 -> 6.303336339 | H101: 33.1546851
B102: =Dx_CoS!B76 -> IAM Revenue Adjustment | C102: =Dx_CoS!R76 -> -7.278004424 | D102: =Dx_CoS!S76 -> 0 | E102: =Dx_CoS!T76 -> 0 | F102: =Dx_CoS!U76 -> 0 | G102: =Dx_CoS!V76 -> 0 | H102: -7.278004424
B103: =Dx_CoS!B77 -> SSAM Revenue Adjustment | C103: =Dx_CoS!R77 -> 245.1451511 | D103: =Dx_CoS!S77 -> 0 | E103: =Dx_CoS!T77 -> 0 | F103: =Dx_CoS!U77 -> 0 | G103: =Dx_CoS!V77 -> 0 | H103: 245.1451511
B104: =Dx_CoS!B78 -> Unforeseen Events Revenue Adjustment | C104: =Dx_CoS!R78 -> 0 | D104: =Dx_CoS!S78 -> 0 | E104: =Dx_CoS!T78 -> 0 | F104: =Dx_CoS!U78 -> 0 | G104: =Dx_CoS!V78 -> 0 | H104: 0
B105: =Dx_CoS!B79 -> Technical Rule Change Revenue Adjustment | C105: =Dx_CoS!R79 -> 0 | D105: =Dx_CoS!S79 -> 0 | E105: =Dx_CoS!T79 -> 0 | F105: =Dx_CoS!U79 -> 0 | G105: =Dx_CoS!V79 -> 0 | H105: 0
B106: =Dx_CoS!B80 -> D-Factor Revenue Adjustment | C106: =Dx_CoS!R80 -> 8.901101156 | D106: =Dx_CoS!S80 -> 0 | E106: =Dx_CoS!T80 -> 0 | F106: =Dx_CoS!U80 -> 0 | G106: =Dx_CoS!V80 -> 0 | H106: 8.901101156
B107: =Dx_CoS!B81 -> GSM Revenue Adjustment | C107: =Dx_CoS!R81 -> 27.85406933 | D107: =Dx_CoS!S81 -> 30.39503205 | E107: =Dx_CoS!T81 -> 30.95430064 | F107: =Dx_CoS!U81 -> 24.22715005 | G107: =Dx_CoS!V81 -> 57.70287688 | H107: 171.133429
B108: =Dx_CoS!B82 -> k-factor adjustment | C108: =Dx_CoS!R82 -> 37.07654582 | D108: =Dx_CoS!S82 -> 0 | E108: =Dx_CoS!T82 -> 0 | F108: =Dx_CoS!U82 -> 0 | G108: =Dx_CoS!V82 -> 0 | H108: 37.07654582
B109: Distribution target revenue for revenue cap services (unsmoothed) | C109: =Dx_CoS!R83 -> 1377.031326 | D109: =Dx_CoS!S83 -> 1124.841141 | E109: =Dx_CoS!T83 -> 1113.146988 | F109: =Dx_CoS!U83 -> 1111.487587 | G109: =Dx_CoS!V83 -> 1164.474 | H109: 5890.981041
B111: Table 5.7 - Revised regulated asset base as at 30 June 2017 for the transmission network
B112: TRANSMISSION Revised regulated asset base as at 30 June 2017
C113: 2013 | D113: 2014 | E113: 2015 | F113: 2016 | G113: 2017 | H113: Total
B114: Opening RAB | C114: =Tx_Asset!M5 -> 2816.740397 | D114: =Tx_Asset!N5 -> 2927.652118 | E114: =Tx_Asset!O5 -> 3161.624193 | F114: =Tx_Asset!P5 -> 3197.469957 | G114: =Tx_Asset!Q5 -> 3135.456177
B115: New facilities investment | C115: =Tx_Asset!M6 -> 209.3076883 | D115: =Tx_Asset!N6 -> 341.6261958 | E115: =Tx_Asset!O6 -> 159.1980616 | F115: =Tx_Asset!P6 -> 119.8968307 | G115: =Tx_Asset!Q6 -> 104.0668426 | H115: =SUM(C115:G115) -> 934.0956188
B116: Asset disposals | C116: =Tx_Asset!M7 -> -4.424279823 | D116: =Tx_Asset!N7 -> -4.236705382 | E116: =Tx_Asset!O7 -> -9.300993405 | F116: =Tx_Asset!P7 -> -60.64422742 | G116: =Tx_Asset!Q7 -> -1.449132358 | H116: =SUM(C116:G116) -> -80.05533838
B117: Depreciation | C117: =Tx_Asset!M8 -> -93.9716883 | D117: =Tx_Asset!N8 -> -103.4174154 | E117: =Tx_Asset!O8 -> -114.0513041 | F117: =Tx_Asset!P8 -> -121.266383 | G117: =Tx_Asset!Q8 -> -129.4443084 | H117: -562.1510991
B118: Accelerated deprecation | C118: =Tx_Asset!M9 -> 0 | D118: =Tx_Asset!N9 -> 0 | E118: =Tx_Asset!O9 -> 0 | F118: =Tx_Asset!P9 -> 0 | G118: =Tx_Asset!Q9 -> 0 | H118: 0
B119: Closing RAB | C119: =Tx_Asset!M10 -> 2927.652118 | D119: =Tx_Asset!N10 -> 3161.624193 | E119: =Tx_Asset!O10 -> 3197.469957 | F119: =Tx_Asset!P10 -> 3135.456177 | G119: =Tx_Asset!Q10 -> 3108.629579
B121: Table 5.8 - Revised regulated asset base as at 30 June 2017 for the distribution network
B122: DISTRIBUTION Revised regulated asset base as at 30 June 2017
C123: 2013 | D123: 2014 | E123: 2015 | F123: 2016 | G123: 2017 | H123: Total
B124: Opening RAB | C124: =Dx_Asset!M5 -> 4248.701724 | D124: =Dx_Asset!N5 -> 4708.477962 | E124: =Dx_Asset!O5 -> 5142.926352 | F124: =Dx_Asset!P5 -> 5494.335995 | G124: =Dx_Asset!Q5 -> 5723.088102
B125: New facilities investment | C125: =Dx_Asset!M6 -> 678.5493995 | D125: =Dx_Asset!N6 -> 671.4406698 | E125: =Dx_Asset!O6 -> 618.2460563 | F125: =Dx_Asset!P6 -> 498.0539607 | G125: =Dx_Asset!Q6 -> 357.433 | H125: =SUM(C125:G125) -> 2823.723086
B126: Asset disposals | C126: =Dx_Asset!M7 -> -0.9282389156 | D126: =Dx_Asset!N7 -> -0.297917847 | E126: =Dx_Asset!O7 -> -4.931556279 | F126: =Dx_Asset!P7 -> -2.811089921 | G126: =Dx_Asset!Q7 -> -0.6179830525 | H126: =SUM(C126:G126) -> -9.586786015
B127: Depreciation | C127: =Dx_Asset!M8 -> -214.0461773 | D127: =Dx_Asset!N8 -> -236.1848502 | E127: =Dx_Asset!O8 -> -261.9048565 | F127: =Dx_Asset!P8 -> -266.4907638 | G127: =Dx_Asset!Q8 -> -281.4967892 | H127: -1260.123437
B128: Accelerated deprecation | C128: =Dx_Asset!M9 -> -3.798745495 | D128: =Dx_Asset!N9 -> -0.5095114034 | E128: =Dx_Asset!O9 -> 0 | F128: =Dx_Asset!P9 -> 0 | G128: =Dx_Asset!Q9 -> 0 | H128: -4.308256898
B129: Closing RAB | C129: =Dx_Asset!M10 -> 4708.477962 | D129: =Dx_Asset!N10 -> 5142.926352 | E129: =Dx_Asset!O10 -> 5494.335995 | F129: =Dx_Asset!P10 -> 5723.088102 | G129: =Dx_Asset!Q10 -> 5798.40633
B131: Table 6.30 - AA4 forecast depreciation
B132: Forecast depreciation [$M nominal]
C133: 2018 | D133: 2019 | E133: 2020 | F133: 2021 | G133: 2022
B134: Transmission | C134: =-Tx_CoS!R27 -> 112.0125275 | D134: =-Tx_CoS!S27 -> 120.1897136 | E134: =-Tx_CoS!T27 -> 129.5608975 | F134: =-Tx_CoS!U27 -> 139.1359644 | G134: =-Tx_CoS!V27 -> 145.3655993
B135: Distribution | C135: =-Dx_CoS!R27 -> 262.4069342 | D135: =-Dx_CoS!S27 -> 285.8398966 | E135: =-Dx_CoS!T27 -> 294.9125862 | F135: =-Dx_CoS!U27 -> 289.4544624 | G135: =-Dx_CoS!V27 -> 286.8522354
B137: Table 6.31 - AA4 forecast transmission RAB calculation
B138: Transmission RAB roll forward [$M real as at 30 June 2017]
C139: 2018 | D139: 2019 | E139: 2020 | F139: 2021 | G139: 2022
B140: Opening RAB | C140: =Tx_Asset!R5 -> 3108.629579 | D140: =Tx_Asset!S5 -> 3122.751267 | E140: =Tx_Asset!T5 -> 3183.414658 | F140: =Tx_Asset!U5 -> 3233.515265 | G140: =Tx_Asset!V5 -> 3224.72725
B141: Net capital expenditure | C141: =SUM(Tx_Asset!R6:R7,Tx_Asset!R9) -> 124.1104232 | D141: =SUM(Tx_Asset!S6:S7,Tx_Asset!S9) -> 176.54927 | E141: =SUM(Tx_Asset!T6:T7,Tx_Asset!T9) -> 172.7650737 | F141: =SUM(Tx_Asset!U6:U7,Tx_Asset!U9) -> 120.561808 | G141: =SUM(Tx_Asset!V6:V7,Tx_Asset!V9) -> 120.4819624
B142: Forecast depreciation | C142: =-Tx_Asset!R8 -> 109.9887347 | D142: =-Tx_Asset!S8 -> 115.8858789 | E142: =-Tx_Asset!T8 -> 122.664467 | F142: =-Tx_Asset!U8 -> 129.3498234 | G142: =-Tx_Asset!V8 -> 132.6996233
B143: Closing RAB | C143: =Tx_Asset!R10 -> 3122.751267 | D143: =Tx_Asset!S10 -> 3183.414658 | E143: =Tx_Asset!T10 -> 3233.515265 | F143: =Tx_Asset!U10 -> 3224.72725 | G143: =Tx_Asset!V10 -> 3212.509589
B145: Table 6.32 - AA4 forecast distribution RAB calculation
B146: Distribution RAB roll forward [$M real as at 30 June 2017]
C147: 2018 | D147: 2019 | E147: 2020 | F147: 2021 | G147: 2022
B148: Opening RAB | C148: =Dx_Asset!R5 -> 5798.40633 | D148: =Dx_Asset!S5 -> 6008.629124 | E148: =Dx_Asset!T5 -> 6205.559063 | F148: =Dx_Asset!U5 -> 6433.220684 | G148: =Dx_Asset!V5 -> 6565.644737
B149: Net capital expenditure | C149: =SUM(Dx_Asset!R6:R7,Dx_Asset!R9) -> 467.8886758 | D149: =SUM(Dx_Asset!S6:S7,Dx_Asset!S9) -> 472.5342876 | E149: =SUM(Dx_Asset!T6:T7,Dx_Asset!T9) -> 506.8762284 | F149: =SUM(Dx_Asset!U6:U7,Dx_Asset!U9) -> 401.5197084 | G149: =SUM(Dx_Asset!V6:V7,Dx_Asset!V9) -> 401.4336709
B150: Forecast depreciation | C150: =-Dx_Asset!R8 -> 257.665882 | D150: =-Dx_Asset!S8 -> 275.604348 | E150: =-Dx_Asset!T8 -> 279.2146078 | F150: =-Dx_Asset!U8 -> 269.0956558 | G150: =-Dx_Asset!V8 -> 261.8582646
B151: Closing RAB | C151: =Dx_Asset!R10 -> 6008.629124 | D151: =Dx_Asset!S10 -> 6205.559063 | E151: =Dx_Asset!T10 -> 6433.220684 | F151: =Dx_Asset!U10 -> 6565.644737 | G151: =Dx_Asset!V10 -> 6705.220143
B153: Table 8.1 - Proposed cost of working capital – transmission network, $ million nominal
B154: TRANSMISSION proposed cost of working capital [$M nominal]
C155: 2018 | D155: 2019 | E155: 2020 | F155: 2021 | G155: 2022
B156: Smoothed target revenue | C156: =Tx_CoS!R93 -> 0 | D156: =Tx_CoS!S93 -> 0 | E156: =Tx_CoS!T93 -> 0 | F156: =Tx_CoS!U93 -> 0 | G156: =Tx_CoS!V93 -> 0
B157: Expenses
B158: Forecast capital expenditure | C158: =Tx_CoS!R41 -> 126.394055 | D158: =Tx_CoS!S41 -> 183.1060556 | E158: =Tx_CoS!T41 -> 182.4782561 | F158: =Tx_CoS!U41 -> 129.6830794 | G158: =Tx_CoS!V41 -> 131.9817814
B159: Forecast operating costs | C159: =Tx_CoS!R40 -> 88.67721653 | D159: =Tx_CoS!S40 -> 88.64754374 | E159: =Tx_CoS!T40 -> 89.9510204 | F159: =Tx_CoS!U40 -> 93.06768745 | G159: =Tx_CoS!V40 -> 92.66021273
B160: Total expenses | C160: =Tx_CoS!R42 -> 215.0712715 | D160: =Tx_CoS!S42 -> 271.7535994 | E160: =Tx_CoS!T42 -> 272.4292765 | F160: =Tx_CoS!U42 -> 222.7507669 | G160: =Tx_CoS!V42 -> 224.6419941
B161: Working capital requirement
B162: Opening balance | C162: =Tx_CoS!R44 -> 18.29637251 | D162: =Tx_CoS!S44 -> 25.08294522 | E162: =Tx_CoS!T44 -> 23.96830825 | F162: =Tx_CoS!U44 -> 32.03176939 | G162: =Tx_CoS!V44 -> 43.32835391
B163: Receivables (45 days) | C163: =Tx_CoS!R45 -> 35.40035966 | D163: =Tx_CoS!S45 -> 36.06886441 | E163: =Tx_CoS!T45 -> 44.15252938 | F163: =Tx_CoS!U45 -> 54.06313349 | G163: =Tx_CoS!V45 -> 65.7594662
B164: Inventory (4% of capex) | C164: =Tx_CoS!R46 -> 5.0557622 | D164: =Tx_CoS!S46 -> 7.324242225 | E164: =Tx_CoS!T46 -> 7.299130243 | F164: =Tx_CoS!U46 -> 5.187323178 | G164: =Tx_CoS!V46 -> 5.279271256
B165: Creditors (26.09 days) | C165: =Tx_CoS!R48 -> -15.37317664 | D165: =Tx_CoS!S48 -> -19.42479838 | E165: =Tx_CoS!T48 -> -19.41989023 | F165: =Tx_CoS!U48 -> -15.92210276 | G165: =Tx_CoS!V48 -> -16.05728665
B166: End of year working capital | C166: =Tx_CoS!R49 -> 25.08294522 | D166: =Tx_CoS!S49 -> 23.96830825 | E166: =Tx_CoS!T49 -> 32.03176939 | F166: =Tx_CoS!U49 -> 43.32835391 | G166: =Tx_CoS!V49 -> 54.98145081
B167: Return on working capital at WACC = 6.12 | C167: =Tx_CoS!R64 -> 1.073325589 | D167: =Tx_CoS!S64 -> 1.47144834 | E167: =Tx_CoS!T64 -> 1.406060058 | F167: =Tx_CoS!U64 -> 1.879089297 | G167: =Tx_CoS!V64 -> 2.541784224
B169: Table 8.2 - Proposed cost of working capital – distribution network, $ million nominal
B170: DISTRIBUTION proposed cost of working capital [$M nominal]
C171: 2018 | D171: 2019 | E171: 2020 | F171: 2021 | G171: 2022
B172: Smoothed target revenue | C172: =Dx_CoS!R88 -> 1214.430483 | D172: =Dx_CoS!S88 -> 1222.523848 | E172: =Dx_CoS!T88 -> 1191.2592 | F172: =Dx_CoS!U88 -> 1153.869703 | G172: =Dx_CoS!V88 -> 1120.404167
B173: Expenses
B174: Forecast capital expenditure | C174: =Dx_CoS!R41 -> 480.9476655 | D174: =Dx_CoS!S41 -> 497.2387275 | E174: =Dx_CoS!T41 -> 539.9870267 | F174: =Dx_CoS!U41 -> 431.8972411 | G174: =Dx_CoS!V41 -> 439.7499007
B175: Forecast operating costs | C175: =Dx_CoS!R40 -> 278.7329387 | D175: =Dx_CoS!S40 -> 280.7486614 | E175: =Dx_CoS!T40 -> 285.8268423 | F175: =Dx_CoS!U40 -> 296.7652978 | G175: =Dx_CoS!V40 -> 298.275549
B176: Total expenses | C176: =Dx_CoS!R42 -> 759.6806042 | D176: =Dx_CoS!S42 -> 777.9873889 | E176: =Dx_CoS!T42 -> 825.8138691 | F176: =Dx_CoS!U42 -> 728.6625389 | G176: =Dx_CoS!V42 -> 738.0254497
B177: Working capital requirement
B178: Opening balance | C178: =Dx_CoS!R44 -> 118.8591633 | D178: =Dx_CoS!S44 -> 114.6606594 | E178: =Dx_CoS!T44 -> 115.0015551 | F178: =Dx_CoS!U44 -> 109.1983339 | G178: =Dx_CoS!V44 -> 107.4493992
B179: Receivables (45 days) | C179: =Dx_CoS!R45 -> 149.7243061 | D179: =Dx_CoS!S45 -> 150.7221182 | E179: =Dx_CoS!T45 -> 146.466295 | F179: =Dx_CoS!U45 -> 142.2579085 | G179: =Dx_CoS!V45 -> 138.1320205
B180: Inventory (4% of capex) | C180: =Dx_CoS!R47 -> 19.23790662 | D180: =Dx_CoS!S47 -> 19.8895491 | E180: =Dx_CoS!T47 -> 21.59948107 | F180: =Dx_CoS!U47 -> 17.27588964 | G180: =Dx_CoS!V47 -> 17.58999603
B181: Creditors (26.09 days) | C181: =Dx_CoS!R49 -> -54.30155332 | D181: =Dx_CoS!S49 -> -55.61011226 | E181: =Dx_CoS!T49 -> -58.8674422 | F181: =Dx_CoS!U49 -> -52.08439901 | G181: =Dx_CoS!V49 -> -52.75365475
B182: End of year working capital | C182: =Dx_CoS!R50 -> 114.6606594 | D182: =Dx_CoS!S50 -> 115.0015551 | E182: =Dx_CoS!T50 -> 109.1983339 | F182: =Dx_CoS!U50 -> 107.4493992 | G182: =Dx_CoS!V50 -> 102.9683618
B183: Return on working capital at WACC = 6.12 | C183: =Dx_CoS!R66 -> 6.972670757 | D183: =Dx_CoS!S66 -> 6.72637266 | E183: =Dx_CoS!T66 -> 6.746370725 | F183: =Dx_CoS!U66 -> 6.405934621 | G183: =Dx_CoS!V66 -> 6.303336339
B185: Table 9.1
B186: Estimated cost of corporate income tax for the AA4 period
B187: [$M nominal] | C187: 2018 | D187: 2019 | E187: 2020 | F187: 2021 | G187: 2022
B188: Western Power - Taxable income | C188: =Tax_Analysis!G45 -> 500.9992582 | D188: =Tax_Analysis!H45 -> 245.9627201 | E188: =Tax_Analysis!I45 -> 241.0513577 | F188: =Tax_Analysis!J45 -> 209.7666683 | G188: =Tax_Analysis!K45 -> 256.2494943
B189: Estimated cost of corporate income tax | C189: =-Tax_Analysis!G47 -> 176.8232676 | D189: =-Tax_Analysis!H47 -> 86.8103718 | E189: =-Tax_Analysis!I47 -> 85.07694976 | F189: =-Tax_Analysis!J47 -> 74.03529468 | G189: =-Tax_Analysis!K47 -> 90.440998
B190: Less value of imputation credits | C190: =Tx_CoS!R60+Dx_CoS!R61 -> -88.41163381 | D190: =Tx_CoS!S60+Dx_CoS!S61 -> -43.4051859 | E190: =Tx_CoS!T60+Dx_CoS!T61 -> -42.53847488 | F190: =Tx_CoS!U60+Dx_CoS!U61 -> -37.01764734 | G190: =Tx_CoS!V60+Dx_CoS!V61 -> -45.220499
B192: Table 9.2
B193: Corporate income tax allocation to transmission cost of services for the AA4 period
B194: [$M nominal] | C194: 2018 | D194: 2019 | E194: 2020 | F194: 2021 | G194: 2022
B195: Tax payable | C195: =Tx_CoS!R59 -> 24.62212203 | D195: =Tx_CoS!S59 -> 21.36127495 | E195: =Tx_CoS!T59 -> 22.26323613 | F195: =Tx_CoS!U59 -> 22.42097082 | G195: =Tx_CoS!V59 -> 28.3618402
B196: Less value of imputation credits | C196: =Tx_CoS!R60 -> -12.31106101 | D196: =Tx_CoS!S60 -> -10.68063747 | E196: =Tx_CoS!T60 -> -11.13161806 | F196: =Tx_CoS!U60 -> -11.21048541 | G196: =Tx_CoS!V60 -> -14.1809201
B198: Table 9.3
B199: Corporate income tax allocation to distribution cost of services for the AA4 period
B200: [$M nominal] | C200: 2018 | D200: 2019 | E200: 2020 | F200: 2021 | G200: 2022
B201: Tax payable | C201: =Dx_CoS!R60 -> 152.2011456 | D201: =Dx_CoS!S60 -> 65.44909685 | E201: =Dx_CoS!T60 -> 62.81371363 | F201: =Dx_CoS!U60 -> 51.61432387 | G201: =Dx_CoS!V60 -> 62.0791578
B202: Less value of imputation credits | C202: =Dx_CoS!R61 -> -76.10057279 | D202: =Dx_CoS!S61 -> -32.72454843 | E202: =Dx_CoS!T61 -> -31.40685682 | F202: =Dx_CoS!U61 -> -25.80716193 | G202: =Dx_CoS!V61 -> -31.0395789
B204: Table 10.2 - Revenue adjustment under AA3 adjustment mechanism
B205: Adjustment mechanism [$M real as at 30 June 2017] | C205: Tx | D205: Dx | E205: Total
B206: IAM Revenue Adjustment | C206: =Tx_CoS!R72/Tx_CoS!R$7 -> -35.80833183 | D206: =Dx_CoS!R76/Dx_CoS!R$7 -> -7.146508664 | E206: =SUM(C206:D206) -> -42.95484049
B207: GSM Revenue Adjustment | C207: =(Tx_CoS!R77/Tx_CoS!R7)+(Tx_CoS!S77/Tx_CoS!S7)+(Tx_CoS!T77/Tx_CoS!T7)+(Tx_CoS!U77/Tx_CoS!U7)+(Tx_CoS!V77/Tx_CoS!V7) -> 50.89336274 | D207: =(Dx_CoS!R81/Dx_CoS!R7)+(Dx_CoS!S81/Dx_CoS!S7)+(Dx_CoS!T81/Dx_CoS!T7)+(Dx_CoS!U81/Dx_CoS!U7)+(Dx_CoS!V81/Dx_CoS!V7) -> 161.1623153 | E207: =SUM(C207:D207) -> 212.0556781
B208: SSAM Revenue Adjustment | C208: =Tx_CoS!R73/Tx_CoS!R$7 -> 13.34714882 | D208: =Dx_CoS!R77/Dx_CoS!R$7 -> 240.7159771 | E208: 254.0631259
B209: D-Factor Revenue Adjustment | C209: =Tx_CoS!R76/Tx_CoS!R$7 -> 0 | D209: =Dx_CoS!R80/Dx_CoS!R$7 -> 8.740280004 | E209: 8.740280004
B210: Unforeseen Events Revenue Adjustment | C210: =Tx_CoS!R74/Tx_CoS!R$7 -> 0 | D210: =Dx_CoS!R78/Dx_CoS!R$7 -> 0 | E210: 0
B211: Technical Rule Change Revenue Adjustment | C211: =Tx_CoS!R75/Tx_CoS!R$7 -> 0 | D211: =Dx_CoS!R79/Dx_CoS!R$7 -> 0 | E211: 0
B212: Total | C212: =SUM(C206:C211) -> 28.43217973 | D212: =SUM(D206:D211) -> 403.4720638 | E212: 431.9042435
B214: Table 13.3: AA4 revised proposed service standard benchmarks
B215: Performance measure (SSB) | C215: Unit | D215: AA3 | E215: 2017/18 | F215: From 2018/19
B216: Distribution
B217: System average interruption duration index
B218: CBD | C218: Minutes | D218: 39.9 | E218: =D218 -> 39.9 | F218: =ROUND(#REF!,1) -> 
B219: Urban | C219: Minutes | D219: 183 | E219: 183 | F219: =ROUND(#REF!,1) -> 
B220: Rural short | C220: Minutes | D220: 227.8 | E220: 227.8 | F220: =ROUND(#REF!,1) -> 
B221: Rural long | C221: Minutes | D221: 724.8 | E221: 724.8 | F221: =ROUND(#REF!,1) -> 
B222: System average interruption frequency index
B223: CBD | C223: Number of events | D223: 0.26 | E223: =D223 -> 0.26 | F223: =ROUND(#REF!,2) -> 
... 55 more rows

Sheet INPUTS -->

Sheet Dx_Inputs
B1: Validation status | C1: =IF(COUNTIF(N6:N24,"CHECK")+COUNTIF(E156:AD156,"CHECK")+COUNTIF(E228:J228,"CHECK")+COUNTIF(E258:AD258,"CHECK")+COUNTIF(E315:O315,"CHECK")+COUNTIF(E345:AD345,"CHECK")+COUNTIF(E469:AD469,"CHECK")+COUNTIF(K673:O673,"CHECK")+COUNTIF(K694:AD694,"CHECK")>0,"CHECK","OK") -> OK
B2: Allocation of capex and contributions from regulatory category to asset class
B3: % matrix
B4: Distribution
B5: Growth | C5: Wooden Pole Lines | D5: Underground Cables | E5: Transformers | F5: Switchgear | G5: Street lighting | H5: Meters and Services | I5: IT | J5: SCADA & Communications | K5: Other Distribution Non-Network | L5: Distribution Land & Easements | M5: Equity Raising Costs
B6: Capacity Expansion | C6: 0.4528455475 | D6: 0.3937764732 | E6: 0.07362193862 | F6: 0.07840838279 | G6: 0.001347657887 | H6: 0 | I6: 0 | J6: 0 | K6: 0 | L6: 0 | M6: 0 | N6: =IF(SUM(C6:M6)=1,"OK","CHECK") -> OK
B7: Customer Driven | C7: 0.1296069327 | D7: 0.2456531962 | E7: 0.4807318146 | F7: 0.137064576 | G7: 0.006943480447 | H7: 0 | I7: 0 | J7: 0 | K7: 0 | L7: 0 | M7: 0 | N7: =IF(SUM(C7:M7)=1,"OK","CHECK") -> OK
B8: Gifted Assets | C8: 0.1296069327 | D8: 0.2456531962 | E8: 0.4807318146 | F8: 0.137064576 | G8: 0.006943480447 | H8: 0 | I8: 0 | J8: 0 | K8: 0 | L8: 0 | M8: 0 | N8: =IF(SUM(C8:M8)=1,"OK","CHECK") -> OK
B9: Asset replacement and renewal
B10: Asset Replacement | C10: 0 | D10: 0.1830563095 | E10: 0.5163548429 | F10: 0.2653017117 | G10: 0.03528713594 | H10: 0 | I10: 0 | J10: 0 | K10: 0 | L10: 0 | M10: 0 | N10: =IF(SUM(C10:M10)=1,"OK","CHECK") -> OK
B11: State Undergrounding Power Program (SUPP) | C11: 0.01428742804 | D11: 0.634002595 | E11: 0.2356579095 | F11: 0.09126369846 | G11: 0.024788369 | H11: 0 | I11: 0 | J11: 0 | K11: 0 | L11: 0 | M11: 0 | N11: =IF(SUM(C11:M11)=1,"OK","CHECK") -> OK
B12: Metering | C12: 0 | D12: 0 | E12: 0 | F12: 0 | G12: 0 | H12: 1 | I12: 0 | J12: 0 | K12: 0 | L12: 0 | M12: 0 | N12: =IF(SUM(C12:M12)=1,"OK","CHECK") -> OK
B13: Smartgrid | C13: 0 | D13: 0 | E13: 0 | F13: 0 | G13: 0 | H13: 0.65 | I13: 0 | J13: 0.35 | K13: 0 | L13: 0 | M13: 0 | N13: =IF(SUM(C13:M13)=1,"OK","CHECK") -> OK
B14: Wood Pole Management | C14: 1 | D14: 0 | E14: 0 | F14: 0 | G14: 0 | H14: 0 | I14: 0 | J14: 0 | K14: 0 | L14: 0 | M14: 0 | N14: =IF(SUM(C14:M14)=1,"OK","CHECK") -> OK
B15: Improvement in service
B16: Reliability Driven | C16: 0.2565746422 | D16: 0.4740034641 | E16: 0.05138636275 | F16: 0.216527421 | G16: 0.001508109905 | H16: 0 | I16: 0 | J16: 0 | K16: 0 | L16: 0 | M16: 0 | N16: =IF(SUM(C16:M16)=1,"OK","CHECK") -> OK
B17: Rural Power Improvement Program (RPIP)
B18: SCADA & Communications | C18: 0 | D18: 0 | E18: 0 | F18: 0 | G18: 0 | H18: 0 | I18: 0 | J18: 1 | K18: 0 | L18: 0 | M18: 0 | N18: =IF(SUM(C18:M18)=1,"OK","CHECK") -> OK
B19: Compliance
B20: Safety, Environmental & Statutory | C20: 0.416205545 | D20: 0.02604003539 | E20: 0.2774890424 | F20: 0.2651954455 | G20: 0.01506993179 | H20: 0 | I20: 0 | J20: 0 | K20: 0 | L20: 0 | M20: 0 | N20: =IF(SUM(C20:M20)=1,"OK","CHECK") -> OK
B21: Corporate
B22: IT | C22: 0 | D22: 0 | E22: 0 | F22: 0 | G22: 0 | H22: 0 | I22: 1 | J22: 0 | K22: 0 | L22: 0 | M22: 0 | N22: =IF(SUM(C22:M22)=1,"OK","CHECK") -> OK
B23: Business Support | C23: 0 | D23: 0 | E23: 0 | F23: 0 | G23: 0 | H23: 0 | I23: 0 | J23: 0 | K23: 0.6 | L23: 0.4 | M23: 0 | N23: =IF(SUM(C23:M23)=1,"OK","CHECK") -> OK
B24: Equity Raising Costs | C24: 0 | D24: 0 | E24: 0 | F24: 0 | G24: 0 | H24: 0 | I24: 0 | J24: 0 | K24: 0 | L24: 0 | M24: 1 | N24: =IF(SUM(C24:M24)=1,"OK","CHECK") -> OK
B26: Inflation
B27: Year ending 30 June | D27: 2006 | E27: 2007 | F27: 2008 | G27: 2009 | H27: 2010 | I27: 2011 | J27: 2012 | K27: 2013 | L27: 2014 | M27: 2015 | N27: 2016 | O27: 2017 | P27: 2018 | Q27: 2019 | R27: 2020 | S27: 2021 | T27: 2022 | U27: 2023 | V27: 2024 | W27: 2025 | X27: 2026 | Y27: 2027 | Z27: 2028 | AA27: 2029 | AB27: 2030 | AC27: 2031 | AD27: 2032
B28: Actual and Forecast Inflation
B29: June CPI | C29: 148.4 | D29: 154.3 | E29: 157.5 | F29: 164.6 | G29: 167 | H29: 172.1 | I29: 178.3 | J29: 180.4
B30: June CPI (rebased) | J30: 100.4 | K30: 102.8 | L30: 105.9 | M30: 107.5 | N30: 108.6 | O30: 110.7 | P30: 113
B31: Forecast Inflation | D31: =D29/C29-1 -> 0.0397574124 | E31: 0.02073882048 | F31: 0.04507936508 | G31: 0.01458080194 | H31: 0.03053892216 | I31: 0.03602556653 | J31: 0.01177790241 | K31: =K30/J30-1 -> 0.02390438247 | L31: =L30/K30-1 -> 0.03015564202 | M31: =M30/L30-1 -> 0.01510859301 | N31: =N30/M30-1 -> 0.01023255814 | O31: =O30/N30-1 -> 0.01933701657 | P31: =WACC_Inputs!$L$6 -> 0.0184 | Q31: =WACC_Inputs!$L$6 -> 0.0184 | R31: =WACC_Inputs!$L$6 -> 0.0184 | S31: =WACC_Inputs!$L$6 -> 0.0184 | T31: =WACC_Inputs!$L$6 -> 0.0184 | U31: =WACC_Inputs!$N$6 -> 0.0184 | V31: =WACC_Inputs!$N$6 -> 0.0184 | W31: =WACC_Inputs!$N$6 -> 0.0184 | X31: =WACC_Inputs!$N$6 -> 0.0184 | Y31: =WACC_Inputs!$N$6 -> 0.0184 | Z31: =WACC_Inputs!$N$6 -> 0.0184 | AA31: =WACC_Inputs!$N$6 -> 0.0184 | AB31: =WACC_Inputs!$N$6 -> 0.0184 | AC31: =WACC_Inputs!$N$6 -> 0.0184 | AD31: =WACC_Inputs!$N$6 -> 0.0184
B32: End of year Inflation factor (Forecast) | D32: =E32/(1+E31) -> 0.7757387478 | E32: 0.7918266544 | F32: 0.8275216972 | G32: 0.8395876272 | H32: 0.8652277284 | I32: 0.8963980475 | J32: 0.9069557362 | K32: 0.928635953 | L32: 0.9566395664 | M32: 0.9710930443 | N32: 0.9810298103 | O32: 1 | P32: =O32*(1+P31) -> 1.0184 | Q32: =P32*(1+Q31) -> 1.03713856 | R32: 1.05622191 | S32: 1.075656393 | T32: 1.09544847 | U32: 1.115604722 | V32: 1.136131849 | W32: 1.157036675 | X32: 1.17832615 | Y32: 1.200007351 | Z32: 1.222087486 | AA32: 1.244573896 | AB32: 1.267474056 | AC32: 1.290795578 | AD32: 1.314546217
B34: Initial capital base - asset data
C37: Remaining life @ 30 June 2006 | D37: Standard life (AA1/AA2) | E37: Standard life (AA3) | F37: Standard life (AA4+) | G37: ICB ($M @ 30 June 2006) | H37: ICB ($M @ 30 June 2017) | J37: Tax life | K37: Tax ICB @ 30 June 2012
B38: Wooden Pole Lines | C38: 14.5 | D38: 41 | E38: 41 | F38: 41 | G38: 472.5939602 | H38: =G38/D$32 -> 609.2179378 | J38: 45 | K38: 2747.935154
B39: Underground Cables | C39: 36.9 | D39: 60 | E39: 60 | F39: 60 | G39: 535.2080615 | H39: 689.9333868 | J39: 50 | K39: 110.2319941
B40: Transformers | C40: 16.9 | D40: 35 | E40: 35 | F40: 35 | G40: 203.7623314 | H40: 262.6687554 | J40: 40 | K40: 32.22184132
B41: Switchgear | C41: 13.5 | D41: 35 | E41: 35 | F41: 35 | G41: 108.607514 | H41: 140.0052715 | J41: 30 | K41: 25.6890398
B42: Street lighting | C42: 1.2 | D42: 20 | E42: 20 | F42: 20 | G42: 5.256461486 | H42: 6.776071842 | J42: 15 | K42: 35.1250608
B43: Meters and Services | C43: 9.2 | D43: 25 | E43: 15 | F43: 15 | G43: 168.2064526 | H43: 216.8338929 | J43: 25 | K43: 3.246493062
B44: IT | C44: 9.8 | D44: 10.16 | E44: 6 | F44: 6 | G44: 15.41481432 | H44: 19.87114137 | J44: 4 | K44: 31.47250339
B45: SCADA & Communications | C45: 10.2 | D45: 10.16 | E45: 10.16 | F45: 10.16 | G45: 12.82523809 | H45: 16.53293473 | J45: 10 | K45: 15.86631549
B46: Other Distribution Non-Network | C46: 11.3 | D46: 10.16 | E46: 10.16 | F46: 27 | G46: 51.22111724 | H46: 66.02882399 | J46: 10 | K46: 107.6731485
B47: Distribution Land & Easements | D47: 0 | E47: 0 | F47: 0 | G47: 21.41871547 | H47: 27.61073303 | J47: 0 | K47: 18.23082961
B48: Equity Raising Costs | E48: =ROUND(SUMPRODUCT(Dx_Asset!M15:M23,E38:E46)/SUM(Dx_Asset!M15:M23),0) -> 43 | F48: =ROUND(SUMPRODUCT(Dx_Asset!R15:R23,Dx_Inputs!F38:F46)/SUM(Dx_Asset!R15:R23),0) -> 43 | G48: 0 | H48: 0 | J48: 5
B49: Total | G49: =SUM(G38:G48) -> 1594.514666 | H49: =SUM(H38:H48) -> 2055.478949 | K49: =SUM(K38:K48) -> 3127.69238
B51: Working capital assumptions
C54: Input
B55: 2017 Closing balance (real as at 30 June 2012) | C55: 107.8
B57: Receivables | C57: 45 | D57: days
B58: TEC | C58: 0 | D58: days
B59: Inventory % capex | C59: 0.04 | D59: Percent
B60: Prepayments | C60: 0
B61: Creditors | C61: -26.09 | D61: Days
B63: Capital expenditure
B64: Year ending 30 June | D64: 2006 | E64: 2007 | F64: 2008 | G64: 2009 | H64: 2010 | I64: 2011 | J64: 2012 | K64: 2013 | L64: 2014 | M64: 2015 | N64: 2016 | O64: 2017 | P64: 2018 | Q64: 2019 | R64: 2020 | S64: 2021 | T64: 2022 | U64: 2023 | V64: 2024 | W64: 2025 | X64: 2026 | Y64: 2027 | Z64: 2028 | AA64: 2029 | AB64: 2030 | AC64: 2031 | AD64: 2032
B65: [APPROVED] Capital expenditure by regulatory category [$M real] | M65: [$M real as at 30 June 2012]
B66: Growth | F66: Approved AA1 | I66: Approved AA2 | M66: Approved AA3
B67: Capacity Expansion | K67: 56.86398175 | L67: 61.31506795 | M67: 68.09468738 | N67: 68.46959239 | O67: 76.34670082
B68: Customer Driven | K68: 202.8875168 | L68: 203.6464388 | M68: 209.3581819 | N68: 210.8412448 | O68: 217.3904696
B69: Gifted Assets | K69: 63.48375 | L69: 63.48375 | M69: 63.48375 | N69: 63.48375 | O69: 63.48375
B70: Asset replacement and renewal
B71: Asset Replacement | K71: 42.10312237 | L71: 37.29162329 | M71: 35.11290884 | N71: 36.59228216 | O71: 36.71714631
B72: State Undergrounding Power Program (SUPP) | K72: 38.47981035 | L72: 18.58997669 | M72: 0 | N72: 0 | O72: 0
B73: Metering | K73: 13.47299916 | L73: 44.52881164 | M73: 44.14484204 | N73: 40.1797608 | O73: 16.12225971
B74: Smartgrid | K74: 2.476654257 | L74: 24.02344465 | M74: 26.58838762 | N74: 20.19237979 | O74: 15.60218682
B75: Wood Pole Management | K75: 164.5489089 | L75: 188.3679301 | M75: 199.10846 | N75: 209.8162509 | O75: 222.2791548
B76: Improvement in service
B77: Reliability Driven | K77: 0.5943970217 | L77: 0.603099029 | M77: 0.608894373 | N77: 0.6149963388 | O77: 0.6240874727
B78: Rural Power Improvement Program (RPIP) | K78: 0 | L78: 0 | M78: 0 | N78: 0 | O78: 0
B79: SCADA & Communications | K79: 5.151440855 | L79: 6.332539804 | M79: 7.002285289 | N79: 3.894976812 | O79: 6.968976778
B80: Compliance
B81: Safety, Environmental & Statutory | K81: 112.9354341 | L81: 112.7795184 | M81: 113.152871 | N81: 84.76699537 | O81: 91.42881474
B82: Corporate
B83: IT | K83: 25.68695973 | L83: 24.74733711 | M83: 14.48505646 | N83: 15.14131609 | O83: 15.36514138
B84: Business Support | K84: 20.43842228 | L84: 19.98582415 | M84: 13.85252125 | N84: 13.99134272 | O84: 11.54006399
B85: Equity Raising Costs | K85: 5.016144636 | L85: 4.297127355 | M85: 3.445143794 | N85: 1.444439887 | O85: 0
B86: Total | K86: =SUM(K67:K85) -> 754.1395421 | L86: =SUM(L67:L85) -> 809.9924889 | M86: =SUM(M67:M85) -> 798.4379899 | N86: =SUM(N67:N85) -> 769.4293281 | O86: =SUM(O67:O85) -> 773.8687525
B88: [ACTUAL] Capital expenditure by regulatory category [$M nominal]
B89: Growth | F89: Actual AA1 | I89: Actual AA2 | M89: Actual AA3 | R89: Proposed AA4 | W89: Forecast AA5 | AB89: Forecast AA6
B90: Capacity Expansion | E90: 75.881777 | F90: 61.4 | G90: 61.11670557 | H90: 62.75 | I90: 34.419 | J90: 48.108 | K90: 48.471 | L90: 39.331 | M90: 26.154 | N90: 25.438 | O90: 35.492 | P90: =P136*P$32 -> 45.04445829 | Q90: 43.39262913 | R90: 35.99045944 | S90: 27.70726436 | T90: 31.04375735 | U90: 25.28681946 | V90: 37.03271481 | W90: 38.39188313 | X90: 40.96494016 | Y90: 41.54653373 | Z90: 43.31021536 | AA90: 44.10712333 | AB90: 44.91869439 | AC90: 45.74519837 | AD90: 46.58691002
B91: Customer Driven | E91: 181 | F91: 189.5 | G91: 244.7729952 | H91: 203.07 | I91: 233.503 | J91: 174.933 | K91: 188.491 | L91: 178.841 | M91: 149.256 | N91: 140.451 | O91: 131.167 | P91: =P137*P$32 -> 124.3817441 | Q91: 136.5628667 | R91: 127.2944456 | S91: 134.9401292 | T91: 137.4745164 | U91: 140.4195651 | V91: 143.3451982 | W91: 148.606229 | X91: 153.2159756 | Y91: 156.1522467 | Z91: 161.9877114 | AA91: 164.9682853 | AB91: 168.0037017 | AC91: 171.0949698 | AD91: 174.2431173
B92: Gifted Assets | E92: 21.99333 | F92: 20.3 | G92: 71.96126273 | H92: 84.262 | I92: 53.951 | J92: 66.651 | K92: 57.585 | L92: 59.138 | M92: 147.877 | N92: 123.773 | O92: 82.347 | P92: =P138*P$32 -> 81.73596928 | Q92: 83.50960843 | R92: 85.32173486 | S92: 87.17318374 | T92: 89.06480836 | U92: 92.60179033 | V92: 94.96580292 | W92: 97.39016591 | X92: 99.87641998 | Y92: 102.4261451 | Z92: 105.0409617 | AA92: 106.9737154 | AB92: 108.9420318 | AC92: 110.9465651 | AD92: 112.9879819
B93: Asset replacement and renewal
B94: Asset Replacement | E94: 27.286123 | F94: 39.4 | G94: 64.04171498 | H94: 80.119 | I94: 98.032 | J94: 177.973 | K94: 48.784 | L94: 45.21 | M94: 94.493 | N94: 136.803 | O94: 114.918 | P94: =P140*P$32 -> 74.71767172 | Q94: 79.31523447 | R94: 87.79179794 | S94: 97.0684596 | T94: 110.5295613 | U94: 119.337114 | V94: 114.5971483 | W94: 116.2224519 | X94: 127.9451157 | Y94: 133.1974119 | Z94: 127.2941363 | AA94: 129.6363484 | AB94: 132.0216572 | AC94: 134.4508557 | AD94: 136.9247515
B95: State Undergrounding Power Program (SUPP) | E95: 21.052371 | F95: 22 | G95: 22.92657578 | H95: 21.084 | I95: 18.744 | J95: 33.372 | K95: 29.69 | L95: 18.964 | M95: 15.286 | N95: 10.77 | O95: 10.389 | P95: =P141*P$32 -> 40.53894722 | Q95: 53.00063721 | R95: 35.43925342 | S95: 9.269442486 | T95: 20.43480922 | U95: 20.87257406 | V95: 21.30745287 | W95: 22.08947534 | X95: 22.7746881 | Y95: 23.21114819 | Z95: 24.078557 | AA95: 24.52160245 | AB95: 24.97279993 | AC95: 25.43229945 | AD95: 25.90025376
B96: Metering | E96: 10.720987 | F96: 12.4 | G96: 13.99441339 | H96: 11.148 | I96: 15.992 | J96: 14.079 | K96: 11.318 | L96: 11.518 | M96: 16.686 | N96: 26.495 | O96: 24.481 | P96: =P142*P$32 -> 21.22803461 | Q96: 28.05909587 | R96: 33.45205509 | S96: 34.64194044 | T96: 35.19381753 | U96: 44.00877178 | V96: 45.350936 | W96: 47.46033157 | X96: 49.39308389 | Y96: 50.81270703 | Z96: 52.71159585 | AA96: 53.68148921 | AB96: 54.66922862 | AC96: 55.67514242 | AD96: 56.69956504
B97: Smartgrid | E97: 0 | F97: 0 | G97: 0 | H97: 0 | I97: 0 | J97: 4.015 | K97: 0.781 | L97: 0.549 | M97: -1.329 | N97: 0 | O97: 0 | P97: =P143*P$32 -> 0 | Q97: 0 | R97: 0 | S97: 0 | T97: 0 | U97: 0 | V97: 0 | W97: 0 | X97: 0 | Y97: 0 | Z97: 0 | AA97: 0 | AB97: 0 | AC97: 0 | AD97: 0
B98: Wood Pole Management | E98: 0 | F98: 0 | G98: 0 | H98: 0 | I98: 0 | J98: 0 | K98: 216.856 | L98: 282.461 | M98: 234.234 | N98: 186.445 | O98: 81.72 | P98: =P144*P$32 -> 171.1052606 | Q98: 133.4779878 | R98: 127.3108539 | S98: 128.2538452 | T98: 119.2368254 | U98: 138.481405 | V98: 140.2851183 | W98: 144.0597161 | X98: 140.8032524 | Y98: 140.8773482 | Z98: 157.9304328 | AA98: 160.8363528 | AB98: 163.7957417 | AC98: 166.8095833 | AD98: 169.8788796
B99: Improvement in service
B100: Reliability Driven | E100: 5.485359 | F100: 18.9 | G100: 27.00531919 | H100: 9.344 | I100: 8.136 | J100: 9.108 | K100: 1.694 | L100: 0.095 | M100: 0.181 | N100: 0.776 | O100: 3.664 | P100: =P146*P$32 -> 4.463205719 | Q100: 6.261230026 | R100: 0 | S100: 0 | T100: 0 | U100: 2.406749942 | V100: 2.456894431 | W100: 2.547066947 | X100: 2.626076646 | Y100: 2.676403466 | Z100: 2.77642161 | AA100: 2.827507767 | AB100: 2.87953391 | AC100: 2.932517334 | AD100: 2.986475653
B101: Rural Power Improvement Program (RPIP) | E101: 9.618685 | F101: 23.6 | G101: 23.86639491 | H101: 8.173 | I101: -0.18 | J101: 0 | P101: =P147*P$32 -> 0 | Q101: 0 | R101: 0 | S101: 0 | T101: 0 | U101: 0 | V101: 0 | W101: 0 | X101: 0 | Y101: 0 | Z101: 0 | AA101: 0 | AB101: 0 | AC101: 0 | AD101: 0
B102: SCADA & Communications | E102: 2.241186 | F102: 2.1 | G102: 1.9741209 | H102: 3.262 | I102: 3.196 | J102: 3.458 | K102: 3.074 | L102: 2.513 | M102: 3.143 | N102: 3.702 | O102: 5.064 | P102: =P148*P$32 -> 3.399988855 | Q102: 3.888244328 | R102: 4.80280264 | S102: 4.538559655 | T102: 4.235176391 | U102: 17.59965804 | V102: 20.10866378 | W102: 17.14897744 | X102: 17.00998428 | Y102: 18.42272539 | Z102: 18.6561712 | AA102: 18.99944475 | AB102: 19.34903453 | AC102: 19.70505677 | AD102: 20.06762981
B103: Compliance
B104: Safety, Environmental & Statutory | E104: 33.953598 | F104: 34.7 | G104: 58.10199275 | H104: 63.674 | I104: 61.078 | J104: 94.93 | K104: 128.555 | L104: 145.383 | M104: 115.225 | N104: 35.978 | O104: 14.781 | P104: =P150*P$32 -> 28.54800613 | Q104: 45.1651143 | R104: 44.98339126 | S104: 37.8856337 | T104: 38.67200048 | U104: 30.8957349 | V104: 30.97375326 | W104: 31.73809278 | X104: 32.48330529 | Y104: 33.11637487 | Z104: 33.55381869 | AA104: 34.17120895 | AB104: 34.7999592 | AC104: 35.44027845 | AD104: 36.09237957
B105: Corporate
B106: IT | E106: 17.9775 | F106: 33.975 | G106: 20.7 | H106: 16.102 | I106: 25.105 | J106: 32.277 | K106: 18.72 | L106: 13.033 | M106: 20.512 | N106: 12.401 | O106: 30.948 | P106: =P152*P$32 -> 35.95494542 | Q106: 39.17518282 | R106: 33.5941901 | S106: 24.75589124 | T106: 18.87488005 | U106: 31.46117753 | V106: 31.95569302 | W106: 37.52861844 | X106: 33.71321398 | Y106: 39.24564243 | Z106: 27.91877354 | AA106: 28.43247897 | AB106: 28.95563659 | AC106: 29.4884203 | AD106: 30.03100723
B107: Business Support | E107: 9.075 | F107: 9.075 | G107: 24.6 | H107: 11.546 | I107: 20.902 | J107: 22.724 | K107: 19.903 | L107: 2.517 | M107: 10.415 | N107: 15.678 | O107: 5.245 | P107: =P153*P$32 -> 19.21787091 | Q107: 35.242893 | R107: 95.76637503 | S107: 9.185297577 | T107: 7.773024052 | U107: 31.80467971 | V107: 36.51766286 | W107: 24.8550376 | X107: 15.76501265 | Y107: 37.34018944 | Z107: 35.98554797 | AA107: 36.64768206 | AB107: 37.32199941 | AC107: 38.0087242 | AD107: 38.70808472
B108: Equity Raising Costs | E108: 0 | F108: 0 | G108: 0 | H108: 0 | I108: 0 | J108: 0 | K108: =(K85*K32/$J$32)*SUM(K136,K140:K153)/SUM(K113,K117:K130) -> 5.484702631 | L108: =(L85*L32/$J$32)*SUM(L136,L140:L153)/SUM(L113,L117:L130) -> 4.480711191 | M108: =(M85*M32/$J$32)*SUM(M136,M140:M153)/SUM(M113,M117:M130) -> 3.529921867 | N108: =(N85*N32/$J$32)*SUM(N136,N140:N153)/SUM(N113,N117:N130) -> 1.329817786 | O108: =(O85*O32/$J$32)*SUM(O136,O140:O153)/SUM(O113,O117:O130) -> 0 | P108: =Tax_Analysis!G211 -> 0 | Q108: =Tax_Analysis!H211 -> 0 | R108: =Tax_Analysis!I211 -> 0 | S108: =Tax_Analysis!J211 -> 0 | T108: =Tax_Analysis!K211 -> 0
B109: Total | E109: =SUM(E90:E108) -> 416.285916 | F109: 467.35 | G109: 635.0614954 | H109: 574.534 | I109: 572.878 | J109: 681.628 | K109: 779.4067026 | L109: 804.0337112 | M109: 835.6629219 | N109: 720.0398178 | O109: 540.216 | P109: 650.3361029 | Q109: 687.0507241 | R109: 711.7473593 | S109: 595.4196472 | T109: 612.5331765 | U109: 695.1760398 | V109: 718.8970387 | W109: 728.0380462 | X109: 736.5710687 | Y109: 779.0248765 | Z109: 791.2443434 | AA109: 805.8032393 | AB109: 820.6300189 | AC109: 835.7296113 | AD109: 851.1070361
B111: [APPROVED] Capital expenditure by regulatory category [$M real as at 30 June 2017]
B112: Growth | F112: Approved AA1 | I112: Approved AA2 | M112: Approved AA3
B113: Capacity Expansion | K113: =K67/$J$32 -> 62.69763724 | L113: 67.60535878 | M113: 75.08049694 | N113: 75.49386332 | O113: 84.17908148
B114: Customer Driven | K114: 223.7016743 | L114: 224.5384539 | M114: 230.8361627 | N114: 232.4713725 | O114: 239.69248
B115: Gifted Assets | K115: 69.99652515 | L115: 69.99652515 | M115: 69.99652515 | N115: 69.99652515 | O115: 69.99652515
B116: Asset replacement and renewal
B117: Asset Replacement | K117: =K71/$J$32 -> 46.4224666 | L117: 41.11735755 | M117: 38.71512957 | N117: 40.34627127 | O117: 40.48394518
B118: State Undergrounding Power Program (SUPP) | K118: 42.4274403 | L118: 20.49711573 | M118: 0 | N118: 0 | O118: 0
B119: Metering | K119: 14.85518931 | L119: 49.09700646 | M119: 48.67364556 | N119: 44.30178806 | O119: 17.77623655
B120: Smartgrid | K120: 2.730733329 | L120: 26.48800123 | M120: 29.31608077 | N120: 22.26390879 | O120: 17.20280957
B121: Wood Pole Management | K121: 181.4299224 | L121: 207.6925285 | M121: 219.5349255 | N121: 231.3412249 | O121: 245.0826936
B122: Improvement in service
B123: Reliability Driven | K123: =K77/$J$32 -> 0.6553759991 | L123: 0.6649707421 | M123: 0.6713606284 | N123: 0.6780885927 | O123: 0.6881123827
B124: Rural Power Improvement Program (RPIP) | K124: 0 | L124: 0 | M124: 0 | N124: 0 | O124: 0
B125: SCADA & Communications | K125: 5.679925325 | L125: 6.982192792 | M125: 7.720647226 | N125: 4.294561087 | O125: 7.683921607
B126: Compliance
B127: Safety, Environmental & Statutory | K127: =K81/$J$32 -> 124.5214398 | L127: =L81/$J$32 -> 124.3495288 | M127: =M81/$J$32 -> 124.7611834 | N127: =N81/$J$32 -> 93.46321103 | O127: =O81/$J$32 -> 100.8084641
B128: Corporate
B129: IT | K129: =K83/$J$32 -> 28.32217572 | L129: 27.28615755 | M129: 15.97107321 | N129: 16.69465828 | O129: 16.94144572
B130: Business Support | K130: 22.5351927 | L130: 22.03616268 | M130: 15.27364643 | N130: 15.42670955 | O130: 12.72395501
B131: Equity Raising Costs | K131: 5.530749116 | L131: 4.737968109 | M131: 3.79857986 | N131: 1.592624457 | O131: 0
B132: Total | K132: =SUM(K113:K131) -> 831.5064474 | L132: =SUM(L113:L131) -> 893.0893279 | M132: =SUM(M113:M131) -> 880.349457 | N132: =SUM(N113:N131) -> 848.364807 | O132: =SUM(O113:O131) -> 853.2596703
B134: [ACTUAL] Capital expenditure by regulatory category [$M real as at 30 June 2017]
B135: Growth | F135: Actual AA1 | I135: Actual AA2 | M135: Actual AA3 | R135: Proposed AA4 | W135: Forecast AA5 | AB135: Forecast AA6
B136: Capacity Expansion | E136: =E90/E$32 -> 95.83129916 | F136: 74.1974503 | G136: 72.79371871 | H136: 72.52425915 | I136: 38.39700465 | J136: 53.04338247 | K136: 52.19591148 | L136: 41.11370822 | M136: 26.93253767 | N136: 25.92989503 | O136: 35.492 | P136: 44.23061498 | Q136: 41.83879648 | R136: 34.07471396 | S136: 25.75847133 | T136: 28.33885682 | U136: 22.66646865 | V136: 32.59543762 | W136: 33.1812154 | X136: 34.76536625 | Y136: 34.62189935 | Z136: 35.43953755 | AA136: =Z136 -> 35.43953755 | AB136: 35.43953755 | AC136: 35.43953755 | AD136: 35.43953755
B137: Customer Driven | E137: =E91/E$32 -> 228.5853842 | F137: 228.9970168 | G137: 291.5395454 | H137: 234.701216 | I137: 260.4903041 | J137: 192.8793137 | K137: 202.9762033 | L137: 186.9471076 | M137: 153.6989693 | N137: 143.1669033 | O137: 131.167 | P137: 122.1344698 | Q137: 131.6727311 | R137: 120.5186566 | S137: 125.4491026 | T137: 125.4961051 | U137: 125.8685646 | V137: 126.1695096 | W137: 128.4369218 | X137: 130.0284948 | Y137: 130.1260751 | Z137: 132.5500123 | AA137: =Z137 -> 132.5500123 | AB137: 132.5500123 | AC137: 132.5500123 | AD137: 132.5500123
B138: Gifted Assets | E138: =E92/E$32 -> 27.77543529 | F138: 24.53107884 | G138: 85.71024679 | H138: 97.38707768 | I138: 60.18643185 | J138: 73.48870219 | K138: 62.01030642 | L138: 61.81847592 | M138: 152.27892 | N138: 126.1664006 | O138: 82.347 | P138: 80.2592 | Q138: 80.51923981 | R138: 80.78012214 | S138: 81.04184974 | T138: 81.30442533 | U138: 83.00591464 | V138: 83.58695604 | W138: 84.17206473 | X138: 84.76126919 | Y138: 85.35459807 | Z138: 85.95208026 | AA138: 85.95208026 | AB138: 85.95208026 | AC138: 85.95208026 | AD138: 85.95208026
B139: Asset replacement and renewal
B140: Asset Replacement | E140: =E94/E$32 -> 34.45971773 | F140: 47.61204465 | G140: 76.27758307 | H140: 92.59874293 | I140: 109.3621302 | J140: 196.2311863 | K140: 52.53296498 | L140: 47.25917847 | M140: 97.30581488 | N140: 139.4483619 | O140: 114.918 | P140: 73.36770593 | Q140: 76.47506084 | R140: 83.1187056 | S140: 90.24114044 | T140: 100.8989142 | U140: 106.970786 | V140: 100.8660644 | W140: 100.4483733 | X140: 108.5820897 | Y140: 110.9971633 | Z140: 104.1612305 | AA140: 104.1612305 | AB140: 104.1612305 | AC140: 104.1612305 | AD140: 104.1612305
B141: State Undergrounding Power Program (SUPP) | E141: =E95/E$32 -> 26.58709565 | F141: 26.58540564 | G141: 27.30694812 | H141: 24.36815107 | I141: 20.91035344 | J141: 36.79562151 | K141: 31.97162451 | L141: 19.82355807 | M141: 15.74102512 | N141: 10.97825967 | O141: 10.389 | P141: 39.80650748 | Q141: 51.10275449 | R141: 33.55284822 | S141: 8.617475385 | T141: 18.65428615 | U141: 18.70965015 | V141: 18.75438391 | W141: 19.09142192 | X141: 19.32800024 | Y141: 19.342505 | Z141: 19.70280955 | AA141: 19.70280955 | AB141: 19.70280955 | AC141: 19.70280955 | AD141: 19.70280955
B142: Metering | E142: =E96/E$32 -> 13.53956316 | F142: 14.98450136 | G142: 16.66819869 | H142: 12.88446918 | I142: 17.84028875 | J142: 15.52335956 | K142: 12.18776848 | L142: 12.04006232 | M142: 17.18269953 | N142: 27.00733425 | O142: 24.481 | P142: 20.84449588 | Q142: 27.05433676 | R142: 31.67142699 | S142: 32.20539633 | T142: 32.12731451 | U142: 39.4483556 | V142: 39.91696566 | W142: 41.01886534 | X142: 41.91800708 | Y142: 42.34366313 | Z142: 43.13242419 | AA142: 43.13242419 | AB142: 43.13242419 | AC142: 43.13242419 | AD142: 43.13242419
B143: Smartgrid | E143: =E97/E$32 -> 0 | F143: 0 | G143: 0 | H143: 0 | I143: 0 | J143: 4.42689741 | K143: 0.8410184825 | L143: 0.5738838527 | M143: -1.36856093 | N143: 0 | O143: 0 | P143: 0 | Q143: 0 | R143: 0 | S143: 0 | T143: 0 | U143: 0 | V143: 0 | W143: 0 | X143: 0 | Y143: 0 | Z143: 0 | AA143: 0 | AB143: 0 | AC143: 0 | AD143: 0
B144: Wood Pole Management | E144: =E98/E$32 -> 0 | F144: 0 | G144: 0 | H144: 0 | I144: 0 | J144: 0 | K144: 233.5210039 | L144: 295.2637649 | M144: 241.206547 | N144: 190.0502901 | O144: 81.72 | P144: 168.0138066 | Q144: 128.6983177 | R144: 120.5341915 | S144: 119.2330991 | T144: 108.8474982 | U144: 124.1312467 | V144: 123.4760898 | W144: 124.5074761 | X144: 119.4942949 | Y144: 117.3970711 | Z144: 129.2300548 | AA144: 129.2300548 | AB144: 129.2300548 | AC144: 129.2300548 | AD144: 129.2300548
B145: Improvement in service
B146: Reliability Driven | E146: =E100/E$32 -> 6.927474555 | F146: 22.8392803 | G146: 32.16497994 | H146: 10.79946896 | I146: 9.076324991 | J146: 10.04238645 | K146: 1.824180934 | L146: 0.09930594901 | M146: 0.186387907 | N146: 0.7910055249 | O146: 3.664 | P146: 4.382566495 | Q146: 6.03702366 | R146: 0 | S146: 0 | T146: 0 | U146: 2.157350085 | V146: 2.162508192 | W146: 2.20137097 | X146: 2.228650061 | Y146: 2.230322559 | Z146: 2.271868128 | AA146: 2.271868128 | AB146: 2.271868128 | AC146: 2.271868128 | AD146: 2.271868128
B147: Rural Power Improvement Program (RPIP) | E147: =E101/E$32 -> 12.14746302 | F147: 28.51888969 | G147: 28.42632995 | H147: 9.446068049 | I147: -0.2008036502 | J147: 0 | K147: 0 | L147: 0 | M147: 0 | N147: 0 | O147: 0 | U147: 0 | V147: 0 | W147: 0 | X147: 0 | Y147: 0 | Z147: 0 | AA147: 0 | AB147: 0 | AC147: 0 | AD147: 0
B148: SCADA & Communications | E148: =E102/E$32 -> 2.830399795 | F148: 2.537697811 | G148: 2.351298228 | H148: 3.770105711 | I148: 3.565380367 | J148: 3.81275498 | K148: 3.310231518 | L148: 2.626903683 | M148: 3.23655907 | N148: 3.773585635 | O148: 5.064 | P148: 3.338559363 | Q148: 3.749011442 | R148: 4.547153015 | S148: 4.219339639 | T148: 3.866157565 | U148: 15.77589059 | V148: 17.69923429 | W148: 14.82146401 | X148: 14.43571823 | Y148: 15.35217711 | Z148: 15.26582295 | AA148: 15.26582295 | AB148: 15.26582295 | AC148: 15.26582295 | AD148: 15.26582295
B149: Compliance
B150: Safety, Environmental & Statutory | E150: =E104/E$32 -> 42.88008974 | F150: 41.93243527 | G150: 69.20301213 | H150: 73.59218609 | I150: 68.13714083 | J150: 104.6688347 | K150: 138.4342267 | L150: 151.9725977 | M150: 118.6549535 | N150: 36.67370718 | O150: 14.781 | P150: 28.0322134 | Q150: 43.5478113 | R150: 42.58895868 | S150: 35.22094412 | T150: 35.30243688 | U150: 27.69415931 | V150: 27.26246367 | W150: 27.4304985 | X150: 27.56732955 | Y150: 27.59681 | Z150: 27.45615111 | AA150: 27.45615111 | AB150: 27.45615111 | AC150: 27.45615111 | AD150: 27.45615111
B151: Corporate
B152: IT | E152: =E106/E$32 -> 22.70383284 | F152: 41.05632531 | G152: 24.65496076 | H152: 18.61012942 | I152: 28.00653133 | J152: 35.58828586 | K152: 20.15859922 | L152: 13.62373088 | M152: 21.12258977 | N152: 12.64079834 | O152: 30.948 | P152: 35.30532739 | Q152: 37.77237134 | R152: 31.80599626 | S152: 23.01468333 | T152: 17.23027652 | U152: 28.20100785 | V152: 28.12674695 | W152: 32.43511571 | X152: 28.61110567 | Y152: 32.70450168 | Z152: 22.84515131 | AA152: 22.84515131 | AB152: 22.84515131 | AC152: 22.84515131 | AD152: 22.84515131
B153: Business Support | E153: =E107/E$32 -> 11.46084178 | F153: 10.96647983 | G153: 29.30009829 | H153: 13.34446368 | I153: 23.3177661 | J153: 25.05524701 | K153: 21.4325107 | L153: 2.631084986 | M153: 10.72502791 | N153: 15.98116575 | O153: 5.245 | P153: 18.87065093 | Q153: 33.98089161 | R153: 90.66880185 | S153: 8.539248816 | T153: 7.095745955 | U153: 28.50891456 | V153: 32.14209943 | W153: 21.48163333 | X153: 13.37915878 | Y153: 31.11663392 | Z153: 29.44596715 | AA153: 29.44596715 | AB153: 29.44596715 | AC153: 29.44596715 | AD153: 29.44596715
B154: Equity Raising Costs | E154: =E108/E$32 -> 0 | F154: 0 | G154: 0 | H154: 0 | I154: 0 | J154: 0 | K154: 5.906192425 | L154: 4.683802917 | M154: 3.63499861 | N154: 1.355532495 | O154: 0 | P154: =P108/P$32 -> 0 | Q154: 0 | R154: 0 | S154: 0 | T154: 0 | U154: 0 | V154: 0 | W154: 0 | X154: 0 | Y154: 0 | Z154: 0 | AA154: 0 | AB154: 0 | AC154: 0 | AD154: 0
B155: Total | E155: =SUM(E136:E154) -> 525.7285969 | F155: 564.7586058 | G155: 756.3969201 | H155: 664.026338 | I155: 639.088853 | J155: 751.5559721 | K155: 839.302743 | L155: 840.4771655 | M155: 860.5384693 | N155: 733.9632397 | O155: 540.216 | P155: 638.5861183 | Q155: 662.4483465 | R155: 673.8615748 | S155: 553.5407509 | T155: 559.1620173 | U155: 623.1383087 | V155: 632.7584596 | W155: 629.2264211 | X155: 625.0994844 | Y155: 649.1834203 | Z155: 647.4531098 | AA155: 647.4531098 | AB155: 647.4531098 | AC155: 647.4531098 | AD155: 647.4531098
E156: =IF(ROUND(E155-E109/E32,8)=0,"OK","CHECK") -> OK | F156: OK | G156: OK | H156: OK | I156: OK | J156: OK | K156: OK | L156: OK | M156: OK | N156: OK | O156: OK | P156: OK | Q156: OK | R156: OK | S156: OK | T156: OK | U156: OK | V156: OK | W156: OK | X156: OK | Y156: OK | Z156: OK | AA156: OK | AB156: OK | AC156: OK | AD156: OK
B157: Capital expenditure adjustments | F157: [$M real as at 30 June 2009] | I157: [$M real as at 30 June 2012] | M157: [$M real as at 30 June 2017]
B159: AA1 Distribution write down | E159: -46.595 | F159: -47.469 | G159: -55.048
B161: Growth
B162: Capacity Expansion | I162: -0.341980931 | J162: -0.375
B163: Customer Driven | J163: -0.582
B164: Gifted Assets
B165: Asset replacement and renewal
B166: Asset Replacement | J166: -0.638
B167: State Undergrounding Power Program (SUPP) | J167: -0.111
B168: Metering | J168: -0.047
B169: Smartgrid | J169: -0.013
B170: Wood Pole Management | M170: -10.5 | N170: -12.9 | O170: -5.52
B171: Improvement in service
B172: Reliability Driven | J172: -0.27 | N172: -0.29 | O172: -1.48
B173: Rural Power Improvement Program (RPIP)
B174: SCADA & Communications | J174: -0.012
B175: Compliance
B176: Safety, Environmental & Statutory | J176: -0.318
B177: Corporate
B178: IT | H178: -3.05414801 | I178: -3.05414801 | J178: -3.05414801
B179: Business Support | K179: =-2.651202*(2/3) -> -1.767468 | N179: -3.993
B180: Equity Raising Costs
B181: Total
B183: Capital expenditure adjustments [$M real as at 30 June 2017]
B184: Growth
B185: Capacity Expansion | E185: =(E$159*E136/(E$155-E$138))/$G$32 -> -10.68051435 | F185: -7.765265781 | G185: -7.116226198 | H185: =H162/$J$32 -> 0 | I185: -0.3770646321 | J185: -0.4134711155 | K185: =K162 -> 0 | L185: =L162 -> 0 | M185: 0 | N185: 0 | O185: 0
B186: Customer Driven | E186: -25.4761179 | F186: -23.96608901 | G186: -28.50055455 | H186: 0 | I186: 0 | J186: -0.6417071713 | K186: =K163 -> 0 | L186: 0 | M186: 0 | N186: 0 | O186: 0
B187: Gifted Assets | E187: 0 | F187: 0 | G187: 0 | H187: 0 | I187: 0 | J187: 0 | K187: =K164 -> 0 | L187: 0 | M187: 0 | N187: 0 | O187: 0
B188: Asset replacement and renewal
B189: Asset Replacement | E189: =(E$159*E140/(E$155-E$138))/$G$32 -> -3.840577274 | F189: -4.982922993 | G189: -7.456804578 | H189: =H166/$J$32 -> 0 | I189: 0 | J189: -0.7034521912 | K189: =K166 -> 0 | L189: 0 | M189: 0 | N189: 0 | O189: 0
B190: State Undergrounding Power Program (SUPP) | E190: -2.963164009 | F190: -2.782342788 | G190: -2.669494333 | H190: 0 | I190: 0 | J190: -0.1223874502 | K190: =K167 -> 0 | L190: 0 | M190: 0 | N190: 0 | O190: 0
B191: Metering | E191: -1.509000712 | F191: -1.568229571 | G191: -1.629463013 | H191: 0 | I191: 0 | J191: -0.05182171315 | K191: =K168 -> 0 | L191: 0 | M191: 0 | N191: 0 | O191: 0
B192: Smartgrid | E192: 0 | F192: 0 | G192: 0 | H192: 0 | I192: 0 | J192: -0.01433366534 | K192: =K169 -> 0 | L192: 0 | M192: 0 | N192: 0 | O192: 0
B193: Wood Pole Management | E193: 0 | F193: 0 | G193: 0 | H193: 0 | I193: 0 | J193: 0 | K193: =K170 -> 0 | L193: 0 | M193: -10.5 | N193: -12.9 | O193: -5.52
B194: Improvement in service
B195: Reliability Driven | E195: =(E$159*E146/(E$155-E$138))/$G$32 -> -0.7720754288 | F195: -2.390285395 | G195: -3.144409669 | H195: =H172/$J$32 -> 0 | I195: 0 | J195: -0.2976992032 | K195: =K172 -> 0 | L195: 0 | M195: 0 | N195: -0.29 | O195: -1.48
B196: Rural Power Improvement Program (RPIP) | E196: -1.353849465 | F196: -2.984694991 | G196: -2.778923751 | H196: 0 | I196: 0 | J196: 0 | K196: =K173 -> 0 | L196: 0 | M196: 0 | N196: 0 | O196: 0
B197: SCADA & Communications | E197: -0.3154514849 | F197: -0.2655872661 | G197: -0.2298600806 | H197: 0 | I197: 0 | J197: -0.0132310757 | K197: =K174 -> 0 | L197: 0 | M197: 0 | N197: 0 | O197: 0
B198: Compliance
B199: Safety, Environmental & Statutory | E199: =(E$159*E150/(E$155-E$138))/$G$32 -> -4.779037933 | F199: =(F$159*F150/(F$155-F$138))/$G$32 -> -4.388513397 | G199: =(G$159*G150/(G$155-G$138))/$G$32 -> -6.76520305 | H199: =H176/$J$32 -> 0 | I199: =I176/$J$32 -> 0 | J199: =J176/$J$32 -> -0.350623506 | K199: =K176 -> 0 | L199: 0 | M199: 0 | N199: 0 | O199: 0
B200: Corporate
B201: IT | E201: =(E$159*E152/(E$155-E$138))/$G$32 -> -2.530369666 | F201: -4.296822555 | G201: -2.410239245 | H201: =H178/$J$32 -> -3.367471959 | I201: -3.367471959 | J201: -3.367471959 | K201: =K178 -> 0 | L201: 0 | M201: 0 | N201: 0 | O201: 0
B202: Business Support | E202: -1.277324696 | F202: -1.1477164 | G202: -2.864342291 | H202: 0 | I202: 0 | J202: 0 | K202: =K179 -> -1.767468 | L202: 0 | M202: 0 | N202: -3.993 | O202: 0
B203: Equity Raising Costs | E203: 0 | F203: 0 | G203: 0 | H203: 0 | I203: 0 | J203: 0 | K203: =K180 -> 0 | L203: 0 | M203: 0 | N203: 0 | O203: 0
B204: Total | E204: =SUM(E185:E203) -> -55.49748292 | F204: -56.53847015 | G204: -65.56552076 | H204: -3.367471959 | I204: -3.744536591 | J204: -5.97619905 | K204: -1.767468 | L204: 0 | M204: -10.5 | N204: -17.183 | O204: -7
B206: [ACTUAL - POST ADJUSTMENT] Capital expenditure by regulatory category [$M real as at 30 June 2017]
B207: Growth
B208: Capacity Expansion | E208: =E136+E185 -> 85.15078481 | F208: 66.43218452 | G208: 65.67749251 | H208: 72.52425915 | I208: 38.01994002 | J208: 52.62991135 | K208: =K136+K185 -> 52.19591148 | L208: 41.11370822 | M208: 26.93253767 | N208: 25.92989503 | O208: 35.492
B209: Customer Driven | E209: 203.1092663 | F209: 205.0309278 | G209: 263.0389909 | H209: 234.701216 | I209: 260.4903041 | J209: 192.2376066 | K209: =K137+K186 -> 202.9762033 | L209: =L137+L186 -> 186.9471076 | M209: 153.6989693 | N209: 143.1669033 | O209: 131.167
B210: Gifted Assets | E210: 27.77543529 | F210: 24.53107884 | G210: 85.71024679 | H210: 97.38707768 | I210: 60.18643185 | J210: 73.48870219 | K210: =K138+K187 -> 62.01030642 | L210: 61.81847592 | M210: 152.27892 | N210: 126.1664006 | O210: 82.347
B211: Asset replacement and renewal
B212: Asset Replacement | E212: =E140+E189 -> 30.61914045 | F212: 42.62912166 | G212: 68.82077849 | H212: 92.59874293 | I212: 109.3621302 | J212: 195.5277341 | K212: 52.53296498 | L212: 47.25917847 | M212: 97.30581488 | N212: 139.4483619 | O212: 114.918
B213: State Undergrounding Power Program (SUPP) | E213: 23.62393164 | F213: 23.80306286 | G213: 24.63745379 | H213: 24.36815107 | I213: 20.91035344 | J213: 36.67323406 | K213: 31.97162451 | L213: 19.82355807 | M213: 15.74102512 | N213: 10.97825967 | O213: 10.389
B214: Metering | E214: 12.03056245 | F214: 13.41627179 | G214: 15.03873568 | H214: 12.88446918 | I214: 17.84028875 | J214: 15.47153785 | K214: 12.18776848 | L214: 12.04006232 | M214: 17.18269953 | N214: 27.00733425 | O214: 24.481
B215: Smartgrid | E215: 0 | F215: 0 | G215: 0 | H215: 0 | I215: 0 | J215: 4.412563745 | K215: 0.8410184825 | L215: 0.5738838527 | M215: -1.36856093 | N215: 0 | O215: 0
B216: Wood Pole Management | E216: 0 | F216: 0 | G216: 0 | H216: 0 | I216: 0 | J216: 0 | K216: 233.5210039 | L216: 295.2637649 | M216: 230.706547 | N216: 177.1502901 | O216: 76.2
... 476 more rows

Sheet Tx_Inputs
B1: Validation status | C1: =IF(COUNTIF(P6:P20,"CHECK")+COUNTIF(E138:AD138,"CHECK")+COUNTIF(E216:AD216,"CHECK")+COUNTIF(E291:AD291,"CHECK")+COUNTIF(K350:O350,"CHECK")+COUNTIF(K369:AD369,"CHECK")+COUNTIF(K386:O386,"CHECK")+COUNTIF(K420:AD420,"CHECK")+COUNTIF(K622:O622,"CHECK")+COUNTIF(E636:AD636,"CHECK")>0,"CHECK","OK") -> OK
B2: Allocation of capex and contributions from regulatory category to asset class
B3: % matrix
B4: Transmission
B5: Growth | C5: Transmission cables | D5: Transmission steel towers | E5: Transmission wood poles | F5: Transmission metering | G5: Transmission transformers | H5: Transmission reactors | I5: Transmission capacitors | J5: Transmission circuit breakers | K5: SCADA and communications | L5: IT | M5: Other non-network assets | N5: Land & Easements | O5: Equity raising costs
B6: Capacity Expansion | C6: 0.1288197122 | D6: 0.08158130026 | E6: 0.04427315722 | F6: 0 | G6: 0.3101397437 | H6: 0.04234319172 | I6: 0.03106847006 | J6: 0.09628261272 | K6: 0 | L6: 0 | M6: 0 | N6: 0.2654918121 | O6: 0 | P6: =IF(SUM(C6:O6)=1,"OK","CHECK") -> OK
B7: Customer Driven | C7: 0.08209495336 | D7: 0.09466179622 | E7: 0 | F7: 0 | G7: 0.3529123605 | H7: 0 | I7: 0.02874176457 | J7: 0.2004958335 | K7: 0 | L7: 0 | M7: 0 | N7: 0.2410932918 | O7: 0 | P7: =IF(SUM(C7:O7)=1,"OK","CHECK") -> OK
B8: Generation Driven
B9: Gifted Assets | C9: 0.08209495336 | D9: 0.09466179622 | E9: 0 | F9: 0 | G9: 0.3529123605 | H9: 0 | I9: 0.02874176457 | J9: 0.2004958335 | K9: 0 | L9: 0 | M9: 0 | N9: 0.2410932918 | O9: 0 | P9: =IF(SUM(C9:O9)=1,"OK","CHECK") -> OK
B10: Asset replacement and renewal
B11: Asset Replacement | C11: 0 | D11: 0 | E11: 0 | F11: 0 | G11: 0.5969092318 | H11: 0.0730424798 | I11: 0 | J11: 0.3300482884 | K11: 0 | L11: 0 | M11: 0 | N11: 0 | O11: 0 | P11: =IF(SUM(C11:O11)=1,"OK","CHECK") -> OK
B12: Improvement in service
B13: Reliability Driven | C13: 0 | D13: 0 | E13: 0.8472688889 | F13: 0 | G13: 0 | H13: 0 | I13: 0 | J13: 0.1527311111 | K13: 0 | L13: 0 | M13: 0 | N13: 0 | O13: 0 | P13: =IF(SUM(C13:O13)=1,"OK","CHECK") -> OK
B14: SCADA & Communications | C14: 0 | D14: 0 | E14: 0 | F14: 0 | G14: 0 | H14: 0 | I14: 0 | J14: 0 | K14: 1 | L14: 0 | M14: 0 | N14: 0 | O14: 0 | P14: =IF(SUM(C14:O14)=1,"OK","CHECK") -> OK
B15: Compliance
B16: Safety, Environmental & Statutory | C16: 0 | D16: 0 | E16: 1 | F16: 0 | G16: 0 | H16: 0 | I16: 0 | J16: 0 | K16: 0 | L16: 0 | M16: 0 | N16: 0 | O16: 0 | P16: =IF(SUM(C16:O16)=1,"OK","CHECK") -> OK
B17: Corporate
B18: IT | C18: 0 | D18: 0 | E18: 0 | F18: 0 | G18: 0 | H18: 0 | I18: 0 | J18: 0 | K18: 0 | L18: 1 | M18: 0 | N18: 0 | O18: 0 | P18: =IF(SUM(C18:O18)=1,"OK","CHECK") -> OK
B19: Business Support | C19: 0 | D19: 0 | E19: 0 | F19: 0 | G19: 0 | H19: 0 | I19: 0 | J19: 0 | K19: 0 | L19: 0 | M19: 0.6 | N19: 0.4 | O19: 0 | P19: =IF(SUM(C19:O19)=1,"OK","CHECK") -> OK
B20: Equity Raising Costs | C20: 0 | D20: 0 | E20: 0 | F20: 0 | G20: 0 | H20: 0 | I20: 0 | J20: 0 | K20: 0 | L20: 0 | M20: 0 | N20: 0 | O20: 1 | P20: =IF(SUM(C20:O20)=1,"OK","CHECK") -> OK
B22: Inflation
B23: Year ending 30 June | D23: 2006 | E23: 2007 | F23: 2008 | G23: 2009 | H23: 2010 | I23: 2011 | J23: 2012 | K23: 2013 | L23: 2014 | M23: 2015 | N23: 2016 | O23: 2017 | P23: 2018 | Q23: 2019 | R23: 2020 | S23: 2021 | T23: 2022 | U23: 2023 | V23: 2024 | W23: 2025 | X23: 2026 | Y23: 2027 | Z23: 2028 | AA23: 2029 | AB23: 2030 | AC23: 2031 | AD23: 2032
B24: Actual and Forecast Inflation
B25: June CPI | C25: =Dx_Inputs!C29 -> 148.4 | D25: =Dx_Inputs!D29 -> 154.3 | E25: =Dx_Inputs!E29 -> 157.5 | F25: =Dx_Inputs!F29 -> 164.6 | G25: =Dx_Inputs!G29 -> 167 | H25: =Dx_Inputs!H29 -> 172.1 | I25: =Dx_Inputs!I29 -> 178.3 | J25: =Dx_Inputs!J29 -> 180.4
B26: June CPI (rebased) | J26: =Dx_Inputs!J30 -> 100.4 | K26: =Dx_Inputs!K30 -> 102.8 | L26: =Dx_Inputs!L30 -> 105.9 | M26: =Dx_Inputs!M30 -> 107.5 | N26: =Dx_Inputs!N30 -> 108.6 | O26: =Dx_Inputs!O30 -> 110.7 | P26: =Dx_Inputs!P30 -> 113 | Q26: =Dx_Inputs!Q30 -> 0 | R26: =Dx_Inputs!R30 -> 0 | S26: =Dx_Inputs!S30 -> 0 | T26: =Dx_Inputs!T30 -> 0 | U26: =Dx_Inputs!U30 -> 0 | V26: =Dx_Inputs!V30 -> 0 | W26: =Dx_Inputs!W30 -> 0 | X26: =Dx_Inputs!X30 -> 0 | Y26: =Dx_Inputs!Y30 -> 0 | Z26: =Dx_Inputs!Z30 -> 0 | AA26: =Dx_Inputs!AA30 -> 0 | AB26: =Dx_Inputs!AB30 -> 0 | AC26: =Dx_Inputs!AC30 -> 0 | AD26: =Dx_Inputs!AD30 -> 0
B27: Actual & Forecast Inflation | D27: =Dx_Inputs!D31 -> 0.0397574124 | E27: =Dx_Inputs!E31 -> 0.02073882048 | F27: =Dx_Inputs!F31 -> 0.04507936508 | G27: =Dx_Inputs!G31 -> 0.01458080194 | H27: =Dx_Inputs!H31 -> 0.03053892216 | I27: =Dx_Inputs!I31 -> 0.03602556653 | J27: =Dx_Inputs!J31 -> 0.01177790241 | K27: =Dx_Inputs!K31 -> 0.02390438247 | L27: =Dx_Inputs!L31 -> 0.03015564202 | M27: =Dx_Inputs!M31 -> 0.01510859301 | N27: =Dx_Inputs!N31 -> 0.01023255814 | O27: =Dx_Inputs!O31 -> 0.01933701657 | P27: =Dx_Inputs!P31 -> 0.0184 | Q27: =Dx_Inputs!Q31 -> 0.0184 | R27: =Dx_Inputs!R31 -> 0.0184 | S27: =Dx_Inputs!S31 -> 0.0184 | T27: =Dx_Inputs!T31 -> 0.0184 | U27: =Dx_Inputs!U31 -> 0.0184 | V27: =Dx_Inputs!V31 -> 0.0184 | W27: =Dx_Inputs!W31 -> 0.0184 | X27: =Dx_Inputs!X31 -> 0.0184 | Y27: =Dx_Inputs!Y31 -> 0.0184 | Z27: =Dx_Inputs!Z31 -> 0.0184 | AA27: =Dx_Inputs!AA31 -> 0.0184 | AB27: =Dx_Inputs!AB31 -> 0.0184 | AC27: =Dx_Inputs!AC31 -> 0.0184 | AD27: =Dx_Inputs!AD31 -> 0.0184
B28: End of year Inflation factor | D28: =Dx_Inputs!D32 -> 0.7757387478 | E28: =Dx_Inputs!E32 -> 0.7918266544 | F28: =Dx_Inputs!F32 -> 0.8275216972 | G28: =Dx_Inputs!G32 -> 0.8395876272 | H28: =Dx_Inputs!H32 -> 0.8652277284 | I28: =Dx_Inputs!I32 -> 0.8963980475 | J28: =Dx_Inputs!J32 -> 0.9069557362 | K28: =Dx_Inputs!K32 -> 0.928635953 | L28: =Dx_Inputs!L32 -> 0.9566395664 | M28: =Dx_Inputs!M32 -> 0.9710930443 | N28: =Dx_Inputs!N32 -> 0.9810298103 | O28: =Dx_Inputs!O32 -> 1 | P28: =Dx_Inputs!P32 -> 1.0184 | Q28: =Dx_Inputs!Q32 -> 1.03713856 | R28: =Dx_Inputs!R32 -> 1.05622191 | S28: =Dx_Inputs!S32 -> 1.075656393 | T28: =Dx_Inputs!T32 -> 1.09544847 | U28: =Dx_Inputs!U32 -> 1.115604722 | V28: =Dx_Inputs!V32 -> 1.136131849 | W28: =Dx_Inputs!W32 -> 1.157036675 | X28: =Dx_Inputs!X32 -> 1.17832615 | Y28: =Dx_Inputs!Y32 -> 1.200007351 | Z28: =Dx_Inputs!Z32 -> 1.222087486 | AA28: =Dx_Inputs!AA32 -> 1.244573896 | AB28: =Dx_Inputs!AB32 -> 1.267474056 | AC28: =Dx_Inputs!AC32 -> 1.290795578 | AD28: =Dx_Inputs!AD32 -> 1.314546217
B30: Initial capital base - asset data
C33: Remaining life @ 30 June 2006 | D33: Standard life (AA1/AA2) | E33: Standard life (AA3) | F33: Standard life (AA4+) | G33: ICB ($M @ 30 June 2006) | H33: ICB ($M @ 30 June 2017) | J33: Tax life | K33: Tax ICB @ 30 June 2012
B34: Transmission cables | C34: 38.1 | D34: 55 | E34: 55 | F34: 55 | G34: 12.08660829 | H34: =G34/D$28 -> 15.58077165 | J34: 47.5 | K34: 1328.902758
B35: Transmission steel towers | C35: 41.3 | D35: 60 | E35: 60 | F35: 60 | G35: 365.1878518 | H35: 470.7613909 | J35: 47.5 | K35: 58.78918677
B36: Transmission wood poles | C36: 20.9 | D36: 45 | E36: 45 | F36: 45 | G36: 172.740829 | H36: 222.6791294 | J36: 47.5 | K36: 9.139871168
B37: Transmission metering | C37: 26.1 | D37: 40 | E37: 40 | F37: 40 | G37: 2.126729009 | H37: 2.741553152 | J37: 25 | K37: 0
B38: Transmission transformers | C38: 25.5 | D38: 50 | E38: 50 | F38: 50 | G38: 154.909869 | H38: 199.6933497 | J38: 40 | K38: 165.4964765
B39: Transmission reactors | C39: 27 | D39: 50 | E39: 50 | F39: 50 | G39: 3.932879594 | H39: 5.069850649 | J39: 40 | K39: 1.929584197
B40: Transmission capacitors | C40: 23.1 | D40: 40 | E40: 40 | F40: 40 | G40: 76.25847891 | H40: 98.30433136 | J40: 40 | K40: 12.78949966
B41: Transmission circuit breakers | C41: 28.2 | D41: 50 | E41: 50 | F41: 50 | G41: 455.2650729 | H41: 586.8793768 | J41: 40 | K41: 23.55868953
B42: SCADA and communications | C42: 11.4 | D42: 34.15 | E42: 11 | F42: 11 | G42: 33.89058198 | H42: 43.68813866 | J42: 12.5 | K42: 72.73476178
B43: IT | C43: 4.2 | D43: 16.85 | E43: 6 | F43: 6 | G43: 2.679569855 | H43: 3.454216852 | J43: 4 | K43: 18.76923065
B44: Other non-network assets | C44: 12 | D44: 16.85 | E44: 16.85 | F44: 27 | G44: 24.49947447 | H44: 31.58212032 | J44: 12.5 | K44: 151.0024198
B45: Land & Easements | C45: 0 | D45: 0 | E45: 0 | F45: 0 | G45: 82.98579328 | H45: 106.9764705 | J45: 0 | K45: 200.1478209
B46: Equity raising costs | C46: 0 | D46: 0 | E46: =ROUND(SUMPRODUCT(Tx_Asset!M15:M25,E34:E44)/SUM(Tx_Asset!M15:M25),0) -> 49 | F46: =ROUND(SUMPRODUCT(Tx_Asset!R15:R25,F34:F44)/SUM(Tx_Asset!R15:R25),0) -> 49 | G46: 0 | H46: 0 | J46: 5 | K46: 0
B47: Total | G47: =SUM(G34:G46) -> 1386.563738 | H47: =SUM(H34:H46) -> 1787.4107 | K47: =SUM(K34:K46) -> 2043.260298
B49: Working capital assumptions
C52: Input
B53: 2017 Closing balance (real as at 30 June 2012) | C53: 16.594
B55: Receivables | C55: 45 | D55: days
B56: TEC | C56: 0 | D56: days
B57: Inventory % capex | C57: 0.04 | D57: Percent
B58: Prepayments | C58: 0
B59: Creditors | C59: -26.09 | D59: Days
B61: Capital expenditure
B62: Year ending 30 June | D62: 2006 | E62: 2007 | F62: 2008 | G62: 2009 | H62: 2010 | I62: 2011 | J62: 2012 | K62: 2013 | L62: 2014 | M62: 2015 | N62: 2016 | O62: 2017 | P62: 2018 | Q62: 2019 | R62: 2020 | S62: 2021 | T62: 2022 | U62: 2023 | V62: 2024 | W62: 2025 | X62: 2026 | Y62: 2027 | Z62: 2028 | AA62: 2029 | AB62: 2030 | AC62: 2031 | AD62: 2032
B63: [APPROVED] Capital expenditure by regulatory category [$M real] | M63: [$M real as at 30 June 2012]
B64: Growth | F64: Approved AA1 | I64: Approved AA2 | M64: Approved AA3
B65: Capacity Expansion | K65: 192.6843523 | L65: 271.1514459 | M65: 130.3389167 | N65: 140.0374611 | O65: 221.3558819
B66: Customer Driven | K66: 33.74697695 | L66: 58.10388126 | M66: 58.63732148 | N66: 59.18371532 | O66: 60.03047101
B67: Generation Driven | K67: 0 | L67: 0 | M67: 0 | N67: 0 | O67: 0
B68: Gifted Assets | K68: 0 | L68: 0 | M68: 0 | N68: 0 | O68: 0
B69: Asset replacement and renewal
B70: Asset Replacement | K70: 30.38217573 | L70: 33.21655388 | M70: 33.62278192 | N70: 33.93608547 | O70: 35.76945164
B71: Improvement in service
B72: Reliability Driven | K72: 0 | L72: 0 | M72: 0 | N72: 0 | O72: 0
B73: SCADA & Communications | K73: 14.05299334 | L73: 11.94190306 | M73: 13.0642737 | N73: 18.70573386 | O73: 18.66232259
B74: Compliance
B75: Safety, Environmental & Statutory | K75: 17.91261827 | L75: 19.56866467 | M75: 24.6094458 | N75: 30.15405185 | O75: 30.68915271
B76: Corporate
B77: IT | K77: 15.50867235 | L77: 14.93222309 | M77: 8.736386449 | N77: 9.125838976 | O77: 9.256404555
B78: Business Support | K78: 12.33983305 | L78: 12.05918776 | M78: 8.354884858 | N78: 8.432737281 | O78: 6.952067556
B79: Equity Raising Costs | K79: 0.7674487754 | L79: 2.300863536 | M79: 0.4311487214 | N79: 1.377294408 | O79: 3.454061022
B80: Total | K80: =SUM(K65:K79) -> 317.3950707 | L80: =SUM(L65:L79) -> 423.2747231 | M80: =SUM(M65:M79) -> 277.7951596 | N80: =SUM(N65:N79) -> 300.9529183 | O80: =SUM(O65:O79) -> 386.169813
B82: [ACTUAL] Capital expenditure by regulatory category [$M nominal]
B83: Growth | F83: Actual AA1 | I83: Actual AA2 | M83: Actual AA3 | R83: Proposed AA4 | W83: Forecast AA5 | AB83: Forecast AA6
B84: Capacity Expansion | E84: 118.4 | F84: 105.97 | G84: 124.1430761 | H84: 103.074 | I84: 56 | J84: 42.519 | K84: 113.767 | L84: 206.206 | M84: 87.848 | N84: 27.304 | O84: 31.275 | P84: =P122*P$28 -> 26.11597786 | Q84: 23.40398814 | R84: 2.818704099 | S84: 3.643079216 | T84: 0.4209788706 | U84: 55.02106854 | V84: 84.3559641 | W84: 26.42857754 | X84: 19.25720074 | Y84: 52.98761378 | Z84: 18.364873 | AA84: 18.70278666 | AB84: 19.04691794 | AC84: 19.39738123 | AD84: 19.75429304
B85: Customer Driven | E85: 17.9 | F85: 73.4 | G85: 40.87462505 | H85: 49.887 | I85: 43.274 | J85: 58.145 | K85: 37.628 | L85: 40.311 | M85: -17.366 | N85: 5.057 | O85: 6.474 | P85: =P123*P$28 -> 23.50778556 | Q85: 23.61225675 | R85: 24.05827763 | S85: 25.50328944 | T85: 25.98228119 | U85: 26.53888678 | V85: 27.09182288 | W85: 28.0861423 | X85: 28.95737092 | Y85: 29.51231756 | Z85: 30.6152033 | AA85: 31.17852304 | AB85: 31.75220786 | AC85: 32.33644849 | AD85: 32.93143914
B86: Generation Driven | E86: 112.7 | F86: 88.1 | G86: 95.63175249 | H86: 26.614 | I86: 13.076 | J86: 0 | K86: 0 | L86: 0 | M86: 0 | N86: 0 | O86: 0 | P86: =P124*P$28 -> 0 | Q86: 0 | R86: 0 | S86: 0 | T86: 0 | U86: 0 | V86: 0 | W86: 0 | X86: 0 | Y86: 0 | Z86: 0 | AA86: 0 | AB86: 0 | AC86: 0 | AD86: 0
B87: Gifted Assets | H87: 1.486 | I87: 0 | J87: 0 | K87: 0 | L87: 0 | M87: 0 | N87: 0 | O87: 0 | P87: =P125*P$28 -> 0 | Q87: 0 | R87: 0 | S87: 0 | T87: 0 | U87: 0 | V87: 0 | W87: 0 | X87: 0 | Y87: 0 | Z87: 0 | AA87: 0 | AB87: 0 | AC87: 0 | AD87: 0
B88: Asset replacement and renewal
B89: Asset Replacement | E89: 12.9 | F89: 11.4 | G89: 24.70372921 | H89: 5.308 | I89: 31.569 | J89: 27.327 | K89: 26.027 | L89: 42.594 | M89: 37.761 | N89: 40.725 | O89: 33.356 | P89: =P127*P$28 -> 30.71555627 | Q89: 61.45495474 | R89: 55.73267008 | S89: 49.3180318 | T89: 60.23700234 | U89: 44.28494775 | V89: 39.60307722 | W89: 44.31107411 | X89: 45.58454062 | Y89: 54.84659443 | Z89: 40.71892397 | AA89: 41.46815218 | AB89: 42.23116618 | AC89: 43.00821963 | AD89: 43.79957087
B90: Improvement in service
B91: Reliability Driven | E91: 4.78 | F91: 5.1 | G91: 7.05048533 | H91: 1.667 | I91: 1.313 | J91: 0.234 | K91: 1.217 | L91: 0.269 | M91: 0.186 | N91: 0 | O91: 0 | P91: =P129*P$28 -> 0 | Q91: 0 | R91: 0 | S91: 0 | T91: 0 | U91: 0 | V91: 0 | W91: 0 | X91: 0 | Y91: 0 | Z91: 0 | AA91: 0 | AB91: 0 | AC91: 0 | AD91: 0
B92: SCADA & Communications | E92: 5.523 | F92: 3.8 | G92: 4.60468232 | H92: 9.357 | I92: 5.655 | J92: 12.977 | K92: 5.674 | L92: 10.502 | M92: 12.725 | N92: 16.462 | O92: 11.455 | P92: =P130*P$28 -> 9.338609819 | Q92: 16.03034705 | R92: 18.86210785 | S92: 17.73161192 | T92: 13.94241646 | U92: 23.69733288 | V92: 27.80811115 | W92: 27.97713633 | X92: 21.99829231 | Y92: 19.43689038 | Z92: 27.01050853 | AA92: 27.50750189 | AB92: 28.01363992 | AC92: 28.5290909 | AD92: 29.05402617
B93: Compliance
B94: Safety, Environmental & Statutory | E94: 3.9 | F94: 5.7 | G94: 6.60065994 | H94: 10.985 | I94: 11.146 | J94: 18.355 | K94: 20.818 | L94: 18.788 | M94: 25.401 | N94: 22.262 | O94: 21.036 | P94: =P132*P$28 -> 27.37301537 | Q94: 41.11710241 | R94: 39.85834563 | S94: 34.0660624 | T94: 35.20184956 | U94: 32.92155207 | V94: 39.89411187 | W94: 39.22682548 | X94: 38.89580471 | Y94: 40.47366503 | Z94: 39.28451649 | AA94: 40.0073516 | AB94: 40.74348687 | AC94: 41.49316703 | AD94: 42.2566413
B95: Corporate
B96: IT | E96: 5.9925 | F96: 11.325 | G96: 6.9 | H96: 10.176 | I96: 14.878 | J96: 17.465 | K96: 9.44 | L96: 6.407 | M96: 9.263 | N96: 5.167 | O96: 12.331 | P96: =P134*P$28 -> 14.32598009 | Q96: 15.60905969 | R96: 13.38535473 | S96: 9.863800405 | T96: 7.520555316 | U96: 13.10861255 | V96: 13.31465735 | W96: 15.63667216 | X96: 14.04694594 | Y96: 16.35208729 | Z96: 11.6326347 | AA96: 11.84667518 | AB96: 12.064654 | AC96: 12.28664363 | AD96: 12.51271788
B97: Business Support | E97: 3.025 | F97: 3.025 | G97: 8.2 | H97: 7.297 | I97: 12.388 | J97: 14.143 | K97: 10.923 | L97: 1.804 | M97: 5.134 | N97: 7.03 | O97: 2.265 | P97: =P135*P$28 -> 8.299042442 | Q97: 15.21928554 | R97: 41.35573678 | S97: 3.966577505 | T97: 3.356701521 | U97: 14.26118755 | V97: 16.37448462 | W97: 11.14497476 | X97: 7.069016388 | Y97: 16.74330474 | Z97: 16.13588482 | AA97: 16.4327851 | AB97: 16.73514835 | AC97: 17.04307508 | AD97: 17.35666766
B98: Equity Raising Costs | E98: 0 | F98: 0 | G98: 0 | H98: 0 | I98: 0 | J98: 0 | K98: =(K79*K28/$J$28)*SUM(K122,K127:K135)/SUM(K103,K107:K116) -> 0.509676198 | L98: =(L79*L28/$J$28)*SUM(L122,L127:L135)/SUM(L103,L107:L116) -> 1.817065348 | M98: =(M79*M28/$J$28)*SUM(M122,M127:M135)/SUM(M103,M107:M116) -> 0.3514960974 | N98: =(N79*N28/$J$28)*SUM(N122,N127:N135)/SUM(N103,N107:N116) -> 0.6815086701 | O98: =(O79*O28/$J$28)*SUM(O122,O127:O135)/SUM(O103,O107:O116) -> 1.19584255 | P98: =Tax_Analysis!G212 -> 0 | Q98: =Tax_Analysis!H212 -> 0 | R98: =Tax_Analysis!I212 -> 0 | S98: =Tax_Analysis!J212 -> 0 | T98: =Tax_Analysis!K212 -> 0
B99: Total | E99: =SUM(E84:E98) -> 285.1205 | F99: 307.82 | G99: 318.7090104 | H99: 225.851 | I99: 189.299 | J99: 191.165 | K99: =SUM(K84:K98) -> 226.0036762 | L99: 328.6980653 | M99: 161.3034961 | N99: 124.6885087 | O99: 119.3878426 | P99: 139.6759674 | Q99: =SUM(Q84:Q98) -> 196.4469943 | R99: 196.0711968 | S99: 144.0924527 | T99: 146.6617853 | U99: 209.8335881 | V99: 248.4422292 | W99: 192.8114027 | X99: 175.8091716 | Y99: 230.3524732 | Z99: 183.7625448 | AA99: 187.1437756 | AB99: 190.5872211 | AC99: 194.094026 | AD99: 197.6653561
B101: [APPROVED] Capital expenditure by regulatory category [$M real as at 30 June 2017]
B102: Growth | F102: Approved AA1 | I102: Approved AA2 | M102: Approved AA3
B103: Capacity Expansion | K103: =K65/$J$28 -> 212.4517709 | L103: 298.9687755 | M103: 143.7103394 | N103: 154.403854 | O103: 244.0647024
B104: Customer Driven | K104: 37.20906722 | L104: 64.06473761 | M104: 64.65290327 | N104: 65.25535145 | O104: 66.18897551
B105: Generation Driven | K105: 0 | L105: 0 | M105: 0 | N105: 0 | O105: 0
B106: Gifted Assets | K106: 0 | L106: 0 | M106: 0 | N106: 0 | O106: 0
B107: Asset replacement and renewal
B108: Asset Replacement | K108: =K70/$J$28 -> 33.49907225 | L108: =L70/$J$28 -> 36.62422823 | M108: =M70/$J$28 -> 37.07213106 | N108: =N70/$J$28 -> 37.41757631 | O108: =O70/$J$28 -> 39.43902686
B109: Improvement in service
B110: Reliability Driven | K110: =K72/$J$28 -> 0 | L110: 0 | M110: 0 | N110: 0 | O110: 0
B111: SCADA & Communications | K111: 15.49468488 | L111: 13.16701861 | M111: 14.40453285 | N111: 20.62474839 | O111: 20.57688358
B112: Compliance
B113: Safety, Environmental & Statutory | K113: =K75/$J$28 -> 19.75026735 | L113: =L75/$J$28 -> 21.57620697 | M113: =M75/$J$28 -> 27.13412002 | N113: =N75/$J$28 -> 33.24754521 | O113: =O75/$J$28 -> 33.83754188
B114: Corporate
B115: IT | K115: =K77/$J$28 -> 17.09970148 | L115: 16.4641145 | M115: 9.632649202 | N115: 10.06205552 | O115: 10.20601578
B116: Business Support | K116: 13.60577209 | L116: 13.29633551 | M116: 9.212009499 | N116: 9.297848775 | O116: 7.665277674
B117: Equity Raising Costs | K117: 0.8461810701 | L117: 2.536908301 | M117: 0.4753801142 | N117: 1.518590548 | O117: 3.808411904
B118: Total | K118: =SUM(K103:K117) -> 349.9565172 | L118: =SUM(L103:L117) -> 466.6983252 | M118: =SUM(M103:M117) -> 306.2940654 | N118: =SUM(N103:N117) -> 331.8275702 | O118: =SUM(O103:O117) -> 425.7868356
B120: [ACTUAL] Capital expenditure by regulatory category [$M real as at 30 June 2017]
B121: Growth | F121: Actual AA1 | I121: Actual AA2 | M121: Actual AA3 | R121: Proposed AA4 | W121: Forecast AA5 | AB121: Forecast AA6
B122: Capacity Expansion | E122: =E84/E$28 -> 149.5276767 | F122: 128.0570653 | G122: 147.8619647 | H122: 119.1293305 | I122: 62.47224674 | J122: 46.88100896 | K122: 122.5097947 | L122: 215.5524476 | M122: 90.46301023 | N122: 27.8319779 | O122: 31.275 | P122: 25.64412594 | Q122: 22.56592228 | R122: 2.668666569 | S122: 3.3868429 | T122: 0.3842981957 | U122: 49.3195013 | V122: 74.24839307 | W122: 22.84160745 | X122: 16.34284424 | Y122: 44.15607432 | Z122: 15.02746179 | AA122: =Z122 -> 15.02746179 | AB122: 15.02746179 | AC122: 15.02746179 | AD122: 15.02746179
B123: Customer Driven | E123: =E85/E$28 -> 22.60595788 | F123: 88.69858065 | G123: 48.68416795 | H123: 57.65765285 | I123: 48.27542867 | J123: 64.1100747 | K123: 40.51964591 | L123: 42.13812748 | M123: -17.8829414 | N123: 5.154787293 | O123: 6.474 | P123: 23.0830573 | Q123: 22.76673307 | R123: 22.77767334 | S123: 23.7095132 | T123: 23.71839653 | U123: 23.78879029 | V123: 23.845668 | W123: 24.27420228 | X123: 24.57500491 | Y123: 24.59344731 | Z123: 25.05156435 | AA123: =Z123 -> 25.05156435 | AB123: 25.05156435 | AC123: 25.05156435 | AD123: 25.05156435
B124: Generation Driven | E124: =E86/E$28 -> 142.3291315 | F124: 106.4624653 | G124: 113.9032418 | H124: 30.759532 | I124: 14.58726961 | J124: 0 | K124: 0 | L124: 0 | M124: 0 | N124: 0 | O124: 0 | U124: 0 | V124: 0 | W124: 0 | X124: 0 | Y124: 0 | Z124: 0 | AA124: 0 | AB124: 0 | AC124: 0 | AD124: 0
B125: Gifted Assets | E125: =E87/E$28 -> 0 | F125: 0 | G125: 0 | H125: 1.717466918 | I125: 0 | J125: 0 | K125: 0 | L125: 0 | M125: 0 | N125: 0 | O125: 0 | U125: 0 | V125: 0 | W125: 0 | X125: 0 | Y125: 0 | Z125: 0 | AA125: 0 | AB125: 0 | AC125: 0 | AD125: 0
B126: Asset replacement and renewal
B127: Asset Replacement | E127: =E89/E$28 -> 16.29144451 | F127: 13.77607383 | G127: 29.4236461 | H127: 6.134801077 | I127: 35.21761352 | J127: 30.13046713 | K127: 28.02712938 | L127: 44.52460623 | M127: 38.88504837 | N127: 41.5125 | O127: 33.356 | P127: 30.16060121 | Q127: 59.25433409 | R127: 52.76606136 | S127: 45.84924343 | T127: 54.98843987 | U127: 39.69591279 | V127: 34.85781801 | W127: 38.29703506 | X127: 38.68584315 | Y127: 45.70521538 | Z127: 33.31915631 | AA127: 33.31915631 | AB127: 33.31915631 | AC127: 33.31915631 | AD127: 33.31915631
B128: Improvement in service
B129: Reliability Driven | E129: =E91/E$28 -> 6.036674787 | F129: 6.162980399 | G129: 8.397557445 | H129: 1.926660398 | I129: 1.464751071 | J129: 0.2580059761 | K129: 1.310524319 | L129: 0.2811926346 | M129: 0.1915367442 | N129: 0 | O129: 0 | U129: 0 | V129: 0 | W129: 0 | X129: 0 | Y129: 0 | Z129: 0 | AA129: 0 | AB129: 0 | AC129: 0 | AD129: 0
B130: SCADA & Communications | E130: =E92/E$28 -> 6.975011474 | F130: 4.592024611 | G130: 5.484457096 | H130: 10.81449391 | I130: 6.308581345 | J130: 14.30830578 | K130: 6.110036965 | L130: 10.97801133 | M130: 13.1037907 | N130: 16.78032597 | O130: 11.455 | P130: 9.169883954 | Q130: 15.45632153 | R130: 17.85809183 | S130: 16.48445735 | T130: 12.72758768 | U130: 21.24169288 | V130: 24.47613028 | W130: 24.17999095 | X130: 18.66910304 | Y130: 16.19730943 | Z130: 22.10194346 | AA130: 22.10194346 | AB130: 22.10194346 | AC130: 22.10194346 | AD130: 22.10194346
B131: Compliance
B132: Safety, Environmental & Statutory | E132: =E94/E$28 -> 4.925320433 | F132: 6.888036917 | G132: 7.861788009 | H132: 12.69607947 | I132: 12.43420825 | J132: 20.23803287 | K132: 22.41782685 | L132: 19.63958074 | M132: 26.15712279 | N132: 22.69248066 | O132: 21.036 | P132: 26.87845185 | Q132: 39.64475336 | R132: 37.73671543 | S132: 31.67002272 | T132: 32.13464669 | U132: 29.51005084 | V132: 35.11398074 | W132: 33.90283673 | X132: 33.00937072 | Y132: 33.72784758 | Z132: 32.1454208 | AA132: 32.1454208 | AB132: 32.1454208 | AC132: 32.1454208 | AD132: 32.1454208
B133: Corporate
B134: IT | E134: =E96/E$28 -> 7.56794428 | F134: 13.68544177 | G134: 8.218320252 | H134: 11.76106552 | I134: 16.59753727 | J134: 19.25672809 | K134: 10.16544747 | L134: 6.697402266 | M134: 9.538735814 | N134: 5.266914365 | O134: 12.331 | P134: 14.06714463 | Q134: 15.05011991 | R134: 12.67286222 | S134: 9.170029084 | T134: 6.865275292 | U134: 11.75023043 | V134: 11.71928889 | W134: 13.51441359 | X134: 11.92110176 | Y134: 13.62665593 | Z134: 9.51865953 | AA134: 9.51865953 | AB134: 9.51865953 | AC134: 9.51865953 | AD134: 9.51865953
B135: Business Support | E135: =E97/E$28 -> 3.820280592 | F135: 3.655493276 | G135: 9.76669943 | H135: 8.433617833 | I135: 13.81975344 | J135: 15.5939253 | K135: 11.76241342 | L135: 1.885767705 | M135: 5.286826047 | N135: 7.165939227 | O135: 2.265 | P135: 8.14909902 | Q135: 14.67430305 | R135: 39.15440156 | S135: 3.687587906 | T135: 3.064225851 | U135: 12.78336965 | V135: 14.41248622 | W135: 9.632343558 | X135: 5.999201825 | Y135: 13.95266848 | Z135: 13.20354312 | AA135: 13.20354312 | AB135: 13.20354312 | AC135: 13.20354312 | AD135: 13.20354312
B136: Equity Raising Costs | E136: =E98/E$28 -> 0 | F136: 0 | G136: 0 | H136: 0 | I136: 0 | J136: 0 | K136: 0.5488439214 | L136: 1.89942525 | M136: 0.361959237 | N136: 0.6946870145 | O136: 1.19584255 | P136: =P98/P$28 -> 0 | Q136: 0 | R136: 0 | S136: 0 | T136: 0 | U136: 0 | V136: 0 | W136: 0 | X136: 0 | Y136: 0 | Z136: 0 | AA136: 0 | AB136: 0 | AC136: 0 | AD136: 0
B137: Total | E137: =SUM(E122:E136) -> 360.0794422 | F137: 371.9781621 | G137: 379.6018427 | H137: 261.0307005 | I137: 211.1773899 | J137: 210.7765488 | K137: 243.371663 | L137: 343.5965612 | M137: 166.1050885 | N137: 127.0996124 | O137: 119.3878426 | P137: 137.1523639 | Q137: 189.4124873 | R137: 185.6344723 | S137: 133.9576966 | T137: 133.8828701 | U137: 188.0895482 | V137: 218.6737652 | W137: 166.6424296 | X137: 149.2024697 | Y137: 191.9592184 | Z137: 150.3677494 | AA137: 150.3677494 | AB137: 150.3677494 | AC137: 150.3677494 | AD137: 150.3677494
E138: =IF(ROUND(E137-E99/E28,8)=0,"OK","CHECK") -> OK | F138: OK | G138: OK | H138: OK | I138: OK | J138: OK | K138: OK | L138: OK | M138: OK | N138: OK | O138: OK | P138: OK | Q138: OK | R138: OK | S138: OK | T138: OK | U138: OK | V138: OK | W138: OK | X138: OK | Y138: OK | Z138: OK | AA138: OK | AB138: OK | AC138: OK | AD138: OK
B139: Capital expenditure adjustments | F139: [$M real as at 30 June 2009] | I139: [$M nominal]
B141: AA1 transmission writedown | E141: -36.467 | F141: -37.441 | G141: -38.065
B142: AA2 transmission customer driven writedown | H142: 0 | I142: -2.1 | J142: 0
B143: AA2 transmission customer driven writedown [$M real as at 30 June 2017] | H143: =H142/H28 -> 0 | I143: =I142/I28 -> -2.342709253 | J143: =J142/J28 -> 0
I145: [$M real as at 30 June 2012] | M145: [$M real as at 30 June 2017]
B146: Growth
B147: Capacity Expansion | H147: -1.534 | I147: -8.613409983 | J147: -23.453 | K147: -13.03835167 | L147: 0 | M147: 0 | N147: 0 | O147: 0
B148: Customer Driven | H148: -0.6333333333 | I148: -2.174271079 | J148: -2.494333333 | K148: =-2.651202*(1/3) -> -0.883734 | L148: -0.14 | M148: -1.89 | N148: -0.04 | O148: 0
B149: Generation Driven | H149: 0 | I149: -5.751957375 | J149: 0 | K149: 0 | L149: 0 | M149: 0 | N149: 0 | O149: 0
B150: Gifted Assets | H150: 0 | I150: 0 | J150: 0 | K150: 0 | L150: 0 | M150: 0 | N150: 0 | O150: 0
B151: Asset replacement and renewal
B152: Asset Replacement | H152: 0 | I152: 0 | J152: -0.888 | K152: 0 | L152: 0 | M152: 0 | N152: 0 | O152: 0
B153: Improvement in service
B154: Reliability Driven | H154: 0 | I154: 0 | J154: -0.012 | K154: 0 | L154: 0 | M154: 0 | N154: 0 | O154: 0
B155: SCADA & Communications | H155: 0 | I155: 0 | J155: -0.63 | K155: 0 | L155: 0 | M155: 0 | N155: 0 | O155: 0
B156: Compliance
B157: Safety, Environmental & Statutory | H157: 0 | I157: 0 | J157: -0.687 | K157: 0 | L157: 0 | M157: 0 | N157: 0 | O157: 0
B158: Corporate
B159: IT | H159: -1.84585199 | I159: -1.84585199 | J159: -1.84585199 | K159: 0 | L159: 0 | M159: 0 | N159: 0 | O159: 0
B160: Business Support | H160: 0 | I160: 0 | J160: 0 | K160: -0.9632217524 | L160: 0 | M160: 0 | N160: -1.692 | O160: 0
B161: Equity Raising Costs | H161: 0 | I161: 0 | J161: 0
B162: Total | H162: =SUM(H147:H161) -> -4.013185324 | I162: =SUM(I147:I161) -> -18.38549043 | J162: =SUM(J147:J161) -> -30.01018532 | K162: =SUM(K147:K161) -> -14.88530742 | L162: =SUM(L147:L161) -> -0.14 | M162: -1.89 | N162: -1.732 | O162: 0
B164: Capital expenditure adjustments [$M real as at 30 June 2017]
B165: Growth
B166: Capacity Expansion | E166: =(E$141*(E122/E$137-E$125))/$G$28 -> -18.03670763 | F166: -15.35209009 | G166: -17.65988881 | H166: =H147/$J$28 -> -1.69137251 | I166: =I147/$J$28 -> -9.497056625 | J166: =J147/$J$28 -> -25.85903486 | K166: =K147 -> -13.03835167 | L166: =L147 -> 0 | M166: 0 | N166: 0 | O166: 0
B167: Customer Driven | E167: -2.726833333 | F167: -10.63360774 | G167: -5.814591971 | H167: =(H148/$J$28)+(H$142/H$28) -> -0.6983067729 | I167: =(I148/$J$28)+(I$142/I$28) -> -4.740038022 | J167: =(J148/$J$28)+(J$142/J$28) -> -2.750226096 | K167: =K148 -> -0.883734 | L167: -0.14 | M167: -1.89 | N167: -0.04 | O167: 0
B168: Generation Driven | E168: -17.1683864 | F168: -12.76322673 | G168: -13.60402987 | H168: =H149/$J$28 -> 0 | I168: -6.34204862 | J168: 0 | K168: =K149 -> 0 | L168: 0 | M168: 0 | N168: 0 | O168: 0
B169: Gifted Assets | E169: 0 | F169: 0 | G169: 0 | H169: 0 | I169: 0 | J169: 0 | K169: =K150 -> 0 | L169: 0 | M169: 0 | N169: 0 | O169: 0
B170: Asset replacement and renewal
B171: Asset Replacement | E171: =(E$141*(E127/E$137-E$125))/$G$28 -> -1.965148044 | F171: =(F$141*(F127/F$137-F$125))/$G$28 -> -1.651541257 | G171: =(G$141*(G127/G$137-G$125))/$G$28 -> -3.514212187 | H171: =H152/$J$28 -> 0 | I171: =I152/$J$28 -> 0 | J171: =J152/$J$28 -> -0.9790996016 | K171: =K152 -> 0 | L171: 0 | M171: 0 | N171: 0 | O171: 0
B172: Improvement in service
B173: Reliability Driven | E173: =(E$141*(E129/E$137-E$125))/$G$28 -> -0.7281711358 | F173: -0.7388474045 | G173: -1.002961993 | H173: =H154/$J$28 -> 0 | I173: 0 | J173: -0.0132310757 | K173: =K154 -> 0 | L173: 0 | M173: 0 | N173: 0 | O173: 0
B174: SCADA & Communications | E174: -0.8413575697 | F174: -0.5505137524 | G174: -0.6550359499 | H174: 0 | I174: 0 | J174: -0.6946314741 | K174: =K155 -> 0 | L174: 0 | M174: 0 | N174: 0 | O174: 0
B175: Compliance
B176: Safety, Environmental & Statutory | E176: =(E$141*(E132/E$137-E$125))/$G$28 -> -0.5941145251 | F176: =(F$141*(F132/F$137-F$125))/$G$28 -> -0.8257706286 | G176: =(G$141*(G132/G$137-G$125))/$G$28 -> -0.9389723879 | H176: =H157/$J$28 -> 0 | I176: =I157/$J$28 -> 0 | J176: =J157/$J$28 -> -0.7574790837 | K176: =K157 -> 0 | L176: 0 | M176: 0 | N176: 0 | O176: 0
B177: Corporate
B178: IT | E178: =(E$141*(E134/E$137-E$125))/$G$28 -> -0.9128798183 | F178: -1.640675854 | G178: -0.9815548044 | H178: =H159/$J$28 -> -2.035217284 | I178: -2.035217284 | J178: -2.035217284 | K178: =K159 -> 0 | L178: 0 | M178: 0 | N178: 0 | O178: 0
B179: Business Support | E179: -0.4608195996 | F179: -0.4382379213 | G179: -1.16648542 | H179: 0 | I179: 0 | J179: 0 | K179: =K160 -> -0.9632217524 | L179: 0 | M179: 0 | N179: -1.692 | O179: 0
B180: Equity Raising Costs | E180: 0 | F180: 0 | G180: 0 | H180: 0 | I180: 0 | J180: 0 | K180: =K161 -> 0 | L180: 0 | M180: 0 | N180: 0 | O180: 0
B181: Total | E181: =SUM(E166:E180) -> -43.43441806 | F181: -44.59451138 | G181: -45.33773339 | H181: =SUM(H166:H180) -> -4.424896567 | I181: -22.61436055 | J181: -33.08891948 | K181: -14.88530742 | L181: -0.14 | M181: -1.89 | N181: -1.732 | O181: 0
B183: [ACTUAL] Capital expenditure by asset category [$M real as at 30 June 2012]
F184: Actual AA1 | I184: Actual AA2
B185: Transmission cables | E185: 5.209297371 | F185: 4.465049844 | G185: 5.158235096 | H185: 4.65255713 | I185: 2.098726023 | J185: 0.8328306894
B186: Transmission steel towers | E186: 82.38224393 | F186: 116.6591267 | G186: 93.83875171 | H186: 82.69138419 | I186: 50.29364633 | J186: 55.07190963
B187: Transmission wood poles | E187: 14.41481094 | F187: 13.70973416 | G187: 16.8600656 | H187: 13.18513111 | I187: 8.846881532 | J187: 7.720025175
B188: Transmission Metering | E188: 0 | F188: 0 | G188: 0 | H188: 0 | I188: 0 | J188: 0
B189: Transmission transformers | E189: 55.18237764 | F189: 48.97200542 | G189: 51.9849238 | H189: 35.58496568 | I189: 19.6922016 | J189: 16.02039667
B190: Transmission reactors | E190: 4.156838303 | F190: 3.126994414 | G190: 3.486369201 | H190: 1.049707691 | I190: 0.6425732039 | J190: 0.3136231568
B191: Transmission capacitors | E191: 26.90458631 | F191: 20.57589452 | G191: 22.35911103 | H191: 8.810885161 | I191: 3.282627928 | J191: 0.8957544041
B192: Transmission circuit breakers | E192: 56.9927171 | F192: 47.41462738 | G192: 63.63989192 | H192: 35.2140444 | I192: 43.71634194 | J192: 32.91634354
B193: SCADA and Communications | E193: 7.047762579 | F193: 4.852496635 | G193: 5.701257838 | H193: 10.62334882 | I193: 6.053769483 | J193: 12.45817542
B194: IT | E194: 6.035848888 | F194: 10.92406954 | G194: 6.563425934 | H194: 8.820913843 | I194: 13.20737964 | J194: 15.61914801
B195: Other Non-Network Assets | E195: 3.046882418 | F195: 2.917908199 | G195: 7.800013429 | H195: 7.648918071 | I195: 12.53390466 | J195: 14.143
B196: Land & Easements | E196: 25.80965547 | F196: 23.30457314 | G196: 25.77070582 | H196: 22.89058321 | I196: 10.65026879 | J196: 5.163607992
B197: Equity Raising Costs | E197: 0 | F197: 0 | G197: 0 | H197: 0 | I197: 0 | J197: 0
B198: Total Transmission | E198: =SUM(E185:E197) -> 287.1830209 | F198: 296.9224799 | G198: 303.1627514 | H198: 231.1724393 | I198: 171.0183211 | J198: 161.1548147
B200: [ACTUAL] Capital expenditure by asset category [$M real as at 30 June 2017]
F201: Actual AA1 | I201: Actual AA2 | M201: Actual AA3 | R201: Proposed AA4 | W201: Forecast AA5 | AB201: Forecast AA6
B202: Transmission cables | E202: =E185/$J$28 -> 5.743717321 | F202: 4.923117706 | G202: 5.687416585 | H202: 5.129861298 | I202: 2.314033573 | J202: 0.9182704912 | K202: =SUMPRODUCT(K$122:K$136,$C$6:$C$20)+SUMPRODUCT(K$166:K$180,$C$6:$C$20) -> 17.35598813 | L202: =SUMPRODUCT(L$122:L$136,$C$6:$C$20)+SUMPRODUCT(L$166:L$180,$C$6:$C$20) -> 31.21523858 | M202: =SUMPRODUCT(M$122:M$136,$C$6:$C$20)+SUMPRODUCT(M$166:M$180,$C$6:$C$20) -> 10.03016024 | N202: =SUMPRODUCT(N$122:N$136,$C$6:$C$20)+SUMPRODUCT(N$166:N$180,$C$6:$C$20) -> 4.005205607 | O202: =SUMPRODUCT(O$122:O$136,$C$6:$C$20)+SUMPRODUCT(O$166:O$180,$C$6:$C$20) -> 4.560319227 | P202: =SUMPRODUCT(P$122:P$136,$C$6:$C$20) -> 5.198471436 | Q202: 4.775969503 | R202: 2.21370889 | S202: 2.382723508 | T202: 1.99666584 | U202: 8.306263592 | V202: 11.52226563 | W202: 4.935238802 | X202: 4.122764374 | Y202: 7.707170696 | Z202: 3.992440309 | AA202: 3.992440309 | AB202: 3.992440309 | AC202: 3.992440309 | AD202: 3.992440309
B203: Transmission steel towers | E203: =E186/$J$28 -> 90.83380879 | F203: 128.6271447 | G203: 103.4656356 | H203: 91.17466364 | I203: 55.45325347 | J203: 60.72171709 | K203: =SUMPRODUCT(K$122:K$136,$D$6:$D$20)+SUMPRODUCT(K$166:K$180,$D$6:$D$20) -> 12.68282928 | L203: =SUMPRODUCT(L$122:L$136,$D$6:$D$20)+SUMPRODUCT(L$166:L$180,$D$6:$D$20) -> 21.56066713 | M203: =SUMPRODUCT(M$122:M$136,$D$6:$D$20)+SUMPRODUCT(M$166:M$180,$D$6:$D$20) -> 5.508347851 | N203: =SUMPRODUCT(N$122:N$136,$D$6:$D$20)+SUMPRODUCT(N$166:N$180,$D$6:$D$20) -> 2.754743898 | O203: =SUMPRODUCT(O$122:O$136,$D$6:$D$20)+SUMPRODUCT(O$166:O$180,$D$6:$D$20) -> 3.164295634 | P203: =SUMPRODUCT(P$122:P$136,$D$6:$D$20) -> 4.277164805 | Q203: 3.996097128 | R203: 2.37388876 | S203: 2.520688155 | T203: 2.276577565 | U203: 6.275438663 | V203: 8.314554214 | W203: 4.161287625 | X203: 3.659584591 | Y203: 5.930369855 | Z203: 3.597385951 | AA203: 3.597385951 | AB203: 3.597385951 | AC203: 3.597385951 | AD203: 3.597385951
B204: Transmission wood poles | E204: =E187/$J$28 -> 15.89362123 | F204: 15.11621087 | G204: 18.58973369 | H204: 14.53778899 | I204: 9.754479936 | J204: 8.512019789 | K204: =SUMPRODUCT(K$122:K$136,$E$6:$E$20)+SUMPRODUCT(K$166:K$180,$E$6:$E$20) -> 28.37483974 | L204: =SUMPRODUCT(L$122:L$136,$E$6:$E$20)+SUMPRODUCT(L$166:L$180,$E$6:$E$20) -> 29.42101391 | M204: =SUMPRODUCT(M$122:M$136,$E$6:$E$20)+SUMPRODUCT(M$166:M$180,$E$6:$E$20) -> 30.32448899 | N204: =SUMPRODUCT(N$122:N$136,$E$6:$E$20)+SUMPRODUCT(N$166:N$180,$E$6:$E$20) -> 23.9246902 | O204: =SUMPRODUCT(O$122:O$136,$E$6:$E$20)+SUMPRODUCT(O$166:O$180,$E$6:$E$20) -> 22.42064299 | P204: =SUMPRODUCT(P$122:P$136,$E$6:$E$20) -> 28.01379827 | Q204: 40.64381798 | R204: 37.85486573 | S204: 31.81996895 | T204: 32.15166078 | U204: 31.69358088 | V204: 38.40119152 | W204: 34.91410681 | X204: 33.73292004 | Y204: 35.68277641 | Z204: 32.81073397 | AA204: 32.81073397 | AB204: 32.81073397 | AC204: 32.81073397 | AD204: 32.81073397
B205: Transmission Metering | E205: =E188/$J$28 -> 0 | F205: 0 | G205: 0 | H205: 0 | I205: 0 | J205: 0 | K205: =SUMPRODUCT(K$122:K$136,$F$6:$F$20)+SUMPRODUCT(K$166:K$180,$F$6:$F$20) -> 0 | L205: =SUMPRODUCT(L$122:L$136,$F$6:$F$20)+SUMPRODUCT(L$166:L$180,$F$6:$F$20) -> 0 | M205: =SUMPRODUCT(M$122:M$136,$F$6:$F$20)+SUMPRODUCT(M$166:M$180,$F$6:$F$20) -> 0 | N205: =SUMPRODUCT(N$122:N$136,$F$6:$F$20)+SUMPRODUCT(N$166:N$180,$F$6:$F$20) -> 0 | O205: =SUMPRODUCT(O$122:O$136,$F$6:$F$20)+SUMPRODUCT(O$166:O$180,$F$6:$F$20) -> 0 | P205: =SUMPRODUCT(P$122:P$136,$F$6:$F$20) -> 0 | Q205: 0 | R205: 0 | S205: 0 | T205: 0 | U205: 0 | V205: 0 | W205: 0 | X205: 0 | Y205: 0 | Z205: 0 | AA205: 0 | AB205: 0 | AC205: 0 | AD205: 0
B206: Transmission transformers | E206: =E189/$J$28 -> 60.84351798 | F206: 53.99602589 | G206: 57.31803849 | H206: 39.23561455 | I206: 21.7124175 | J206: 17.66392341 | K206: =SUMPRODUCT(K$122:K$136,$G$6:$G$20)+SUMPRODUCT(K$166:K$180,$G$6:$G$20) -> 64.66910081 | L206: =SUMPRODUCT(L$122:L$136,$G$6:$G$20)+SUMPRODUCT(L$166:L$180,$G$6:$G$20) -> 108.2501877 | M206: =SUMPRODUCT(M$122:M$136,$G$6:$G$20)+SUMPRODUCT(M$166:M$180,$G$6:$G$20) -> 44.28890374 | N206: =SUMPRODUCT(N$122:N$136,$G$6:$G$20)+SUMPRODUCT(N$166:N$180,$G$6:$G$20) -> 35.21606864 | O206: =SUMPRODUCT(O$122:O$136,$G$6:$G$20)+SUMPRODUCT(O$166:O$180,$G$6:$G$20) -> 31.89487944 | P206: =SUMPRODUCT(P$122:P$136,$G$6:$G$20) -> 34.10270019 | Q206: 50.40270991 | R206: 40.36273118 | S206: 36.78561154 | T206: 41.31280885 | U206: 47.38615244 | V206: 52.24976195 | W206: 38.51061009 | X206: 36.83332544 | Y206: 49.65575012 | Z206: 33.39013185 | AA206: 33.39013185 | AB206: 33.39013185 | AC206: 33.39013185 | AD206: 33.39013185
B207: Transmission reactors | E207: =E190/$J$28 -> 4.583286854 | F207: 3.44779165 | G207: 3.844034567 | H207: 1.157396827 | I207: 0.7084945585 | J207: 0.3457976441 | K207: =SUMPRODUCT(K$122:K$136,$H$6:$H$20)+SUMPRODUCT(K$166:K$180,$H$6:$H$20) -> 6.682541334 | L207: =SUMPRODUCT(L$122:L$136,$H$6:$H$20)+SUMPRODUCT(L$166:L$180,$H$6:$H$20) -> 12.37936627 | M207: =SUMPRODUCT(M$122:M$136,$H$6:$H$20)+SUMPRODUCT(M$166:M$180,$H$6:$H$20) -> 6.670752946 | N207: =SUMPRODUCT(N$122:N$136,$H$6:$H$20)+SUMPRODUCT(N$166:N$180,$H$6:$H$20) -> 4.210670719 | O207: =SUMPRODUCT(O$122:O$136,$H$6:$H$20)+SUMPRODUCT(O$166:O$180,$H$6:$H$20) -> 3.760688277 | P207: =SUMPRODUCT(P$122:P$136,$H$6:$H$20) -> 3.288859246 | Q207: 5.283596675 | R207: 3.967163831 | S207: 3.492352176 | T207: 4.032764421 | U207: 4.987833007 | V207: 5.69001541 | W207: 3.764496973 | X207: 3.517718104 | Y207: 5.208131392 | Z207: 3.070024497 | AA207: 3.070024497 | AB207: 3.070024497 | AC207: 3.070024497 | AD207: 3.070024497
B208: Transmission capacitors | E208: =E191/$J$28 -> 29.66471817 | F208: 22.68676816 | G208: 24.65292422 | H208: 9.714790711 | I208: 3.61939155 | J208: 0.9876495273 | K208: =SUMPRODUCT(K$122:K$136,$I$6:$I$20)+SUMPRODUCT(K$166:K$180,$I$6:$I$20) -> 4.540316301 | L208: =SUMPRODUCT(L$122:L$136,$I$6:$I$20)+SUMPRODUCT(L$166:L$180,$I$6:$I$20) -> 7.903985057 | M208: =SUMPRODUCT(M$122:M$136,$I$6:$I$20)+SUMPRODUCT(M$166:M$180,$I$6:$I$20) -> 2.242238099 | N208: =SUMPRODUCT(N$122:N$136,$I$6:$I$20)+SUMPRODUCT(N$166:N$180,$I$6:$I$20) -> 1.011704984 | O208: =SUMPRODUCT(O$122:O$136,$I$6:$I$20)+SUMPRODUCT(O$166:O$180,$I$6:$I$20) -> 1.157740585 | P208: =SUMPRODUCT(P$122:P$136,$I$6:$I$20) -> 1.460171558 | Q208: 1.355444763 | R208: 0.737581912 | S208: 0.7866772738 | T208: 0.6936481261 | U208: 2.216013259 | V208: 2.992150553 | W208: 1.407337204 | X208: 1.214076173 | Y208: 2.078720746 | Z208: 1.186906411 | AA208: 1.186906411 | AB208: 1.186906411 | AC208: 1.186906411 | AD208: 1.186906411
B209: Transmission circuit breakers | E209: =E192/$J$28 -> 62.83957951 | F209: 52.278877 | G209: 70.16868561 | H209: 38.82664059 | I209: 48.20118579 | J209: 36.29321942 | K209: =SUMPRODUCT(K$122:K$136,$J$6:$J$20)+SUMPRODUCT(K$166:K$180,$J$6:$J$20) -> 27.93749567 | L209: =SUMPRODUCT(L$122:L$136,$J$6:$J$20)+SUMPRODUCT(L$166:L$180,$J$6:$J$20) -> 43.91261935 | M209: =SUMPRODUCT(M$122:M$136,$J$6:$J$20)+SUMPRODUCT(M$166:M$180,$J$6:$J$20) -> 17.60881989 | N209: =SUMPRODUCT(N$122:N$136,$J$6:$J$20)+SUMPRODUCT(N$166:N$180,$J$6:$J$20) -> 17.40635866 | O209: =SUMPRODUCT(O$122:O$136,$J$6:$J$20)+SUMPRODUCT(O$166:O$180,$J$6:$J$20) -> 15.31833945 | P209: =SUMPRODUCT(P$122:P$136,$J$6:$J$20) -> 17.05159507 | Q209: 26.29413263 | R209: 22.23912303 | S209: 20.21221701 | T209: 22.94128138 | U209: 22.61973185 | V209: 23.43454953 | W209: 19.70599693 | X209: 19.26891415 | Y209: 24.26727403 | Z209: 17.46654807 | AA209: 17.46654807 | AB209: 17.46654807 | AC209: 17.46654807 | AD209: 17.46654807
B210: SCADA and Communications | E210: =E193/$J$28 -> 7.770790015 | F210: 5.350312525 | G210: 6.286147835 | H210: 11.71319437 | I210: 6.674823524 | J210: 13.73625517 | K210: =SUMPRODUCT(K$122:K$136,$K$6:$K$20)+SUMPRODUCT(K$166:K$180,$K$6:$K$20) -> 6.110036965 | L210: =SUMPRODUCT(L$122:L$136,$K$6:$K$20)+SUMPRODUCT(L$166:L$180,$K$6:$K$20) -> 10.97801133 | M210: =SUMPRODUCT(M$122:M$136,$K$6:$K$20)+SUMPRODUCT(M$166:M$180,$K$6:$K$20) -> 13.1037907 | N210: =SUMPRODUCT(N$122:N$136,$K$6:$K$20)+SUMPRODUCT(N$166:N$180,$K$6:$K$20) -> 16.78032597 | O210: =SUMPRODUCT(O$122:O$136,$K$6:$K$20)+SUMPRODUCT(O$166:O$180,$K$6:$K$20) -> 11.455 | P210: =SUMPRODUCT(P$122:P$136,$K$6:$K$20) -> 9.169883954 | Q210: 15.45632153 | R210: 17.85809183 | S210: 16.48445735 | T210: 12.72758768 | U210: 21.24169288 | V210: 24.47613028 | W210: 24.17999095 | X210: 18.66910304 | Y210: 16.19730943 | Z210: 22.10194346 | AA210: 22.10194346 | AB210: 22.10194346 | AC210: 22.10194346 | AD210: 22.10194346
B211: IT | E211: =E194/$J$28 -> 6.655064462 | F211: 12.04476591 | G211: 7.236765448 | H211: 9.725848232 | I211: 14.56231998 | J211: 17.2215108 | K211: =SUMPRODUCT(K$122:K$136,$L$6:$L$20)+SUMPRODUCT(K$166:K$180,$L$6:$L$20) -> 10.16544747 | L211: =SUMPRODUCT(L$122:L$136,$L$6:$L$20)+SUMPRODUCT(L$166:L$180,$L$6:$L$20) -> 6.697402266 | M211: =SUMPRODUCT(M$122:M$136,$L$6:$L$20)+SUMPRODUCT(M$166:M$180,$L$6:$L$20) -> 9.538735814 | N211: =SUMPRODUCT(N$122:N$136,$L$6:$L$20)+SUMPRODUCT(N$166:N$180,$L$6:$L$20) -> 5.266914365 | O211: =SUMPRODUCT(O$122:O$136,$L$6:$L$20)+SUMPRODUCT(O$166:O$180,$L$6:$L$20) -> 12.331 | P211: =SUMPRODUCT(P$122:P$136,$L$6:$L$20) -> 14.06714463 | Q211: 15.05011991 | R211: 12.67286222 | S211: 9.170029084 | T211: 6.865275292 | U211: 11.75023043 | V211: 11.71928889 | W211: 13.51441359 | X211: 11.92110176 | Y211: 13.62665593 | Z211: 9.51865953 | AA211: 9.51865953 | AB211: 9.51865953 | AC211: 9.51865953 | AD211: 9.51865953
B212: Other Non-Network Assets | E212: =E195/$J$28 -> 3.359460992 | F212: 3.217255355 | G212: 8.60021401 | H212: 8.433617833 | I212: 13.81975344 | J212: 15.5939253 | K212: 10.79919167 | L212: 1.885767705 | M212: 5.286826047 | N212: 5.473939227 | O212: 2.265 | P212: =SUMPRODUCT(P$122:P$136,$M$6:$M$20) -> 4.889459412 | Q212: 8.804581831 | R212: 23.49264094 | S212: 2.212552744 | T212: 1.838535511 | U212: 7.67002179 | V212: 8.647491734 | W212: 5.779406135 | X212: 3.599521095 | Y212: 8.371601089 | Z212: 7.922125873 | AA212: 7.922125873 | AB212: 7.922125873 | AC212: 7.922125873 | AD212: 7.922125873
B213: Land & Easements | E213: =E196/$J$28 -> 28.45745877 | F213: 25.69538094 | G213: 28.41451329 | H213: 25.23891993 | I213: 11.74287604 | J213: 5.693340684 | K213: 38.61972427 | L213: 67.35287672 | M213: 19.25006498 | N213: 8.622303152 | O213: 9.864094394 | P213: =SUMPRODUCT(P$122:P$136,$N$6:$N$20) -> 15.63311534 | Q213: 17.34969544 | R213: 21.86181399 | S213: 8.090418806 | T213: 7.04606466 | U213: 23.94258939 | V213: 31.2263655 | W213: 15.76954451 | X213: 12.66344089 | Y213: 23.23345875 | Z213: 15.31084942 | AA213: 15.31084942 | AB213: 15.31084942 | AC213: 15.31084942 | AD213: 15.31084942
B214: Equity Raising Costs | E214: =E197/$J$28 -> 0 | F214: 0 | G214: 0 | H214: 0 | I214: 0 | J214: 0 | K214: =SUMPRODUCT(K$122:K$136,$O$6:$O$20)+SUMPRODUCT(K$166:K$180,$O$6:$O$20) -> 0.5488439214 | L214: =SUMPRODUCT(L$122:L$136,$O$6:$O$20)+SUMPRODUCT(L$166:L$180,$O$6:$O$20) -> 1.89942525 | M214: =SUMPRODUCT(M$122:M$136,$O$6:$O$20)+SUMPRODUCT(M$166:M$180,$O$6:$O$20) -> 0.361959237 | N214: =SUMPRODUCT(N$122:N$136,$O$6:$O$20)+SUMPRODUCT(N$166:N$180,$O$6:$O$20) -> 0.6946870145 | O214: =SUMPRODUCT(O$122:O$136,$O$6:$O$20)+SUMPRODUCT(O$166:O$180,$O$6:$O$20) -> 1.19584255 | P214: =SUMPRODUCT(P$122:P$136,$O$6:$O$20) -> 0 | Q214: 0 | R214: 0 | S214: 0 | T214: 0 | U214: 0 | V214: 0 | W214: 0 | X214: 0 | Y214: 0 | Z214: 0 | AA214: 0 | AB214: 0 | AC214: 0 | AD214: 0
B215: Total Transmission | E215: =SUM(E202:E214) -> 316.6450241 | F215: 327.3836507 | G215: 334.2641093 | H215: 254.888337 | I215: 188.5630294 | J215: 177.6876293 | K215: 228.4863556 | L215: 343.4565612 | M215: 164.2150885 | N215: 125.3676124 | O215: 119.3878426 | P215: 137.1523639 | Q215: 189.4124873 | R215: 185.6344723 | S215: 133.9576966 | T215: 133.8828701 | U215: 188.0895482 | V215: 218.6737652 | W215: 166.6424296 | X215: 149.2024697 | Y215: 191.9592184 | Z215: 150.3677494 | AA215: 150.3677494 | AB215: 150.3677494 | AC215: 150.3677494 | AD215: 150.3677494
E216: =IF(ROUND(E137-E215+E181-E290,8)=0,"OK","CHECK") -> OK | F216: OK | G216: OK | H216: OK | I216: OK | J216: OK | K216: =IF(ROUND(K137-K215+K181-K290,8)=0,"OK","CHECK") -> OK | L216: =IF(ROUND(L137-L215+L181-L290,8)=0,"OK","CHECK") -> OK | M216: OK | N216: OK | O216: OK | P216: =IF(ROUND(P137-P215-P290,8)=0,"OK","CHECK") -> OK | Q216: OK | R216: OK | S216: OK | T216: OK | U216: OK | V216: OK | W216: OK | X216: OK | Y216: OK | Z216: OK | AA216: OK | AB216: OK | AC216: OK | AD216: OK
K217: 0.5488439214 | L217: 1.89942525 | M217: 0.361959237 | N217: 0.6946870145 | O217: 1.19584255
... 414 more rows

Sheet WACC_Inputs
D2: AA1 | E2: AA2 | F2: AA3 | H2: AA4 | N2: AA5 | P2: WP proposed
B3: Determination of the Weighted Average Cost of Capital (WACC) | D3: Approved | E3: Approved | F3: Approved | H3: 17/18 | I3: 18/19 | J3: 19/20 | K3: 20/21 | L3: 21/22 | N3: Forecast | P3: 17/18
B4: Nominal Risk Free Rate (Rfn) | F4: 0.0252 | H4: 0.0237 | I4: =$H4 -> 0.0237 | J4: =$H4 -> 0.0237 | K4: 0.0237 | L4: 0.0237 | N4: =L4 -> 0.0237 | P4: 0.0199
B5: Real Risk Free Rate (Rfr) | F5: =(1+F4)/(1+F6)-1 -> 0.004113614104 | H5: =(1+H4)/(1+H6)-1 -> 0.005204241948 | I5: =(1+I4)/(1+I6)-1 -> 0.005204241948 | J5: =(1+J4)/(1+J6)-1 -> 0.005204241948 | K5: =(1+K4)/(1+K6)-1 -> 0.005204241948 | L5: =(1+L4)/(1+L6)-1 -> 0.005204241948 | N5: =(1+N4)/(1+N6)-1 -> 0.005204241948 | P5: 0.003443526171
B6: Inflation Rate (I) | D6: 0.031 | E6: 0.0247 | F6: 0.021 | H6: 0.0184 | I6: =$H6 -> 0.0184 | J6: 0.0184 | K6: 0.0184 | L6: 0.0184 | N6: =L6 -> 0.0184 | P6: 0.0164
B7: Debt Proportion (D) | F7: 0.6 | H7: 0.55 | I7: =$H7 -> 0.55 | J7: 0.55 | K7: 0.55 | L7: 0.55 | N7: =L7 -> 0.55 | P7: 0.6
B8: Equity Proportion (E) | F8: =1-F7 -> 0.4 | H8: =1-H7 -> 0.45 | I8: =1-I7 -> 0.45 | J8: =1-J7 -> 0.45 | K8: =1-K7 -> 0.45 | L8: =1-L7 -> 0.45 | N8: =1-N7 -> 0.45 | P8: 0.4
B9: 5 year IRS (effective yield) | H9: 0.0259 | I9: =$H9 -> 0.0259 | J9: 0.0259 | K9: 0.0259 | L9: 0.0259 | N9: =L9 -> 0.0259 | P9: 0.0229
B10: Cost of Debt; Debt Risk Premium (Drp) | F10: 0.02708 | H10: =AVERAGE(H38:H51) -> 0.024866 | I10: =IF(H35=10,AVERAGE(H38:H51),H10) -> 0.024866 | J10: =IF(I35=10,AVERAGE(I38:I51),I10) -> 0.024866 | K10: =IF(J35=10,AVERAGE(J38:J51),J10) -> 0.024866 | L10: =IF(K35=10,AVERAGE(K38:K51),K10) -> 0.024866 | N10: 0.024866 | P10: 0.02793
B11: Cost of Debt; Debt Issuing Cost (Disc) | F11: 0.00125 | H11: 0.001 | I11: =$H11 -> 0.001 | J11: 0.001 | K11: 0.001 | L11: 0.001 | N11: 0.001 | P11: 0.00125
B12: Cost of Debt; Hedging Cost | H12: 0.00114 | I12: 0.00114 | J12: 0.00114 | K12: 0.00114 | L12: 0.00114 | N12: 0.00114 | P12: 0.00114
B13: Market Risk Premium (Rp) | F13: 0.06 | H13: 0.06 | I13: 0.06 | J13: =$H13 -> 0.06 | K13: 0.06 | L13: 0.06 | N13: 0.06 | P13: 0.075
B14: Equity Beta (Be) | F14: 0.65 | H14: 0.7 | I14: 0.7 | J14: 0.7 | K14: 0.7 | L14: 0.7 | N14: 0.7 | P14: 0.7
B15: Corporate Tax Rate (T) | F15: 0.3 | H15: 0.3 | I15: 0.3 | J15: =$H15 -> 0.3 | K15: 0.3 | L15: 0.3 | N15: 0.3 | P15: 0.3
B16: Franking Credit (g) | F16: 0.25 | H16: 0.5 | I16: 0.5 | J16: 0.5 | K16: 0.5 | L16: 0.5 | N16: 0.5 | P16: 0.4
B17: Imputation Adj (G) | F17: =(1-F15)/(1-F15*(1-F16)) -> 0.9032258065 | H17: =(1-H15)/(1-H15*(1-H16)) -> 0.8235294118 | I17: =(1-I15)/(1-I15*(1-I16)) -> 0.8235294118 | J17: =(1-J15)/(1-J15*(1-J16)) -> 0.8235294118 | K17: =(1-K15)/(1-K15*(1-K16)) -> 0.8235294118 | L17: =(1-L15)/(1-L15*(1-L16)) -> 0.8235294118 | N17: =(1-N15)/(1-N15*(1-N16)) -> 0.8235294118 | P17: 0.8536585366
B18: Debt
B19: Nominal Cost of Debt (DPn) | F19: =F4+F10+F11 -> 0.05353 | H19: =SUM(H9:H12) -> 0.052906 | I19: =SUM(I9:I12) -> 0.052906 | J19: =SUM(J9:J12) -> 0.052906 | K19: =SUM(K9:K12) -> 0.052906 | L19: =SUM(L9:L12) -> 0.052906 | N19: =SUM(N9:N12) -> 0.052906 | P19: 0.05322
B20: Real Cost of Debt (DPr) | F20: =(1+F19)/(1+F6)-1 -> 0.03186092067 | H20: =(1+H19)/(1+H6)-1 -> 0.03388256088 | I20: =(1+I19)/(1+I6)-1 -> 0.03388256088 | J20: =(1+J19)/(1+J6)-1 -> 0.03388256088 | K20: =(1+K19)/(1+K6)-1 -> 0.03388256088 | L20: =(1+L19)/(1+L6)-1 -> 0.03388256088 | N20: =(1+N19)/(1+N6)-1 -> 0.03388256088 | P20: 0.03622589532
B21: Equity
B22: Nominal Pre Tax Cost of Equity (EPn) | F22: =(F4+F13*F14)/(1-F15*(1-F16)) -> 0.08283870968 | H22: =(H4+H13*H14)/(1-H15*(1-H16)) -> 0.07729411765 | I22: =(I4+I13*I14)/(1-I15*(1-I16)) -> 0.07729411765 | J22: =(J4+J13*J14)/(1-J15*(1-J16)) -> 0.07729411765 | K22: =(K4+K13*K14)/(1-K15*(1-K16)) -> 0.07729411765 | L22: =(L4+L13*L14)/(1-L15*(1-L16)) -> 0.07729411765 | N22: =(N4+N13*N14)/(1-N15*(1-N16)) -> 0.07729411765 | P22: 0.08829268293
B23: Real Pre Tax Cost of Equity (EPr) | F23: =(1+F22)/(1+F6)-1 -> 0.06056680674 | H23: =(1+H22)/(1+H6)-1 -> 0.05783004482 | I23: =(1+I22)/(1+I6)-1 -> 0.05783004482 | J23: =(1+J22)/(1+J6)-1 -> 0.05783004482 | K23: =(1+K22)/(1+K6)-1 -> 0.05783004482 | L23: =(1+L22)/(1+L6)-1 -> 0.05783004482 | N23: =(1+N22)/(1+N6)-1 -> 0.05783004482 | P23: 0.07073266718
B24: Nominal After Tax Cost of Equity (EAn) | F24: =F4+F13*F14 -> 0.0642 | H24: =H4+H13*H14 -> 0.0657 | I24: =I4+I13*I14 -> 0.0657 | J24: =J4+J13*J14 -> 0.0657 | K24: =K4+K13*K14 -> 0.0657 | L24: =L4+L13*L14 -> 0.0657 | N24: =N4+N13*N14 -> 0.0657 | P24: 0.0724
B25: Real After Tax Cost of Equity (EAr) | F25: =(1+F24)/(1+F6)-1 -> 0.04231145935 | H25: =(1+H24)/(1+H6)-1 -> 0.04644540456 | I25: =(1+I24)/(1+I6)-1 -> 0.04644540456 | J25: =(1+J24)/(1+J6)-1 -> 0.04644540456 | K25: =(1+K24)/(1+K6)-1 -> 0.04644540456 | L25: =(1+L24)/(1+L6)-1 -> 0.04644540456 | N25: =(1+N24)/(1+N6)-1 -> 0.04644540456 | P25: 0.05509641873
B26: WACC: Pre-tax
B27: Nominal Pre Tax WACC (WPn) | D27: 0.1007 | E27: 0.1065 | F27: =F22*F8+F19*F7 -> 0.06525348387 | H27: =H22*H8+H19*H7 -> 0.06388065294 | I27: =I22*I8+I19*I7 -> 0.06388065294 | J27: =J22*J8+J19*J7 -> 0.06388065294 | K27: =K22*K8+K19*K7 -> 0.06388065294 | L27: =L22*L8+L19*L7 -> 0.06388065294 | N27: =N22*N8+N19*N7 -> 0.06388065294 | P27: 0.06724907317
B28: Real Pre Tax WACC (WPr) | D28: 0.0676 | E28: 0.0798 | F28: =(1+F27)/(1+F6)-1 -> 0.04334327509 | H28: =(1+H27)/(1+H6)-1 -> 0.04465892865 | I28: =(1+I27)/(1+I6)-1 -> 0.04465892865 | J28: =(1+J27)/(1+J6)-1 -> 0.04465892865 | K28: =(1+K27)/(1+K6)-1 -> 0.04465892865 | L28: =(1+L27)/(1+L6)-1 -> 0.04465892865 | N28: =(1+N27)/(1+N6)-1 -> 0.04465892865 | P28: 0.05002860406
B29: WACC: Vanilla
B30: Nominal Post Tax WACC (WAn) | F30: =F7*F19+F24*F8 -> 0.057798 | H30: =H7*H19+H24*H8 -> 0.0586633 | I30: =I7*I19+I24*I8 -> 0.0586633 | J30: =J7*J19+J24*J8 -> 0.0586633 | K30: =K7*K19+K24*K8 -> 0.0586633 | L30: =L7*L19+L24*L8 -> 0.0586633 | N30: =N7*N19+N24*N8 -> 0.0586633 | P30: 0.060892
B31: Real Post Tax WACC | F31: =(1+F30)/(1+F6)-1 -> 0.03604113614 | H31: =(1+H30)/(1+H6)-1 -> 0.03953584053 | I31: =(1+I30)/(1+I6)-1 -> 0.03953584053 | J31: =(1+J30)/(1+J6)-1 -> 0.03953584053 | K31: =(1+K30)/(1+K6)-1 -> 0.03953584053 | L31: =(1+L30)/(1+L6)-1 -> 0.03953584053 | N31: =(1+N30)/(1+N6)-1 -> 0.03953584053 | P31: 0.04377410468
F35: Count flag | H35: =COUNT(H38:H51) -> 10 | I35: =COUNT(I38:I51) -> 9 | J35: =COUNT(J38:J51) -> 8 | K35: =COUNT(K38:K51) -> 7
F36: 10 year trailing average chart
F37: Year | H37: 17/18 | I37: 18/19 | J37: 19/20 | K37: 20/21
F38: 2008/09 | H38: 0.05483
F39: 2009/10 | H39: 0.02355 | I39: =H39 -> 0.02355
F40: 2010/11 | H40: 0.01895 | I40: 0.01895 | J40: 0.01895
F41: 2011/12 | H41: 0.02842 | I41: 0.02842 | J41: 0.02842 | K41: 0.02842
F42: 2012/13 | H42: 0.02768 | I42: =H42 -> 0.02768 | J42: 0.02768 | K42: 0.02768
F43: 2013/14 | H43: 0.02634 | I43: 0.02634 | J43: 0.02634 | K43: 0.02634
F44: 2014/15 | H44: 0.0164 | I44: 0.0164 | J44: 0.0164 | K44: 0.0164
F45: 2015/16 | H45: 0.02352 | I45: 0.02352 | J45: 0.02352 | K45: 0.02352
F46: 2016/17 | H46: 0.01656 | I46: 0.01656 | J46: 0.01656 | K46: 0.01656
F47: 2017/18 | H47: 0.01241 | I47: 0.01241 | J47: 0.01241 | K47: 0.01241
F48: 2018/19 | J48: =IF(I48="","",I48) ->  | K48: =IF(J48="","",J48) -> 
F49: 2019/20 | K49: =IF(J49="","",J49) -> 
F50: 2020/21
F51: 2021/22

Sheet Adjustments_Inputs
B2: Inflation - December end of year for k-Factor calculations
B3: Year ending 30 December | C3: 2009 | D3: 2010 | E3: 2011 | F3: 2012 | G3: 2013 | H3: 2014 | I3: 2015 | J3: 2016 | K3: 2017 | L3: 2018 | M3: 2019 | N3: 2020 | O3: 2021 | P3: 2022 | Q3: 2023 | R3: 2024 | S3: 2025 | T3: 2026 | U3: 2027 | V3: 2028 | W3: 2029 | X3: 2030 | Y3: 2031 | Z3: 2032
B4: Actual and Forecast Inflation
B5: December CPI | C5: 166 | D5: 169.5 | E5: 174 | F5: 179.4
B6: December CPI (rebased) | F6: 99.8 | G6: 102 | H6: 104.8 | I6: 106.6 | J6: 108.4 | K6: 110
B7: Actual & Forecast Inflation | D7: =D5/C5-1 -> 0.02108433735 | E7: =E5/D5-1 -> 0.02654867257 | F7: =F5/E5-1 -> 0.03103448276 | G7: =G6/F6-1 -> 0.02204408818 | H7: =H6/G6-1 -> 0.02745098039 | I7: =I6/H6-1 -> 0.01717557252 | J7: =J6/I6-1 -> 0.01688555347 | K7: =K6/J6-1 -> 0.0147601476 | L7: 0.02 | M7: 0.025 | N7: 0.025 | O7: 0.025 | P7: 0.025 | Q7: 0.025 | R7: 0.025 | S7: 0.025 | T7: 0.025 | U7: 0.025 | V7: 0.025 | W7: 0.025 | X7: 0.025 | Y7: 0.025 | Z7: 0.025
B8: End of year Inflation factor | C8: =D8/(1+D7) -> 0.9253065775 | D8: =E8/(1+E7) -> 0.9448160535 | E8: =F8/(1+F7) -> 0.9698996656 | F8: 1 | G8: =F8*(1+G7) -> 1.022044088 | H8: =G8*(1+H7) -> 1.0501002 | I8: =H8*(1+I7) -> 1.068136273 | J8: =I8*(1+J7) -> 1.086172345 | K8: =J8*(1+K7) -> 1.102204409 | L8: =K8*(1+L7) -> 1.124248497 | M8: 1.152354709 | N8: 1.181163577 | O8: 1.210692667 | P8: 1.240959983 | Q8: 1.271983983 | R8: 1.303783582 | S8: 1.336378172 | T8: 1.369787626 | U8: 1.404032317 | V8: 1.439133125 | W8: 1.475111453 | X8: 1.511989239 | Y8: 1.54978897 | Z8: 1.588533695
B10: Service standard adjustment mechanism (SSAM)
B11: Year ending 30 June | E11: 2013 | F11: 2014 | G11: 2015 | H11: 2016 | I11: 2017 | K11: 2013 | L11: 2014 | M11: 2015 | N11: 2016 | O11: 2017 | Q11: 2013 | R11: 2014 | S11: 2015 | T11: 2016 | U11: 2017
B12: SSAM revenue at risk
B13: Distribution revenue at risk | E13: 0.05 | F13: 0.05 | G13: 0.05 | H13: 0.05 | I13: 0.05
B14: Transmission revenue at risk | E14: 0.01 | F14: 0.01 | G14: 0.01 | H14: 0.01 | I14: 0.01
B16: Distribution performance
G17: Actual AA3 | M17: Benchmark | S17: Target
B18: SAIDI - CBD (minutes per annum) | E18: 7.6 | F18: 18.3 | G18: 26.2 | H18: 22.6 | I18: 13.8 | K18: 39.9 | L18: 39.9 | M18: 39.9 | N18: 39.9 | O18: 39.9 | Q18: 20.3 | R18: 20.3 | S18: 20.3 | T18: 20.3 | U18: 20.3
B19: SAIDI - Urban (minutes per annum) | E19: 102.7 | F19: 107.4 | G19: 103 | H19: 91.3 | I19: 104.4 | K19: 183 | L19: 183 | M19: 183 | N19: 183 | O19: 183 | Q19: 136.6 | R19: 136.6 | S19: 136.6 | T19: 136.6 | U19: 136.6
B20: SAIDI - Rural Short (minutes per annum) | E20: 181.4 | F20: 171.2 | G20: 182.6 | H20: 168.4 | I20: 175.6 | K20: 227.8 | L20: 227.8 | M20: 227.8 | N20: 227.8 | O20: 227.8 | Q20: 207.8 | R20: 207.8 | S20: 207.8 | T20: 207.8 | U20: 207.8
B21: SAIDI - Rural Long (minutes per annum) | E21: 685.4 | F21: 673.8 | G21: 677.5 | H21: 582.6 | I21: 626.2 | K21: 724.8 | L21: 724.8 | M21: 724.8 | N21: 724.8 | O21: 724.8 | Q21: 582.2 | R21: 582.2 | S21: 582.2 | T21: 582.2 | U21: 582.2
B22: SAIFI - CBD (interruptions per annum) | E22: 0.03 | F22: 0.2 | G22: 0.17 | H22: 0.1 | I22: 0.11 | K22: 0.26 | L22: 0.26 | M22: 0.26 | N22: 0.26 | O22: 0.26 | Q22: 0.14 | R22: 0.14 | S22: 0.14 | T22: 0.14 | U22: 0.14
B23: SAIFI - Urban (interruptions per annum) | E23: 1.16 | F23: 1.13 | G23: 1.09 | H23: 0.91 | I23: 1.02 | K23: 2.12 | L23: 2.12 | M23: 2.12 | N23: 2.12 | O23: 2.12 | Q23: 1.36 | R23: 1.36 | S23: 1.36 | T23: 1.36 | U23: 1.36
B24: SAIFI - Rural Short (interruptions per annum) | E24: 2.17 | F24: 1.83 | G24: 1.98 | H24: 1.75 | I24: 1.76 | K24: 2.61 | L24: 2.61 | M24: 2.61 | N24: 2.61 | O24: 2.61 | Q24: 2.27 | R24: 2.27 | S24: 2.27 | T24: 2.27 | U24: 2.27
B25: SAIFI - Rural Long (interruptions per annum) | E25: 4.91 | F25: 4.98 | G25: 4.41 | H25: 3.99 | I25: 3.95 | K25: 4.51 | L25: 4.51 | M25: 4.51 | N25: 4.51 | O25: 4.51 | Q25: 4.06 | R25: 4.06 | S25: 4.06 | T25: 4.06 | U25: 4.06
B26: Call centre performance (% of calls per year) | E26: 90.6 | F26: 92.8 | G26: 93.7 | H26: 91.4 | I26: 91.8 | K26: 77.5 | L26: 77.5 | M26: 77.5 | N26: 77.5 | O26: 77.5 | Q26: 87.6 | R26: 87.6 | S26: 87.6 | T26: 87.6 | U26: 87.6
B27: Street Lighting repair time - Metropolitan area | E27: 1.23 | F27: 1.14 | G27: 1.3 | H27: 1.55 | I27: 2.47 | K27: 5 | L27: 5 | M27: 5 | N27: 5 | O27: 5 | Q27: n/a | R27: n/a | S27: n/a | T27: n/a | U27: n/a
B28: Street Lighting repair time - Regional area | E28: 2.01 | F28: 1.07 | G28: 1.3 | H28: 0.89 | I28: 4.59 | K28: 9 | L28: 9 | M28: 9 | N28: 9 | O28: 9 | Q28: n/a | R28: n/a | S28: n/a | T28: n/a | U28: n/a
B30: Transmission performance
G31: Actual AA3 | M31: Benchmark | S31: Target
B32: Circuit Availability (% of hours per annum) | E32: 98.4 | F32: 98 | G32: 98.5 | H32: 98.7 | I32: 98.9 | K32: 97.7 | L32: 97.7 | M32: 97.7 | N32: 97.7 | O32: 97.7 | Q32: 98.1 | R32: 98.1 | S32: 98.1 | T32: 98.1 | U32: 98.1
B33: System Minutes Interrupted - Meshed (minutes per annum) | E33: 4.5 | F33: 4.8 | G33: 6.6 | H33: 6.8 | I33: 8.2 | K33: 12.5 | L33: 12.5 | M33: 12.5 | N33: 12.5 | O33: 12.5 | Q33: n/a | R33: n/a | S33: n/a | T33: n/a | U33: n/a
B34: System Minutes Interrupted - Radial (minutes per annum) | E34: 1.2 | F34: 3.7 | G34: 1.6 | H34: 0.5 | I34: 0.7 | K34: 5 | L34: 5 | M34: 5 | N34: 5 | O34: 5 | Q34: 1.9 | R34: 1.9 | S34: 1.9 | T34: 1.9 | U34: 1.9
B35: Loss of Supply Event Frequency > 0.1 (# of events) | E35: 11 | F35: 17 | G35: 24 | H35: 15 | I35: 16 | K35: 33 | L35: 33 | M35: 33 | N35: 33 | O35: 33 | Q35: 24 | R35: 24 | S35: 24 | T35: 24 | U35: 24
B36: Loss of Supply Event Frequency > 1 (# of events) | E36: 1 | F36: 1 | G36: 0 | H36: 1 | I36: 2 | K36: 4 | L36: 4 | M36: 4 | N36: 4 | O36: 4 | Q36: 2 | R36: 2 | S36: 2 | T36: 2 | U36: 2
B37: Average Outage Duration (minutes per annum) | E37: 866 | F37: 795 | G37: 720 | H37: 1265 | I37: 653 | K37: 886 | L37: 886 | M37: 886 | N37: 886 | O37: 886 | Q37: 698 | R37: 698 | S37: 698 | T37: 698 | U37: 698
B39: Distribution incentive rates
G40: [$M real as at 30 June 2012] | M40: [$M real as at 30 June 2017]
B41: SAIDI - CBD - per SAIDI minute | E41: 0.067817 | F41: 0.067817 | G41: 0.067817 | H41: 0.067817 | I41: 0.067817 | K41: =E41/Dx_Inputs!$J$32 -> 0.07477432171 | L41: =F41/Dx_Inputs!$J$32 -> 0.07477432171 | M41: =G41/Dx_Inputs!$J$32 -> 0.07477432171 | N41: =H41/Dx_Inputs!$J$32 -> 0.07477432171 | O41: =I41/Dx_Inputs!$J$32 -> 0.07477432171
B42: SAIDI - Urban - per SAIDI minute | E42: 0.529816 | F42: 0.529816 | G42: 0.529816 | H42: 0.529816 | I42: 0.529816 | K42: =E42/Dx_Inputs!$J$32 -> 0.5841696335 | L42: =F42/Dx_Inputs!$J$32 -> 0.5841696335 | M42: =G42/Dx_Inputs!$J$32 -> 0.5841696335 | N42: =H42/Dx_Inputs!$J$32 -> 0.5841696335 | O42: =I42/Dx_Inputs!$J$32 -> 0.5841696335
B43: SAIDI - Rural Short - per SAIDI minute | E43: 0.223472 | F43: 0.223472 | G43: 0.223472 | H43: 0.223472 | I43: 0.223472 | K43: =E43/Dx_Inputs!$J$32 -> 0.2463979124 | L43: =F43/Dx_Inputs!$J$32 -> 0.2463979124 | M43: =G43/Dx_Inputs!$J$32 -> 0.2463979124 | N43: =H43/Dx_Inputs!$J$32 -> 0.2463979124 | O43: =I43/Dx_Inputs!$J$32 -> 0.2463979124
B44: SAIDI - Rural Long - per SAIDI minute | E44: 0.065219 | F44: 0.065219 | G44: 0.065219 | H44: 0.065219 | I44: 0.065219 | K44: =E44/Dx_Inputs!$J$32 -> 0.07190979382 | L44: =F44/Dx_Inputs!$J$32 -> 0.07190979382 | M44: =G44/Dx_Inputs!$J$32 -> 0.07190979382 | N44: =H44/Dx_Inputs!$J$32 -> 0.07190979382 | O44: =I44/Dx_Inputs!$J$32 -> 0.07190979382
B45: SAIFI - CBD - per 0.01 event | E45: 0.087081 | F45: 0.087081 | G45: 0.087081 | H45: 0.087081 | I45: 0.087081 | K45: =E45/Dx_Inputs!$J$32 -> 0.09601460857 | L45: =F45/Dx_Inputs!$J$32 -> 0.09601460857 | M45: =G45/Dx_Inputs!$J$32 -> 0.09601460857 | N45: =H45/Dx_Inputs!$J$32 -> 0.09601460857 | O45: =I45/Dx_Inputs!$J$32 -> 0.09601460857
B46: SAIFI - Urban - per 0.01 event | E46: 0.548988 | F46: 0.548988 | G46: 0.548988 | H46: 0.548988 | I46: 0.548988 | K46: =E46/Dx_Inputs!$J$32 -> 0.6053084821 | L46: =F46/Dx_Inputs!$J$32 -> 0.6053084821 | M46: =G46/Dx_Inputs!$J$32 -> 0.6053084821 | N46: =H46/Dx_Inputs!$J$32 -> 0.6053084821 | O46: =I46/Dx_Inputs!$J$32 -> 0.6053084821
B47: SAIFI - Rural Short - per 0.01 event | E47: 0.222511 | F47: 0.222511 | G47: 0.222511 | H47: 0.222511 | I47: 0.222511 | K47: =E47/Dx_Inputs!$J$32 -> 0.2453383237 | L47: =F47/Dx_Inputs!$J$32 -> 0.2453383237 | M47: =G47/Dx_Inputs!$J$32 -> 0.2453383237 | N47: =H47/Dx_Inputs!$J$32 -> 0.2453383237 | O47: =I47/Dx_Inputs!$J$32 -> 0.2453383237
B48: SAIFI - Rural Long - per 0.01 event | E48: 0.101725 | F48: 0.101725 | G48: 0.101725 | H48: 0.101725 | I48: 0.101725 | K48: =E48/Dx_Inputs!$J$32 -> 0.1121609313 | L48: =F48/Dx_Inputs!$J$32 -> 0.1121609313 | M48: =G48/Dx_Inputs!$J$32 -> 0.1121609313 | N48: =H48/Dx_Inputs!$J$32 -> 0.1121609313 | O48: =I48/Dx_Inputs!$J$32 -> 0.1121609313
B49: Call centre performance - per 0.1% | E49: -0.041495 | F49: -0.041495 | G49: -0.041495 | H49: -0.041495 | I49: -0.041495 | K49: =E49/Dx_Inputs!$J$32 -> -0.04575195717 | L49: =F49/Dx_Inputs!$J$32 -> -0.04575195717 | M49: =G49/Dx_Inputs!$J$32 -> -0.04575195717 | N49: =H49/Dx_Inputs!$J$32 -> -0.04575195717 | O49: =I49/Dx_Inputs!$J$32 -> -0.04575195717
B51: Transmission incentive rates
G52: [$M real as at 30 June 2012] | M52: [$M real as at 30 June 2017]
B53: Circuit Availability - per 0.1% | E53: -0.817186 | F53: -0.817185 | G53: -0.817184 | H53: -0.817183 | I53: -0.817182 | K53: =E53/Dx_Inputs!$J$32 -> -0.9010208187 | L53: =F53/Dx_Inputs!$J$32 -> -0.9010197161 | M53: =G53/Dx_Inputs!$J$32 -> -0.9010186135 | N53: =H53/Dx_Inputs!$J$32 -> -0.901017511 | O53: =I53/Dx_Inputs!$J$32 -> -0.9010164084
B54: System Minutes Interrupted - Radial - per minute | E54: 0.105443 | F54: 0.105443 | G54: 0.105443 | H54: 0.105443 | I54: 0.105443 | K54: =E54/Dx_Inputs!$J$32 -> 0.1162603596 | L54: =F54/Dx_Inputs!$J$32 -> 0.1162603596 | M54: =G54/Dx_Inputs!$J$32 -> 0.1162603596 | N54: =H54/Dx_Inputs!$J$32 -> 0.1162603596 | O54: =I54/Dx_Inputs!$J$32 -> 0.1162603596
B55: Loss of Supply Event Frequency >0.1 - per event | E55: 0.036319 | F55: 0.036319 | G55: 0.036319 | H55: 0.036319 | I55: 0.036319 | K55: =E55/Dx_Inputs!$J$32 -> 0.04004495319 | L55: =F55/Dx_Inputs!$J$32 -> 0.04004495319 | M55: =G55/Dx_Inputs!$J$32 -> 0.04004495319 | N55: =H55/Dx_Inputs!$J$32 -> 0.04004495319 | O55: =I55/Dx_Inputs!$J$32 -> 0.04004495319
B56: Loss of Supply Event Frequency >1 - per event | E56: 0.163437 | F56: 0.163437 | G56: 0.163437 | H56: 0.163437 | I56: 0.163437 | K56: =E56/Dx_Inputs!$J$32 -> 0.1802039432 | L56: =F56/Dx_Inputs!$J$32 -> 0.1802039432 | M56: =G56/Dx_Inputs!$J$32 -> 0.1802039432 | N56: =H56/Dx_Inputs!$J$32 -> 0.1802039432 | O56: =I56/Dx_Inputs!$J$32 -> 0.1802039432
B57: Average Outage Duration - per minute | E57: 0.003477 | F57: 0.003477 | G57: 0.003477 | H57: 0.003477 | I57: 0.003477 | K57: =E57/Dx_Inputs!$J$32 -> 0.003833704183 | L57: =F57/Dx_Inputs!$J$32 -> 0.003833704183 | M57: =G57/Dx_Inputs!$J$32 -> 0.003833704183 | N57: =H57/Dx_Inputs!$J$32 -> 0.003833704183 | O57: =I57/Dx_Inputs!$J$32 -> 0.003833704183
B59: Distribution penalty rates
G60: [$M real as at 30 June 2012] | M60: [$M real as at 30 June 2017]
B61: SAIDI - CBD - per SAIDI minute | E61: 0.067817 | F61: 0.067817 | G61: 0.067817 | H61: 0.067817 | I61: 0.067817 | K61: =E61/Dx_Inputs!$J$32 -> 0.07477432171 | L61: =F61/Dx_Inputs!$J$32 -> 0.07477432171 | M61: =G61/Dx_Inputs!$J$32 -> 0.07477432171 | N61: =H61/Dx_Inputs!$J$32 -> 0.07477432171 | O61: =I61/Dx_Inputs!$J$32 -> 0.07477432171
B62: SAIDI - Urban - per SAIDI minute | E62: 0.529816 | F62: 0.529816 | G62: 0.529816 | H62: 0.529816 | I62: 0.529816 | K62: =E62/Dx_Inputs!$J$32 -> 0.5841696335 | L62: =F62/Dx_Inputs!$J$32 -> 0.5841696335 | M62: =G62/Dx_Inputs!$J$32 -> 0.5841696335 | N62: =H62/Dx_Inputs!$J$32 -> 0.5841696335 | O62: =I62/Dx_Inputs!$J$32 -> 0.5841696335
B63: SAIDI - Rural Short - per SAIDI minute | E63: 0.223472 | F63: 0.223472 | G63: 0.223472 | H63: 0.223472 | I63: 0.223472 | K63: =E63/Dx_Inputs!$J$32 -> 0.2463979124 | L63: =F63/Dx_Inputs!$J$32 -> 0.2463979124 | M63: =G63/Dx_Inputs!$J$32 -> 0.2463979124 | N63: =H63/Dx_Inputs!$J$32 -> 0.2463979124 | O63: =I63/Dx_Inputs!$J$32 -> 0.2463979124
B64: SAIDI - Rural Long - per SAIDI minute | E64: 0.065219 | F64: 0.065219 | G64: 0.065219 | H64: 0.065219 | I64: 0.065219 | K64: =E64/Dx_Inputs!$J$32 -> 0.07190979382 | L64: =F64/Dx_Inputs!$J$32 -> 0.07190979382 | M64: =G64/Dx_Inputs!$J$32 -> 0.07190979382 | N64: =H64/Dx_Inputs!$J$32 -> 0.07190979382 | O64: =I64/Dx_Inputs!$J$32 -> 0.07190979382
B65: SAIFI - CBD - per 0.01 event | E65: 0.087081 | F65: 0.087081 | G65: 0.087081 | H65: 0.087081 | I65: 0.087081 | K65: =E65/Dx_Inputs!$J$32 -> 0.09601460857 | L65: =F65/Dx_Inputs!$J$32 -> 0.09601460857 | M65: =G65/Dx_Inputs!$J$32 -> 0.09601460857 | N65: =H65/Dx_Inputs!$J$32 -> 0.09601460857 | O65: =I65/Dx_Inputs!$J$32 -> 0.09601460857
B66: SAIFI - Urban - per 0.01 event | E66: 0.548988 | F66: 0.548988 | G66: 0.548988 | H66: 0.548988 | I66: 0.548988 | K66: =E66/Dx_Inputs!$J$32 -> 0.6053084821 | L66: =F66/Dx_Inputs!$J$32 -> 0.6053084821 | M66: =G66/Dx_Inputs!$J$32 -> 0.6053084821 | N66: =H66/Dx_Inputs!$J$32 -> 0.6053084821 | O66: =I66/Dx_Inputs!$J$32 -> 0.6053084821
B67: SAIFI - Rural Short - per 0.01 event | E67: 0.222511 | F67: 0.222511 | G67: 0.222511 | H67: 0.222511 | I67: 0.222511 | K67: =E67/Dx_Inputs!$J$32 -> 0.2453383237 | L67: =F67/Dx_Inputs!$J$32 -> 0.2453383237 | M67: =G67/Dx_Inputs!$J$32 -> 0.2453383237 | N67: =H67/Dx_Inputs!$J$32 -> 0.2453383237 | O67: =I67/Dx_Inputs!$J$32 -> 0.2453383237
B68: SAIFI - Rural Long - per 0.01 event | E68: 0.101725 | F68: 0.101725 | G68: 0.101725 | H68: 0.101725 | I68: 0.101725 | K68: =E68/Dx_Inputs!$J$32 -> 0.1121609313 | L68: =F68/Dx_Inputs!$J$32 -> 0.1121609313 | M68: =G68/Dx_Inputs!$J$32 -> 0.1121609313 | N68: =H68/Dx_Inputs!$J$32 -> 0.1121609313 | O68: =I68/Dx_Inputs!$J$32 -> 0.1121609313
B69: Call centre performance - per 0.1% | E69: -0.041084 | F69: -0.041084 | G69: -0.041084 | H69: -0.041084 | I69: -0.041084 | K69: =E69/Dx_Inputs!$J$32 -> -0.04529879283 | L69: =F69/Dx_Inputs!$J$32 -> -0.04529879283 | M69: =G69/Dx_Inputs!$J$32 -> -0.04529879283 | N69: =H69/Dx_Inputs!$J$32 -> -0.04529879283 | O69: =I69/Dx_Inputs!$J$32 -> -0.04529879283
B71: Transmission penalty rates
G72: [$M real as at 30 June 2012] | M72: [$M real as at 30 June 2017]
B73: Circuit Availability - per 0.1% | E73: -0.408593 | F73: -0.408593 | G73: -0.408593 | H73: -0.408593 | I73: -0.408593 | K73: =E73/Dx_Inputs!$J$32 -> -0.4505104094 | L73: =F73/Dx_Inputs!$J$32 -> -0.4505104094 | M73: =G73/Dx_Inputs!$J$32 -> -0.4505104094 | N73: =H73/Dx_Inputs!$J$32 -> -0.4505104094 | O73: =I73/Dx_Inputs!$J$32 -> -0.4505104094
B74: System Minutes Interrupted - Radial - per minute | E74: 0.172039 | F74: 0.172039 | G74: 0.172039 | H74: 0.172039 | I74: 0.172039 | K74: =E74/Dx_Inputs!$J$32 -> 0.1896884193 | L74: =F74/Dx_Inputs!$J$32 -> 0.1896884193 | M74: =G74/Dx_Inputs!$J$32 -> 0.1896884193 | N74: =H74/Dx_Inputs!$J$32 -> 0.1896884193 | O74: =I74/Dx_Inputs!$J$32 -> 0.1896884193
B75: Loss of Supply Event Frequency >0.1 - per event | E75: 0.02724 | F75: 0.02724 | G75: 0.02724 | H75: 0.02724 | I75: 0.02724 | K75: =E75/Dx_Inputs!$J$32 -> 0.03003454183 | L75: =F75/Dx_Inputs!$J$32 -> 0.03003454183 | M75: =G75/Dx_Inputs!$J$32 -> 0.03003454183 | N75: =H75/Dx_Inputs!$J$32 -> 0.03003454183 | O75: =I75/Dx_Inputs!$J$32 -> 0.03003454183
B76: Loss of Supply Event Frequency >1 - per event | E76: 0.163437 | F76: 0.163437 | G76: 0.163437 | H76: 0.163437 | I76: 0.163437 | K76: =E76/Dx_Inputs!$J$32 -> 0.1802039432 | L76: =F76/Dx_Inputs!$J$32 -> 0.1802039432 | M76: =G76/Dx_Inputs!$J$32 -> 0.1802039432 | N76: =H76/Dx_Inputs!$J$32 -> 0.1802039432 | O76: =I76/Dx_Inputs!$J$32 -> 0.1802039432
B77: Average Outage Duration - per minute | E77: 0.002495 | F77: 0.002495 | G77: 0.002495 | H77: 0.002495 | I77: 0.002495 | K77: =E77/Dx_Inputs!$J$32 -> 0.002750961155 | L77: =F77/Dx_Inputs!$J$32 -> 0.002750961155 | M77: =G77/Dx_Inputs!$J$32 -> 0.002750961155 | N77: =H77/Dx_Inputs!$J$32 -> 0.002750961155 | O77: =I77/Dx_Inputs!$J$32 -> 0.002750961155
B79: Gain share mechanism (GSM)
B80: Year ending 30 June | C80: 2011 | D80: 2012 | E80: 2013 | F80: 2014 | G80: 2015 | H80: 2016 | I80: 2017 | K80: 2013 | L80: 2014 | M80: 2015 | N80: 2016 | O80: 2017
B81: Forecast escalation factors
B82: Customer numbers escalation | D82: 0.0241 | E82: 0.0241 | F82: 0.0241 | G82: 0.0241 | H82: 0.0241 | I82: 0.0241
B83: Line length ( a ) | D83: 0.0131 | E83: 0.0131 | F83: 0.0131 | G83: 0.0131 | H83: 0.0131 | I83: 0.0131
B84: Number of distribution transformers ( b ) | D84: 0.0133 | E84: 0.0133 | F84: 0.0133 | G84: 0.0133 | H84: 0.0133 | I84: 0.0133
B85: Zone substation capacity ( c ) | D85: 0.0365 | E85: 0.0365 | F85: 0.0365 | G85: 0.0365 | H85: 0.0365 | I85: 0.0365
B86: Network growth escalation (average of a,b & c) | D86: 0.021 | E86: 0.021 | F86: 0.021 | G86: 0.021 | H86: 0.021 | I86: 0.021
B88: Actual escalation factors
B89: Number of customers | C89: 1010663 | D89: 1016000 | E89: 1050696 | F89: 1057867 | G89: 1084197 | H89: 1109915 | I89: 1127057
B90: Line length | C90: 96188.8 | D90: 97558.4 | E90: 97644.44774 | F90: 98967.39 | G90: 100302.88 | H90: 101097.36 | I90: 101633.95
B91: Number of distribution transformers | C91: 64587 | D91: 65519 | E91: 65828 | F91: 66815 | G91: 67554 | H91: 68125 | I91: 68560
B92: Zone substation capacity | C92: 7712 | D92: 8055 | E92: 8121 | F92: 8457.95 | G92: 8406.75 | H92: 8175 | I92: 8217
B94: Operating expenditure - Final decision efficiency and innovation benchmark (EIB)
B95: ERA Final Decision EIB categories | G95: [$M real as at 30 June 2012] | M95: [$M real as at 30 June 2017]
B96: Superannuation costs for defined benefit schemes | E96: 2.8874923 | F96: 2.951017131 | G96: 3.021841542 | H96: 3.082278373 | I96: 3.14392394 | K96: =E96/Dx_Inputs!$J$32 -> 3.1837191 | L96: =F96/Dx_Inputs!$J$32 -> 3.25376092 | M96: =G96/Dx_Inputs!$J$32 -> 3.331851182 | N96: =H96/Dx_Inputs!$J$32 -> 3.398488206 | O96: =I96/Dx_Inputs!$J$32 -> 3.46645797
B97: Non-revenue cap services cost | E97: 0 | F97: 0 | G97: 0 | H97: 0 | I97: 0 | K97: =E97/Dx_Inputs!$J$32 -> 0 | L97: =F97/Dx_Inputs!$J$32 -> 0 | M97: =G97/Dx_Inputs!$J$32 -> 0 | N97: =H97/Dx_Inputs!$J$32 -> 0 | O97: =I97/Dx_Inputs!$J$32 -> 0
B98: Licence fees | E98: 0.045 | F98: 0.045 | G98: 0.045 | H98: 0.045 | I98: 0.045 | K98: =E98/Dx_Inputs!$J$32 -> 0.04961653386 | L98: =F98/Dx_Inputs!$J$32 -> 0.04961653386 | M98: =G98/Dx_Inputs!$J$32 -> 0.04961653386 | N98: =H98/Dx_Inputs!$J$32 -> 0.04961653386 | O98: =I98/Dx_Inputs!$J$32 -> 0.04961653386
B99: Energy safety levy | E99: 4.115853002 | F99: 4.115853002 | G99: 4.115853002 | H99: 4.115853002 | I99: 4.115853002 | K99: =E99/Dx_Inputs!$J$32 -> 4.538096886 | L99: =F99/Dx_Inputs!$J$32 -> 4.538096886 | M99: =G99/Dx_Inputs!$J$32 -> 4.538096886 | N99: =H99/Dx_Inputs!$J$32 -> 4.538096886 | O99: =I99/Dx_Inputs!$J$32 -> 4.538096886
B100: Network control service | E100: 0 | F100: 0 | G100: 0 | H100: 0 | I100: 0 | K100: =E100/Dx_Inputs!$J$32 -> 0 | L100: =F100/Dx_Inputs!$J$32 -> 0 | M100: =G100/Dx_Inputs!$J$32 -> 0 | N100: =H100/Dx_Inputs!$J$32 -> 0 | O100: =I100/Dx_Inputs!$J$32 -> 0
B101: ERA costs (Electricity Network Access Funding Regulations) | E101: 0.8707540896 | F101: 1.354487331 | G101: 1.238282807 | H101: 1.163003146 | I101: 1.169819765 | K101: =E101/Dx_Inputs!$J$32 -> 0.9600844395 | L101: =F101/Dx_Inputs!$J$32 -> 1.493443701 | M101: =G101/Dx_Inputs!$J$32 -> 1.365317796 | N101: =H101/Dx_Inputs!$J$32 -> 1.282315221 | O101: =I101/Dx_Inputs!$J$32 -> 1.289831155
B103: Operating expenditure subject to scale esclation by regulatory category
B104: Insert operating expenditure that excludes any form of escalation
B105: Base distribution | G105: [$M real as at 30 June 2012] | M105: [$M real as at 30 June 2017]
B106: Reliability | E106: 1.502882184 | F106: 1.502882184 | G106: 1.502882184 | H106: 1.502882184 | I106: 1.502882184 | K106: =E106/Dx_Inputs!$J$32 -> 1.657062328 | L106: =F106/Dx_Inputs!$J$32 -> 1.657062328 | M106: =G106/Dx_Inputs!$J$32 -> 1.657062328 | N106: =H106/Dx_Inputs!$J$32 -> 1.657062328 | O106: =I106/Dx_Inputs!$J$32 -> 1.657062328
B107: SCADA & Communications | E107: 4.096862443 | F107: 4.096862443 | G107: 4.096862443 | H107: 4.096862443 | I107: 4.096862443 | K107: =E107/Dx_Inputs!$J$32 -> 4.517158092 | L107: =F107/Dx_Inputs!$J$32 -> 4.517158092 | M107: =G107/Dx_Inputs!$J$32 -> 4.517158092 | N107: =H107/Dx_Inputs!$J$32 -> 4.517158092 | O107: =I107/Dx_Inputs!$J$32 -> 4.517158092
B108: Non-revenue cap services | E108: 0 | F108: 0 | G108: 0 | H108: 0 | I108: 0 | K108: =E108/Dx_Inputs!$J$32 -> 0 | L108: =F108/Dx_Inputs!$J$32 -> 0 | M108: =G108/Dx_Inputs!$J$32 -> 0 | N108: =H108/Dx_Inputs!$J$32 -> 0 | O108: =I108/Dx_Inputs!$J$32 -> 0
B109: Network Operations | E109: 14.47587524 | F109: 14.47587524 | G109: 14.47587524 | H109: 14.47587524 | I109: 14.47587524 | K109: =E109/Dx_Inputs!$J$32 -> 15.9609501 | L109: =F109/Dx_Inputs!$J$32 -> 15.9609501 | M109: =G109/Dx_Inputs!$J$32 -> 15.9609501 | N109: =H109/Dx_Inputs!$J$32 -> 15.9609501 | O109: =I109/Dx_Inputs!$J$32 -> 15.9609501
B110: Smartgrid | E110: 0 | F110: 0 | G110: 0 | H110: 0 | I110: 0 | K110: =E110/Dx_Inputs!$J$32 -> 0 | L110: =F110/Dx_Inputs!$J$32 -> 0 | M110: =G110/Dx_Inputs!$J$32 -> 0 | N110: =H110/Dx_Inputs!$J$32 -> 0 | O110: =I110/Dx_Inputs!$J$32 -> 0
B111: Maintenance Strategy | E111: 0 | F111: 0 | G111: 0 | H111: 0 | I111: 0 | K111: =E111/Dx_Inputs!$J$32 -> 0 | L111: =F111/Dx_Inputs!$J$32 -> 0 | M111: =G111/Dx_Inputs!$J$32 -> 0 | N111: =H111/Dx_Inputs!$J$32 -> 0 | O111: =I111/Dx_Inputs!$J$32 -> 0
B112: Preventive Condition | E112: 39.62838312 | F112: 39.62838312 | G112: 39.62838312 | H112: 39.62838312 | I112: 39.62838312 | K112: =E112/Dx_Inputs!$J$32 -> 43.69384473 | L112: =F112/Dx_Inputs!$J$32 -> 43.69384473 | M112: =G112/Dx_Inputs!$J$32 -> 43.69384473 | N112: =H112/Dx_Inputs!$J$32 -> 43.69384473 | O112: =I112/Dx_Inputs!$J$32 -> 43.69384473
B113: Preventive Routine | E113: 33.05757729 | F113: 33.05757729 | G113: 33.05757729 | H113: 33.05757729 | I113: 33.05757729 | K113: =E113/Dx_Inputs!$J$32 -> 36.44894229 | L113: =F113/Dx_Inputs!$J$32 -> 36.44894229 | M113: =G113/Dx_Inputs!$J$32 -> 36.44894229 | N113: =H113/Dx_Inputs!$J$32 -> 36.44894229 | O113: =I113/Dx_Inputs!$J$32 -> 36.44894229
B114: Corrective Deferred | E114: 23.46630623 | F114: 23.46630623 | G114: 23.46630623 | H114: 23.46630623 | I114: 23.46630623 | K114: =E114/Dx_Inputs!$J$32 -> 25.87370618 | L114: =F114/Dx_Inputs!$J$32 -> 25.87370618 | M114: =G114/Dx_Inputs!$J$32 -> 25.87370618 | N114: =H114/Dx_Inputs!$J$32 -> 25.87370618 | O114: =I114/Dx_Inputs!$J$32 -> 25.87370618
B115: Corrective Emergency | E115: 59.20489989 | F115: 59.20489989 | G115: 59.20489989 | H115: 59.20489989 | I115: 59.20489989 | K115: =E115/Dx_Inputs!$J$32 -> 65.27870934 | L115: =F115/Dx_Inputs!$J$32 -> 65.27870934 | M115: =G115/Dx_Inputs!$J$32 -> 65.27870934 | N115: =H115/Dx_Inputs!$J$32 -> 65.27870934 | O115: =I115/Dx_Inputs!$J$32 -> 65.27870934
B116: Call Centre | E116: 6.909525 | F116: 6.909525 | G116: 6.909525 | H116: 6.909525 | I116: 6.909525 | K116: =E116/Dx_Inputs!$J$32 -> 7.618370692 | L116: =F116/Dx_Inputs!$J$32 -> 7.618370692 | M116: =G116/Dx_Inputs!$J$32 -> 7.618370692 | N116: =H116/Dx_Inputs!$J$32 -> 7.618370692 | O116: =I116/Dx_Inputs!$J$32 -> 7.618370692
B117: Metering | E117: 18.541506 | F117: 18.541506 | G117: 18.541506 | H117: 18.541506 | I117: 18.541506 | K117: =E117/Dx_Inputs!$J$32 -> 20.44367245 | L117: =F117/Dx_Inputs!$J$32 -> 20.44367245 | M117: =G117/Dx_Inputs!$J$32 -> 20.44367245 | N117: =H117/Dx_Inputs!$J$32 -> 20.44367245 | O117: =I117/Dx_Inputs!$J$32 -> 20.44367245
B118: Guaranteed service level payments | E118: 0 | F118: 0 | G118: 0 | H118: 0 | I118: 0 | K118: =E118/Dx_Inputs!$J$32 -> 0 | L118: =F118/Dx_Inputs!$J$32 -> 0 | M118: =G118/Dx_Inputs!$J$32 -> 0 | N118: =H118/Dx_Inputs!$J$32 -> 0 | O118: =I118/Dx_Inputs!$J$32 -> 0
B119: Design & Estimating - Distribution Quotations | E119: 0 | F119: 0 | G119: 0 | H119: 0 | I119: 0 | K119: =E119/Dx_Inputs!$J$32 -> 0 | L119: =F119/Dx_Inputs!$J$32 -> 0 | M119: =G119/Dx_Inputs!$J$32 -> 0 | N119: =H119/Dx_Inputs!$J$32 -> 0 | O119: =I119/Dx_Inputs!$J$32 -> 0
B120: Business Support | E120: 0 | F120: 0 | G120: 0 | H120: 0 | I120: 0 | K120: =E120/Dx_Inputs!$J$32 -> 0 | L120: =F120/Dx_Inputs!$J$32 -> 0 | M120: =G120/Dx_Inputs!$J$32 -> 0 | N120: =H120/Dx_Inputs!$J$32 -> 0 | O120: =I120/Dx_Inputs!$J$32 -> 0
B121: IT | E121: 0 | F121: 0 | G121: 0 | H121: 0 | I121: 0 | K121: =E121/Dx_Inputs!$J$32 -> 0 | L121: =F121/Dx_Inputs!$J$32 -> 0 | M121: =G121/Dx_Inputs!$J$32 -> 0 | N121: =H121/Dx_Inputs!$J$32 -> 0 | O121: =I121/Dx_Inputs!$J$32 -> 0
B122: Non-recurring opex | E122: 0 | F122: 0 | G122: 0 | H122: 0 | I122: 0 | K122: =E122/Dx_Inputs!$J$32 -> 0 | L122: =F122/Dx_Inputs!$J$32 -> 0 | M122: =G122/Dx_Inputs!$J$32 -> 0 | N122: =H122/Dx_Inputs!$J$32 -> 0 | O122: =I122/Dx_Inputs!$J$32 -> 0
B123: Total | E123: =SUM(E106:E122) -> 200.8838174 | F123: =SUM(F106:F122) -> 200.8838174 | G123: =SUM(G106:G122) -> 200.8838174 | H123: =SUM(H106:H122) -> 200.8838174 | I123: =SUM(I106:I122) -> 200.8838174 | K123: =SUM(K106:K122) -> 221.4924162 | L123: =SUM(L106:L122) -> 221.4924162 | M123: =SUM(M106:M122) -> 221.4924162 | N123: =SUM(N106:N122) -> 221.4924162 | O123: =SUM(O106:O122) -> 221.4924162
B125: New distribution operating expenditure recurring from 2012/13 | G125: [$M real as at 30 June 2012] | M125: [$M real as at 30 June 2017]
B126: Reliability | E126: 0 | F126: 0 | G126: 0 | H126: 0 | I126: 0 | K126: =E126/Dx_Inputs!$J$32 -> 0 | L126: =F126/Dx_Inputs!$J$32 -> 0 | M126: =G126/Dx_Inputs!$J$32 -> 0 | N126: =H126/Dx_Inputs!$J$32 -> 0 | O126: =I126/Dx_Inputs!$J$32 -> 0
B127: SCADA & Communications | E127: 0 | F127: 0 | G127: 0 | H127: 0 | I127: 0 | K127: =E127/Dx_Inputs!$J$32 -> 0 | L127: =F127/Dx_Inputs!$J$32 -> 0 | M127: =G127/Dx_Inputs!$J$32 -> 0 | N127: =H127/Dx_Inputs!$J$32 -> 0 | O127: =I127/Dx_Inputs!$J$32 -> 0
B128: Non-revenue cap services | E128: 0 | F128: 0 | G128: 0 | H128: 0 | I128: 0 | K128: =E128/Dx_Inputs!$J$32 -> 0 | L128: =F128/Dx_Inputs!$J$32 -> 0 | M128: =G128/Dx_Inputs!$J$32 -> 0 | N128: =H128/Dx_Inputs!$J$32 -> 0 | O128: =I128/Dx_Inputs!$J$32 -> 0
B129: Network Operations | E129: 0 | F129: 0 | G129: 0 | H129: 0 | I129: 0 | K129: =E129/Dx_Inputs!$J$32 -> 0 | L129: =F129/Dx_Inputs!$J$32 -> 0 | M129: =G129/Dx_Inputs!$J$32 -> 0 | N129: =H129/Dx_Inputs!$J$32 -> 0 | O129: =I129/Dx_Inputs!$J$32 -> 0
B130: Smartgrid | E130: 0 | F130: 0 | G130: 0 | H130: 0 | I130: 0 | K130: =E130/Dx_Inputs!$J$32 -> 0 | L130: =F130/Dx_Inputs!$J$32 -> 0 | M130: =G130/Dx_Inputs!$J$32 -> 0 | N130: =H130/Dx_Inputs!$J$32 -> 0 | O130: =I130/Dx_Inputs!$J$32 -> 0
B131: Maintenance Strategy | E131: 0 | F131: 0 | G131: 0 | H131: 0 | I131: 0 | K131: =E131/Dx_Inputs!$J$32 -> 0 | L131: =F131/Dx_Inputs!$J$32 -> 0 | M131: =G131/Dx_Inputs!$J$32 -> 0 | N131: =H131/Dx_Inputs!$J$32 -> 0 | O131: =I131/Dx_Inputs!$J$32 -> 0
B132: Preventive Condition | E132: 0 | F132: 0 | G132: 0 | H132: 0 | I132: 0 | K132: =E132/Dx_Inputs!$J$32 -> 0 | L132: =F132/Dx_Inputs!$J$32 -> 0 | M132: =G132/Dx_Inputs!$J$32 -> 0 | N132: =H132/Dx_Inputs!$J$32 -> 0 | O132: =I132/Dx_Inputs!$J$32 -> 0
B133: Preventive Routine | E133: 3.77 | F133: 3.77 | G133: 3.77 | H133: 3.77 | I133: 3.77 | K133: =E133/Dx_Inputs!$J$32 -> 4.156762948 | L133: =F133/Dx_Inputs!$J$32 -> 4.156762948 | M133: =G133/Dx_Inputs!$J$32 -> 4.156762948 | N133: =H133/Dx_Inputs!$J$32 -> 4.156762948 | O133: =I133/Dx_Inputs!$J$32 -> 4.156762948
B134: Corrective Deferred | E134: 2.3 | F134: 2.3 | G134: 2.3 | H134: 2.3 | I134: 2.3 | K134: =E134/Dx_Inputs!$J$32 -> 2.535956175 | L134: =F134/Dx_Inputs!$J$32 -> 2.535956175 | M134: =G134/Dx_Inputs!$J$32 -> 2.535956175 | N134: =H134/Dx_Inputs!$J$32 -> 2.535956175 | O134: =I134/Dx_Inputs!$J$32 -> 2.535956175
B135: Corrective Emergency | E135: 0 | F135: 0 | G135: 0 | H135: 0 | I135: 0 | K135: =E135/Dx_Inputs!$J$32 -> 0 | L135: =F135/Dx_Inputs!$J$32 -> 0 | M135: =G135/Dx_Inputs!$J$32 -> 0 | N135: =H135/Dx_Inputs!$J$32 -> 0 | O135: =I135/Dx_Inputs!$J$32 -> 0
B136: Call Centre | E136: 0 | F136: 0 | G136: 0 | H136: 0 | I136: 0 | K136: =E136/Dx_Inputs!$J$32 -> 0 | L136: =F136/Dx_Inputs!$J$32 -> 0 | M136: =G136/Dx_Inputs!$J$32 -> 0 | N136: =H136/Dx_Inputs!$J$32 -> 0 | O136: =I136/Dx_Inputs!$J$32 -> 0
B137: Metering | E137: 0.5 | F137: 0.5 | G137: 0.5 | H137: 0.5 | I137: 0.5 | K137: =E137/Dx_Inputs!$J$32 -> 0.5512948207 | L137: =F137/Dx_Inputs!$J$32 -> 0.5512948207 | M137: =G137/Dx_Inputs!$J$32 -> 0.5512948207 | N137: =H137/Dx_Inputs!$J$32 -> 0.5512948207 | O137: =I137/Dx_Inputs!$J$32 -> 0.5512948207
B138: Guaranteed service level payments | E138: 0 | F138: 0 | G138: 0 | H138: 0 | I138: 0 | K138: =E138/Dx_Inputs!$J$32 -> 0 | L138: =F138/Dx_Inputs!$J$32 -> 0 | M138: =G138/Dx_Inputs!$J$32 -> 0 | N138: =H138/Dx_Inputs!$J$32 -> 0 | O138: =I138/Dx_Inputs!$J$32 -> 0
B139: Design & Estimating - Distribution Quotations | E139: 0 | F139: 0 | G139: 0 | H139: 0 | I139: 0 | K139: =E139/Dx_Inputs!$J$32 -> 0 | L139: =F139/Dx_Inputs!$J$32 -> 0 | M139: =G139/Dx_Inputs!$J$32 -> 0 | N139: =H139/Dx_Inputs!$J$32 -> 0 | O139: =I139/Dx_Inputs!$J$32 -> 0
B140: Business Support | E140: 0 | F140: 0 | G140: 0 | H140: 0 | I140: 0 | K140: =E140/Dx_Inputs!$J$32 -> 0 | L140: =F140/Dx_Inputs!$J$32 -> 0 | M140: =G140/Dx_Inputs!$J$32 -> 0 | N140: =H140/Dx_Inputs!$J$32 -> 0 | O140: =I140/Dx_Inputs!$J$32 -> 0
B141: IT | E141: 0 | F141: 0 | G141: 0 | H141: 0 | I141: 0 | K141: =E141/Dx_Inputs!$J$32 -> 0 | L141: =F141/Dx_Inputs!$J$32 -> 0 | M141: =G141/Dx_Inputs!$J$32 -> 0 | N141: =H141/Dx_Inputs!$J$32 -> 0 | O141: =I141/Dx_Inputs!$J$32 -> 0
B142: Non-recurring opex | E142: 0 | F142: 0 | G142: 0 | H142: 0 | I142: 0 | K142: =E142/Dx_Inputs!$J$32 -> 0 | L142: =F142/Dx_Inputs!$J$32 -> 0 | M142: =G142/Dx_Inputs!$J$32 -> 0 | N142: =H142/Dx_Inputs!$J$32 -> 0 | O142: =I142/Dx_Inputs!$J$32 -> 0
B143: Total | E143: =SUM(E126:E142) -> 6.57 | F143: =SUM(F126:F142) -> 6.57 | G143: =SUM(G126:G142) -> 6.57 | H143: =SUM(H126:H142) -> 6.57 | I143: =SUM(I126:I142) -> 6.57 | K143: =SUM(K126:K142) -> 7.244013944 | L143: =SUM(L126:L142) -> 7.244013944 | M143: =SUM(M126:M142) -> 7.244013944 | N143: =SUM(N126:N142) -> 7.244013944 | O143: =SUM(O126:O142) -> 7.244013944
B145: New distribution operating expenditure recurring from 2013/14 | G145: [$M real as at 30 June 2012] | M145: [$M real as at 30 June 2017]
B146: Reliability | F146: 0 | G146: 0 | H146: 0 | I146: 0 | L146: =F146/Dx_Inputs!$J$32 -> 0 | M146: =G146/Dx_Inputs!$J$32 -> 0 | N146: =H146/Dx_Inputs!$J$32 -> 0 | O146: =I146/Dx_Inputs!$J$32 -> 0
B147: SCADA & Communications | F147: 0 | G147: 0 | H147: 0 | I147: 0 | L147: =F147/Dx_Inputs!$J$32 -> 0 | M147: =G147/Dx_Inputs!$J$32 -> 0 | N147: =H147/Dx_Inputs!$J$32 -> 0 | O147: =I147/Dx_Inputs!$J$32 -> 0
B148: Non-revenue cap services | F148: 0 | G148: 0 | H148: 0 | I148: 0 | L148: =F148/Dx_Inputs!$J$32 -> 0 | M148: =G148/Dx_Inputs!$J$32 -> 0 | N148: =H148/Dx_Inputs!$J$32 -> 0 | O148: =I148/Dx_Inputs!$J$32 -> 0
B149: Network Operations | F149: 0 | G149: 0 | H149: 0 | I149: 0 | L149: =F149/Dx_Inputs!$J$32 -> 0 | M149: =G149/Dx_Inputs!$J$32 -> 0 | N149: =H149/Dx_Inputs!$J$32 -> 0 | O149: =I149/Dx_Inputs!$J$32 -> 0
B150: Smartgrid | F150: 0 | G150: 0 | H150: 0 | I150: 0 | L150: =F150/Dx_Inputs!$J$32 -> 0 | M150: =G150/Dx_Inputs!$J$32 -> 0 | N150: =H150/Dx_Inputs!$J$32 -> 0 | O150: =I150/Dx_Inputs!$J$32 -> 0
B151: Maintenance Strategy | F151: 0 | G151: 0 | H151: 0 | I151: 0 | L151: =F151/Dx_Inputs!$J$32 -> 0 | M151: =G151/Dx_Inputs!$J$32 -> 0 | N151: =H151/Dx_Inputs!$J$32 -> 0 | O151: =I151/Dx_Inputs!$J$32 -> 0
B152: Preventive Condition | F152: 0 | G152: 0 | H152: 0 | I152: 0 | L152: =F152/Dx_Inputs!$J$32 -> 0 | M152: =G152/Dx_Inputs!$J$32 -> 0 | N152: =H152/Dx_Inputs!$J$32 -> 0 | O152: =I152/Dx_Inputs!$J$32 -> 0
B153: Preventive Routine | F153: 1.4 | G153: 1.4 | H153: 1.4 | I153: 1.4 | L153: =F153/Dx_Inputs!$J$32 -> 1.543625498 | M153: =G153/Dx_Inputs!$J$32 -> 1.543625498 | N153: =H153/Dx_Inputs!$J$32 -> 1.543625498 | O153: =I153/Dx_Inputs!$J$32 -> 1.543625498
B154: Corrective Deferred | F154: 0 | G154: 0 | H154: 0 | I154: 0 | L154: =F154/Dx_Inputs!$J$32 -> 0 | M154: =G154/Dx_Inputs!$J$32 -> 0 | N154: =H154/Dx_Inputs!$J$32 -> 0 | O154: =I154/Dx_Inputs!$J$32 -> 0
B155: Corrective Emergency | F155: 0 | G155: 0 | H155: 0 | I155: 0 | L155: =F155/Dx_Inputs!$J$32 -> 0 | M155: =G155/Dx_Inputs!$J$32 -> 0 | N155: =H155/Dx_Inputs!$J$32 -> 0 | O155: =I155/Dx_Inputs!$J$32 -> 0
B156: Call Centre | F156: 0 | G156: 0 | H156: 0 | I156: 0 | L156: =F156/Dx_Inputs!$J$32 -> 0 | M156: =G156/Dx_Inputs!$J$32 -> 0 | N156: =H156/Dx_Inputs!$J$32 -> 0 | O156: =I156/Dx_Inputs!$J$32 -> 0
B157: Metering | F157: 0 | G157: 0 | H157: 0 | I157: 0 | L157: =F157/Dx_Inputs!$J$32 -> 0 | M157: =G157/Dx_Inputs!$J$32 -> 0 | N157: =H157/Dx_Inputs!$J$32 -> 0 | O157: =I157/Dx_Inputs!$J$32 -> 0
B158: Guaranteed service level payments | F158: 0 | G158: 0 | H158: 0 | I158: 0 | L158: =F158/Dx_Inputs!$J$32 -> 0 | M158: =G158/Dx_Inputs!$J$32 -> 0 | N158: =H158/Dx_Inputs!$J$32 -> 0 | O158: =I158/Dx_Inputs!$J$32 -> 0
B159: Design & Estimating - Distribution Quotations | F159: 0 | G159: 0 | H159: 0 | I159: 0 | L159: =F159/Dx_Inputs!$J$32 -> 0 | M159: =G159/Dx_Inputs!$J$32 -> 0 | N159: =H159/Dx_Inputs!$J$32 -> 0 | O159: =I159/Dx_Inputs!$J$32 -> 0
B160: Business Support | F160: 0 | G160: 0 | H160: 0 | I160: 0 | L160: =F160/Dx_Inputs!$J$32 -> 0 | M160: =G160/Dx_Inputs!$J$32 -> 0 | N160: =H160/Dx_Inputs!$J$32 -> 0 | O160: =I160/Dx_Inputs!$J$32 -> 0
B161: IT | F161: 0 | G161: 0 | H161: 0 | I161: 0 | L161: =F161/Dx_Inputs!$J$32 -> 0 | M161: =G161/Dx_Inputs!$J$32 -> 0 | N161: =H161/Dx_Inputs!$J$32 -> 0 | O161: =I161/Dx_Inputs!$J$32 -> 0
B162: Non-recurring opex | F162: 0 | G162: 0 | H162: 0 | I162: 0 | L162: =F162/Dx_Inputs!$J$32 -> 0 | M162: =G162/Dx_Inputs!$J$32 -> 0 | N162: =H162/Dx_Inputs!$J$32 -> 0 | O162: =I162/Dx_Inputs!$J$32 -> 0
B163: Total | E163: =SUM(E146:E162) -> 0 | F163: =SUM(F146:F162) -> 1.4 | G163: =SUM(G146:G162) -> 1.4 | H163: =SUM(H146:H162) -> 1.4 | I163: =SUM(I146:I162) -> 1.4 | L163: =SUM(L146:L162) -> 1.543625498 | M163: =SUM(M146:M162) -> 1.543625498 | N163: =SUM(N146:N162) -> 1.543625498 | O163: =SUM(O146:O162) -> 1.543625498
B165: Base transmission | G165: [$M real as at 30 June 2012] | M165: [$M real as at 30 June 2017]
B166: SCADA & Communications | E166: 8.894911794 | F166: 8.894911794 | G166: 8.894911794 | H166: 8.894911794 | I166: 8.894911794 | K166: =E166/Dx_Inputs!$J$32 -> 9.807437606 | L166: =F166/Dx_Inputs!$J$32 -> 9.807437606 | M166: =G166/Dx_Inputs!$J$32 -> 9.807437606 | N166: =H166/Dx_Inputs!$J$32 -> 9.807437606 | O166: =I166/Dx_Inputs!$J$32 -> 9.807437606
B167: Non-revenue cap services | E167: 0 | F167: 0 | G167: 0 | H167: 0 | I167: 0 | K167: =E167/Dx_Inputs!$J$32 -> 0 | L167: =F167/Dx_Inputs!$J$32 -> 0 | M167: =G167/Dx_Inputs!$J$32 -> 0 | N167: =H167/Dx_Inputs!$J$32 -> 0 | O167: =I167/Dx_Inputs!$J$32 -> 0
B168: Network Operations | E168: 9.601377323 | F168: 9.601377323 | G168: 9.601377323 | H168: 9.601377323 | I168: 9.601377323 | K168: =E168/Dx_Inputs!$J$32 -> 10.58637918 | L168: =F168/Dx_Inputs!$J$32 -> 10.58637918 | M168: =G168/Dx_Inputs!$J$32 -> 10.58637918 | N168: =H168/Dx_Inputs!$J$32 -> 10.58637918 | O168: =I168/Dx_Inputs!$J$32 -> 10.58637918
B169: Maintenance Strategy | E169: 0 | F169: 0 | G169: 0 | H169: 0 | I169: 0 | K169: =E169/Dx_Inputs!$J$32 -> 0 | L169: =F169/Dx_Inputs!$J$32 -> 0 | M169: =G169/Dx_Inputs!$J$32 -> 0 | N169: =H169/Dx_Inputs!$J$32 -> 0 | O169: =I169/Dx_Inputs!$J$32 -> 0
B170: Preventive Condition | E170: 7.952149371 | F170: 7.952149371 | G170: 7.952149371 | H170: 7.952149371 | I170: 7.952149371 | K170: =E170/Dx_Inputs!$J$32 -> 8.767957524 | L170: =F170/Dx_Inputs!$J$32 -> 8.767957524 | M170: =G170/Dx_Inputs!$J$32 -> 8.767957524 | N170: =H170/Dx_Inputs!$J$32 -> 8.767957524 | O170: =I170/Dx_Inputs!$J$32 -> 8.767957524
B171: Preventive Routine | E171: 13.97234238 | F171: 13.97234238 | G171: 13.97234238 | H171: 13.97234238 | I171: 13.97234238 | K171: =E171/Dx_Inputs!$J$32 -> 15.40575997 | L171: =F171/Dx_Inputs!$J$32 -> 15.40575997 | M171: =G171/Dx_Inputs!$J$32 -> 15.40575997 | N171: =H171/Dx_Inputs!$J$32 -> 15.40575997 | O171: =I171/Dx_Inputs!$J$32 -> 15.40575997
B172: Corrective Deferred | E172: 8.123008178 | F172: 8.123008178 | G172: 8.123008178 | H172: 8.123008178 | I172: 8.123008178 | K172: =E172/Dx_Inputs!$J$32 -> 8.956344675 | L172: =F172/Dx_Inputs!$J$32 -> 8.956344675 | M172: =G172/Dx_Inputs!$J$32 -> 8.956344675 | N172: =H172/Dx_Inputs!$J$32 -> 8.956344675 | O172: =I172/Dx_Inputs!$J$32 -> 8.956344675
B173: Corrective Emergency | E173: 0.7477368046 | F173: 0.7477368046 | G173: 0.7477368046 | H173: 0.7477368046 | I173: 0.7477368046 | K173: =E173/Dx_Inputs!$J$32 -> 0.8244468552 | L173: =F173/Dx_Inputs!$J$32 -> 0.8244468552 | M173: =G173/Dx_Inputs!$J$32 -> 0.8244468552 | N173: =H173/Dx_Inputs!$J$32 -> 0.8244468552 | O173: =I173/Dx_Inputs!$J$32 -> 0.8244468552
B174: Business Support | E174: 0 | F174: 0 | G174: 0 | H174: 0 | I174: 0 | K174: =E174/Dx_Inputs!$J$32 -> 0 | L174: =F174/Dx_Inputs!$J$32 -> 0 | M174: =G174/Dx_Inputs!$J$32 -> 0 | N174: =H174/Dx_Inputs!$J$32 -> 0 | O174: =I174/Dx_Inputs!$J$32 -> 0
B175: Non-recurring opex | E175: 0 | F175: 0 | G175: 0 | H175: 0 | I175: 0 | K175: =E175/Dx_Inputs!$J$32 -> 0 | L175: =F175/Dx_Inputs!$J$32 -> 0 | M175: =G175/Dx_Inputs!$J$32 -> 0 | N175: =H175/Dx_Inputs!$J$32 -> 0 | O175: =I175/Dx_Inputs!$J$32 -> 0
B176: Total | E176: =SUM(E166:E175) -> 49.29152585 | F176: =SUM(F166:F175) -> 49.29152585 | G176: =SUM(G166:G175) -> 49.29152585 | H176: =SUM(H166:H175) -> 49.29152585 | I176: =SUM(I166:I175) -> 49.29152585 | K176: =SUM(K166:K175) -> 54.34832581 | L176: =SUM(L166:L175) -> 54.34832581 | M176: =SUM(M166:M175) -> 54.34832581 | N176: =SUM(N166:N175) -> 54.34832581 | O176: =SUM(O166:O175) -> 54.34832581
B178: New transmission operating expenditure recurring from 2012/13 | G178: [$M real as at 30 June 2012] | M178: [$M real as at 30 June 2017]
B179: SCADA & Communications | E179: 1 | F179: 1 | G179: 1 | H179: 1 | I179: 1 | K179: =E179/Dx_Inputs!$J$32 -> 1.102589641 | L179: =F179/Dx_Inputs!$J$32 -> 1.102589641 | M179: =G179/Dx_Inputs!$J$32 -> 1.102589641 | N179: =H179/Dx_Inputs!$J$32 -> 1.102589641 | O179: =I179/Dx_Inputs!$J$32 -> 1.102589641
B180: Non-revenue cap services | E180: 0 | F180: 0 | G180: 0 | H180: 0 | I180: 0 | K180: =E180/Dx_Inputs!$J$32 -> 0 | L180: =F180/Dx_Inputs!$J$32 -> 0 | M180: =G180/Dx_Inputs!$J$32 -> 0 | N180: =H180/Dx_Inputs!$J$32 -> 0 | O180: =I180/Dx_Inputs!$J$32 -> 0
B181: Network Operations | E181: 0 | F181: 0 | G181: 0 | H181: 0 | I181: 0 | K181: =E181/Dx_Inputs!$J$32 -> 0 | L181: =F181/Dx_Inputs!$J$32 -> 0 | M181: =G181/Dx_Inputs!$J$32 -> 0 | N181: =H181/Dx_Inputs!$J$32 -> 0 | O181: =I181/Dx_Inputs!$J$32 -> 0
B182: Maintenance Strategy | E182: 0 | F182: 0 | G182: 0 | H182: 0 | I182: 0 | K182: =E182/Dx_Inputs!$J$32 -> 0 | L182: =F182/Dx_Inputs!$J$32 -> 0 | M182: =G182/Dx_Inputs!$J$32 -> 0 | N182: =H182/Dx_Inputs!$J$32 -> 0 | O182: =I182/Dx_Inputs!$J$32 -> 0
B183: Preventive Condition | E183: 0.02 | F183: 0.02 | G183: 0.02 | H183: 0.02 | I183: 0.02 | K183: =E183/Dx_Inputs!$J$32 -> 0.02205179283 | L183: =F183/Dx_Inputs!$J$32 -> 0.02205179283 | M183: =G183/Dx_Inputs!$J$32 -> 0.02205179283 | N183: =H183/Dx_Inputs!$J$32 -> 0.02205179283 | O183: =I183/Dx_Inputs!$J$32 -> 0.02205179283
B184: Preventive Routine | E184: 0.02 | F184: 0.02 | G184: 0.02 | H184: 0.02 | I184: 0.02 | K184: =E184/Dx_Inputs!$J$32 -> 0.02205179283 | L184: =F184/Dx_Inputs!$J$32 -> 0.02205179283 | M184: =G184/Dx_Inputs!$J$32 -> 0.02205179283 | N184: =H184/Dx_Inputs!$J$32 -> 0.02205179283 | O184: =I184/Dx_Inputs!$J$32 -> 0.02205179283
B185: Corrective Deferred | E185: 0.06 | F185: 0.06 | G185: 0.06 | H185: 0.06 | I185: 0.06 | K185: =E185/Dx_Inputs!$J$32 -> 0.06615537849 | L185: =F185/Dx_Inputs!$J$32 -> 0.06615537849 | M185: =G185/Dx_Inputs!$J$32 -> 0.06615537849 | N185: =H185/Dx_Inputs!$J$32 -> 0.06615537849 | O185: =I185/Dx_Inputs!$J$32 -> 0.06615537849
B186: Corrective Emergency | E186: 0 | F186: 0 | G186: 0 | H186: 0 | I186: 0 | K186: =E186/Dx_Inputs!$J$32 -> 0 | L186: =F186/Dx_Inputs!$J$32 -> 0 | M186: =G186/Dx_Inputs!$J$32 -> 0 | N186: =H186/Dx_Inputs!$J$32 -> 0 | O186: =I186/Dx_Inputs!$J$32 -> 0
B187: Business Support | E187: 0 | F187: 0 | G187: 0 | H187: 0 | I187: 0 | K187: =E187/Dx_Inputs!$J$32 -> 0 | L187: =F187/Dx_Inputs!$J$32 -> 0 | M187: =G187/Dx_Inputs!$J$32 -> 0 | N187: =H187/Dx_Inputs!$J$32 -> 0 | O187: =I187/Dx_Inputs!$J$32 -> 0
B188: Non-recurring opex | E188: 0 | F188: 0 | G188: 0 | H188: 0 | I188: 0 | K188: =E188/Dx_Inputs!$J$32 -> 0 | L188: =F188/Dx_Inputs!$J$32 -> 0 | M188: =G188/Dx_Inputs!$J$32 -> 0 | N188: =H188/Dx_Inputs!$J$32 -> 0 | O188: =I188/Dx_Inputs!$J$32 -> 0
B189: Total | E189: =SUM(E179:E188) -> 1.1 | F189: =SUM(F179:F188) -> 1.1 | G189: 1.1 | H189: 1.1 | I189: 1.1 | K189: 1.212848606 | L189: 1.212848606 | M189: 1.212848606 | N189: 1.212848606 | O189: 1.212848606
B191: Actual operating expenditure in EIB categories
B192: Distribution | G192: [$M nominal] | M192: [$M real as at 30 June 2017]
B193: D-Factor Scheme | E193: 1.9587 | F193: 1.70724 | G193: 1.60837 | H193: 1.50974 | I193: 0.62093 | K193: =E193/Dx_Inputs!K$32 -> 2.109222665 | L193: =F193/Dx_Inputs!L$32 -> 1.784621983 | M193: =G193/Dx_Inputs!M$32 -> 1.65624706 | N193: =H193/Dx_Inputs!N$32 -> 1.538933867 | O193: =I193/Dx_Inputs!O$32 -> 0.62093
B194: Technical rule changes | E194: 0 | F194: 0 | G194: 0 | H194: 0 | I194: 0 | K194: =E194/Dx_Inputs!K$32 -> 0 | L194: =F194/Dx_Inputs!L$32 -> 0 | M194: =G194/Dx_Inputs!M$32 -> 0 | N194: =H194/Dx_Inputs!N$32 -> 0 | O194: =I194/Dx_Inputs!O$32 -> 0
B195: Unforeseen events | E195: 0 | F195: 0 | K195: =E195/Dx_Inputs!K$32 -> 0 | L195: =F195/Dx_Inputs!L$32 -> 0 | M195: =G195/Dx_Inputs!M$32 -> 0 | N195: =H195/Dx_Inputs!N$32 -> 0 | O195: =I195/Dx_Inputs!O$32 -> 0
B196: Superannuation for defined benefit schemes | E196: 0.05565012184 | F196: 0.377 | G196: 0 | H196: 0.202 | I196: 0.207194935 | K196: =E196/Dx_Inputs!K$32 -> 0.05992673626 | L196: =F196/Dx_Inputs!L$32 -> 0.3940878187 | M196: =G196/Dx_Inputs!M$32 -> 0 | N196: =H196/Dx_Inputs!N$32 -> 0.2059060773 | O196: =I196/Dx_Inputs!O$32 -> 0.207194935
B197: Non-revenue cap services | E197: =Dx_Inputs!K636 -> 19.006 | F197: =Dx_Inputs!L636 -> 12.181 | G197: =Dx_Inputs!M636 -> 12.765 | H197: =Dx_Inputs!N636 -> 11.955 | I197: =Dx_Inputs!O636 -> 13.206 | K197: =E197/Dx_Inputs!K$32 -> 20.46657782 | L197: =F197/Dx_Inputs!L$32 -> 12.73311331 | M197: =G197/Dx_Inputs!M$32 -> 13.1449814 | N197: =H197/Dx_Inputs!N$32 -> 12.18617403 | O197: =I197/Dx_Inputs!O$32 -> 13.206
B198: License fees | E198: 0.03867412026 | F198: 0.03 | G198: 0.343175031 | H198: 0 | I198: 0 | K198: =E198/Dx_Inputs!K$32 -> 0.04164615868 | L198: =F198/Dx_Inputs!L$32 -> 0.03135977337 | M198: =G198/Dx_Inputs!M$32 -> 0.3533904738 | N198: =H198/Dx_Inputs!N$32 -> 0 | O198: =I198/Dx_Inputs!O$32 -> 0
B199: Energy safety levy | E199: 2.669606 | F199: 2.756 | G199: 4.15342 | H199: 3.049 | I199: 3.130655856 | K199: =E199/Dx_Inputs!K$32 -> 2.874760547 | L199: =F199/Dx_Inputs!L$32 -> 2.880917847 | M199: =G199/Dx_Inputs!M$32 -> 4.277056688 | N199: =H199/Dx_Inputs!N$32 -> 3.107958564 | O199: =I199/Dx_Inputs!O$32 -> 3.130655856
B200: Network Control Services | E200: 0 | F200: 0 | G200: 0 | H200: 0 | I200: 0 | K200: =E200/Dx_Inputs!K$32 -> 0 | L200: =F200/Dx_Inputs!L$32 -> 0 | M200: =G200/Dx_Inputs!M$32 -> 0 | N200: =H200/Dx_Inputs!N$32 -> 0 | O200: =I200/Dx_Inputs!O$32 -> 0
B201: ERA costs (Electricity Network Access Funding Regulations) | E201: 0.4702526837 | F201: 0.53 | G201: 0.39454345 | H201: 0.55 | I201: 0.3664018217 | K201: =E201/Dx_Inputs!K$32 -> 0.5063907791 | L201: =F201/Dx_Inputs!L$32 -> 0.5540226629 | M201: =G201/Dx_Inputs!M$32 -> 0.4062879992 | N201: =H201/Dx_Inputs!N$32 -> 0.5606353591 | O201: =I201/Dx_Inputs!O$32 -> 0.3664018217
B203: Transmission | G203: [$M nominal] | M203: [$M real as at 30 June 2017]
B204: D-Factor Scheme | E204: 0 | F204: 0 | G204: 0 | H204: 0 | I204: 0 | K204: =E204/Dx_Inputs!K$32 -> 0 | L204: =F204/Dx_Inputs!L$32 -> 0 | M204: =G204/Dx_Inputs!M$32 -> 0 | N204: =H204/Dx_Inputs!N$32 -> 0 | O204: =I204/Dx_Inputs!O$32 -> 0
B205: Technical rule changes | E205: 0 | F205: 0 | G205: 0 | H205: 0 | I205: 0 | K205: =E205/Dx_Inputs!K$32 -> 0 | L205: =F205/Dx_Inputs!L$32 -> 0 | M205: =G205/Dx_Inputs!M$32 -> 0 | N205: =H205/Dx_Inputs!N$32 -> 0 | O205: =I205/Dx_Inputs!O$32 -> 0
B206: Unforeseen events | E206: 0 | F206: 0 | K206: =E206/Dx_Inputs!K$32 -> 0 | L206: =F206/Dx_Inputs!L$32 -> 0 | M206: =G206/Dx_Inputs!M$32 -> 0 | N206: =H206/Dx_Inputs!N$32 -> 0 | O206: =I206/Dx_Inputs!O$32 -> 0
B207: Superannuation for defined benefit schemes | E207: 0.02534987816 | F207: 0.118 | G207: 0 | H207: 0.074 | I207: 0.075903095 | K207: =E207/Dx_Inputs!K$32 -> 0.02729797191 | L207: =F207/Dx_Inputs!L$32 -> 0.1233484419 | M207: =G207/Dx_Inputs!M$32 -> 0 | N207: =H207/Dx_Inputs!N$32 -> 0.07543093923 | O207: =I207/Dx_Inputs!O$32 -> 0.075903095
B208: Non-revenue cap services | E208: =Tx_Inputs!K598 -> 12.614 | F208: =Tx_Inputs!L598 -> 4.563 | G208: =Tx_Inputs!M598 -> 3.378 | H208: =Tx_Inputs!N598 -> 5.381 | I208: =Tx_Inputs!O598 -> 4.028 | K208: =E208/Dx_Inputs!K$32 -> 13.58336381 | L208: =F208/Dx_Inputs!L$32 -> 4.76982153 | M208: =G208/Dx_Inputs!M$32 -> 3.478554419 | N208: =H208/Dx_Inputs!N$32 -> 5.485052486 | O208: =I208/Dx_Inputs!O$32 -> 4.028
B209: License fees | E209: 0.01950098169 | F209: 0.015 | G209: 0 | H209: 0 | I209: 0 | K209: =E209/Dx_Inputs!K$32 -> 0.02099959799 | L209: =F209/Dx_Inputs!L$32 -> 0.01567988669 | M209: =G209/Dx_Inputs!M$32 -> 0 | N209: =H209/Dx_Inputs!N$32 -> 0 | O209: =I209/Dx_Inputs!O$32 -> 0
B210: Energy safety levy | E210: 1.346118 | F210: 1.355 | G210: 0 | H210: 1.27 | I210: 1.304012114 | K210: =E210/Dx_Inputs!K$32 -> 1.449564811 | L210: =F210/Dx_Inputs!L$32 -> 1.416416431 | M210: =G210/Dx_Inputs!M$32 -> 0 | N210: =H210/Dx_Inputs!N$32 -> 1.294558011 | O210: =I210/Dx_Inputs!O$32 -> 1.304012114
B211: Network Control Services | E211: 0 | F211: 0 | G211: 0 | H211: 0 | I211: 0 | K211: =E211/Dx_Inputs!K$32 -> 0 | L211: =F211/Dx_Inputs!L$32 -> 0 | M211: =G211/Dx_Inputs!M$32 -> 0 | N211: =H211/Dx_Inputs!N$32 -> 0 | O211: =I211/Dx_Inputs!O$32 -> 0
B212: ERA costs (Electricity Network Access Funding Regulations) | E212: 0.2371195237 | F212: 0.261 | G212: 0 | H212: 0.229 | I212: 0.1525563948 | K212: =E212/Dx_Inputs!K$32 -> 0.2553417439 | L212: =F212/Dx_Inputs!L$32 -> 0.2728300283 | M212: =G212/Dx_Inputs!M$32 -> 0 | N212: =H212/Dx_Inputs!N$32 -> 0.2334281768 | O212: =I212/Dx_Inputs!O$32 -> 0.1525563948
B214: Investment adjustment mechanism (IAM) category inclusion flags [1=Include, 0=Exclude]
B215: Year ending 30 June | E215: 2013 | F215: 2014 | G215: 2015 | H215: 2016 | I215: 2017
B216: Distribtuion IAM category inclusion flags [1=Include, 0=Exclude]
B217: Growth | G217: Actual AA3
B218: Capacity Expansion | E218: 1 | F218: 1 | G218: 1 | H218: 1 | I218: 1
B219: Customer Driven | E219: 1 | F219: 1 | G219: 1 | H219: 1 | I219: 1
... 67 more rows

Sheet Incentive_Rate_Inputs
B2: VCRs weighted to WA
B3: VCRs by feeder type escalated by CPI ($/kWh) [$ Real as at 30 June 2017] | C3: $ per kWh
B4: CBD | C4: 51
B5: Urban | C5: 43.2
B6: Rural short | C6: 41.9
B7: Rural long | C7: 43.1
B10: Value of customer reliability (VCR) - AER STPIS approach
B11: WA - energy consumption (for 12 months) [GWh] | C11: CBD | D11: Urban | E11: Rural short | F11: Rural long | G11: Western Power Network Total
B12: Energy Consumption | C12: 519.34 | D12: 9063.48 | E12: 2994.2 | F12: 1067.84
B13: Total | C13: =SUM(C12:C12) -> 519.34 | D13: =SUM(D12:D12) -> 9063.48 | E13: =SUM(E12:E12) -> 2994.2 | F13: =SUM(F12:F12) -> 1067.84 | G13: =SUM(C13:F13) -> 13644.86
B15: SSAM Incentive Rate Inputs
B16: Ratio of unplanned SAIDI to unplanned SAIFI | C16: Ratio
B17: CBD | C17: 1.5
B18: Urban | C18: 1.5
B19: Rural short | C19: 1.5
B20: Rural long | C20: 1.5
B24: Revenue at risk [$ Real as at 30 June 2017] | C24: Average AA4 Revenue | D24: Portion at risk | E24: Revenue at risk
B25: Transmission average revenue | C25: 359474915.3 | D25: 0.01 | E25: =ROUND(D25*C25,0) -> 3594749
B26: Distribution average revenue at risk positive | C26: 950434953.9 | D26: 0.01 | E26: =D26*C26 -> 9504349.539
B27: Distribution average revenue at risk negative | C27: 950434953.9 | D27: -0.025 | E27: =D27*C27 -> -23760873.85
B28: Total average revenue | C28: =SUM(C25:C26) -> 1309909869
B30: Average Revenue at Risk per annum postive | E30: =SUM(E25:E26) -> 13099098.54
B31: Average Revenue at Risk per annum negative | E31: =SUM(-E25,E27) -> -27355622.85
B32: Total Revenue at Risk for AA4 positive | E32: =E30*5 -> 65495492.69
B33: Total Revenue at Risk for AA4 negative | E33: =E31*5 -> -136778114.2
B35: Transmission revenue at risk to determine incentive rate [$ real as at 30 June 2017] | C35: Portion at risk | D35: Revenue at risk
B36: Circuit availability | C36: 0.5 | D36: =C36*C25*D25 -> 1797374.576
B37: Loss of supply event frequency >0.1 system minutes interrupted | C37: 0.15 | D37: =C37*C$25*D$25 -> 539212.3729
B38: Loss of supply event frequency >1 system minutes interrupted | C38: 0.15 | D38: =C38*C$25*D$25 -> 539212.3729
B39: Average outage duration | C39: 0.2 | D39: =C39*C$25*D$25 -> 718949.8306
C40: Total | D40: =ROUND(SUM(D36:D39),0) -> 3594749 | E40: =IF(E25=D40,"OK","CHECK") -> OK
B43: Distribution revenue at risk to determine incentive rate | C43: % of revenue per % change in performance | D43: Revenue at risk check (per % change in performance)
B44: Call Centre Performance (Dx avg revenue) | C44: 0.0004 | D44: =C44*C27 -> 380173.9815
B46: AA4 SSB and SSAM Targets
B47: Distribution Reference Service Benchmark - Statistical outputs | C47: POE2.5 | D47: SSAM target adj | E47: POE97.5
B48: CBD SAIDI | C48: N/A | D48: 17.7 | E48: 33.7 | F48: =ROUND(E48,1) -> 33.7 | G48: =ROUND(D48,1) -> 17.7
B49: CBD SAIFI | C49: N/A | D49: 0.122 | E49: 0.21 | F49: =ROUND(E49,2) -> 0.21 | G49: =ROUND(D49,2) -> 0.12
B50: URBAN SAIDI | C50: N/A | D50: 106.8 | E50: 130.6 | F50: =ROUND(E50,1) -> 130.6 | G50: =ROUND(D50,1) -> 106.8
B51: URBAN SAIFI | C51: N/A | D51: 1.094 | E51: 1.27 | F51: =ROUND(E51,2) -> 1.27 | G51: =ROUND(D51,2) -> 1.09
B52: Rural Short SAIDI | C52: N/A | D52: 188.62 | E52: 215.4 | F52: =ROUND(E52,1) -> 215.4 | G52: =ROUND(D52,1) -> 188.6
B53: Rural Short SAIFI | C53: N/A | D53: 1.96 | E53: 2.34 | F53: =ROUND(E53,2) -> 2.34 | G53: =ROUND(D53,2) -> 1.96
B54: Rural Long SAIDI | C54: N/A | D54: 693.1 | E54: 848.3 | F54: =ROUND(E54,1) -> 848.3 | G54: =ROUND(D54,1) -> 693.1
B55: Rural Long SAIFI | C55: N/A | D55: 4.65 | E55: 5.7 | F55: =ROUND(E55,2) -> 5.7 | G55: =ROUND(D55,2) -> 4.65
B56: Call Centre Performance | C56: 0.868 | D56: 0.9204 | E56: 0.937 | F56: =ROUND(C56,3) -> 0.868 | G56: =ROUND(D56,3) -> 0.92
B57: Streetlighting repair time – metropolitan areas | F57: 5 | G57: N/A
B58: Streetlighting repair time –regional areas | F58: 9 | G58: N/A
B59: Supply abolishment (whole current meter) response time | F59: 15 | G59: N/A
B60: Remote de-energise response time | F60: 1 | G60: N/A
B61: Remote re-energise response time | F61: 1 | G61: N/A
B63: Adjustments to Distribution Reference Service Benchmark | C63: POE2.5 | D63: SSAM target adj | E63: POE97.5 | F63: SSB target adj | G63: SSAM target adj
B64: CBD SAIDI | C64: N/A | D64: 0 | F64: =ROUND(E64,1) -> 0 | G64: =ROUND(D64,1) -> 0
B65: CBD SAIFI | C65: N/A | D65: 0 | F65: =ROUND(E65,2) -> 0 | G65: =ROUND(D65,2) -> 0
B66: URBAN SAIDI | C66: N/A | F66: =ROUND(E66,1) -> 0 | G66: =ROUND(D66,1) -> 0
B67: URBAN SAIFI | C67: N/A | F67: =ROUND(E67,2) -> 0 | G67: =ROUND(D67,2) -> 0
B68: Rural Short SAIDI | C68: N/A | F68: =ROUND(E68,1) -> 0 | G68: =ROUND(D68,1) -> 0
B69: Rural Short SAIFI | C69: N/A | F69: =ROUND(E69,2) -> 0 | G69: =ROUND(D69,2) -> 0
B70: Rural Long SAIDI | C70: N/A | D70: -15.45 | F70: =ROUND(E70,1) -> 0 | G70: =ROUND(D70,1) -> -15.4
B71: Rural Long SAIFI | C71: N/A | D71: -0.364 | F71: =ROUND(E71,2) -> 0 | G71: =ROUND(D71,2) -> -0.36
B72: Call Centre Performance | E72: N/A | F72: =ROUND(C72,3) -> 0 | G72: =ROUND(D72,3) -> 0
B73: Streetlighting repair time – metropolitan areas | F73: 0 | G73: N/A
B74: Streetlighting repair time –regional areas | F74: 0 | G74: N/A
B75: Supply abolishment (whole current meter) response time | F75: 0 | G75: N/A
B76: Remote de-energise service response time | F76: 0 | G76: N/A
B77: Remote re-energise service response time | F77: 0 | G77: N/A
B79: Distribution Reference Service Benchmark | C79: POE2.5 | D79: SSAM target | E79: POE97.5 | F79: SSB target | G79: SSAM target | H79: Rounding
B80: CBD SAIDI | C80: N/A | D80: =D48+D64 -> 17.7 | E80: =E48+E64 -> 33.7 | F80: =ROUND(E80,H80) -> 33.7 | G80: =ROUND(D80,H80) -> 17.7 | H80: 1
B81: CBD SAIFI | C81: N/A | D81: =D49+D65 -> 0.122 | E81: =E49+E65 -> 0.21 | F81: =ROUND(E81,H81) -> 0.21 | G81: =ROUND(D81,H81) -> 0.12 | H81: 2
B82: URBAN SAIDI | C82: N/A | D82: 106.8 | E82: =E50+E66 -> 130.6 | F82: 130.6 | G82: 106.8 | H82: 1
B83: URBAN SAIFI | C83: N/A | D83: 1.094 | E83: =E51+E67 -> 1.27 | F83: 1.27 | G83: 1.09 | H83: 2
B84: Rural Short SAIDI | C84: N/A | D84: 188.62 | E84: =E52+E68 -> 215.4 | F84: 215.4 | G84: 188.6 | H84: 1
B85: Rural Short SAIFI | C85: N/A | D85: 1.96 | E85: =E53+E69 -> 2.34 | F85: 2.34 | G85: 1.96 | H85: 2
B86: Rural Long SAIDI | C86: N/A | D86: 677.65 | E86: =E54+E70 -> 848.3 | F86: 848.3 | G86: 677.7 | H86: 1
B87: Rural Long SAIFI | C87: N/A | D87: 4.286 | E87: =E55+E71 -> 5.7 | F87: 5.7 | G87: 4.29 | H87: 2
B88: Call Centre Performance | C88: =C56+C72 -> 0.868 | D88: 0.9204 | E88: 0.937 | F88: =ROUND(C88,H88) -> 0.868 | G88: 0.92 | H88: 3
B89: Streetlighting repair time – metropolitan areas | F89: =F57+F73 -> 5 | G89: N/A
B90: Streetlighting repair time –regional areas | F90: =F58+F74 -> 9 | G90: N/A
B91: Supply abolishment (whole current meter) response time | F91: 15 | G91: N/A
B92: Remote de-energise response time | F92: 1 | G92: N/A
B93: Remote re-energise response time | F93: 1 | G93: N/A
B96: Transmission Reference Service Benchmark | C96: POE2.5 | D96: SSAM target | E96: POE97.5 | F96: SSB target | G96: SSAM target
B97: Circuit availability | C97: 97.8 | D97: 98.51 | E97: 98.88 | F97: =C97 -> 97.8 | G97: =D97 -> 98.51
B98: Loss of supply event frequency >0.1 and ≤1.0 system minutes interrupted | C98: 11 | D98: 17 | E98: 26 | F98: =E98 -> 26 | G98: =D98 -> 17
B99: Loss of supply event frequency >1 system minutes interrupted | C99: 0 | D99: 3 | E99: 7 | F99: =E99 -> 7 | G99: 3
B100: Average outage duration | C100: 657 | D100: 784 | E100: 1234 | F100: =E100 -> 1234 | G100: 784
B102: Adjustments to Transmission Reference Service Benchmark | C102: POE2.5 | D102: SSAM target | E102: POE97.5 | F102: SSB target | G102: SSAM target
B103: Circuit availability | F103: =ROUND(C103,H103) -> 0 | G103: =ROUND(D103,H103) -> 0
B104: Loss of supply event frequency >0.1 and ≤1.0 system minutes interrupted | F104: =ROUND(E104,H104) -> 0 | G104: =ROUND(D104,H104) -> 0
B105: Loss of supply event frequency >1 system minutes interrupted | F105: =ROUND(E105,H105) -> 0 | G105: =ROUND(D105,H105) -> 0
B106: Average outage duration | D106: -75.8 | F106: =ROUND(E106,H106) -> 0 | G106: =ROUND(D106,H106) -> -76
B109: Transmission Reference Service Benchmark | C109: POE2.5 | D109: SSAM target | E109: POE97.5 | F109: SSB target | G109: SSAM target | H109: Rounding
B110: Circuit availability | C110: =C97+C103 -> 97.8 | D110: =D97+D103 -> 98.51 | E110: 98.88 | F110: =ROUND(C110,H110) -> 97.8 | G110: =ROUND(D110,H110) -> 98.5 | H110: 1
B111: Loss of supply event frequency >0.1 and ≤1.0 system minutes interrupted | C111: =C98+C104 -> 11 | D111: 17 | E111: 26 | F111: =ROUND(E111,H111) -> 26 | G111: =ROUND(D111,H111) -> 17 | H111: 0
B112: Loss of supply event frequency >1 system minutes interrupted | C112: =C99+C105 -> 0 | D112: 3 | E112: 7 | F112: =ROUND(E112,H112) -> 7 | G112: =ROUND(D112,H112) -> 3 | H112: 0
B113: Average outage duration | C113: =C100+C106 -> 657 | D113: 708.2 | E113: 1234 | F113: =ROUND(E113,H113) -> 1234 | G113: =ROUND(D113,H113) -> 708 | H113: 0

Sheet Incentive_rates
B2: Incentive rate calculations
B3: SAIDI ($ per minute) Incentive Rate [$ Real as at 30 June 2017] | C3: $/kWh
B4: CBD | C4: =Incentive_Rate_Inputs!C4*(1-1/(1+Incentive_Rate_Inputs!$C17)) -> 30.6
B5: Urban | C5: =Incentive_Rate_Inputs!C5*(1-1/(1+Incentive_Rate_Inputs!$C18)) -> 25.92
B6: Rural short | C6: =Incentive_Rate_Inputs!C6*(1-1/(1+Incentive_Rate_Inputs!$C19)) -> 25.14
B7: Rural long | C7: =Incentive_Rate_Inputs!C7*(1-1/(1+Incentive_Rate_Inputs!$C20)) -> 25.86
B9: Convert a SAIDI minute to MWh (MWh/minute) | C9: MWh/minute
B10: CBD | C10: =Incentive_Rate_Inputs!C13/(365.24*24*60)*1000 -> 0.9874405262
B11: Urban | C11: =Incentive_Rate_Inputs!D13/(365.24*24*60)*1000 -> 17.23273281
B12: Rural short | C12: =Incentive_Rate_Inputs!E13/(365.24*24*60)*1000 -> 5.692984217
B13: Rural long | C13: =Incentive_Rate_Inputs!F13/(365.24*24*60)*1000 -> 2.030324049
B15: SAIDI incentive rate ($ per minute) | C15: $ per minute
B16: CBD | C16: =$C10*C4*1000 -> 30215.6801
B17: Urban | C17: =$C11*C5*1000 -> 446672.4346
B18: Rural short | C18: =$C12*C6*1000 -> 143121.6232
B19: Rural long | C19: =$C13*C7*1000 -> 52504.1799
B21: SAIFI ($0.01 per event) Incentive Rate [$ Real as at 30 June 2017] | C21: $/kWh
B22: CBD | C22: =Incentive_Rate_Inputs!C4/(1+Incentive_Rate_Inputs!$C17) -> 20.4
B23: Urban | C23: =Incentive_Rate_Inputs!C5/(1+Incentive_Rate_Inputs!$C18) -> 17.28
B24: Rural short | C24: =Incentive_Rate_Inputs!C6/(1+Incentive_Rate_Inputs!$C19) -> 16.76
B25: Rural long | C25: =Incentive_Rate_Inputs!C7/(1+Incentive_Rate_Inputs!$C20) -> 17.24
B27: Convert an event to MWh (assumes each event of average duration - CAIDI = SAIDI/SAIFI) (MWh/event) | C27: MWh/event
B29: CBD | C29: =Incentive_Rate_Inputs!C13*Incentive_Rate_Inputs!D80/Incentive_Rate_Inputs!D81/(365.24*24*60)*1000 -> 143.259814
B30: Urban | C30: =Incentive_Rate_Inputs!D13*Incentive_Rate_Inputs!D82/Incentive_Rate_Inputs!D83/(365.24*24*60)*1000 -> 1682.317975
B31: Rural short | C31: =Incentive_Rate_Inputs!E13*Incentive_Rate_Inputs!D84/Incentive_Rate_Inputs!D85/(365.24*24*60)*1000 -> 547.8625934
B32: Rural long | C32: =Incentive_Rate_Inputs!F13*Incentive_Rate_Inputs!D86/Incentive_Rate_Inputs!D87/(365.24*24*60)*1000 -> 321.010054
B34: SAIFI incentive rate ($ per 0.01 event) | C34: $ per 0.01 event
B35: CBD | C35: =$C29*C22*1000/100 -> 29225.00206
B36: Urban | C36: =$C30*C23*1000/100 -> 290704.5461
B37: Rural short | C37: =$C31*C24*1000/100 -> 91821.77066
B38: Rural long | C38: =$C32*C25*1000/100 -> 55342.13332
B40: Call Centre Performance Incentive Rates [$ Real as at 30 June 2017]
B41: Call centre reward side incentive rate
B42: Portion of revenue per % change in performance | C42: =Incentive_Rate_Inputs!C44 -> 0.0004
B43: Reward side incentive rate per % change in performance | C43: =-Incentive_Rate_Inputs!D44 -> -380173.9815
B45: Reward side incentive rate dollars per 0.1% change in performance | C45: =C43/10 -> -38017.39815
B47: SSAM Target | C47: =ROUND(Incentive_Rate_Inputs!D88,3) -> 0.92
B48: POE97.5 | C48: =ROUND(Incentive_Rate_Inputs!E88,3) -> 0.937
B49: Difference | C49: =C47-C48 -> -0.017
B51: Reward side revenue at risk to POE2.5 | C51: =-(C49*100*C43) -> -646295.7686
B53: Call centre penalty side incentive rate
B54: Penalty side revenue at risk to POE97.5 | C54: =C51 -> -646295.7686
B56: SSAM Target | C56: =ROUND(C47,3) -> 0.92
B57: POE2.5 | C57: =ROUND(Incentive_Rate_Inputs!F88,3) -> 0.868
B58: Difference | C58: =C56-C57 -> 0.052
B60: Penalty side incentive rate per % change in performance | C60: =C54/(C58*100) -> -124287.6478
B62: Penalty side incentive rate dollars per 0.1% change in performance | C62: =C60/10 -> -12428.76478
B64: Transmission revenue at risk [$ Real as at 30 June 2017]
B65: Revenue at risk | C65: =Incentive_Rate_Inputs!D25 -> 0.01
B66: Tranmission Revenue (AA4 average) | C66: =Incentive_Rate_Inputs!C25 -> 359474915.3
B67: Transmission Revenue at risk | C67: =C65*C66 -> 3594749.153
B69: Circuit Availability Incentive Rate [$ Real as at 30 June 2017]
B70: Circuit availability reward side incentive rate
B71: Portion of revenue at risk | C71: =Incentive_Rate_Inputs!C36 -> 0.5
B72: Revenue at risk | C72: =C$67*C71 -> 1797374.576
B74: SSAM Target | C74: =ROUND(Incentive_Rate_Inputs!G110,1) -> 98.5
B75: POE97.5 | C75: =ROUND(Incentive_Rate_Inputs!E110,1) -> 98.9
B76: Difference | C76: =C74-C75 -> -0.4
B78: Reward side incentive rate dollars per 0.1% of total time | C78: =(C72/C76)/10 -> -449343.6441
B80: Circuit availability penalty side incentive rate
B81: SSAM Target | C81: =ROUND(Incentive_Rate_Inputs!G110,1) -> 98.5
B82: POE2.5 | C82: =ROUND(Incentive_Rate_Inputs!C110,1) -> 97.8
B83: Difference | C83: =C82-C81 -> -0.7
B85: Penalty side incentive rate dollars per 0.1% change in performance | C85: =(C72/C83)/10 -> -256767.7966
B87: Loss of Supply Event Frequency >0.1 and ≤ 1.0 system minutes interrupted Incentive Rates [$ Real as at 30 June 2017]
B88: Loss of Supply Event Frequency >0.1 and ≤ 1.0 system minutes interrupted Incentive Rates [$ Real as at 30 June 2017]
B89: Portion of revenue at risk | C89: =Incentive_Rate_Inputs!C37 -> 0.15
B90: Revenue at risk | C90: =C$67*C89 -> 539212.3729
B92: SSAM Target | C92: =ROUND(Incentive_Rate_Inputs!G111,0) -> 17
B93: POE2.5 | C93: =ROUND(Incentive_Rate_Inputs!C111,0) -> 11
B94: Difference | C94: =C92-C93 -> 6
B96: Reward side incentive rate dollars per event | C96: =(C90/C94) -> 89868.72882
B98: Loss of Supply Event Frequency >0.1 and ≤ 1.0 system minutes interrupted Incentive Rates [$ Real as at 30 June 2017]
B99: SSAM Target | C99: =ROUND(Incentive_Rate_Inputs!G111,0) -> 17
B100: POE97.5 | C100: =ROUND(Incentive_Rate_Inputs!E111,0) -> 26
B101: Difference | C101: =C100-C99 -> 9
B103: Penalty side incentive rate dollars per event | C103: =(C90/C101) -> 59912.48588
B105: Loss of Supply Event Frequency >1 system minutes interrupted Incentive Rates [$ Real as at 30 June 2017]
B106: Loss of supply event frequency >1 system minutes interrupted reward side incentive rate
B107: Portion of revenue at risk | C107: =Incentive_Rate_Inputs!C38 -> 0.15
B108: Revenue at risk | C108: =C$67*C107 -> 539212.3729
B110: SSAM Target | C110: =ROUND(Incentive_Rate_Inputs!G112,0) -> 3
B111: POE2.5 | C111: =ROUND(Incentive_Rate_Inputs!C112,0) -> 0
B112: Difference | C112: =C110-C111 -> 3
B114: Reward side incentive rate dollars per event | C114: =(C108/C112) -> 179737.4576
B116: Loss of supply event frequency >0.1 system minutes interrupted penalty side incentive rate
B118: SSAM Target | C118: =ROUND(Incentive_Rate_Inputs!G112,0) -> 3
B119: POE97.5 | C119: =ROUND(Incentive_Rate_Inputs!E112,0) -> 7
B120: Difference | C120: =C119-C118 -> 4
B122: Penalty side incentive rate dollars per event | C122: =(C108/C120) -> 134803.0932
B124: Average Outage Duration Incentive Rates [$ Real as at 30 June 2017]
B125: Average Outage Duration reward side incentive rate
B126: Portion of revenue at risk | C126: =Incentive_Rate_Inputs!C39 -> 0.2
B127: Revenue at risk | C127: =C$67*C126 -> 718949.8306
B129: SSAM Target | C129: =ROUND(Incentive_Rate_Inputs!G113,0) -> 708
B130: POE2.5 | C130: =ROUND(Incentive_Rate_Inputs!C113,0) -> 657
B131: Difference | C131: =C129-C130 -> 51
B133: Reward side incentive rate dollars per minute | C133: =(C127/C131) -> 14097.0555
B135: Average Outage Duration penalty side incentive rate
B137: SSAM Target | C137: =ROUND(Incentive_Rate_Inputs!G113,0) -> 708
B138: POE97.5 | C138: =ROUND(Incentive_Rate_Inputs!E113,0) -> 1234
B139: Difference | C139: =C138-C137 -> 526
B141: Penalty side incentive rate dollars per minute | C141: =(C127/C139) -> 1366.824773

Sheet CALCULATIONS -->

Sheet Dx_Asset
B1: Validation status | C1: =IF(COUNTIF(G11:AF11,"CHECK")+COUNTIF(D157:D167,"CHECK")+COUNTIF(E272:E572,"CHECK")>0,"CHECK","OK") -> OK
B2: Distribution calculations
B3: Year ending 30 June | F3: 2006 | G3: 2007 | H3: 2008 | I3: 2009 | J3: 2010 | K3: 2011 | L3: 2012 | M3: 2013 | N3: 2014 | O3: 2015 | P3: 2016 | Q3: 2017 | R3: 2018 | S3: 2019 | T3: 2020 | U3: 2021 | V3: 2022 | W3: 2023 | X3: 2024 | Y3: 2025 | Z3: 2026 | AA3: 2027 | AB3: 2028 | AC3: 2029 | AD3: 2030 | AE3: 2031 | AF3: 2032
B4: Total Dx RAB value [$M real as at 30 June 2017]
B5: Opening balance | G5: =F10 -> 2055.478949 | H5: =G10 -> 2395.19139 | I5: 2767.373838 | J5: 3311.092276 | K5: 3612.597808 | L5: 3901.03306 | M5: 4248.701724 | N5: 4708.477962 | O5: 5142.926352 | P5: 5494.335995 | Q5: 5723.088102 | R5: 5798.40633 | S5: 6008.629124 | T5: 6205.559063 | U5: 6433.220684 | V5: 6565.644737 | W5: 6705.220143 | X5: 6906.631961 | Y5: 7119.158675 | Z5: 7313.768112 | AA5: 7490.818911 | AB5: 7679.57632 | AC5: 7850.977652 | AD5: 8009.477218 | AE5: 8156.507205 | AF5: 8291.921254
B6: Capital expenditure | G6: =G40 -> 470.231114 | H6: =H40 -> 508.2201356 | I6: 690.8313994 | J6: 475.3885669 | K6: 475.9642281 | L6: 556.9211725 | M6: 678.5493995 | N6: 671.4406698 | O6: 618.2460563 | P6: 498.0539607 | Q6: 357.433 | R6: 472.2581161 | S6: 479.4332664 | T6: 511.2439175 | U6: 401.5197084 | V6: 401.4336709 | W6: 467.9386078 | X6: 476.7532192 | Y6: 471.2813234 | Z6: 465.5968158 | AA6: 488.9766866 | AB6: 485.2545778 | AC6: 485.2545778 | AD6: 485.2545778 | AE6: 485.2545778 | AF6: 485.2545778
B7: Disposals | G7: =G54 -> -0.2412762932 | H7: =H54 -> 0 | I7: 0 | J7: -0.9465649257 | K7: -0.001115575835 | L7: -2.472043047 | M7: -0.9282389156 | N7: -0.297917847 | O7: -4.931556279 | P7: -2.811089921 | Q7: -0.6179830525 | R7: 0 | S7: 0 | T7: 0 | U7: 0 | V7: 0 | W7: 0 | X7: 0 | Y7: 0 | Z7: 0 | AA7: 0 | AB7: 0 | AC7: 0 | AD7: 0 | AE7: 0 | AF7: 0
B8: Depreciation | G8: =G68 -> -125.3331328 | H8: =H68 -> -131.3066938 | I8: -142.4499584 | J8: -168.3615976 | K8: -183.0558449 | L8: -202.4260194 | M8: -214.0461773 | N8: -236.1848502 | O8: -261.9048565 | P8: -266.4907638 | Q8: -281.4967892 | R8: =R68 -> -257.665882 | S8: -275.604348 | T8: -279.2146078 | U8: -269.0956558 | V8: -261.8582646 | W8: -266.5267899 | X8: -264.226505 | Y8: -276.6718868 | Z8: -288.5460163 | AA8: -300.2192783 | AB8: -313.8532458 | AC8: -326.755011 | AD8: -338.2245907 | AE8: -349.8405291 | AF8: -359.7487606
B9: Accelerated depreciation | G9: =G140 -> -4.944263973 | H9: =H140 -> -4.730993777 | I9: -4.663003447 | J9: -4.574872273 | K9: -4.472015908 | L9: -4.354445869 | M9: -3.798745495 | N9: -0.5095114034 | O9: 0 | P9: 0 | Q9: 0 | R9: -4.369440368 | S9: -6.898978798 | T9: -4.367689064 | U9: 0 | V9: 0 | W9: 0 | X9: 0 | Y9: 0 | Z9: 0 | AA9: 0 | AB9: 0 | AC9: 0 | AD9: 0 | AE9: 0 | AF9: 0
B10: Closing balance | F10: =F168 -> 2055.478949 | G10: =SUM(G5:G9) -> 2395.19139 | H10: =SUM(H5:H9) -> 2767.373838 | I10: 3311.092276 | J10: 3612.597808 | K10: 3901.03306 | L10: 4248.701724 | M10: 4708.477962 | N10: 5142.926352 | O10: 5494.335995 | P10: 5723.088102 | Q10: 5798.40633 | R10: 6008.629124 | S10: 6205.559063 | T10: 6433.220684 | U10: 6565.644737 | V10: 6705.220143 | W10: 6906.631961 | X10: 7119.158675 | Y10: 7313.768112 | Z10: 7490.818911 | AA10: 7679.57632 | AB10: 7850.977652 | AC10: 8009.477218 | AD10: 8156.507205 | AE10: 8291.921254 | AF10: 8417.427071
G11: =IF(ROUND(G96-G10,8)=0,"OK","CHECK") -> OK | H11: =IF(ROUND(H96-H10,8)=0,"OK","CHECK") -> OK | I11: OK | J11: OK | K11: OK | L11: OK | M11: OK | N11: OK | O11: OK | P11: OK | Q11: OK | R11: OK | S11: OK | T11: OK | U11: OK | V11: OK | W11: OK | X11: OK | Y11: OK | Z11: OK | AA11: OK | AB11: OK | AC11: OK | AD11: OK | AE11: OK | AF11: OK
B12: Breakdown by asset categories [$M real as at 30 June 2017]
B13: Year ending 30 June | F13: 2006 | G13: 2007 | H13: 2008 | I13: 2009 | J13: 2010 | K13: 2011 | L13: 2012 | M13: 2013 | N13: 2014 | O13: 2015 | P13: 2016 | Q13: 2017 | R13: 2018 | S13: 2019 | T13: 2020 | U13: 2021 | V13: 2022 | W13: 2023 | X13: 2024 | Y13: 2025 | Z13: 2026 | AA13: 2027 | AB13: 2028 | AC13: 2029 | AD13: 2030 | AE13: 2031 | AF13: 2032
B14: Opening balance
B15: Wooden Pole Lines | G15: =F85 -> 609.2179378 | H15: =G85 -> 664.709076 | I15: 741.6628611 | J15: 866.2308082 | K15: 973.6097323 | L15: 1069.888781 | M15: 1247.08078 | N15: 1512.21433 | O15: 1831.21966 | P15: 2056.588263 | Q15: 2183.490396 | R15: 2195.521576 | S15: 2305.606876 | T15: 2377.287455 | U15: 2435.769274 | V15: 2506.008235 | W15: 2577.317625 | X15: 2656.477324 | Y15: 2735.517551 | Z15: 2812.2111 | AA15: 2880.860613 | AB15: 2943.535603 | AC15: 3014.76933 | AD15: 3081.921935 | AE15: 3144.993418 | AF15: 3203.983778
B16: Underground Cables | G16: 689.9333868 | H16: =G86 -> 864.5287637 | I16: 1029.354207 | J16: 1260.326789 | K16: 1377.114354 | L16: 1476.582334 | M16: 1548.144177 | N16: 1587.534775 | O16: 1608.26054 | P16: 1627.102421 | Q16: 1642.360581 | R16: 1652.583337 | S16: 1672.279097 | T16: 1694.874536 | U16: 1706.561628 | V16: 1708.513823 | W16: 1715.609776 | X16: 1721.704744 | Y16: 1729.779116 | Z16: 1737.507385 | AA16: 1746.719716 | AB16: 1755.384777 | AC16: 1762.583599 | AD16: 1768.83346 | AE16: 1774.134361 | AF16: 1778.4863
B17: Transformers | G17: 262.6687554 | H17: 309.2010587 | I17: 352.8663028 | J17: 422.4018538 | K17: 451.9823227 | L17: 479.3203616 | M17: 501.8171472 | N17: 607.4636628 | O17: 694.7508161 | P17: 790.7083567 | Q17: 868.2259305 | R17: 917.5913626 | S17: 957.9126817 | T17: 1001.580547 | U17: 1044.188869 | V17: 1084.75845 | W17: 1129.59015 | X17: 1177.872048 | Y17: 1233.683944 | Z17: 1287.210904 | AA17: 1342.723049 | AB17: 1396.541564 | AC17: 1444.548643 | AD17: 1489.633138 | AE17: 1531.79505 | AF17: 1571.034379
B18: Switchgear | G18: 140.0052715 | H18: 178.020321 | I18: 222.6155346 | J18: 290.5670602 | K18: 329.3130482 | L18: 366.1949136 | M18: 414.190125 | N18: 466.7628854 | O18: 513.8821347 | P18: 561.3457411 | Q18: 592.3860645 | R18: 608.5528895 | S18: 620.0058867 | T18: 635.6323654 | U18: 654.5760948 | V18: 675.9348717 | W18: 699.1483524 | X18: 721.6786208 | Y18: 741.8960817 | Z18: 760.9330728 | AA18: 781.0646532 | AB18: 800.4099791 | AC18: 816.7282838 | AD18: 831.6411737 | AE18: 845.1486487 | AF18: 857.250709
B19: Street lighting | G19: 6.776071842 | H19: 20.16936069 | I19: 37.25609975 | J19: 63.69808112 | K19: 75.95344129 | L19: 87.7861504 | M19: 96.42933188 | N19: 96.11358152 | O19: 95.17748521 | P19: 95.13380828 | Q19: 94.91033246 | R19: 93.21678547 | S19: 90.21406991 | T19: 87.47931548 | U19: 84.52400148 | V19: 81.20947499 | W19: 78.17616426 | X19: 74.97782084 | Y19: 71.32979432 | Z19: 67.44941017 | AA19: 63.63591675 | AB19: 59.66113236 | AC19: 56.1819254 | AD19: 53.41529021 | AE19: 51.8090252 | AF19: 50.75444561
B20: Meters and Services | G20: 216.8338929 | H20: 205.295554 | I20: 194.9151787 | J20: 185.7130938 | K20: 173.3717865 | L20: 165.3343862 | M20: 157.2871212 | N20: 142.4002742 | O20: 123.8012683 | P20: 105.3463082 | Q20: 114.5030736 | R20: 123.8948713 | S20: 133.2037456 | T20: 147.6146107 | U20: 165.0678157 | V20: 181.0326703 | W20: 195.0111477 | X20: 212.5429868 | Y20: 228.2131562 | Z20: 242.5402447 | AA20: 255.2863256 | AB20: 265.9919178 | AC20: 274.9453469 | AD20: 282.2968604 | AE20: 287.2782256 | AF20: 290.2916937
B21: IT | G21: 19.87114137 | H21: 38.01693706 | I21: 70.37361139 | J21: 86.17047651 | K21: 90.56957979 | L21: 103.2182498 | M21: 120.7273709 | N21: 124.3311141 | O21: 116.6796264 | P21: 111.9793046 | Q21: 96.48694852 | R21: 97.92576154 | S21: 108.3233002 | T21: 118.7701516 | U21: 120.039304 | V21: 108.7045577 | W21: 93.93321932 | X21: 92.28070364 | Y21: 91.51917347 | Z21: 96.26244215 | AA21: 98.07124338 | AB21: 104.5059224 | AC21: 99.46628131 | AD21: 93.49082776 | AE21: 88.40801697 | AF21: 84.20547211
B22: SCADA & Communications | G22: 16.53293473 | H22: 17.51178006 | I22: 18.17557781 | J22: 18.59021966 | K22: 20.13224029 | L22: 20.77410179 | M22: 22.44765909 | N22: 22.50028607 | O22: 21.12296979 | P22: 18.07574916 | Q22: 14.27474085 | R22: 11.87118928 | S22: 15.30272325 | T22: 16.3174556 | U22: 18.01059537 | V22: 19.23318797 | W22: 20.00689495 | X22: 32.81397828 | Y22: 46.21321826 | Z22: 55.01840656 | AA22: 61.97904356 | AB22: 68.67225505 | AC22: 74.23188261 | AD22: 78.64473919 | AE22: 81.91758751 | AF22: 84.12287948
B23: Other Distribution Non-Network | G23: 66.02882399 | H23: 70.36908231 | I23: 72.78500823 | J23: 90.02443718 | K23: 93.18184567 | L23: 104.5654398 | M23: 114.5546 | N23: 118.1051107 | O23: 102.4542105 | P23: 92.72833962 | Q23: 80.0865097 | R23: 61.55487964 | S23: 62.90223355 | T23: 69.8951871 | U23: 112.4715687 | V23: 105.1856616 | W23: 98.88813774 | X23: 107.7049199 | Y23: 119.9344141 | Z23: 125.3336954 | AA23: 126.1886639 | AB23: 138.5002558 | AC23: 149.734487 | AD23: 160.3969618 | AE23: 170.4050818 | AF23: 179.758847
B24: Distribution Land & Easements | G24: 27.61073303 | H24: 27.36945674 | I24: 27.36945674 | J24: 27.36945674 | K24: 27.36945674 | L24: 27.36834117 | M24: 26.02341106 | N24: 25.14574969 | O24: 25.11334459 | P24: 21.46178924 | Q24: 21.46178924 | R24: 21.14784883 | S24: 28.6961092 | T24: 42.28846585 | U24: 78.55598659 | V24: 81.97168611 | W24: 84.8099845 | X24: 96.21355032 | Y24: 109.0703901 | Z24: 117.6630434 | AA24: 123.0147069 | AB24: 135.4613605 | AC24: 147.2397474 | AD24: 159.0181342 | AE24: 170.7965211 | AF24: 182.5749079
B25: Equity Raising Costs | G25: 0 | H25: 0 | I25: 0 | J25: 0 | K25: 0 | L25: 0 | M25: 0 | N25: 5.906192425 | O25: 10.4642965 | P25: 13.86591517 | Q25: 14.90173637 | R25: 14.54582906 | S25: 14.18240144 | T25: 13.81897381 | U25: 13.45554619 | V25: 13.09211857 | W25: 12.72869094 | X25: 12.36526332 | Y25: 12.0018357 | Z25: 11.63840807 | AA25: 11.27498045 | AB25: =AA95 -> 10.91155283 | AC25: =AB95 -> 10.5481252 | AD25: =AC95 -> 10.18469758 | AE25: =AD95 -> 9.821269955 | AF25: =AE95 -> 9.457842332
B26: Total | G26: =SUM(G15:G25) -> 2055.478949 | H26: =SUM(H15:H25) -> 2395.19139 | I26: 2767.373838 | J26: 3311.092276 | K26: 3612.597808 | L26: 3901.03306 | M26: 4248.701724 | N26: 4708.477962 | O26: 5142.926352 | P26: 5494.335995 | Q26: 5723.088102 | R26: 5798.40633 | S26: 6008.629124 | T26: 6205.559063 | U26: 6433.220684 | V26: 6565.644737 | W26: 6705.220143 | X26: 6906.631961 | Y26: 7119.158675 | Z26: 7313.768112 | AA26: 7490.818911 | AB26: 7679.57632 | AC26: 7850.977652 | AD26: 8009.477218 | AE26: 8156.507205 | AF26: 8291.921254
B28: Capital expenditure
B29: Wooden Pole Lines | G29: =G187 -> 101.2140507 | H29: =H187 -> 123.9140624 | I29: 173.4666593 | J29: 161.7438993 | K29: 154.500827 | L29: 241.8108743 | M29: 331.2733668 | N29: 389.4042487 | O29: 303.8711409 | P29: 212.1700329 | Q29: 105.0464079 | R29: 209.0114157 | S29: 175.460752 | T29: 161.721078 | U29: 153.743033 | V29: 144.628876 | W29: 156.0067177 | X29: 159.6922878 | Y29: 161.2405432 | Z29: 157.1292044 | AA29: 154.9871003 | AB29: 167.3260109 | AC29: 167.3260109 | AD29: 167.3260109 | AE29: 167.3260109 | AF29: 167.3260109
B30: Underground Cables | G30: 193.2927586 | H30: =H188 -> 185.7097866 | I30: 254.3999373 | J30: 146.0866895 | K30: 130.9902498 | L30: 105.6793828 | M30: 75.06930643 | N30: 57.70687076 | O30: 57.08469208 | P30: 54.7613502 | Q30: 50.9775351 | R30: 60.26528739 | S30: 64.1693878 | T30: 54.33053149 | U30: 45.50114208 | V30: 51.40325262 | W30: 51.25898952 | X30: 54.0927088 | Y30: 54.64815156 | Z30: 57.0430153 | AA30: 57.44646292 | AB30: 56.93766521 | AC30: 56.93766521 | AD30: 56.93766521 | AE30: 56.93766521 | AF30: 56.93766521
B31: Transformers | G31: 63.063686 | H31: 61.12036976 | I31: 88.19363382 | J31: 51.97368801 | K31: 51.00695969 | L31: 47.66720621 | M31: 131.9656835 | N31: 116.7042156 | O31: 128.9826588 | P31: 114.2414374 | Q31: 89.55495697 | R31: 82.81604319 | S31: 89.45711834 | T31: 89.85115555 | U31: 89.35410899 | V31: 96.169203 | W31: 100.9373131 | X31: 98.48321785 | Y31: 99.01208781 | Z31: 103.8261902 | AA31: 105.099023 | AB31: 102.2904156 | AC31: 102.2904156 | AD31: 102.2904156 | AE31: 102.2904156 | AF31: 102.2904156
B32: Switchgear | G32: 48.6333393 | H32: 55.98658543 | I32: 80.52254467 | J32: 54.61980237 | K32: 54.22992926 | L32: 67.29169348 | M32: 73.3517453 | N32: 69.72941687 | O32: 72.02260005 | P32: 57.57484393 | Q32: 44.45023955 | R32: 41.35687374 | S32: 46.82615166 | T32: 45.68568747 | U32: 44.26032993 | V32: 47.73637049 | W32: 48.41705448 | X32: 47.48759145 | Y32: 47.66390994 | Z32: 50.1203252 | AA32: 50.76608006 | AB32: 49.18951824 | AC32: 49.18951824 | AD32: 49.18951824 | AE32: 49.18951824 | AF32: 49.18951824
B33: Street lighting | G33: 19.04001539 | H33: 18.94105667 | I33: 28.00829773 | J33: 15.58561767 | K33: 15.83020438 | L33: 13.38143183 | M33: 5.269490381 | N33: 4.891103588 | O33: 6.009738811 | P33: 6.047399081 | Q33: 4.77386046 | R33: 3.9555157 | S33: 4.421252606 | T33: 4.421755667 | U33: 4.283630972 | V33: 4.77902827 | W33: 4.852946996 | X33: 4.64591124 | Y33: 4.645849178 | Z33: 4.94503237 | AA33: 5.030993013 | AB33: 4.800893946 | AC33: 4.800893946 | AD33: 4.800893946 | AE33: 4.800893946 | AF33: 4.800893946
B34: Meters and Services | G34: 12.03056245 | H34: 13.41627179 | I34: 15.03873568 | J34: 12.87291153 | K34: 17.75885171 | L34: 18.33639651 | M34: 12.28538478 | N34: 9.238432436 | O34: 12.03504656 | P34: 23.50081492 | Q34: 21.373 | R34: 17.33844269 | S34: 23.59632961 | T34: 28.21175813 | U34: 28.60419163 | V34: 28.52476053 | W34: 33.97977301 | X34: 34.38342136 | Y34: 35.33256868 | Z34: 36.10706566 | AA34: 36.47371456 | AB34: 37.15313252 | AC34: 37.15313252 | AD34: 37.15313252 | AE34: 37.15313252 | AF34: 37.15313252
B35: IT | G35: 20.17346317 | H35: 36.75950275 | I35: 22.24472151 | J35: 15.24265746 | K35: 24.63905937 | L35: 32.2208139 | M35: 20.15859922 | N35: 13.62373088 | O35: 21.12258977 | P35: 12.64079834 | Q35: 30.948 | R35: 35.30532739 | S35: 37.77237134 | T35: 31.80599626 | U35: 23.01468333 | V35: 17.23027652 | W35: 28.20100785 | X35: 28.12674695 | Y35: 32.43511571 | Z35: 28.61110567 | AA35: 32.70450168 | AB35: 22.84515131 | AC35: 22.84515131 | AD35: 22.84515131 | AE35: 22.84515131 | AF35: 22.84515131
B36: SCADA & Communications | G36: 2.599721286 | H36: 2.553736825 | I36: 2.521113304 | J36: 3.918837435 | K36: 3.690380723 | L36: 5.478126345 | M36: 3.604587986 | N36: 2.827763031 | O36: 2.757562744 | P36: 3.773585635 | Q36: 5.064 | R36: 3.338559363 | S36: 3.749011442 | T36: 4.547153015 | U36: 4.219339639 | V36: 3.866157565 | W36: 15.77589059 | X36: 17.69923429 | Y36: 14.82146401 | Z36: 14.43571823 | AA36: 15.35217711 | AB36: 15.26582295 | AC36: 15.26582295 | AD36: 15.26582295 | AE36: 15.26582295 | AF36: 15.26582295
B37: Other Distribution Non-Network | G37: 10.18351708 | H37: 9.818763428 | I37: 26.435756 | J37: 13.34446368 | K37: 23.3177661 | L37: 25.05524701 | M37: 19.6650427 | N37: 2.631084986 | O37: 10.72502791 | P37: 11.98816575 | Q37: 5.245 | R37: 11.32239056 | S37: 20.38853497 | T37: 54.40128111 | U37: 5.123549289 | V37: 4.257447573 | W37: 17.10534874 | X37: 19.28525966 | Y37: 12.88898 | Z37: 8.027495267 | AA37: 18.66998035 | AB37: 17.66758029 | AC37: 17.66758029 | AD37: 17.66758029 | AE37: 17.66758029 | AF37: 17.66758029
B38: Distribution Land & Easements | G38: 0 | H38: 0 | I38: 0 | J38: 0 | K38: 0 | L38: 0 | M38: 0 | N38: 0 | O38: 0 | P38: 0 | Q38: 0 | R38: 7.548260372 | S38: 13.59235665 | T38: 36.26752074 | U38: 3.415699526 | V38: 2.838298382 | W38: 11.40356583 | X38: 12.85683977 | Y38: 8.592653331 | Z38: 5.351663511 | AA38: 12.44665357 | AB38: 11.77838686 | AC38: 11.77838686 | AD38: 11.77838686 | AE38: 11.77838686 | AF38: 11.77838686
B39: Equity Raising Costs | G39: 0 | H39: 0 | I39: 0 | J39: 0 | K39: 0 | L39: 0 | M39: 5.906192425 | N39: 4.683802917 | O39: 3.63499861 | P39: 1.355532495 | Q39: 0 | R39: 0 | S39: 0 | T39: 0 | U39: 0 | V39: 0 | W39: 0 | X39: 0 | Y39: 0 | Z39: 0 | AA39: 0 | AB39: =AB197 -> 0 | AC39: =AC197 -> 0 | AD39: =AD197 -> 0 | AE39: =AE197 -> 0 | AF39: =AF197 -> 0
B40: Total | G40: =SUM(G29:G39) -> 470.231114 | H40: =SUM(H29:H39) -> 508.2201356 | I40: 690.8313994 | J40: 475.3885669 | K40: 475.9642281 | L40: 556.9211725 | M40: =SUM(M29:M39) -> 678.5493995 | N40: 671.4406698 | O40: 618.2460563 | P40: 498.0539607 | Q40: 357.433 | R40: 472.2581161 | S40: 479.4332664 | T40: 511.2439175 | U40: 401.5197084 | V40: 401.4336709 | W40: 467.9386078 | X40: 476.7532192 | Y40: 471.2813234 | Z40: 465.5968158 | AA40: 488.9766866 | AB40: 485.2545778 | AC40: 485.2545778 | AD40: 485.2545778 | AE40: 485.2545778 | AF40: 485.2545778
B42: Disposals/Redundant assets
B43: Wooden Pole Lines | G43: =SUM(G143,G215) -> 0 | H43: =SUM(H143,H215) -> 0 | I43: 0 | J43: 0 | K43: 0 | L43: -1.048991326 | M43: 0 | N43: -0.2655127479 | O43: -1.28000093 | P43: -0.1353047467 | Q43: 0 | R43: 0 | S43: 0 | T43: 0 | U43: 0 | V43: 0 | W43: 0 | X43: 0 | Y43: 0 | Z43: 0 | AA43: 0 | AB43: 0 | AC43: 0 | AD43: 0 | AE43: 0 | AF43: 0
B44: Underground Cables | G44: 0 | H44: =SUM(H144,H216) -> 0 | I44: 0 | J44: 0 | K44: 0 | L44: 0 | M44: 0 | N44: 0 | O44: 0 | P44: 0 | Q44: 0 | R44: 0 | S44: 0 | T44: 0 | U44: 0 | V44: 0 | W44: 0 | X44: 0 | Y44: 0 | Z44: 0 | AA44: 0 | AB44: 0 | AC44: 0 | AD44: 0 | AE44: 0 | AF44: 0
B45: Transformers | G45: 0 | H45: 0 | I45: 0 | J45: 0 | K45: 0 | L45: 0 | M45: 0 | N45: 0 | O45: 0 | P45: 0 | Q45: 0 | R45: 0 | S45: 0 | T45: 0 | U45: 0 | V45: 0 | W45: 0 | X45: 0 | Y45: 0 | Z45: 0 | AA45: 0 | AB45: 0 | AC45: 0 | AD45: 0 | AE45: 0 | AF45: 0
B46: Switchgear | G46: 0 | H46: 0 | I46: 0 | J46: 0 | K46: 0 | L46: 0 | M46: 0 | N46: 0 | O46: 0 | P46: 0 | Q46: 0 | R46: 0 | S46: 0 | T46: 0 | U46: 0 | V46: 0 | W46: 0 | X46: 0 | Y46: 0 | Z46: 0 | AA46: 0 | AB46: 0 | AC46: 0 | AD46: 0 | AE46: 0 | AF46: 0
B47: Street lighting | G47: 0 | H47: 0 | I47: 0 | J47: 0 | K47: 0 | L47: 0 | M47: 0 | N47: 0 | O47: 0 | P47: 0 | Q47: 0 | R47: 0 | S47: 0 | T47: 0 | U47: 0 | V47: 0 | W47: 0 | X47: 0 | Y47: 0 | Z47: 0 | AA47: 0 | AB47: 0 | AC47: 0 | AD47: 0 | AE47: 0 | AF47: 0
B48: Meters and Services | G48: 0 | H48: 0 | I48: 0 | J48: 0 | K48: 0 | L48: 0 | M48: 0 | N48: 0 | O48: 0 | P48: 0 | Q48: 0 | R48: 0 | S48: 0 | T48: 0 | U48: 0 | V48: 0 | W48: 0 | X48: 0 | Y48: 0 | Z48: 0 | AA48: 0 | AB48: 0 | AC48: 0 | AD48: 0 | AE48: 0 | AF48: 0
B49: IT | G49: 0 | H49: 0 | I49: 0 | J49: -0.9465649257 | K49: 0 | L49: -0.0781216206 | M49: 0 | N49: 0 | O49: 0 | P49: 0 | Q49: 0 | R49: 0 | S49: 0 | T49: 0 | U49: 0 | V49: 0 | W49: 0 | X49: 0 | Y49: 0 | Z49: 0 | AA49: 0 | AB49: 0 | AC49: 0 | AD49: 0 | AE49: 0 | AF49: 0
B50: SCADA & Communications | G50: 0 | H50: 0 | I50: 0 | J50: 0 | K50: 0 | L50: 0 | M50: 0 | N50: 0 | O50: 0 | P50: 0 | Q50: 0 | R50: 0 | S50: 0 | T50: 0 | U50: 0 | V50: 0 | W50: 0 | X50: 0 | Y50: 0 | Z50: 0 | AA50: 0 | AB50: 0 | AC50: 0 | AD50: 0 | AE50: 0 | AF50: 0
B51: Other Distribution Non-Network | G51: 0 | H51: 0 | I51: 0 | J51: 0 | K51: 0 | L51: 0 | M51: -0.05057753778 | N51: 0 | O51: 0 | P51: -2.675785174 | Q51: =SUM(Q151,Q223) -> -0.3040426425 | R51: 0 | S51: 0 | T51: 0 | U51: 0 | V51: 0 | W51: 0 | X51: 0 | Y51: 0 | Z51: 0 | AA51: 0 | AB51: 0 | AC51: 0 | AD51: 0 | AE51: 0 | AF51: 0
B52: Distribution Land & Easements | G52: -0.2412762932 | H52: 0 | I52: 0 | J52: 0 | K52: -0.001115575835 | L52: -1.344930101 | M52: -0.8776613778 | N52: -0.03240509915 | O52: -3.651555349 | P52: 0 | Q52: -0.31394041 | R52: 0 | S52: 0 | T52: 0 | U52: 0 | V52: 0 | W52: 0 | X52: 0 | Y52: 0 | Z52: 0 | AA52: 0 | AB52: 0 | AC52: 0 | AD52: 0 | AE52: 0 | AF52: 0
B53: Equity Raising Costs | G53: 0 | H53: 0 | I53: 0 | J53: 0 | K53: 0 | L53: 0 | M53: 0 | N53: 0 | O53: 0 | P53: 0 | Q53: 0 | R53: 0 | S53: 0 | T53: 0 | U53: 0 | V53: 0 | W53: 0 | X53: 0 | Y53: 0 | Z53: 0 | AA53: 0 | AB53: =SUM(AB153,AB225) -> 0 | AC53: =SUM(AC153,AC225) -> 0 | AD53: =SUM(AD153,AD225) -> 0 | AE53: =SUM(AE153,AE225) -> 0 | AF53: =SUM(AF153,AF225) -> 0
B54: Total | G54: =SUM(G43:G53) -> -0.2412762932 | H54: =SUM(H43:H53) -> 0 | I54: 0 | J54: -0.9465649257 | K54: -0.001115575835 | L54: -2.472043047 | M54: -0.9282389156 | N54: -0.297917847 | O54: -4.931556279 | P54: -2.811089921 | Q54: -0.6179830525 | R54: 0 | S54: 0 | T54: 0 | U54: 0 | V54: 0 | W54: 0 | X54: 0 | Y54: 0 | Z54: 0 | AA54: 0 | AB54: 0 | AC54: 0 | AD54: 0 | AE54: 0 | AF54: 0
B56: Depreciation
B57: Wooden Pole Lines | G57: =SUM(G115,G201) -> -42.01503019 | H57: =SUM(H115,H201) -> -43.41233409 | I57: -45.40175737 | J57: -50.933821 | K57: -54.86776589 | L57: -60.30404972 | M57: =SUM(M115,M201) -> -63.29075834 | N57: -69.75127204 | O57: -77.22253718 | P57: -85.13259542 | Q57: -93.0152271 | R57: -95.29391143 | S57: -98.9388689 | T57: -99.99086374 | U57: -83.50407171 | V57: -73.31948542 | W57: -76.84701898 | X57: -80.65206088 | Y57: -84.54699473 | Z57: -88.4796909 | AA57: -92.31211052 | AB57: -96.0922837 | AC57: -100.1734059 | AD57: -104.2545281 | AE57: -108.3356504 | AF57: -112.4167726
B58: Underground Cables | G58: -18.69738176 | H58: =SUM(H116,H202) -> -20.88434307 | I58: =SUM(I116,I202) -> -23.427356 | J58: =SUM(J116,J202) -> -29.29912361 | K58: =SUM(K116,K202) -> -31.52227055 | L58: =SUM(L116,L202) -> -34.11753947 | M58: =SUM(M116,M202) -> -35.67870856 | N58: =SUM(N116,N202) -> -36.98110599 | O58: -38.24281124 | P58: -39.5031897 | Q58: -40.75477959 | R58: -40.56952738 | S58: -41.57394884 | T58: -42.64343863 | U58: -43.54894749 | V58: -44.30729986 | W58: -45.16402074 | X58: -46.01833723 | Y58: -46.91988238 | Z58: -47.8306849 | AA58: -48.78140182 | AB58: -49.73884287 | AC58: -50.68780396 | AD58: -51.63676505 | AE58: -52.58572613 | AF58: -53.53468722
B59: Transformers | G59: -15.5425299 | H59: -16.50892686 | I59: -17.72548216 | J59: -21.47824459 | K59: -22.77451765 | L59: -24.29953147 | M59: -25.55941882 | N59: -29.31516003 | O59: -33.02511826 | P59: -36.72386358 | Q59: -40.18952491 | R59: -42.03301821 | S59: -44.30496519 | T59: -46.48029625 | U59: -48.78452831 | V59: -51.33750285 | W59: -52.65541481 | X59: -42.67132207 | Y59: -45.48512829 | Z59: -48.31404509 | AA59: -51.28050766 | AB59: -54.28333689 | AC59: -57.20592019 | AD59: -60.12850349 | AE59: -63.0510868 | AF59: -65.9736701
B60: Switchgear | G60: -10.37076085 | H60: -11.15452006 | I60: -12.33757112 | J60: -15.64507077 | K60: -17.12446302 | L60: -19.07875978 | M60: -20.58904769 | N60: -22.58469193 | O60: -24.55899369 | P60: -26.53452054 | Q60: -28.28341449 | R60: -29.62834696 | S60: -30.62628549 | T60: -26.3852021 | U60: -22.90155304 | V60: -24.5228898 | W60: -25.8867861 | X60: -27.27013052 | Y60: -28.62691884 | Z60: -29.98874484 | AA60: -31.42075413 | AB60: -32.87121356 | AC60: -34.27662837 | AD60: -35.68204318 | AE60: -37.08745798 | AF60: -38.49287279
B61: Street lighting | G61: -5.646726535 | H61: -1.854317607 | I61: -1.566316365 | J61: -3.330257494 | K61: -3.997495276 | L61: -4.738250349 | M61: -5.585240745 | N61: -5.827199897 | O61: -6.053415737 | P61: -6.270874897 | Q61: -6.467407457 | R61: -6.958231255 | S61: -7.15600704 | T61: -7.37706967 | U61: -7.598157454 | V61: -7.812339002 | W61: -8.051290416 | X61: -8.293937766 | Y61: -8.526233328 | Z61: -8.758525786 | AA61: -9.005777405 | AB61: -8.280100901 | AC61: -7.567529145 | AD61: -6.407158956 | AE61: -5.855473537 | AF61: -5.301336691
B62: Meters and Services | G62: -23.56890141 | H62: -23.79664709 | I62: -24.24082052 | J62: -25.21421889 | K62: -25.79625197 | L62: -26.38366153 | M62: -27.17223174 | N62: -27.83743838 | O62: -30.49000667 | P62: -14.34404947 | Q62: -11.98120234 | R62: -8.029568341 | S62: -9.18546452 | T62: -10.75855316 | U62: -12.63933704 | V62: -14.54628315 | W62: -16.44793385 | X62: -18.71325205 | Y62: -21.00548014 | Z62: -23.36098472 | AA62: -25.76812243 | AB62: -28.1997034 | AC62: -29.80161906 | AD62: -32.17176727 | AE62: -34.13966441 | AF62: -35.10583407
B63: IT | G63: -2.027667487 | H63: -4.402828417 | I63: -6.447856391 | J63: -9.89698925 | K63: -11.99038932 | L63: -14.63357124 | M63: -16.55485599 | N63: -21.27521861 | O63: -25.82291153 | P63: -28.13315444 | Q63: -29.50918698 | R63: -24.90778875 | S63: -27.32551989 | T63: -30.53684385 | U63: -34.3494297 | V63: -32.00161486 | W63: -29.85352353 | X63: -28.88827711 | Y63: -27.69184704 | Z63: -26.80230444 | AA63: -26.26982267 | AB63: -27.8847924 | AC63: -28.82060486 | AD63: -27.92796211 | AE63: -27.04769617 | AF63: -25.44936877
B64: SCADA & Communications | G64: -1.620875954 | H64: -1.889939082 | I64: -2.106471456 | J64: -2.376816802 | K64: -3.048519217 | L64: -3.80456905 | M64: -3.551961006 | N64: -4.205079313 | O64: -5.80478337 | P64: -7.57459395 | Q64: -7.467551569 | R64: 0.09297460672 | S64: -2.734279088 | T64: -2.854013244 | U64: -2.996747041 | V64: -3.092450585 | W64: -2.968807258 | X64: -4.299994313 | Y64: -6.016275717 | Z64: -7.47508123 | AA64: -8.658965611 | AB64: -9.706195399 | AC64: -10.85296637 | AD64: -11.99297462 | AE64: -13.06053098 | AF64: -14.14262086
B65: Other Distribution Non-Network | G65: -5.84325876 | H65: -7.402837513 | I65: -9.196327047 | J65: -10.18705519 | K65: -11.934172 | L65: -15.06608678 | M65: -16.06395441 | N65: -18.28198519 | O65: -20.45089883 | P65: -21.95421049 | Q65: -23.47258742 | R65: -9.975036654 | S65: -13.39558141 | T65: -11.82489951 | U65: -12.40945639 | V65: -10.55497144 | W65: -8.28856659 | X65: -7.055765443 | Y65: -7.489698745 | Z65: -7.172526725 | AA65: -6.35838846 | AB65: -6.433349074 | AC65: -7.005105474 | AD65: -7.6594603 | AE65: -8.313815125 | AF65: -8.968169951
B66: Distribution Land & Easements | G66: 0 | H66: 0 | I66: 0 | J66: 0 | K66: 0 | L66: 0 | M66: 0 | N66: 0 | O66: 0 | P66: 0 | Q66: 0 | R66: 0 | S66: 0 | T66: 0 | U66: 0 | V66: 0 | W66: 0 | X66: 0 | Y66: 0 | Z66: 0 | AA66: 0 | AB66: 0 | AC66: 0 | AD66: 0 | AE66: 0 | AF66: 0
B67: Equity Raising Costs | G67: 0 | H67: 0 | I67: 0 | J67: 0 | K67: 0 | L67: 0 | M67: 0 | N67: -0.1256988435 | O67: -0.2333799369 | P67: -0.3197112974 | Q67: -0.3559073078 | R67: -0.3634276235 | S67: -0.3634276235 | T67: -0.3634276235 | U67: -0.3634276235 | V67: -0.3634276235 | W67: -0.3634276235 | X67: -0.3634276235 | Y67: -0.3634276235 | Z67: -0.3634276235 | AA67: -0.3634276235 | AB67: =SUM(AB125,AB211) -> -0.3634276235 | AC67: =SUM(AC125,AC211) -> -0.3634276235 | AD67: =SUM(AD125,AD211) -> -0.3634276235 | AE67: =SUM(AE125,AE211) -> -0.3634276235 | AF67: =SUM(AF125,AF211) -> -0.3634276235
B68: Total | G68: =SUM(G57:G67) -> -125.3331328 | H68: =SUM(H57:H67) -> -131.3066938 | I68: -142.4499584 | J68: -168.3615976 | K68: -183.0558449 | L68: -202.4260194 | M68: -214.0461773 | N68: -236.1848502 | O68: -261.9048565 | P68: -266.4907638 | Q68: -281.4967892 | R68: -257.665882 | S68: -275.604348 | T68: -279.2146078 | U68: -269.0956558 | V68: -261.8582646 | W68: -266.5267899 | X68: -264.226505 | Y68: -276.6718868 | Z68: -288.5460163 | AA68: -300.2192783 | AB68: -313.8532458 | AC68: -326.755011 | AD68: -338.2245907 | AE68: -349.8405291 | AF68: -359.7487606
B70: Accelerated depreciation
B71: Wooden Pole Lines | G71: =G129 -> -3.707882254 | H71: =H129 -> -3.547943226 | I71: -3.49695482 | J71: -3.431154205 | K71: -3.354011931 | L71: -3.265834402 | M71: -2.849059121 | N71: -0.3821335525 | O71: 0 | P71: 0 | Q71: 0 | R71: -3.632204862 | S71: -4.841303536 | T71: -3.248396102 | U71: 0 | V71: 0 | W71: 0 | X71: 0 | Y71: 0 | Z71: 0 | AA71: 0 | AB71: 0 | AC71: 0 | AD71: 0 | AE71: 0 | AF71: 0
B72: Underground Cables | G72: =G130 -> 0 | H72: 0 | I72: 0 | J72: 0 | K72: 0 | L72: 0 | M72: 0 | N72: 0 | O72: 0 | P72: 0 | Q72: 0 | R72: 0 | S72: 0 | T72: 0 | U72: 0 | V72: 0 | W72: 0 | X72: 0 | Y72: 0 | Z72: 0 | AA72: 0 | AB72: 0 | AC72: 0 | AD72: 0 | AE72: 0 | AF72: 0
B73: Transformers | G73: =G131 -> -0.9888527945 | H73: -0.9461987554 | I73: -0.9326006895 | J73: -0.9149744547 | K73: -0.8944031815 | L73: -0.8708891738 | M73: -0.759749099 | N73: -0.1019022807 | O73: 0 | P73: 0 | Q73: 0 | R73: -0.4617058566 | S73: -1.484287794 | T73: -0.7625370509 | U73: 0 | V73: 0 | W73: 0 | X73: 0 | Y73: 0 | Z73: 0 | AA73: 0 | AB73: 0 | AC73: 0 | AD73: 0 | AE73: 0 | AF73: 0
B74: Switchgear | G74: =G132 -> -0.2475289243 | H74: -0.2368517957 | I74: -0.2334479376 | J74: -0.2287436137 | K74: -0.2236007954 | L74: -0.2177222935 | M74: -0.1899372748 | N74: -0.02547557017 | O74: 0 | P74: 0 | Q74: 0 | R74: -0.2755296495 | S74: -0.5733874686 | T74: -0.3567559106 | U74: 0 | V74: 0 | W74: 0 | X74: 0 | Y74: 0 | Z74: 0 | AA74: 0 | AB74: 0 | AC74: 0 | AD74: 0 | AE74: 0 | AF74: 0
B75: Street lighting | G75: =G133 -> 0 | H75: 0 | I75: 0 | J75: 0 | K75: 0 | L75: 0 | M75: 0 | N75: 0 | O75: 0 | P75: 0 | Q75: 0 | R75: 0 | S75: 0 | T75: 0 | U75: 0 | V75: 0 | W75: 0 | X75: 0 | Y75: 0 | Z75: 0 | AA75: 0 | AB75: 0 | AC75: 0 | AD75: 0 | AE75: 0 | AF75: 0
B76: Meters and Services | G76: =G134 -> 0 | H76: 0 | I76: 0 | J76: 0 | K76: 0 | L76: 0 | M76: 0 | N76: 0 | O76: 0 | P76: 0 | Q76: 0 | R76: 0 | S76: 0 | T76: 0 | U76: 0 | V76: 0 | W76: 0 | X76: 0 | Y76: 0 | Z76: 0 | AA76: 0 | AB76: 0 | AC76: 0 | AD76: 0 | AE76: 0 | AF76: 0
B77: IT | G77: =G135 -> 0 | H77: 0 | I77: 0 | J77: 0 | K77: 0 | L77: 0 | M77: 0 | N77: 0 | O77: 0 | P77: 0 | Q77: 0 | R77: 0 | S77: 0 | T77: 0 | U77: 0 | V77: 0 | W77: 0 | X77: 0 | Y77: 0 | Z77: 0 | AA77: 0 | AB77: 0 | AC77: 0 | AD77: 0 | AE77: 0 | AF77: 0
B78: SCADA & Communications | G78: =G136 -> 0 | H78: 0 | I78: 0 | J78: 0 | K78: 0 | L78: 0 | M78: 0 | N78: 0 | O78: 0 | P78: 0 | Q78: 0 | R78: 0 | S78: 0 | T78: 0 | U78: 0 | V78: 0 | W78: 0 | X78: 0 | Y78: 0 | Z78: 0 | AA78: 0 | AB78: 0 | AC78: 0 | AD78: 0 | AE78: 0 | AF78: 0
B79: Other Distribution Non-Network | G79: =G137 -> 0 | H79: 0 | I79: 0 | J79: 0 | K79: 0 | L79: 0 | M79: 0 | N79: 0 | O79: 0 | P79: 0 | Q79: 0 | R79: 0 | S79: 0 | T79: 0 | U79: 0 | V79: 0 | W79: 0 | X79: 0 | Y79: 0 | Z79: 0 | AA79: 0 | AB79: 0 | AC79: 0 | AD79: 0 | AE79: 0 | AF79: 0
B80: Distribution Land & Easements | G80: =G138 -> 0 | H80: 0 | I80: 0 | J80: 0 | K80: 0 | L80: 0 | M80: 0 | N80: 0 | O80: 0 | P80: 0 | Q80: 0 | R80: 0 | S80: 0 | T80: 0 | U80: 0 | V80: 0 | W80: 0 | X80: 0 | Y80: 0 | Z80: 0 | AA80: 0 | AB80: 0 | AC80: 0 | AD80: 0 | AE80: 0 | AF80: 0
B81: Equity Raising Costs | G81: =G139 -> 0 | H81: 0 | I81: 0 | J81: 0 | K81: 0 | L81: 0 | M81: 0 | N81: 0 | O81: 0 | P81: 0 | Q81: 0 | R81: 0 | S81: 0 | T81: 0 | U81: 0 | V81: 0 | W81: 0 | X81: 0 | Y81: 0 | Z81: 0 | AA81: 0 | AB81: 0 | AC81: 0 | AD81: 0 | AE81: 0 | AF81: 0
B82: Total | G82: =SUM(G71:G81) -> -4.944263973 | H82: -4.730993777 | I82: -4.663003447 | J82: -4.574872273 | K82: -4.472015908 | L82: -4.354445869 | M82: -3.798745495 | N82: -0.5095114034 | O82: 0 | P82: 0 | Q82: 0 | R82: -4.369440368 | S82: -6.898978798 | T82: -4.367689064 | U82: 0 | V82: 0 | W82: 0 | X82: 0 | Y82: 0 | Z82: 0 | AA82: 0 | AB82: 0 | AC82: 0 | AD82: 0 | AE82: 0 | AF82: 0
B84: Closing balance
B85: Wooden Pole Lines | F85: =Dx_Inputs!H38 -> 609.2179378 | G85: =SUM(G15,G29,G43,G57,G71) -> 664.709076 | H85: =SUM(H15,H29,H43,H57,H71) -> 741.6628611 | I85: 866.2308082 | J85: 973.6097323 | K85: 1069.888781 | L85: 1247.08078 | M85: 1512.21433 | N85: 1831.21966 | O85: 2056.588263 | P85: =SUM(P15,P29,P43,P57,P71) -> 2183.490396 | Q85: 2195.521576 | R85: 2305.606876 | S85: 2377.287455 | T85: 2435.769274 | U85: 2506.008235 | V85: 2577.317625 | W85: 2656.477324 | X85: 2735.517551 | Y85: 2812.2111 | Z85: 2880.860613 | AA85: 2943.535603 | AB85: 3014.76933 | AC85: 3081.921935 | AD85: 3144.993418 | AE85: 3203.983778 | AF85: 3258.893017
B86: Underground Cables | F86: =Dx_Inputs!H39 -> 689.9333868 | G86: =SUM(G16,G30,G44,G58,G72) -> 864.5287637 | H86: 1029.354207 | I86: 1260.326789 | J86: 1377.114354 | K86: 1476.582334 | L86: 1548.144177 | M86: 1587.534775 | N86: 1608.26054 | O86: 1627.102421 | P86: 1642.360581 | Q86: 1652.583337 | R86: 1672.279097 | S86: 1694.874536 | T86: 1706.561628 | U86: 1708.513823 | V86: 1715.609776 | W86: 1721.704744 | X86: 1729.779116 | Y86: 1737.507385 | Z86: 1746.719716 | AA86: 1755.384777 | AB86: 1762.583599 | AC86: 1768.83346 | AD86: 1774.134361 | AE86: 1778.4863 | AF86: 1781.889278
B87: Transformers | F87: =Dx_Inputs!H40 -> 262.6687554 | G87: =SUM(G17,G31,G45,G59,G73) -> 309.2010587 | H87: 352.8663028 | I87: 422.4018538 | J87: 451.9823227 | K87: 479.3203616 | L87: 501.8171472 | M87: 607.4636628 | N87: 694.7508161 | O87: 790.7083567 | P87: 868.2259305 | Q87: 917.5913626 | R87: 957.9126817 | S87: 1001.580547 | T87: 1044.188869 | U87: 1084.75845 | V87: 1129.59015 | W87: 1177.872048 | X87: 1233.683944 | Y87: 1287.210904 | Z87: 1342.723049 | AA87: 1396.541564 | AB87: 1444.548643 | AC87: 1489.633138 | AD87: 1531.79505 | AE87: 1571.034379 | AF87: 1607.351124
B88: Switchgear | F88: =Dx_Inputs!H41 -> 140.0052715 | G88: =SUM(G18,G32,G46,G60,G74) -> 178.020321 | H88: 222.6155346 | I88: 290.5670602 | J88: 329.3130482 | K88: 366.1949136 | L88: 414.190125 | M88: 466.7628854 | N88: 513.8821347 | O88: 561.3457411 | P88: 592.3860645 | Q88: 608.5528895 | R88: 620.0058867 | S88: 635.6323654 | T88: 654.5760948 | U88: 675.9348717 | V88: 699.1483524 | W88: 721.6786208 | X88: 741.8960817 | Y88: 760.9330728 | Z88: 781.0646532 | AA88: 800.4099791 | AB88: 816.7282838 | AC88: 831.6411737 | AD88: 845.1486487 | AE88: 857.250709 | AF88: 867.9473544
B89: Street lighting | F89: =Dx_Inputs!H42 -> 6.776071842 | G89: =SUM(G19,G33,G47,G61,G75) -> 20.16936069 | H89: 37.25609975 | I89: 63.69808112 | J89: 75.95344129 | K89: 87.7861504 | L89: 96.42933188 | M89: 96.11358152 | N89: 95.17748521 | O89: 95.13380828 | P89: 94.91033246 | Q89: 93.21678547 | R89: 90.21406991 | S89: 87.47931548 | T89: 84.52400148 | U89: 81.20947499 | V89: 78.17616426 | W89: 74.97782084 | X89: 71.32979432 | Y89: 67.44941017 | Z89: 63.63591675 | AA89: 59.66113236 | AB89: 56.1819254 | AC89: 53.41529021 | AD89: 51.8090252 | AE89: 50.75444561 | AF89: 50.25400286
B90: Meters and Services | F90: =Dx_Inputs!H43 -> 216.8338929 | G90: =SUM(G20,G34,G48,G62,G76) -> 205.295554 | H90: 194.9151787 | I90: 185.7130938 | J90: 173.3717865 | K90: 165.3343862 | L90: 157.2871212 | M90: 142.4002742 | N90: 123.8012683 | O90: 105.3463082 | P90: 114.5030736 | Q90: 123.8948713 | R90: 133.2037456 | S90: 147.6146107 | T90: 165.0678157 | U90: 181.0326703 | V90: 195.0111477 | W90: 212.5429868 | X90: 228.2131562 | Y90: 242.5402447 | Z90: 255.2863256 | AA90: 265.9919178 | AB90: 274.9453469 | AC90: 282.2968604 | AD90: 287.2782256 | AE90: 290.2916937 | AF90: 292.3389922
B91: IT | F91: =Dx_Inputs!H44 -> 19.87114137 | G91: =SUM(G21,G35,G49,G63,G77) -> 38.01693706 | H91: 70.37361139 | I91: 86.17047651 | J91: 90.56957979 | K91: 103.2182498 | L91: 120.7273709 | M91: 124.3311141 | N91: 116.6796264 | O91: 111.9793046 | P91: 96.48694852 | Q91: 97.92576154 | R91: 108.3233002 | S91: 118.7701516 | T91: 120.039304 | U91: 108.7045577 | V91: 93.93321932 | W91: 92.28070364 | X91: 91.51917347 | Y91: 96.26244215 | Z91: 98.07124338 | AA91: 104.5059224 | AB91: 99.46628131 | AC91: 93.49082776 | AD91: 88.40801697 | AE91: 84.20547211 | AF91: 81.60125466
B92: SCADA & Communications | F92: =Dx_Inputs!H45 -> 16.53293473 | G92: =SUM(G22,G36,G50,G64,G78) -> 17.51178006 | H92: 18.17557781 | I92: 18.59021966 | J92: 20.13224029 | K92: 20.77410179 | L92: 22.44765909 | M92: 22.50028607 | N92: 21.12296979 | O92: 18.07574916 | P92: 14.27474085 | Q92: 11.87118928 | R92: 15.30272325 | S92: 16.3174556 | T92: 18.01059537 | U92: 19.23318797 | V92: 20.00689495 | W92: 32.81397828 | X92: 46.21321826 | Y92: 55.01840656 | Z92: 61.97904356 | AA92: 68.67225505 | AB92: 74.23188261 | AC92: 78.64473919 | AD92: 81.91758751 | AE92: 84.12287948 | AF92: 85.24608157
B93: Other Distribution Non-Network | F93: =Dx_Inputs!H46 -> 66.02882399 | G93: =SUM(G23,G37,G51,G65,G79) -> 70.36908231 | H93: 72.78500823 | I93: 90.02443718 | J93: 93.18184567 | K93: 104.5654398 | L93: 114.5546 | M93: 118.1051107 | N93: 102.4542105 | O93: 92.72833962 | P93: 80.0865097 | Q93: 61.55487964 | R93: 62.90223355 | S93: 69.8951871 | T93: 112.4715687 | U93: 105.1856616 | V93: 98.88813774 | W93: 107.7049199 | X93: 119.9344141 | Y93: 125.3336954 | Z93: 126.1886639 | AA93: 138.5002558 | AB93: 149.734487 | AC93: 160.3969618 | AD93: 170.4050818 | AE93: 179.758847 | AF93: 188.4582573
B94: Distribution Land & Easements | F94: =Dx_Inputs!H47 -> 27.61073303 | G94: =SUM(G24,G38,G52,G66,G80) -> 27.36945674 | H94: 27.36945674 | I94: 27.36945674 | J94: 27.36945674 | K94: 27.36834117 | L94: 26.02341106 | M94: 25.14574969 | N94: 25.11334459 | O94: 21.46178924 | P94: 21.46178924 | Q94: 21.14784883 | R94: 28.6961092 | S94: 42.28846585 | T94: 78.55598659 | U94: 81.97168611 | V94: 84.8099845 | W94: 96.21355032 | X94: 109.0703901 | Y94: 117.6630434 | Z94: 123.0147069 | AA94: 135.4613605 | AB94: 147.2397474 | AC94: 159.0181342 | AD94: 170.7965211 | AE94: 182.5749079 | AF94: 194.3532948
B95: Equity Raising Costs | F95: =Dx_Inputs!H48 -> 0 | G95: =SUM(G25,G39,G53,G67,G81) -> 0 | H95: 0 | I95: 0 | J95: 0 | K95: 0 | L95: 0 | M95: 5.906192425 | N95: 10.4642965 | O95: 13.86591517 | P95: 14.90173637 | Q95: 14.54582906 | R95: 14.18240144 | S95: 13.81897381 | T95: 13.45554619 | U95: 13.09211857 | V95: 12.72869094 | W95: 12.36526332 | X95: 12.0018357 | Y95: 11.63840807 | Z95: 11.27498045 | AA95: 10.91155283 | AB95: 10.5481252 | AC95: 10.18469758 | AD95: 9.821269955 | AE95: 9.457842332 | AF95: 9.094414708
B96: Total | F96: =SUM(F85:F95) -> 2055.478949 | G96: =SUM(G85:G95) -> 2395.19139 | H96: =SUM(H85:H95) -> 2767.373838 | I96: 3311.092276 | J96: 3612.597808 | K96: 3901.03306 | L96: 4248.701724 | M96: 4708.477962 | N96: 5142.926352 | O96: 5494.335995 | P96: 5723.088102 | Q96: 5798.40633 | R96: 6008.629124 | S96: 6205.559063 | T96: 6433.220684 | U96: 6565.644737 | V96: 6705.220143 | W96: 6906.631961 | X96: 7119.158675 | Y96: 7313.768112 | Z96: 7490.818911 | AA96: 7679.57632 | AB96: 7850.977652 | AC96: 8009.477218 | AD96: 8156.507205 | AE96: 8291.921254 | AF96: 8417.427071
B98: Initial capital base [$M real as at 30 June 2017]
B99: Year ending 30 June | F99: 2006 | G99: 2007 | H99: 2008 | I99: 2009 | J99: 2010 | K99: 2011 | L99: 2012 | M99: 2013 | N99: 2014 | O99: 2015 | P99: 2016 | Q99: 2017 | R99: 2018 | S99: 2019 | T99: 2020 | U99: 2021 | V99: 2022 | W99: 2023 | X99: 2024 | Y99: 2025 | Z99: 2026 | AA99: 2027 | AB99: 2028 | AC99: 2029 | AD99: 2030 | AE99: 2031 | AF99: 2032
B100: Opening balance
B101: Wooden Pole Lines | G101: =F157 -> 609.2179378 | H101: =G157 -> 563.4950253 | I101: 518.2047699 | J101: 473.2525743 | K101: 428.6690223 | L101: 384.4893892 | M101: 339.7019962 | N101: 296.8879963 | O101: 256.6552839 | P101: 215.8490065 | Q101: =P157 -> 176.1874254 | R101: 136.661149 | S101: 93.98290155 | T101: 51.54843739 | U101: 13.93441636 | V101: 0 | W101: 0 | X101: 0 | Y101: 0 | Z101: 0 | AA101: 0 | AB101: 0 | AC101: 0 | AD101: 0 | AE101: 0 | AF101: 0
B102: Underground Cables | G102: 689.9333868 | H102: =G158 -> 671.236005 | I102: 652.5386233 | J102: 633.8412415 | K102: 615.1438598 | L102: 596.446478 | M102: 577.7490963 | N102: 559.0517145 | O102: 540.3543327 | P102: 521.656951 | Q102: 502.9595692 | R102: 484.2621875 | S102: 465.5648057 | T102: 446.867424 | U102: 428.1700422 | V102: 409.4726605 | W102: 390.7752787 | X102: 372.0778969 | Y102: 353.3805152 | Z102: 334.6831334 | AA102: 315.9857517 | AB102: 297.2883699 | AC102: 278.5909882 | AD102: 259.8936064 | AE102: 241.1962247 | AF102: 222.4988429
B103: Transformers | G103: 262.6687554 | H103: 246.1373727 | I103: 229.7103967 | J103: 213.3612461 | K103: 197.0965417 | L103: 180.9233369 | M103: 164.8488059 | N103: 148.9653132 | O103: 133.8164096 | P103: 118.7808579 | Q103: 103.7453063 | R103: 88.70975466 | S103: 73.21249716 | T103: 56.78688342 | U103: 41.46360703 | V103: 27.1658115 | W103: 12.86801597 | X103: 0 | Y103: 0 | Z103: 0 | AA103: 0 | AB103: 0 | AC103: 0 | AD103: 0 | AE103: 0 | AF103: 0
B104: Switchgear | G104: 140.0052715 | H104: 129.3869817 | I104: 118.7990315 | J104: 108.2353158 | K104: 97.69844685 | L104: 87.19079902 | M104: 76.71533566 | N104: 66.29668697 | O104: 56.07172109 | P104: 45.87686271 | Q104: 35.68200433 | R104: 25.48714595 | S104: 15.01675792 | T104: 4.432198505 | U104: -0.3567559106 | V104: 0 | W104: 0 | X104: 0 | Y104: 0 | Z104: 0 | AA104: 0 | AB104: 0 | AC104: 0 | AD104: 0 | AE104: 0 | AF104: 0
B105: Street lighting | G105: 6.776071842 | H105: 1.129345307 | I105: -2.220446049e-16 | J105: -2.220446049e-16 | K105: -2.220446049e-16 | L105: -2.220446049e-16 | M105: -2.220446049e-16 | N105: 2.27794764e-17 | O105: 2.27794764e-17 | P105: 2.27794764e-17 | Q105: 2.27794764e-17 | R105: 2.27794764e-17 | S105: 0 | T105: 0 | U105: 0 | V105: 0 | W105: 0 | X105: 0 | Y105: 0 | Z105: 0 | AA105: 0 | AB105: 0 | AC105: 0 | AD105: 0 | AE105: 0 | AF105: 0
B106: Meters and Services | G106: 216.8338929 | H106: 193.2649915 | I106: 169.6960901 | J106: 146.1271887 | K106: 122.5582873 | L106: 98.98938591 | M106: 75.4204845 | N106: 51.85158309 | O106: 28.28268169 | P106: 4.713780281 | Q106: 3.552713679e-14 | R106: 3.552713679e-14 | S106: 0 | T106: 0 | U106: 0 | V106: 0 | W106: 0 | X106: 0 | Y106: 0 | Z106: 0 | AA106: 0 | AB106: 0 | AC106: 0 | AD106: 0 | AE106: 0 | AF106: 0
B107: IT | G107: 19.87114137 | H107: 17.84347388 | I107: 15.81580639 | J107: 13.78813891 | K107: 10.8139065 | L107: 8.78623901 | M107: 6.680449903 | N107: 4.92243677 | O107: 3.164423638 | P107: 1.406410506 | Q107: 2.886579864e-15 | R107: 2.886579864e-15 | S107: 0 | T107: 0 | U107: 0 | V107: 0 | W107: 0 | X107: 0 | Y107: 0 | Z107: 0 | AA107: 0 | AB107: 0 | AC107: 0 | AD107: 0 | AE107: 0 | AF107: 0
B108: SCADA & Communications | G108: 16.53293473 | H108: 14.91205878 | I108: 13.29118282 | J108: 11.67030687 | K108: 10.04943092 | L108: 8.428554962 | M108: 6.807679008 | N108: 5.186803054 | O108: 3.565927099 | P108: 1.945051145 | Q108: 0.3241751909 | R108: 0 | S108: 0 | T108: 0 | U108: 0 | V108: 0 | W108: 0 | X108: 0 | Y108: 0 | Z108: 0 | AA108: 0 | AB108: 0 | AC108: 0 | AD108: 0 | AE108: 0 | AF108: 0
B109: Other Distribution Non-Network | G109: 66.02882399 | H109: 60.18556523 | I109: 54.34230647 | J109: 48.49904771 | K109: 42.65578895 | L109: 36.81253019 | M109: 30.96927143 | N109: 25.07543513 | O109: 19.23217637 | P109: =O165 -> 13.38891761 | Q109: =P165 -> 4.869873677 | R109: 0 | S109: 0 | T109: 0 | U109: 0 | V109: 0 | W109: 0 | X109: 0 | Y109: 0 | Z109: 0 | AA109: 0 | AB109: 0 | AC109: 0 | AD109: 0 | AE109: 0 | AF109: 0
B110: Distribution Land & Easements | G110: 27.61073303 | H110: 27.36945674 | I110: 27.36945674 | J110: 27.36945674 | K110: 27.36945674 | L110: 27.36834117 | M110: 26.02341106 | N110: 25.14574969 | O110: 25.11334459 | P110: 21.46178924 | Q110: 21.46178924 | R110: 21.14784883 | S110: 21.14784883 | T110: 21.14784883 | U110: 21.14784883 | V110: 21.14784883 | W110: 21.14784883 | X110: 21.14784883 | Y110: 21.14784883 | Z110: 21.14784883 | AA110: 21.14784883 | AB110: 21.14784883 | AC110: 21.14784883 | AD110: 21.14784883 | AE110: 21.14784883 | AF110: 21.14784883
B111: Equity Raising Costs | G111: 0 | H111: 0 | I111: 0 | J111: 0 | K111: 0 | L111: 0 | M111: 0 | N111: 0 | O111: 0 | P111: 0 | Q111: 0 | R111: 0 | S111: 0 | T111: 0 | U111: 0 | V111: 0 | W111: 0 | X111: 0 | Y111: 0 | Z111: 0 | AA111: 0 | AB111: =AA167 -> 0 | AC111: =AB167 -> 0 | AD111: =AC167 -> 0 | AE111: =AD167 -> 0 | AF111: =AE167 -> 0
B112: Total | G112: =SUM(G101:G111) -> 2055.478949 | H112: =SUM(H101:H111) -> 1924.960276 | I112: 1799.767664 | J112: 1676.144517 | K112: 1552.054741 | L112: 1429.435054 | M112: 1304.91653 | N112: 1183.383719 | O112: 1066.256301 | P112: 945.0796269 | Q112: 845.2301433 | R112: 756.2680859 | S112: 668.9248112 | T112: 580.7827921 | U112: 504.3591585 | V112: 457.7863208 | W112: 424.7911435 | X112: 393.2257458 | Y112: 374.528364 | Z112: 355.8309823 | AA112: 337.1336005 | AB112: 318.4362187 | AC112: 299.738837 | AD112: 281.0414552 | AE112: 262.3440735 | AF112: 243.6466917
B114: Depreciation
B115: Wooden Pole Lines | G115: =G245 -> -42.01503019 | H115: =H245 -> -41.74231227 | I115: -41.45524077 | J115: -41.15239776 | K115: -40.82562117 | L115: -40.47256728 | M115: -39.96494073 | N115: -39.58506618 | O115: -39.5262764 | P115: -39.5262764 | Q115: -39.5262764 | R115: -39.04604256 | S115: -37.59316062 | T115: -34.36562493 | U115: -13.93441636 | V115: 0 | W115: 0 | X115: 0 | Y115: 0 | Z115: 0 | AA115: 0 | AB115: 0 | AC115: 0 | AD115: 0 | AE115: 0 | AF115: 0
B116: Underground Cables | G116: =G275 -> -18.69738176 | H116: =H275 -> -18.69738176 | I116: -18.69738176 | J116: -18.69738176 | K116: -18.69738176 | L116: -18.69738176 | M116: -18.69738176 | N116: -18.69738176 | O116: -18.69738176 | P116: -18.69738176 | Q116: -18.69738176 | R116: -18.69738176 | S116: -18.69738176 | T116: -18.69738176 | U116: -18.69738176 | V116: -18.69738176 | W116: -18.69738176 | X116: -18.69738176 | Y116: -18.69738176 | Z116: -18.69738176 | AA116: -18.69738176 | AB116: -18.69738176 | AC116: -18.69738176 | AD116: -18.69738176 | AE116: -18.69738176 | AF116: -18.69738176
B117: Transformers | G117: =G305 -> -15.5425299 | H117: =H305 -> -15.48077719 | I117: -15.41654991 | J117: -15.34972994 | K117: -15.27880168 | L117: -15.20364175 | M117: -15.12374366 | N117: -15.04700133 | O117: -15.03555164 | P117: -15.03555164 | Q117: -15.03555164 | R117: -15.03555164 | S117: -14.94132595 | T117: -14.56073934 | U117: -14.29779553 | V117: -14.29779553 | W117: -12.86801597 | X117: 0 | Y117: 0 | Z117: 0 | AA117: 0 | AB117: 0 | AC117: 0 | AD117: 0 | AE117: 0 | AF117: 0
B118: Switchgear | G118: =G335 -> -10.37076085 | H118: =H335 -> -10.35109841 | I118: -10.33026778 | J118: -10.30812531 | K118: -10.28404704 | L118: -10.25774106 | M118: -10.22871142 | N118: -10.1994903 | O118: -10.19485838 | P118: -10.19485838 | Q118: -10.19485838 | R118: -10.19485838 | S118: -10.01117195 | T118: -4.432198505 | U118: 0.3567559106 | V118: 0 | W118: 0 | X118: 0 | Y118: 0 | Z118: 0 | AA118: 0 | AB118: 0 | AC118: 0 | AD118: 0 | AE118: 0 | AF118: 0
B119: Street lighting | G119: =G365 -> -5.646726535 | H119: =H365 -> -1.129345307 | I119: 0 | J119: 0 | K119: 0 | L119: 0 | M119: 2.448240813e-16 | N119: 0 | O119: 0 | P119: 0 | Q119: 0 | R119: -2.27794764e-17 | S119: 0 | T119: 0 | U119: 0 | V119: 0 | W119: 0 | X119: 0 | Y119: 0 | Z119: 0 | AA119: 0 | AB119: 0 | AC119: 0 | AD119: 0 | AE119: 0 | AF119: 0
B120: Meters and Services | G120: =G395 -> -23.56890141 | H120: =H395 -> -23.56890141 | I120: -23.56890141 | J120: -23.56890141 | K120: -23.56890141 | L120: -23.56890141 | M120: -23.56890141 | N120: -23.56890141 | O120: -23.56890141 | P120: -4.713780281 | Q120: 0 | R120: -3.552713679e-14 | S120: 0 | T120: 0 | U120: 0 | V120: 0 | W120: 0 | X120: 0 | Y120: 0 | Z120: 0 | AA120: 0 | AB120: 0 | AC120: 0 | AD120: 0 | AE120: 0 | AF120: 0
B121: IT | G121: =G425 -> -2.027667487 | H121: =H425 -> -2.027667487 | I121: -2.027667487 | J121: -2.027667487 | K121: -2.027667487 | L121: -2.027667487 | M121: -1.758013132 | N121: -1.758013132 | O121: -1.758013132 | P121: -1.406410506 | Q121: 0 | R121: -2.886579864e-15 | S121: 0 | T121: 0 | U121: 0 | V121: 0 | W121: 0 | X121: 0 | Y121: 0 | Z121: 0 | AA121: 0 | AB121: 0 | AC121: 0 | AD121: 0 | AE121: 0 | AF121: 0
B122: SCADA & Communications | G122: =G455 -> -1.620875954 | H122: =H455 -> -1.620875954 | I122: -1.620875954 | J122: -1.620875954 | K122: -1.620875954 | L122: -1.620875954 | M122: -1.620875954 | N122: -1.620875954 | O122: -1.620875954 | P122: -1.620875954 | Q122: -0.3241751909 | R122: 0 | S122: 0 | T122: 0 | U122: 0 | V122: 0 | W122: 0 | X122: 0 | Y122: 0 | Z122: 0 | AA122: 0 | AB122: 0 | AC122: 0 | AD122: 0 | AE122: 0 | AF122: 0
B123: Other Distribution Non-Network | G123: =G485 -> -5.84325876 | H123: =H485 -> -5.84325876 | I123: -5.84325876 | J123: -5.84325876 | K123: -5.84325876 | L123: -5.84325876 | M123: -5.84325876 | N123: -5.84325876 | O123: -5.84325876 | P123: -5.84325876 | Q123: -5.84325876 | R123: 0 | S123: 0 | T123: 0 | U123: 0 | V123: 0 | W123: 0 | X123: 0 | Y123: 0 | Z123: 0 | AA123: 0 | AB123: 0 | AC123: 0 | AD123: 0 | AE123: 0 | AF123: 0
B124: Distribution Land & Easements | G124: =G515 -> 0 | H124: =H515 -> 0 | I124: 0 | J124: 0 | K124: 0 | L124: 0 | M124: 0 | N124: 0 | O124: 0 | P124: 0 | Q124: 0 | R124: 0 | S124: 0 | T124: 0 | U124: 0 | V124: 0 | W124: 0 | X124: 0 | Y124: 0 | Z124: 0 | AA124: 0 | AB124: 0 | AC124: 0 | AD124: 0 | AE124: 0 | AF124: 0
B125: Equity Raising Costs | G125: =G545 -> 0 | H125: =H545 -> 0 | I125: 0 | J125: 0 | K125: 0 | L125: 0 | M125: 0 | N125: 0 | O125: 0 | P125: 0 | Q125: 0 | R125: 0 | S125: 0 | T125: 0 | U125: 0 | V125: 0 | W125: 0 | X125: 0 | Y125: 0 | Z125: 0 | AA125: 0 | AB125: 0 | AC125: 0 | AD125: 0 | AE125: 0 | AF125: 0
B126: Total | G126: =SUM(G115:G125) -> -125.3331328 | H126: =SUM(H115:H125) -> -120.4616185 | I126: -118.9601438 | J126: -118.5683384 | K126: -118.1465553 | L126: -117.6920355 | M126: -116.8058268 | N126: -116.3199888 | O126: -116.2451174 | P126: -97.03839368 | Q126: -89.62150213 | R126: -82.97383434 | S126: -81.24304028 | T126: -72.05594453 | U126: -46.57283774 | V126: -32.99517728 | W126: -31.56539773 | X126: -18.69738176 | Y126: -18.69738176 | Z126: -18.69738176 | AA126: -18.69738176 | AB126: -18.69738176 | AC126: -18.69738176 | AD126: -18.69738176 | AE126: -18.69738176 | AF126: -18.69738176
B128: Accelerated depreciation
B129: Wooden Pole Lines | G129: =-Dx_Inputs!E565 -> -3.707882254 | H129: =-Dx_Inputs!F565 -> -3.547943226 | I129: =-Dx_Inputs!G565 -> -3.49695482 | J129: =-Dx_Inputs!H565 -> -3.431154205 | K129: =-Dx_Inputs!I565 -> -3.354011931 | L129: =-Dx_Inputs!J565 -> -3.265834402 | M129: =-Dx_Inputs!K565 -> -2.849059121 | N129: =-Dx_Inputs!L565 -> -0.3821335525 | O129: =-Dx_Inputs!M565 -> 0 | P129: =-Dx_Inputs!N565 -> 0 | Q129: =-Dx_Inputs!O565 -> 0 | R129: =-Dx_Inputs!P565 -> -3.632204862 | S129: =-Dx_Inputs!Q565 -> -4.841303536 | T129: =-Dx_Inputs!R565 -> -3.248396102 | U129: =-Dx_Inputs!S565 -> 0 | V129: =-Dx_Inputs!T565 -> 0
B130: Underground Cables | G130: =-Dx_Inputs!E566 -> 0 | H130: =-Dx_Inputs!F566 -> 0 | I130: =-Dx_Inputs!G566 -> 0 | J130: =-Dx_Inputs!H566 -> 0 | K130: =-Dx_Inputs!I566 -> 0 | L130: =-Dx_Inputs!J566 -> 0 | M130: =-Dx_Inputs!K566 -> 0 | N130: =-Dx_Inputs!L566 -> 0 | O130: =-Dx_Inputs!M566 -> 0 | P130: =-Dx_Inputs!N566 -> 0 | Q130: =-Dx_Inputs!O566 -> 0 | R130: =-Dx_Inputs!P566 -> 0 | S130: =-Dx_Inputs!Q566 -> 0 | T130: =-Dx_Inputs!R566 -> 0 | U130: =-Dx_Inputs!S566 -> 0 | V130: =-Dx_Inputs!T566 -> 0
B131: Transformers | G131: =-Dx_Inputs!E567 -> -0.9888527945 | H131: =-Dx_Inputs!F567 -> -0.9461987554 | I131: =-Dx_Inputs!G567 -> -0.9326006895 | J131: =-Dx_Inputs!H567 -> -0.9149744547 | K131: =-Dx_Inputs!I567 -> -0.8944031815 | L131: =-Dx_Inputs!J567 -> -0.8708891738 | M131: =-Dx_Inputs!K567 -> -0.759749099 | N131: =-Dx_Inputs!L567 -> -0.1019022807 | O131: =-Dx_Inputs!M567 -> 0 | P131: =-Dx_Inputs!N567 -> 0 | Q131: =-Dx_Inputs!O567 -> 0 | R131: =-Dx_Inputs!P567 -> -0.4617058566 | S131: =-Dx_Inputs!Q567 -> -1.484287794 | T131: =-Dx_Inputs!R567 -> -0.7625370509 | U131: =-Dx_Inputs!S567 -> 0 | V131: =-Dx_Inputs!T567 -> 0
B132: Switchgear | G132: =-Dx_Inputs!E568 -> -0.2475289243 | H132: =-Dx_Inputs!F568 -> -0.2368517957 | I132: =-Dx_Inputs!G568 -> -0.2334479376 | J132: =-Dx_Inputs!H568 -> -0.2287436137 | K132: =-Dx_Inputs!I568 -> -0.2236007954 | L132: =-Dx_Inputs!J568 -> -0.2177222935 | M132: =-Dx_Inputs!K568 -> -0.1899372748 | N132: =-Dx_Inputs!L568 -> -0.02547557017 | O132: =-Dx_Inputs!M568 -> 0 | P132: =-Dx_Inputs!N568 -> 0 | Q132: =-Dx_Inputs!O568 -> 0 | R132: =-Dx_Inputs!P568 -> -0.2755296495 | S132: =-Dx_Inputs!Q568 -> -0.5733874686 | T132: =-Dx_Inputs!R568 -> -0.3567559106 | U132: =-Dx_Inputs!S568 -> 0 | V132: =-Dx_Inputs!T568 -> 0
B133: Street lighting | G133: =-Dx_Inputs!E569 -> 0 | H133: =-Dx_Inputs!F569 -> 0 | I133: =-Dx_Inputs!G569 -> 0 | J133: =-Dx_Inputs!H569 -> 0 | K133: =-Dx_Inputs!I569 -> 0 | L133: =-Dx_Inputs!J569 -> 0 | M133: =-Dx_Inputs!K569 -> 0 | N133: =-Dx_Inputs!L569 -> 0 | O133: =-Dx_Inputs!M569 -> 0 | P133: =-Dx_Inputs!N569 -> 0 | Q133: =-Dx_Inputs!O569 -> 0 | R133: =-Dx_Inputs!P569 -> 0 | S133: =-Dx_Inputs!Q569 -> 0 | T133: =-Dx_Inputs!R569 -> 0 | U133: =-Dx_Inputs!S569 -> 0 | V133: =-Dx_Inputs!T569 -> 0
B134: Meters and Services | G134: =-Dx_Inputs!E570 -> 0 | H134: =-Dx_Inputs!F570 -> 0 | I134: =-Dx_Inputs!G570 -> 0 | J134: =-Dx_Inputs!H570 -> 0 | K134: =-Dx_Inputs!I570 -> 0 | L134: =-Dx_Inputs!J570 -> 0 | M134: =-Dx_Inputs!K570 -> 0 | N134: =-Dx_Inputs!L570 -> 0 | O134: =-Dx_Inputs!M570 -> 0 | P134: =-Dx_Inputs!N570 -> 0 | Q134: =-Dx_Inputs!O570 -> 0 | R134: =-Dx_Inputs!P570 -> 0 | S134: =-Dx_Inputs!Q570 -> 0 | T134: =-Dx_Inputs!R570 -> 0 | U134: =-Dx_Inputs!S570 -> 0 | V134: =-Dx_Inputs!T570 -> 0
B135: IT | G135: =-Dx_Inputs!E571 -> 0 | H135: =-Dx_Inputs!F571 -> 0 | I135: =-Dx_Inputs!G571 -> 0 | J135: =-Dx_Inputs!H571 -> 0 | K135: =-Dx_Inputs!I571 -> 0 | L135: =-Dx_Inputs!J571 -> 0 | M135: =-Dx_Inputs!K571 -> 0 | N135: =-Dx_Inputs!L571 -> 0 | O135: =-Dx_Inputs!M571 -> 0 | P135: =-Dx_Inputs!N571 -> 0 | Q135: =-Dx_Inputs!O571 -> 0 | R135: =-Dx_Inputs!P571 -> 0 | S135: =-Dx_Inputs!Q571 -> 0 | T135: =-Dx_Inputs!R571 -> 0 | U135: =-Dx_Inputs!S571 -> 0 | V135: =-Dx_Inputs!T571 -> 0
B136: SCADA & Communications | G136: =-Dx_Inputs!E572 -> 0 | H136: =-Dx_Inputs!F572 -> 0 | I136: =-Dx_Inputs!G572 -> 0 | J136: =-Dx_Inputs!H572 -> 0 | K136: =-Dx_Inputs!I572 -> 0 | L136: =-Dx_Inputs!J572 -> 0 | M136: =-Dx_Inputs!K572 -> 0 | N136: =-Dx_Inputs!L572 -> 0 | O136: =-Dx_Inputs!M572 -> 0 | P136: =-Dx_Inputs!N572 -> 0 | Q136: =-Dx_Inputs!O572 -> 0 | R136: =-Dx_Inputs!P572 -> 0 | S136: =-Dx_Inputs!Q572 -> 0 | T136: =-Dx_Inputs!R572 -> 0 | U136: =-Dx_Inputs!S572 -> 0 | V136: =-Dx_Inputs!T572 -> 0
B137: Other Distribution Non-Network | G137: =-Dx_Inputs!E573 -> 0 | H137: =-Dx_Inputs!F573 -> 0 | I137: =-Dx_Inputs!G573 -> 0 | J137: =-Dx_Inputs!H573 -> 0 | K137: =-Dx_Inputs!I573 -> 0 | L137: =-Dx_Inputs!J573 -> 0 | M137: =-Dx_Inputs!K573 -> 0 | N137: =-Dx_Inputs!L573 -> 0 | O137: =-Dx_Inputs!M573 -> 0 | P137: =-Dx_Inputs!N573 -> 0 | Q137: =-Dx_Inputs!O573 -> 0 | R137: =-Dx_Inputs!P573 -> 0 | S137: =-Dx_Inputs!Q573 -> 0 | T137: =-Dx_Inputs!R573 -> 0 | U137: =-Dx_Inputs!S573 -> 0 | V137: =-Dx_Inputs!T573 -> 0
B138: Distribution Land & Easements | G138: =-Dx_Inputs!E574 -> 0 | H138: =-Dx_Inputs!F574 -> 0 | I138: =-Dx_Inputs!G574 -> 0 | J138: =-Dx_Inputs!H574 -> 0 | K138: =-Dx_Inputs!I574 -> 0 | L138: =-Dx_Inputs!J574 -> 0 | M138: =-Dx_Inputs!K574 -> 0 | N138: =-Dx_Inputs!L574 -> 0 | O138: =-Dx_Inputs!M574 -> 0 | P138: =-Dx_Inputs!N574 -> 0 | Q138: =-Dx_Inputs!O574 -> 0 | R138: =-Dx_Inputs!P574 -> 0 | S138: =-Dx_Inputs!Q574 -> 0 | T138: =-Dx_Inputs!R574 -> 0 | U138: =-Dx_Inputs!S574 -> 0 | V138: =-Dx_Inputs!T574 -> 0
B139: Equity Raising Costs
B140: Total | G140: =SUM(G129:G139) -> -4.944263973 | H140: =SUM(H129:H139) -> -4.730993777 | I140: -4.663003447 | J140: -4.574872273 | K140: -4.472015908 | L140: -4.354445869 | M140: -3.798745495 | N140: -0.5095114034 | O140: 0 | P140: 0 | Q140: 0 | R140: =SUM(R129:R139) -> -4.369440368 | S140: -6.898978798 | T140: -4.367689064 | U140: 0 | V140: 0
B142: Disposals/Redundant assets
B143: Wooden Pole Lines | G143: =IF(G101+G115+G129>Dx_Inputs!E596,-Dx_Inputs!E596,0) -> 0 | H143: =IF(H101+H115+H129>Dx_Inputs!F596,-Dx_Inputs!F596,0) -> 0 | I143: =IF(I101+I115+I129>Dx_Inputs!G596,-Dx_Inputs!G596,0) -> 0 | J143: =IF(J101+J115+J129>Dx_Inputs!H596,-Dx_Inputs!H596,0) -> 0 | K143: =IF(K101+K115+K129>Dx_Inputs!I596,-Dx_Inputs!I596,0) -> 0 | L143: =IF(L101+L115+L129>Dx_Inputs!J596,-Dx_Inputs!J596,0) -> -1.048991326 | M143: =IF(M101+M115+M129>Dx_Inputs!K596,-Dx_Inputs!K596,-(M101+M115+M129)) -> 0 | N143: =IF(N101+N115+N129>Dx_Inputs!L596,-Dx_Inputs!L596,-(N101+N115+N129)) -> -0.2655127479 | O143: =IF(O101+O115+O129>Dx_Inputs!M596,-Dx_Inputs!M596,-(O101+O115+O129)) -> -1.28000093 | P143: =IF(P101+P115+P129>Dx_Inputs!N596,-Dx_Inputs!N596,-(P101+P115+P129)) -> -0.1353047467 | Q143: =IF(Q101+Q115+Q129>Dx_Inputs!O596,-Dx_Inputs!O596,-(Q101+Q115+Q129)) -> 0
B144: Underground Cables | G144: =IF(G102+G116+G130>Dx_Inputs!E597,-Dx_Inputs!E597,0) -> 0 | H144: =IF(H102+H116+H130>Dx_Inputs!F597,-Dx_Inputs!F597,0) -> 0 | I144: =IF(I102+I116+I130>Dx_Inputs!G597,-Dx_Inputs!G597,0) -> 0 | J144: =IF(J102+J116+J130>Dx_Inputs!H597,-Dx_Inputs!H597,0) -> 0 | K144: =IF(K102+K116+K130>Dx_Inputs!I597,-Dx_Inputs!I597,0) -> 0 | L144: =IF(L102+L116+L130>Dx_Inputs!J597,-Dx_Inputs!J597,0) -> 0 | M144: =IF(M102+M116+M130>Dx_Inputs!K597,-Dx_Inputs!K597,-(M102+M116+M130)) -> 0 | N144: =IF(N102+N116+N130>Dx_Inputs!L597,-Dx_Inputs!L597,-(N102+N116+N130)) -> 0 | O144: =IF(O102+O116+O130>Dx_Inputs!M597,-Dx_Inputs!M597,-(O102+O116+O130)) -> 0 | P144: =IF(P102+P116+P130>Dx_Inputs!N597,-Dx_Inputs!N597,-(P102+P116+P130)) -> 0 | Q144: =IF(Q102+Q116+Q130>Dx_Inputs!O597,-Dx_Inputs!O597,-(Q102+Q116+Q130)) -> 0
B145: Transformers | G145: =IF(G103+G117+G131>Dx_Inputs!E598,-Dx_Inputs!E598,0) -> 0 | H145: =IF(H103+H117+H131>Dx_Inputs!F598,-Dx_Inputs!F598,0) -> 0 | I145: =IF(I103+I117+I131>Dx_Inputs!G598,-Dx_Inputs!G598,0) -> 0 | J145: =IF(J103+J117+J131>Dx_Inputs!H598,-Dx_Inputs!H598,0) -> 0 | K145: =IF(K103+K117+K131>Dx_Inputs!I598,-Dx_Inputs!I598,0) -> 0 | L145: =IF(L103+L117+L131>Dx_Inputs!J598,-Dx_Inputs!J598,0) -> 0 | M145: =IF(M103+M117+M131>Dx_Inputs!K598,-Dx_Inputs!K598,-(M103+M117+M131)) -> 0 | N145: =IF(N103+N117+N131>Dx_Inputs!L598,-Dx_Inputs!L598,-(N103+N117+N131)) -> 0 | O145: =IF(O103+O117+O131>Dx_Inputs!M598,-Dx_Inputs!M598,-(O103+O117+O131)) -> 0 | P145: =IF(P103+P117+P131>Dx_Inputs!N598,-Dx_Inputs!N598,-(P103+P117+P131)) -> 0 | Q145: =IF(Q103+Q117+Q131>Dx_Inputs!O598,-Dx_Inputs!O598,-(Q103+Q117+Q131)) -> 0
B146: Switchgear | G146: =IF(G104+G118+G132>Dx_Inputs!E599,-Dx_Inputs!E599,0) -> 0 | H146: =IF(H104+H118+H132>Dx_Inputs!F599,-Dx_Inputs!F599,0) -> 0 | I146: =IF(I104+I118+I132>Dx_Inputs!G599,-Dx_Inputs!G599,0) -> 0 | J146: =IF(J104+J118+J132>Dx_Inputs!H599,-Dx_Inputs!H599,0) -> 0 | K146: =IF(K104+K118+K132>Dx_Inputs!I599,-Dx_Inputs!I599,0) -> 0 | L146: =IF(L104+L118+L132>Dx_Inputs!J599,-Dx_Inputs!J599,0) -> 0 | M146: =IF(M104+M118+M132>Dx_Inputs!K599,-Dx_Inputs!K599,-(M104+M118+M132)) -> 0 | N146: =IF(N104+N118+N132>Dx_Inputs!L599,-Dx_Inputs!L599,-(N104+N118+N132)) -> 0 | O146: =IF(O104+O118+O132>Dx_Inputs!M599,-Dx_Inputs!M599,-(O104+O118+O132)) -> 0 | P146: =IF(P104+P118+P132>Dx_Inputs!N599,-Dx_Inputs!N599,-(P104+P118+P132)) -> 0 | Q146: =IF(Q104+Q118+Q132>Dx_Inputs!O599,-Dx_Inputs!O599,-(Q104+Q118+Q132)) -> 0
